Workbook

Sheet Summary_
D1: Voltage PQ Management Strategy | I1: Section Check: | J1: =IF(COUNTA($A$8:$A$826)=COUNTIF($A$8:$A$826,0),"Ok","Check") -> Ok | M1: Overall Check: | N1: Ok | P1: Legend: | Q1: Input | R1: Internal | S1: Select | T1: Calculation
D2: =RIGHT(CELL("filename",D1),LEN(CELL("filename",D1))-FIND("]",CELL("filename",D1))) -> Summary_ | F2: Summary
B6: Copyright Jemena Limited. All rights reserved. Jemena is not liable for any loss caused by reliance on this document.
B8: Summary
C10: Summary
D12: Options | E12: Basis | F12: Option 1 | G12: Option 2 | H12: Option 3 | I12: Option 4
D13: Total Cost | E13: Real 2024 | F13: 0 | G13: =Option_2!K30 -> 42.42606376 | H13: =Option_3!K30 -> 49.37075 | I13: =Option_4!K38 -> 49.82997376 | J13: Includes proactive and reactive programs
D14: Present Value Cost | E14: Real 2024 | F14: 0 | G14: =Option_2!L30 -> 19.6649358 | H14: =Option_3!L30 -> 31.60276904 | I14: =Option_4!L38 -> 31.39579517 | J14: Excludes reactive program (not ecomoncally justified - as it is a recurrent expenditure response to customer complaints)
D15: Present Value Benefit | E15: Real 2024 | F15: =F18+F19 -> 0 | G15: =G18+G19 -> 16.6168984 | H15: =H18+H19 -> 33.6457874 | I15: =I18+I19 -> 33.6457874
D16: Net Present Value (NPV) | F16: =F15-F14 -> 0 | G16: =G15-G14 -> -3.048037401 | H16: =H15-H14 -> 2.043018362 | I16: =I15-I14 -> 2.249992232
D17: Present Value Ratio (PVR) | E17: Real 2024 | F17: 1 | G17: =G15/G14 -> 0.845001406 | H17: =H15/H14 -> 1.064646815 | I17: =I15/I14 -> 1.0716654
D18: Compliance | E18: Real 2024 | F18: 0 | G18: =98%*(Do_Nothing!F67-Do_Nothing!M67) -> 8.251124447 | H18: =Do_Nothing!F67 -> 18.16840607 | I18: =H18 -> 18.16840607
D19: DER Enablement | E19: Real 2024 | F19: 0 | G19: =98%*(Do_Nothing!G67-Do_Nothing!N67) -> 8.36577395 | H19: =Do_Nothing!G67 -> 15.47738134 | I19: =H19 -> 15.47738134
B24: End
B826: End

Sheet Do_Nothing
D1: Voltage PQ Management Strategy | H1: Section Check: | I1: =IF(COUNTA($A$8:$A$875)=COUNTIF($A$8:$A$875,0),"Ok","Check") -> Ok | L1: Overall Check: | M1: Ok | O1: Legend: | P1: Input | Q1: Internal | R1: Select | S1: Calculation
D2: =RIGHT(CELL("filename",D1),LEN(CELL("filename",D1))-FIND("]",CELL("filename",D1))) -> Do_Nothing
B6: Copyright Jemena Limited. All rights reserved. Jemena is not liable for any loss caused by reliance on this document.
B8: General Assumptions
C10: =B8 -> General Assumptions
D12: =C10 -> General Assumptions | E12: Source | F12: Unit | G12: Basis
D14: Discount Rate | E14: AM | F14: Per cent | G14: n/a | J14: 0.055
D15: Retail Tariff | E15: AM | F15: $/MWh | G15: n/a | J15: 300
D16: Safety Disproportionality Factor | E16: AM | F16: Factor | G16: n/a | J16: 6
D17: Assessment Period Years | E17: AM | F17: Years | G17: n/a | J17: 20
D18: Risk addressed in current period | E18: AM | F18: Per cent | G18: n/a | J18: =Option_4!K26/(Option_4!K26+Option_4!K25) -> 0.2279731671
D19: Next Regulatory Period | E19: AM | F19: Year | G19: n/a | J19: =Option_2!J14 -> 2027
B22: Option
C24: Summary
D26: =C24 -> Summary | E26: Source | F26: Unit | J26: =F37 -> Compliance | K26: =G37 -> DER Enablement
D28: ="End of FY"&$J$19-1 -> End of FY2026 | E28: AM | F28: $M | J28: =INDEX(F$39:F$65,MATCH($J$19-1,$D$39:$D$65,0),0) *(1-$J$18) -> 0.6749388395 | K28: =INDEX(G$39:G$65,MATCH($J$19-1,$D$39:$D$65,0),0) *(1-$J$18) -> 0.4257407286
D29: ="End of FY"&$J$19+4 -> End of FY2031 | E29: AM | F29: $M | J29: =INDEX(F$39:F$65,MATCH($J$19+4,$D$39:$D$65,0),0) *(1-$J$18) -> 1.148536308 | K29: =INDEX(G$39:G$65,MATCH($J$19+4,$D$39:$D$65,0),0) *(1-$J$18) -> 1.310971563
C31: Calculations
D33: Do Nothing | F33: Copy values from Do Nothing into the yellow highlights when value is changed from 0 to 1 (i.e., one cell set to 1 at a time. Leave all at zero by default for the Do Nothing Case.)
J35: Reactors Only | K35: 0 | M35: DVM Only | N35: 0 | P35: Reactors & DVM & Spread | Q35: 0
F36: $M | G36: $M | J36: $M | K36: $M | M36: $M | N36: $M | P36: $M | Q36: $M
D37: Year | E37: Discount Ratio | F37: Compliance | G37: DER Enablement | I37: Flag | J37: Compliance | K37: DER Enablement | M37: Compliance | N37: DER Enablement | P37: Compliance | Q37: DER Enablement
D39: 2024 | E39: 1 | F39: =OFFSET(Consumption!$H$152,0,$D39-$D$39+1)*$J$15/1000000*$J$16 -> 0.857902862 | G39: =OFFSET(Curtailment!$I$115,0,$D39-$D$39+1)*AVERAGEIF(CECV!B:B,$D39,CECV!$W:$AI)*CECV!$J$1/1000000 -> 0.5038118977 | I39: =IF(SUM($I$37:$I37)>=$J$17,0,IF(D39>$J$19,1,0)) -> 0 | J39: 0.8551349111 | K39: 0.5038118977 | M39: 0.2376347024 | N39: 0.123835716 | P39: 0 | Q39: 0
D40: =D39+1 -> 2025 | E40: =E39*1/(1+$J$14) -> 0.9478672986 | F40: =OFFSET(Consumption!$H$152,0,$D40-$D$39+1)*$J$15/1000000*$J$16 -> 0.8619942417 | G40: =OFFSET(Curtailment!$I$115,0,$D40-$D$39+1)*AVERAGEIF(CECV!B:B,$D40,CECV!$W:$AI)*CECV!$J$1/1000000 -> 0.457212632 | I40: =IF(SUM($I$37:$I39)>=$J$17,0,IF(D40>$J$19,1,0)) -> 0 | J40: 0.8551349111 | K40: 0.4416663702 | M40: 0.2405754799 | N40: 0.1318601044 | P40: 0 | Q40: 0
D41: 2026 | E41: =E40*1/(1+$J$14) -> 0.8984524157 | F41: =OFFSET(Consumption!$H$152,0,$D41-$D$39+1)*$J$15/1000000*$J$16 -> 0.8742427216 | G41: =OFFSET(Curtailment!$I$115,0,$D41-$D$39+1)*AVERAGEIF(CECV!B:B,$D41,CECV!$W:$AI)*CECV!$J$1/1000000 -> 0.5514584603 | I41: =IF(SUM($I$37:$I40)>=$J$17,0,IF(D41>$J$19,1,0)) -> 0 | J41: 0.8551349111 | K41: 0.5097834851 | M41: 0.2486226779 | N41: 0.1515163163 | P41: 0 | Q41: 0
D42: 2027 | E42: 0.8516136642 | F42: =OFFSET(Consumption!$H$152,0,$D42-$D$39+1)*$J$15/1000000*$J$16 -> 0.9429009654 | G42: =OFFSET(Curtailment!$I$115,0,$D42-$D$39+1)*AVERAGEIF(CECV!B:B,$D42,CECV!$W:$AI)*CECV!$J$1/1000000 -> 0.6002035924 | I42: =IF(SUM($I$37:$I41)>=$J$17,0,IF(D42>$J$19,1,0)) -> 0 | J42: 0.8551349111 | K42: 0.5553734395 | M42: 0.2925927 | N42: 0.1836523479 | P42: 0 | Q42: 0
D43: 2028 | E43: 0.8072167433 | F43: =OFFSET(Consumption!$H$152,0,$D43-$D$39+1)*$J$15/1000000*$J$16 -> 0.9154755503 | G43: =OFFSET(Curtailment!$I$115,0,$D43-$D$39+1)*AVERAGEIF(CECV!B:B,$D43,CECV!$W:$AI)*CECV!$J$1/1000000 -> 0.6912955541 | I43: =IF(SUM($I$37:$I42)>=$J$17,0,IF(D43>$J$19,1,0)) -> 1 | J43: 0.8551349111 | K43: 0.6403355519 | M43: 0.2738515735 | N43: 0.2110753093 | P43: 0 | Q43: 0
D44: 2029 | E44: 0.7651343538 | F44: =OFFSET(Consumption!$H$152,0,$D44-$D$39+1)*$J$15/1000000*$J$16 -> 0.9949159001 | G44: =OFFSET(Curtailment!$I$115,0,$D44-$D$39+1)*AVERAGEIF(CECV!B:B,$D44,CECV!$W:$AI)*CECV!$J$1/1000000 -> 0.8240002055 | I44: =IF(SUM($I$37:$I43)>=$J$17,0,IF(D44>$J$19,1,0)) -> 1 | J44: 0.8551349111 | K44: 0.7150131908 | M44: 0.325158842 | N44: 0.2956077652 | P44: 0 | Q44: 0
D45: 2030 | E45: 0.725245833 | F45: =OFFSET(Consumption!$H$152,0,$D45-$D$39+1)*$J$15/1000000*$J$16 -> 1.166044364 | G45: =OFFSET(Curtailment!$I$115,0,$D45-$D$39+1)*AVERAGEIF(CECV!B:B,$D45,CECV!$W:$AI)*CECV!$J$1/1000000 -> 1.289253725 | I45: =IF(SUM($I$37:$I44)>=$J$17,0,IF(D45>$J$19,1,0)) -> 1 | J45: 0.8551349111 | K45: 0.9460378648 | M45: 0.4271628132 | N45: 0.4813210646 | P45: 0 | Q45: 0
D46: 2031 | E46: 0.6874368086 | F46: =OFFSET(Consumption!$H$152,0,$D46-$D$39+1)*$J$15/1000000*$J$16 -> 1.487689623 | G46: =OFFSET(Curtailment!$I$115,0,$D46-$D$39+1)*AVERAGEIF(CECV!B:B,$D46,CECV!$W:$AI)*CECV!$J$1/1000000 -> 1.698090671 | I46: =IF(SUM($I$37:$I45)>=$J$17,0,IF(D46>$J$19,1,0)) -> 1 | J46: 0.8551349111 | K46: 1.065006188 | M46: 0.6372529442 | N46: 0.6917506971 | P46: 0 | Q46: 0
D47: 2032 | E47: 0.6515988707 | F47: =OFFSET(Consumption!$H$152,0,$D47-$D$39+1)*$J$15/1000000*$J$16 -> 2.003791282 | G47: =OFFSET(Curtailment!$I$115,0,$D47-$D$39+1)*AVERAGEIF(CECV!B:B,$D47,CECV!$W:$AI)*CECV!$J$1/1000000 -> 1.986426122 | I47: =IF(SUM($I$37:$I46)>=$J$17,0,IF(D47>$J$19,1,0)) -> 1 | J47: 0.8551349111 | K47: 1.102568069 | M47: 1.000359325 | N47: 0.8143029282 | P47: 0 | Q47: 0
D48: 2033 | E48: 0.6176292613 | F48: =OFFSET(Consumption!$H$152,0,$D48-$D$39+1)*$J$15/1000000*$J$16 -> 2.883448319 | G48: =OFFSET(Curtailment!$I$115,0,$D48-$D$39+1)*AVERAGEIF(CECV!B:B,$D48,CECV!$W:$AI)*CECV!$J$1/1000000 -> 2.364127396 | I48: =IF(SUM($I$37:$I47)>=$J$17,0,IF(D48>$J$19,1,0)) -> 1 | J48: 0.8551349111 | K48: 1.214784228 | M48: 1.64485093 | N48: 1.106752435 | P48: 0 | Q48: 0
D49: 2034 | E49: 0.5854305794 | F49: =F48 -> 2.883448319 | G49: =G48 -> 2.364127396 | I49: =IF(SUM($I$37:$I48)>=$J$17,0,IF(D49>$J$19,1,0)) -> 1 | J49: 0.8551349111 | K49: 1.214784228 | M49: 1.64485093 | N49: 1.106752435 | P49: 0 | Q49: 0
D50: 2035 | E50: 0.5549105018 | F50: 2.883448319 | G50: 2.364127396 | I50: =IF(SUM($I$37:$I49)>=$J$17,0,IF(D50>$J$19,1,0)) -> 1 | J50: 0.8551349111 | K50: 1.214784228 | M50: 1.64485093 | N50: 1.106752435 | P50: 0 | Q50: 0
D51: 2036 | E51: 0.5259815183 | F51: 2.883448319 | G51: 2.364127396 | I51: =IF(SUM($I$37:$I50)>=$J$17,0,IF(D51>$J$19,1,0)) -> 1 | J51: 0.8551349111 | K51: 1.214784228 | M51: 1.64485093 | N51: 1.106752435 | P51: 0 | Q51: 0
D52: 2037 | E52: 0.4985606809 | F52: 2.883448319 | G52: 2.364127396 | I52: =IF(SUM($I$37:$I51)>=$J$17,0,IF(D52>$J$19,1,0)) -> 1 | J52: 0.8551349111 | K52: 1.214784228 | M52: 1.64485093 | N52: 1.106752435 | P52: 0 | Q52: 0
D53: 2038 | E53: 0.4725693658 | F53: 2.883448319 | G53: 2.364127396 | I53: =IF(SUM($I$37:$I52)>=$J$17,0,IF(D53>$J$19,1,0)) -> 1 | J53: 0.8551349111 | K53: 1.214784228 | M53: 1.64485093 | N53: 1.106752435 | P53: 0 | Q53: 0
D54: 2039 | E54: 0.4479330481 | F54: 2.883448319 | G54: 2.364127396 | I54: =IF(SUM($I$37:$I53)>=$J$17,0,IF(D54>$J$19,1,0)) -> 1 | J54: 0.8551349111 | K54: 1.214784228 | M54: 1.64485093 | N54: 1.106752435 | P54: 0 | Q54: 0
D55: 2040 | E55: 0.4245810883 | F55: 2.883448319 | G55: 2.364127396 | I55: =IF(SUM($I$37:$I54)>=$J$17,0,IF(D55>$J$19,1,0)) -> 1 | J55: 0.8551349111 | K55: 1.214784228 | M55: 1.64485093 | N55: 1.106752435 | P55: 0 | Q55: 0
D56: 2041 | E56: 0.4024465292 | F56: 2.883448319 | G56: 2.364127396 | I56: =IF(SUM($I$37:$I55)>=$J$17,0,IF(D56>$J$19,1,0)) -> 1 | J56: 0.8551349111 | K56: 1.214784228 | M56: 1.64485093 | N56: 1.106752435 | P56: 0 | Q56: 0
D57: 2042 | E57: 0.3814659044 | F57: 2.883448319 | G57: 2.364127396 | I57: =IF(SUM($I$37:$I56)>=$J$17,0,IF(D57>$J$19,1,0)) -> 1 | J57: 0.8551349111 | K57: 1.214784228 | M57: 1.64485093 | N57: 1.106752435 | P57: 0 | Q57: 0
D58: 2043 | E58: 0.3615790563 | F58: 2.883448319 | G58: 2.364127396 | I58: =IF(SUM($I$37:$I57)>=$J$17,0,IF(D58>$J$19,1,0)) -> 1 | J58: 0.8551349111 | K58: 1.214784228 | M58: 1.64485093 | N58: 1.106752435 | P58: 0 | Q58: 0
D59: 2044 | E59: 0.3427289633 | F59: 2.883448319 | G59: 2.364127396 | I59: =IF(SUM($I$37:$I58)>=$J$17,0,IF(D59>$J$19,1,0)) -> 1 | J59: 0.8551349111 | K59: 1.214784228 | M59: 1.64485093 | N59: 1.106752435 | P59: 0 | Q59: 0
D60: 2045 | E60: 0.3248615766 | F60: 2.883448319 | G60: 2.364127396 | I60: =IF(SUM($I$37:$I59)>=$J$17,0,IF(D60>$J$19,1,0)) -> 1 | J60: 0.8551349111 | K60: 1.214784228 | M60: 1.64485093 | N60: 1.106752435 | P60: 0 | Q60: 0
D61: 2046 | E61: 0.307925665 | F61: 2.883448319 | G61: 2.364127396 | I61: =IF(SUM($I$37:$I60)>=$J$17,0,IF(D61>$J$19,1,0)) -> 1 | J61: 0.8551349111 | K61: 1.214784228 | M61: 1.64485093 | N61: 1.106752435 | P61: 0 | Q61: 0
D62: 2047 | E62: 0.2918726683 | F62: 2.883448319 | G62: 2.364127396 | I62: =IF(SUM($I$37:$I61)>=$J$17,0,IF(D62>$J$19,1,0)) -> 1 | J62: 0.8551349111 | K62: 1.214784228 | M62: 1.64485093 | N62: 1.106752435 | P62: 0 | Q62: 0
D63: 2048 | E63: 0.2766565576 | F63: 2.883448319 | G63: 2.364127396 | I63: =IF(SUM($I$37:$I62)>=$J$17,0,IF(D63>$J$19,1,0)) -> 0 | J63: 0.8551349111 | K63: 1.214784228 | M63: 1.64485093 | N63: 1.106752435 | P63: 0 | Q63: 0
D64: 2049 | E64: 0.2622337039 | F64: 2.883448319 | G64: 2.364127396 | I64: =IF(SUM($I$37:$I63)>=$J$17,0,IF(D64>$J$19,1,0)) -> 0 | J64: 0.8551349111 | K64: 1.214784228 | M64: 1.64485093 | N64: 1.106752435 | P64: 0 | Q64: 0
D65: 2050 | E65: 0.2485627525 | F65: 2.883448319 | G65: 2.364127396 | I65: =IF(SUM($I$37:$I64)>=$J$17,0,IF(D65>$J$19,1,0)) -> 0 | J65: 0.8551349111 | K65: 1.214784228 | M65: 1.64485093 | N65: 1.106752435 | P65: 0 | Q65: 0
D67: Present Value | E67: $M | F67: =SUMPRODUCT($E$39:$E$65,F$39:F$65,$I$39:$I$65)*(1-$J$18) -> 18.16840607 | G67: =SUMPRODUCT($E$39:$E$65,G$39:G$65,$I$39:$I$65)*(1-$J$18) -> 15.47738134 | J67: =SUMPRODUCT($E$39:$E$65,J$39:J$65,$I$39:$I$65)*(1-$J$18) -> 6.718796058 | K67: =SUMPRODUCT($E$39:$E$65,K$39:K$65,$I$39:$I$65)*(1-$J$18) -> 8.60493766 | M67: =SUMPRODUCT($E$39:$E$65,M$39:M$65,$I$39:$I$65)*(1-$J$18) -> 9.748891327 | N67: =SUMPRODUCT($E$39:$E$65,N$39:N$65,$I$39:$I$65)*(1-$J$18) -> 6.940877304 | P67: =SUMPRODUCT($E$39:$E$65,P$39:P$65,$I$39:$I$65)*(1-$J$18) -> 0 | Q67: =SUMPRODUCT($E$39:$E$65,Q$39:Q$65,$I$39:$I$65)*(1-$J$18) -> 0
B73: End
B875: End

Sheet Option_2
D1: Voltage PQ Management Strategy | H1: Section Check: | I1: =IF(COUNTA($A$8:$A$96)=COUNTIF($A$8:$A$96,0),"Ok","Check") -> Ok | L1: Overall Check: | M1: Ok | O1: Legend: | P1: Input | Q1: Internal | R1: Select | S1: Calculation
D2: =RIGHT(CELL("filename",D1),LEN(CELL("filename",D1))-FIND("]",CELL("filename",D1))) -> Option_2
B6: Copyright Jemena Limited. All rights reserved. Jemena is not liable for any loss caused by reliance on this document.
B8: General Assumptions
C10: =B8 -> General Assumptions
D12: =C10 -> General Assumptions | E12: Source | F12: Unit | G12: Basis
J13: Start | K13: End
D14: Next Regulatory Period | E14: AM | F14: Year | G14: n/a | J14: 2027 | K14: =J14+4 -> 2031
D15: DVM Rollout Commencement Year | E15: AM | F15: Year | G15: n/a | J15: 2025
D16: This Regulatory Period | E16: AM | F16: Year | G16: n/a | J16: =K16-4 -> 2022 | K16: =J14-1 -> 2026
B18: Option
C20: Summary
D22: =C20 -> Summary | E22: Period | J22: Total DVM Cost | K22: Total Cost
D24: =D14 -> Next Regulatory Period | E24: =$J$14&" - "&$K$14 -> 2027 - 2031 | J24: =SUMIFS($K$32:$K$61,$J$32:$J$61,">="&J14,$J$32:$J$61,"<="&K14) -> 18.50239376 | K24: =SUMIFS($K$31:$K$86,$J$31:$J$86,">="&$J14,$J$31:$J$86,"<="&$K14) -> 22.55922376
D25: =D16 -> This Regulatory Period | E25: =$J$16&" - "&$K$16 -> 2022 - 2026 | J25: =SUMIFS($K$32:$K$61,$J$32:$J$61,">="&J16,$J$32:$J$61,"<="&K16) -> 2.911157003 | K25: =SUMIFS($K$31:$K$86,$J$31:$J$86,">="&$J16,$J$31:$J$86,"<="&$K16) -> 11.308657
C27: Calculations
D29: Option 2 - Centralised DVM Program Only | J29: Indicative Year | K29: Cost ($M) | L29: PV Cost ($M)
I30: TOTAL | J30: =J14&" - "&J14+Do_Nothing!J17 -> 2027 - 2047 | K30: =SUMIFS(K$31:K$92,$J$31:$J$92,">="&$J$14,$J$31:$J$92,"<="&J14+Do_Nothing!J17) -> 42.42606376 | L30: =SUMIFS(L$31:L$92,$J$31:$J$92,">="&$J$14,$J$31:$J$92,"<="&J14+Do_Nothing!J17) -> 19.6649358
D31: DVM Rollout
D32: =Option_4!D74 -> KLO | J32: =Option_4!J74 -> 2027 | K32: =Option_4!K74 -> 0.5238314488 | L32: =Option_4!L74 -> 0.4461020195
D33: =Option_4!D75 -> TH0 | J33: =Option_4!J75 -> 2028 | K33: =Option_4!K75 -> 1.016600445 | L33: =Option_4!L75 -> 0.8206169004
D34: =Option_4!D76 -> PV0 | J34: =Option_4!J76 -> 2027 | K34: =Option_4!K76 -> 1.216458645 | L34: =Option_4!L76 -> 1.035952804
D35: =Option_4!D77 -> CS0 | J35: =Option_4!J77 -> 2023 | K35: =Option_4!K77 -> 0 | L35: =Option_4!L77 -> 0
D36: =Option_4!D78 -> EP0 | J36: =Option_4!J78 -> 2027 | K36: =Option_4!K78 -> 0.9648895845 | L36: =Option_4!L78 -> 0.8217131546
D37: =Option_4!D79 -> NT0 | J37: =Option_4!J79 -> 2028 | K37: =Option_4!K79 -> 1.016600445 | L37: =Option_4!L79 -> 0.8206169004
D38: =Option_4!D80 -> BY0 | J38: =Option_4!J80 -> 2029 | K38: =Option_4!K80 -> 1.015557095 | L38: =Option_4!L80 -> 0.7770376216
D39: =Option_4!D81 -> TT0 | J39: =Option_4!J81 -> 2028 | K39: =Option_4!K81 -> 0.5423304445 | L39: =Option_4!L81 -> 0.4377782152
D40: =Option_4!D82 -> FW0 | J40: =Option_4!J82 -> 2029 | K40: =Option_4!K82 -> 1.252566033 | L40: =Option_4!L82 -> 0.9583813027
D41: =Option_4!D83 -> HB0 | J41: =Option_4!J83 -> 2025 | K41: =Option_4!K83 -> 0.9244242854 | L41: =Option_4!L83 -> 0.8762315501
D42: =Option_4!D84 -> FF0 | J42: =Option_4!J84 -> 2027 | K42: =Option_4!K84 -> 0.5238314488 | L42: =Option_4!L84 -> 0.4461020195
D43: =Option_4!D85 -> NS0 | J43: =Option_4!J85 -> 2027 | K43: =Option_4!K85 -> 0.5238314488 | L43: =Option_4!L85 -> 0.4461020195
D44: =Option_4!D86 -> COO | J44: =Option_4!J86 -> 2027 | K44: =Option_4!K86 -> 0.5238314488 | L44: =Option_4!L86 -> 0.4461020195
D45: =Option_4!D87 -> NH0 | J45: =Option_4!J87 -> 2028 | K45: =Option_4!K87 -> 1.253735445 | L45: =Option_4!L87 -> 1.012036243
D46: =Option_4!D88 -> PTN | J46: =Option_4!J88 -> 2025 | K46: =Option_4!K88 -> 0.4876642334 | L46: =Option_4!L88 -> 0.4622409796
D47: =Option_4!D89 -> SA0 | J47: =Option_4!J89 -> 2027 | K47: =Option_4!K89 -> 0.5238314488 | L47: =Option_4!L89 -> 0.4461020195
D48: =Option_4!D90 -> SBY | J48: =Option_4!J90 -> 2026 | K48: =Option_4!K90 -> 0.5194324555 | L48: =Option_4!L90 -> 0.4666853445
D49: =Option_4!D91 -> CN0 | J49: =Option_4!J91 -> 2028 | K49: =Option_4!K91 -> 1.253735445 | L49: =Option_4!L91 -> 1.012036243
D50: =Option_4!D92 -> ST0 | J50: =Option_4!J92 -> 2027 | K50: =Option_4!K92 -> 1.216458645 | L50: =Option_4!L92 -> 1.035952804
D51: =Option_4!D93 -> FE0 | J51: =Option_4!J93 -> 2026 | K51: =Option_4!K93 -> 0.9796360282 | L51: =Option_4!L93 -> 0.880156356
D52: =Option_4!D94 -> AW0 | J52: =Option_4!J94 -> 2023 | K52: =Option_4!K94 -> 0 | L52: =Option_4!L94 -> 0
D53: =Option_4!D95 -> FT0 | J53: =Option_4!J95 -> 2027 | K53: =Option_4!K95 -> 0.5238314488 | L53: =Option_4!L95 -> 0.4461020195
D54: =Option_4!D96 -> ES0 | J54: =Option_4!J96 -> 2028 | K54: =Option_4!K96 -> 0.5423304445 | L54: =Option_4!L96 -> 0.4377782152
D55: =Option_4!D97 -> EPN | J55: =Option_4!J97 -> 2028 | K55: =Option_4!K97 -> 0.3615536297 | L55: =Option_4!L97 -> 0.2918521435
D56: =Option_4!D98 -> SHM | J56: =Option_4!J98 -> 2028 | K56: =Option_4!K98 -> 1.016600445 | L56: =Option_4!L98 -> 0.8206169004
D57: =Option_4!D99 -> YVE | J57: =Option_4!J99 -> 2027 | K57: =Option_4!K99 -> 0.5238314488 | L57: =Option_4!L99 -> 0.4461020195
D58: =Option_4!D100 -> BMS | J58: =Option_4!J100 -> 2029 | K58: =Option_4!K100 -> 0.5415392179 | L58: =Option_4!L100 -> 0.4143502596
D59: =Option_4!D101 -> BD0 | J59: =Option_4!J101 -> 2029 | K59: =Option_4!K101 -> 0.5415392179 | L59: =Option_4!L101 -> 0.4143502596
D60: =Option_4!D102 -> TMA | J60: =Option_4!J102 -> 2029 | K60: =Option_4!K102 -> 0.5415392179 | L60: =Option_4!L102 -> 0.4143502596
D61: =Option_4!D103 -> WT0 | J61: =Option_4!J103 -> 2029 | K61: =Option_4!K103 -> 0.5415392179 | L61: =Option_4!L103 -> 0.4143502596
D62: =Option_4!D104 -> Trial | J62: =Option_4!J104 -> 2023 | K62: =Option_4!K104 -> 3.6 | L62: =Option_4!L104 -> 3.6
D63: =Option_4!D105 -> Trial | J63: =Option_4!J105 -> 2024 | K63: =Option_4!K105 -> 1 | L63: =Option_4!L105 -> 1
D64: =Option_4!D106 -> DVM Digital & Network | J64: =Option_4!J106 -> 2025 | K64: =Option_4!K106 -> 2.505 | L64: =Option_4!L106 -> 2.374407583
D65: =Option_4!D107 -> DVM Digital & Network | J65: =Option_4!J107 -> 2026 | K65: =Option_4!K107 -> 1.2925 | L65: =Option_4!L107 -> 1.161249747
D66: =Option_4!D108 -> DVM Digital & Network | J66: =Option_4!J108 -> 2027 | K66: =Option_4!K108 -> 0.95683 | L66: =Option_4!L108 -> 0.8148495023
D67: =Option_4!D109 -> DVM Digital & Network | J67: =Option_4!J109 -> 2028 | K67: =Option_4!K109 -> 0.775 | L67: =Option_4!L109 -> 0.6255929761
D68: =Option_4!D110 -> DVM Digital & Network | J68: =Option_4!J110 -> 2029 | K68: =Option_4!K110 -> 0.775 | L68: =Option_4!L110 -> 0.5929791242
D69: =Option_4!D111 -> DVM Digital & Network | J69: =Option_4!J111 -> 2030 | K69: =Option_4!K111 -> 0.775 | L69: =Option_4!L111 -> 0.5620655206
D70: =Option_4!D112 -> DVM Digital & Network | J70: =Option_4!J112 -> 2031 | K70: =Option_4!K112 -> 0.775 | L70: =Option_4!L112 -> 0.5327635266
D71: =Option_4!D113 -> DVM Digital & Network | J71: =Option_4!J113 -> 2032 | K71: =Option_4!K113 -> 0.2 | L71: =Option_4!L113 -> 0.1303197741
D72: =Option_4!D114 -> DVM Digital & Network | J72: =Option_4!J114 -> 2033 | K72: =Option_4!K114 -> 0.2 | L72: =Option_4!L114 -> 0.1235258523
D73: =Option_4!D115 -> DVM Digital & Network | J73: =Option_4!J115 -> 2034 | K73: =Option_4!K115 -> 0.2 | L73: =Option_4!L115 -> 0.1170861159
D74: =Option_4!D116 -> DVM Digital & Network | J74: =Option_4!J116 -> 2035 | K74: =Option_4!K116 -> 0.2 | L74: =Option_4!L116 -> 0.1109821004
D75: =Option_4!D117 -> DVM Digital & Network | J75: =Option_4!J117 -> 2036 | K75: =Option_4!K117 -> 0.2 | L75: =Option_4!L117 -> 0.1051963037
D76: =Option_4!D118 -> DVM Digital & Network | J76: =Option_4!J118 -> 2037 | K76: =Option_4!K118 -> 0.2 | L76: =Option_4!L118 -> 0.09971213617
D77: =Option_4!D119 -> DVM Digital & Network | J77: =Option_4!J119 -> 2038 | K77: =Option_4!K119 -> 0.2 | L77: =Option_4!L119 -> 0.09451387315
D78: =Option_4!D120 -> DVM Digital & Network | J78: =Option_4!J120 -> 2039 | K78: =Option_4!K120 -> 0.2 | L78: =Option_4!L120 -> 0.08958660962
D79: =Option_4!D121 -> DVM Digital & Network | J79: =Option_4!J121 -> 2040 | K79: =Option_4!K121 -> 0.2 | L79: =Option_4!L121 -> 0.08491621765
D80: =Option_4!D122 -> DVM Digital & Network | J80: =Option_4!J122 -> 2041 | K80: =Option_4!K122 -> 0.2 | L80: =Option_4!L122 -> 0.08048930583
D81: =Option_4!D123 -> DVM Digital & Network | J81: =Option_4!J123 -> 2042 | K81: =Option_4!K123 -> 0.2 | L81: =Option_4!L123 -> 0.07629318088
D82: =Option_4!D124 -> DVM Digital & Network | J82: =Option_4!J124 -> 2043 | K82: =Option_4!K124 -> 0.2 | L82: =Option_4!L124 -> 0.07231581126
D83: =Option_4!D125 -> DVM Digital & Network | J83: =Option_4!J125 -> 2044 | K83: =Option_4!K125 -> 0.2 | L83: =Option_4!L125 -> 0.07231581126
D84: =Option_4!D126 -> DVM Digital & Network | J84: =Option_4!J126 -> 2045 | K84: =Option_4!K126 -> 0.2 | L84: =Option_4!L126 -> 0.07231581126
D85: =Option_4!D127 -> DVM Digital & Network | J85: =Option_4!J127 -> 2046 | K85: =Option_4!K127 -> 0.2 | L85: =Option_4!L127 -> 0.07231581126
D86: =Option_4!D128 -> DVM Digital & Network | J86: =Option_4!J128 -> 2047 | K86: =Option_4!K128 -> 0.2 | L86: =Option_4!L128 -> 0.07231581126
D87: Reactive Program (Customer Complaints)
D88: Year 1 | J88: =J14 -> 2027 | K88: =Option_4!K130*2 -> 2.7557
D89: Year 2 | J89: =J88+1 -> 2028 | K89: =Option_4!K131*2 -> 3.41586
D90: Year 3 | J90: =J89+1 -> 2029 | K90: =Option_4!K132*2 -> 3.44088
D91: Year 4 | J91: =J90+1 -> 2030 | K91: =Option_4!K133*2 -> 3.48672
D92: Year 5 | J92: =J91+1 -> 2031 | K92: =Option_4!K134*2 -> 3.56768
B95: End

Sheet Option_3
D1: Voltage PQ Management Strategy | H1: Section Check: | I1: =IF(COUNTA($A$8:$A$105)=COUNTIF($A$8:$A$105,0),"Ok","Check") -> Ok | L1: Overall Check: | M1: Ok | O1: Legend: | P1: Input | Q1: Internal | R1: Select | S1: Calculation
D2: =RIGHT(CELL("filename",D1),LEN(CELL("filename",D1))-FIND("]",CELL("filename",D1))) -> Option_3
B6: Copyright Jemena Limited. All rights reserved. Jemena is not liable for any loss caused by reliance on this document.
B8: General Assumptions
C10: =B8 -> General Assumptions
D12: =C10 -> General Assumptions | E12: Source | F12: Unit | G12: Basis
J13: Start | K13: End
D14: Next Regulatory Period | E14: AM | F14: Year | G14: n/a | J14: =Option_2!J14 -> 2027 | K14: =J14+4 -> 2031
D15: DVM Rollout Commencement Year | E15: AM | F15: Year | G15: n/a | J15: =Option_2!J15 -> 2025
D16: This Regulatory Period | E16: AM | F16: Year | G16: n/a | J16: =K16-4 -> 2022 | K16: =J14-1 -> 2026
B18: Option
C20: Summary
D22: =C20 -> Summary | E22: Period | K22: Total Cost
D24: =D14 -> Next Regulatory Period | E24: =$J$14&" - "&$K$14 -> 2027 - 2031 | K24: =SUMIFS($K$31:$K$96,$J$31:$J$96,">="&$J14,$J$31:$J$96,"<="&$K14) -> 41.03733
D25: =D16 -> This Regulatory Period | E25: =$J$16&" - "&$K$16 -> 2022 - 2026 | K25: =SUMIFS($K$31:$K$96,$J$31:$J$96,">="&$J16,$J$31:$J$96,"<="&$K16) -> 7.7
C27: Calculations
D29: Option 3 - Distributed Solutions Only | J29: Indicative Year | K29: Cost ($M) | L29: PV Cost ($M)
I30: TOTAL | J30: =J14&" - "&J14+Do_Nothing!J17 -> 2027 - 2047 | K30: =SUMIFS(K$31:K$102,$J$31:$J$102,">="&$J$14,$J$31:$J$102,"<="&J14+Do_Nothing!J17) -> 49.37075 | L30: =SUMIFS(L$31:L$102,$J$31:$J$102,">="&$J$14,$J$31:$J$102,"<="&J14+Do_Nothing!J17) -> 31.60276904
D31: Reactors
D32: =Option_4!D40 -> SBY | J32: =Option_4!J40 -> 2028 | K32: =Option_4!K40 -> 2.31658 | L32: =Option_4!L40 -> 1.869982163
D33: =Option_4!D41 -> SHM | J33: =Option_4!J41 -> 2029 | K33: =Option_4!K41 -> 2.59457 | L33: =Option_4!L41 -> 1.98519464
D34: =Option_4!D42 -> COO | J34: =Option_4!J42 -> 2030 | K34: =Option_4!K42 -> 2.66236 | L34: =Option_4!L42 -> 1.930865496
D35: =Option_4!D43 -> ST | J35: =Option_4!J43 -> 2031 | K35: =Option_4!K43 -> 2.15895 | L35: =Option_4!L43 -> 1.484141698
D36: =Option_4!D44 -> BD | J36: =Option_4!J44 -> 2031 | K36: =Option_4!K44 -> 2.4241 | L36: =Option_4!L44 -> 1.666415568
D37: VAr controllers
D38: =Option_4!D46 -> CN No.1 | J38: =Option_4!J46 -> 2027 | K38: =Option_4!K46 -> 0.26952 | L38: =Option_4!L46 -> 0.2295269148
D39: =Option_4!D47 -> CN No.2 | J39: =Option_4!J47 -> 2027 | K39: =Option_4!K47 -> 0.26952 | L39: =Option_4!L47 -> 0.2295269148
D40: =Option_4!D48 -> CN No.3A & 3B | J40: =Option_4!J48 -> 2028 | K40: =Option_4!K48 -> 0.26952 | L40: =Option_4!L48 -> 0.2175610567
D41: =Option_4!D49 -> CS No.2 | J41: =Option_4!J49 -> 2028 | K41: =Option_4!K49 -> 0.26952 | L41: =Option_4!L49 -> 0.2175610567
D42: =Option_4!D50 -> ES No.1 | J42: =Option_4!J50 -> 2028 | K42: =Option_4!K50 -> 0.26952 | L42: =Option_4!L50 -> 0.2175610567
D43: =Option_4!D51 -> FF No.1 | J43: =Option_4!J51 -> 2029 | K43: =Option_4!K51 -> 0.26952 | L43: =Option_4!L51 -> 0.206219011
D44: =Option_4!D52 -> NH No.1 | J44: =Option_4!J52 -> 2029 | K44: =Option_4!K52 -> 0.26952 | L44: =Option_4!L52 -> 0.206219011
D45: =Option_4!D53 -> ST No.1 | J45: =Option_4!J53 -> 2030 | K45: =Option_4!K53 -> 0.26952 | L45: =Option_4!L53 -> 0.1954682569
D46: =Option_4!D54 -> ST No.2 | J46: =Option_4!J54 -> 2030 | K46: =Option_4!K54 -> 0.26952 | L46: =Option_4!L54 -> 0.1954682569
D47: =Option_4!D55 -> TH No.1 | J47: =Option_4!J55 -> 2030 | K47: =Option_4!K55 -> 0.26952 | L47: =Option_4!L55 -> 0.1954682569
D48: =Option_4!D56 -> TH No.2 | J48: =Option_4!J56 -> 2031 | K48: =Option_4!K56 -> 0.26952 | L48: =Option_4!L56 -> 0.1852779686
D49: Traditional for spread
D50: =Option_4!D58 -> EPN | J50: =Option_4!J58 -> 2027 | K50: =Option_4!K58 -> 0.04107 | L50: =Option_4!L58 -> 0.03497577319
D51: =Option_4!D59 -> NT0 | J51: =Option_4!J59 -> 2027 | K51: =Option_4!K59 -> 0.04107 | L51: =Option_4!L59 -> 0.03497577319
D52: =Option_4!D60 -> BY0 | J52: =Option_4!J60 -> 2027 | K52: =Option_4!K60 -> 0.04107 | L52: =Option_4!L60 -> 0.03497577319
D53: =Option_4!D61 -> NH0 | J53: =Option_4!J61 -> 2027 | K53: =Option_4!K61 -> 0.04107 | L53: =Option_4!L61 -> 0.03497577319
D54: =Option_4!D62 -> ES0 | J54: =Option_4!J62 -> 2027 | K54: =Option_4!K62 -> 0.04107 | L54: =Option_4!L62 -> 0.03497577319
D55: =Option_4!D63 -> CN0 | J55: =Option_4!J63 -> 2027 | K55: =Option_4!K63 -> 0.04107 | L55: =Option_4!L63 -> 0.03497577319
D56: =Option_4!D64 -> EP0 | J56: =Option_4!J64 -> 2027 | K56: =Option_4!K64 -> 0.04107 | L56: =Option_4!L64 -> 0.03497577319
D57: =Option_4!D65 -> TT0 | J57: =Option_4!J65 -> 2027 | K57: =Option_4!K65 -> 0.04107 | L57: =Option_4!L65 -> 0.03497577319
D58: =Option_4!D66 -> YVE | J58: =Option_4!J66 -> 2028 | K58: =Option_4!K66 -> 0.04107 | L58: =Option_4!L66 -> 0.03315239165
D59: =Option_4!D67 -> AW0 | J59: =Option_4!J67 -> 2028 | K59: =Option_4!K67 -> 0.04107 | L59: =Option_4!L67 -> 0.03315239165
D60: =Option_4!D68 -> NS0 | J60: =Option_4!J68 -> 2029 | K60: =Option_4!K68 -> 0.04107 | L60: =Option_4!L68 -> 0.03142406791
D61: =Option_4!D69 -> PTN | J61: =Option_4!J69 -> 2029 | K61: =Option_4!K69 -> 0.04107 | L61: =Option_4!L69 -> 0.03142406791
D62: =Option_4!D70 -> PV0 | J62: =Option_4!J70 -> 2029 | K62: =Option_4!K70 -> 0.04107 | L62: =Option_4!L70 -> 0.03142406791
D63: =Option_4!D71 -> CS0 | J63: =Option_4!J71 -> 2030 | K63: =Option_4!K71 -> 0.04107 | L63: =Option_4!L71 -> 0.02978584636
D64: =Option_4!D72 -> HB0 | J64: =Option_4!J72 -> 2031 | K64: =Option_4!K72 -> 0.04107 | L64: =Option_4!L72 -> 0.02823302973
D65: Traditional for worst served under-volt
D66: =INDEX(Table!$A$4:$A$33,MATCH(ROW()-ROW($D$65),Table!$Y$4:$Y$33,FALSE)) -> TT0 | J66: =MIN($K$14,MAX($J$15,-204+$J$15+INT(INDEX(Table!$B$4:$B$33,MATCH(ROW()-ROW($J$65),Table!$Y$4:$Y$33,FALSE))))) -> 2025 | K66: 1.1 | L66: =VLOOKUP($J66,Do_Nothing!$D$39:$E$58,2)*K66 -> 1.042654028
D67: =INDEX(Table!$A$4:$A$33,MATCH(ROW()-ROW($D$65),Table!$Y$4:$Y$33,FALSE)) -> ES0 | J67: =MIN($K$14,MAX($J$15,-204+$J$15+INT(INDEX(Table!$B$4:$B$33,MATCH(ROW()-ROW($J$65),Table!$Y$4:$Y$33,FALSE))))) -> 2025 | K67: 1.1 | L67: =VLOOKUP($J67,Do_Nothing!$D$39:$E$58,2)*K67 -> 1.042654028
D68: =INDEX(Table!$A$4:$A$33,MATCH(ROW()-ROW($D$65),Table!$Y$4:$Y$33,FALSE)) -> EPN | J68: =MIN($K$14,MAX($J$15,-204+$J$15+INT(INDEX(Table!$B$4:$B$33,MATCH(ROW()-ROW($J$65),Table!$Y$4:$Y$33,FALSE))))) -> 2025 | K68: 1.1 | L68: =VLOOKUP($J68,Do_Nothing!$D$39:$E$58,2)*K68 -> 1.042654028
D69: =INDEX(Table!$A$4:$A$33,MATCH(ROW()-ROW($D$65),Table!$Y$4:$Y$33,FALSE)) -> NH0 | J69: =MIN($K$14,MAX($J$15,-204+$J$15+INT(INDEX(Table!$B$4:$B$33,MATCH(ROW()-ROW($J$65),Table!$Y$4:$Y$33,FALSE))))) -> 2025 | K69: 1.1 | L69: =VLOOKUP($J69,Do_Nothing!$D$39:$E$58,2)*K69 -> 1.042654028
D70: =INDEX(Table!$A$4:$A$33,MATCH(ROW()-ROW($D$65),Table!$Y$4:$Y$33,FALSE)) -> NT0 | J70: =MIN($K$14,MAX($J$15,-204+$J$15+INT(INDEX(Table!$B$4:$B$33,MATCH(ROW()-ROW($J$65),Table!$Y$4:$Y$33,FALSE))))) -> 2025 | K70: 1.1 | L70: =VLOOKUP($J70,Do_Nothing!$D$39:$E$58,2)*K70 -> 1.042654028
D71: =INDEX(Table!$A$4:$A$33,MATCH(ROW()-ROW($D$65),Table!$Y$4:$Y$33,FALSE)) -> EP0 | J71: =MIN($K$14,MAX($J$15,-204+$J$15+INT(INDEX(Table!$B$4:$B$33,MATCH(ROW()-ROW($J$65),Table!$Y$4:$Y$33,FALSE))))) -> 2029 | K71: 1.1 | L71: =VLOOKUP($J71,Do_Nothing!$D$39:$E$58,2)*K71 -> 0.8416477892
D72: =INDEX(Table!$A$4:$A$33,MATCH(ROW()-ROW($D$65),Table!$Y$4:$Y$33,FALSE)) -> CN0 | J72: =MIN($K$14,MAX($J$15,-204+$J$15+INT(INDEX(Table!$B$4:$B$33,MATCH(ROW()-ROW($J$65),Table!$Y$4:$Y$33,FALSE))))) -> 2027 | K72: 1.1 | L72: =VLOOKUP($J72,Do_Nothing!$D$39:$E$58,2)*K72 -> 0.9367750306
D73: =INDEX(Table!$A$4:$A$33,MATCH(ROW()-ROW($D$65),Table!$Y$4:$Y$33,FALSE)) -> AW0 | J73: =MIN($K$14,MAX($J$15,-204+$J$15+INT(INDEX(Table!$B$4:$B$33,MATCH(ROW()-ROW($J$65),Table!$Y$4:$Y$33,FALSE))))) -> 2029 | K73: 1.1 | L73: =VLOOKUP($J73,Do_Nothing!$D$39:$E$58,2)*K73 -> 0.8416477892
D74: =INDEX(Table!$A$4:$A$33,MATCH(ROW()-ROW($D$65),Table!$Y$4:$Y$33,FALSE)) -> CS0 | J74: =MIN($K$14,MAX($J$15,-204+$J$15+INT(INDEX(Table!$B$4:$B$33,MATCH(ROW()-ROW($J$65),Table!$Y$4:$Y$33,FALSE))))) -> 2031 | K74: 1.1 | L74: =VLOOKUP($J74,Do_Nothing!$D$39:$E$58,2)*K74 -> 0.7561804894
D75: =INDEX(Table!$A$4:$A$33,MATCH(ROW()-ROW($D$65),Table!$Y$4:$Y$33,FALSE)) -> BY0 | J75: =MIN($K$14,MAX($J$15,-204+$J$15+INT(INDEX(Table!$B$4:$B$33,MATCH(ROW()-ROW($J$65),Table!$Y$4:$Y$33,FALSE))))) -> 2027 | K75: 1.1 | L75: =VLOOKUP($J75,Do_Nothing!$D$39:$E$58,2)*K75 -> 0.9367750306
D76: =INDEX(Table!$A$4:$A$33,MATCH(ROW()-ROW($D$65),Table!$Y$4:$Y$33,FALSE)) -> PV0 | J76: =MIN($K$14,MAX($J$15,-204+$J$15+INT(INDEX(Table!$B$4:$B$33,MATCH(ROW()-ROW($J$65),Table!$Y$4:$Y$33,FALSE))))) -> 2030 | K76: 1.1 | L76: =VLOOKUP($J76,Do_Nothing!$D$39:$E$58,2)*K76 -> 0.7977704163
D77: =INDEX(Table!$A$4:$A$33,MATCH(ROW()-ROW($D$65),Table!$Y$4:$Y$33,FALSE)) -> HB0 | J77: =MIN($K$14,MAX($J$15,-204+$J$15+INT(INDEX(Table!$B$4:$B$33,MATCH(ROW()-ROW($J$65),Table!$Y$4:$Y$33,FALSE))))) -> 2031 | K77: 1.1 | L77: =VLOOKUP($J77,Do_Nothing!$D$39:$E$58,2)*K77 -> 0.7561804894
D78: =INDEX(Table!$A$4:$A$33,MATCH(ROW()-ROW($D$65),Table!$Y$4:$Y$33,FALSE)) -> FF0 | J78: =MIN($K$14,MAX($J$15,-204+$J$15+INT(INDEX(Table!$B$4:$B$33,MATCH(ROW()-ROW($J$65),Table!$Y$4:$Y$33,FALSE))))) -> 2031 | K78: 1.1 | L78: =VLOOKUP($J78,Do_Nothing!$D$39:$E$58,2)*K78 -> 0.7561804894
D79: =INDEX(Table!$A$4:$A$33,MATCH(ROW()-ROW($D$65),Table!$Y$4:$Y$33,FALSE)) -> PTN | J79: =MIN($K$14,MAX($J$15,-204+$J$15+INT(INDEX(Table!$B$4:$B$33,MATCH(ROW()-ROW($J$65),Table!$Y$4:$Y$33,FALSE))))) -> 2031 | K79: 1.1 | L79: =VLOOKUP($J79,Do_Nothing!$D$39:$E$58,2)*K79 -> 0.7561804894
D80: =INDEX(Table!$A$4:$A$33,MATCH(ROW()-ROW($D$65),Table!$Y$4:$Y$33,FALSE)) -> YVE | J80: =MIN($K$14,MAX($J$15,-204+$J$15+INT(INDEX(Table!$B$4:$B$33,MATCH(ROW()-ROW($J$65),Table!$Y$4:$Y$33,FALSE))))) -> 2030 | K80: 1.1 | L80: =VLOOKUP($J80,Do_Nothing!$D$39:$E$58,2)*K80 -> 0.7977704163
D81: Traditional for worst served over-volt
D82: =INDEX(Table!$A$4:$A$33,MATCH(ROW()-ROW($D$81),Table!$X$4:$X$33,FALSE)) -> KLO | J82: =MAX($J$15,258+$J$15-INT(INDEX(Table!$J$4:$J$33,MATCH(ROW()-ROW($J$81),Table!$X$4:$X$33,FALSE)))) -> 2028 | K82: 1.1 | L82: =VLOOKUP($J82,Do_Nothing!$D$39:$E$58,2)*K82 -> 0.8879384176
D83: =INDEX(Table!$A$4:$A$33,MATCH(ROW()-ROW($D$81),Table!$X$4:$X$33,FALSE)) -> TH0 | J83: =MAX($J$15,258+$J$15-INT(INDEX(Table!$J$4:$J$33,MATCH(ROW()-ROW($J$81),Table!$X$4:$X$33,FALSE)))) -> 2027 | K83: 1.1 | L83: =VLOOKUP($J83,Do_Nothing!$D$39:$E$58,2)*K83 -> 0.9367750306
D84: =INDEX(Table!$A$4:$A$33,MATCH(ROW()-ROW($D$81),Table!$X$4:$X$33,FALSE)) -> PV0 | J84: =MAX($J$15,258+$J$15-INT(INDEX(Table!$J$4:$J$33,MATCH(ROW()-ROW($J$81),Table!$X$4:$X$33,FALSE)))) -> 2026 | K84: 1.1 | L84: =VLOOKUP($J84,Do_Nothing!$D$39:$E$58,2)*K84 -> 0.9882976573
D85: =INDEX(Table!$A$4:$A$33,MATCH(ROW()-ROW($D$81),Table!$X$4:$X$33,FALSE)) -> CS0 | J85: =MAX($J$15,258+$J$15-INT(INDEX(Table!$J$4:$J$33,MATCH(ROW()-ROW($J$81),Table!$X$4:$X$33,FALSE)))) -> 2027 | K85: 1.1 | L85: =VLOOKUP($J85,Do_Nothing!$D$39:$E$58,2)*K85 -> 0.9367750306
D86: =INDEX(Table!$A$4:$A$33,MATCH(ROW()-ROW($D$81),Table!$X$4:$X$33,FALSE)) -> EP0 | J86: =MAX($J$15,258+$J$15-INT(INDEX(Table!$J$4:$J$33,MATCH(ROW()-ROW($J$81),Table!$X$4:$X$33,FALSE)))) -> 2026 | K86: 1.1 | L86: =VLOOKUP($J86,Do_Nothing!$D$39:$E$58,2)*K86 -> 0.9882976573
D87: =INDEX(Table!$A$4:$A$33,MATCH(ROW()-ROW($D$81),Table!$X$4:$X$33,FALSE)) -> NT0 | J87: =MAX($J$15,258+$J$15-INT(INDEX(Table!$J$4:$J$33,MATCH(ROW()-ROW($J$81),Table!$X$4:$X$33,FALSE)))) -> 2027 | K87: 1.1 | L87: =VLOOKUP($J87,Do_Nothing!$D$39:$E$58,2)*K87 -> 0.9367750306
D88: =INDEX(Table!$A$4:$A$33,MATCH(ROW()-ROW($D$81),Table!$X$4:$X$33,FALSE)) -> BY0 | J88: =MAX($J$15,258+$J$15-INT(INDEX(Table!$J$4:$J$33,MATCH(ROW()-ROW($J$81),Table!$X$4:$X$33,FALSE)))) -> 2027 | K88: 1.1 | L88: =VLOOKUP($J88,Do_Nothing!$D$39:$E$58,2)*K88 -> 0.9367750306
D89: =INDEX(Table!$A$4:$A$33,MATCH(ROW()-ROW($D$81),Table!$X$4:$X$33,FALSE)) -> TT0 | J89: =MAX($J$15,258+$J$15-INT(INDEX(Table!$J$4:$J$33,MATCH(ROW()-ROW($J$81),Table!$X$4:$X$33,FALSE)))) -> 2028 | K89: 1.1 | L89: =VLOOKUP($J89,Do_Nothing!$D$39:$E$58,2)*K89 -> 0.8879384176
D90: =INDEX(Table!$A$4:$A$33,MATCH(ROW()-ROW($D$81),Table!$X$4:$X$33,FALSE)) -> FW0 | J90: =MAX($J$15,258+$J$15-INT(INDEX(Table!$J$4:$J$33,MATCH(ROW()-ROW($J$81),Table!$X$4:$X$33,FALSE)))) -> 2028 | K90: 1.1 | L90: =VLOOKUP($J90,Do_Nothing!$D$39:$E$58,2)*K90 -> 0.8879384176
D91: =INDEX(Table!$A$4:$A$33,MATCH(ROW()-ROW($D$81),Table!$X$4:$X$33,FALSE)) -> HB0 | J91: =MAX($J$15,258+$J$15-INT(INDEX(Table!$J$4:$J$33,MATCH(ROW()-ROW($J$81),Table!$X$4:$X$33,FALSE)))) -> 2027 | K91: 1.1 | L91: =VLOOKUP($J91,Do_Nothing!$D$39:$E$58,2)*K91 -> 0.9367750306
D92: =INDEX(Table!$A$4:$A$33,MATCH(ROW()-ROW($D$81),Table!$X$4:$X$33,FALSE)) -> FF0 | J92: =MAX($J$15,258+$J$15-INT(INDEX(Table!$J$4:$J$33,MATCH(ROW()-ROW($J$81),Table!$X$4:$X$33,FALSE)))) -> 2028 | K92: 1.1 | L92: =VLOOKUP($J92,Do_Nothing!$D$39:$E$58,2)*K92 -> 0.8879384176
D93: =INDEX(Table!$A$4:$A$33,MATCH(ROW()-ROW($D$81),Table!$X$4:$X$33,FALSE)) -> NS0 | J93: =MAX($J$15,258+$J$15-INT(INDEX(Table!$J$4:$J$33,MATCH(ROW()-ROW($J$81),Table!$X$4:$X$33,FALSE)))) -> 2028 | K93: 1.1 | L93: =VLOOKUP($J93,Do_Nothing!$D$39:$E$58,2)*K93 -> 0.8879384176
D94: =INDEX(Table!$A$4:$A$33,MATCH(ROW()-ROW($D$81),Table!$X$4:$X$33,FALSE)) -> COO | J94: =MAX($J$15,258+$J$15-INT(INDEX(Table!$J$4:$J$33,MATCH(ROW()-ROW($J$81),Table!$X$4:$X$33,FALSE)))) -> 2029 | K94: 1.1 | L94: =VLOOKUP($J94,Do_Nothing!$D$39:$E$58,2)*K94 -> 0.8416477892
D95: =INDEX(Table!$A$4:$A$33,MATCH(ROW()-ROW($D$81),Table!$X$4:$X$33,FALSE)) -> NH0 | J95: =MAX($J$15,258+$J$15-INT(INDEX(Table!$J$4:$J$33,MATCH(ROW()-ROW($J$81),Table!$X$4:$X$33,FALSE)))) -> 2028 | K95: 1.1 | L95: =VLOOKUP($J95,Do_Nothing!$D$39:$E$58,2)*K95 -> 0.8879384176
D96: =INDEX(Table!$A$4:$A$33,MATCH(ROW()-ROW($D$81),Table!$X$4:$X$33,FALSE)) -> PTN | J96: =MAX($J$15,258+$J$15-INT(INDEX(Table!$J$4:$J$33,MATCH(ROW()-ROW($J$81),Table!$X$4:$X$33,FALSE)))) -> 2029 | K96: 1.1 | L96: =VLOOKUP($J96,Do_Nothing!$D$39:$E$58,2)*K96 -> 0.8416477892
D97: Reactive Program (Customer Complaints)
D98: =Option_4!D130 -> Year 1 | J98: =Option_4!J130 -> 2027 | K98: =Option_4!K130 -> 1.37785
D99: =Option_4!D131 -> Year 2 | J99: =Option_4!J131 -> 2028 | K99: =Option_4!K131 -> 1.70793
D100: =Option_4!D132 -> Year 3 | J100: =Option_4!J132 -> 2029 | K100: =Option_4!K132 -> 1.72044
D101: =Option_4!D133 -> Year 4 | J101: =Option_4!J133 -> 2030 | K101: =Option_4!K133 -> 1.74336
D102: =Option_4!D134 -> Year 5 | J102: =Option_4!J134 -> 2031 | K102: =Option_4!K134 -> 1.78384
B104: End

Sheet Option_4
D1: Voltage PQ Management Strategy | H1: Section Check: | I1: =IF(COUNTA($A$8:$A$137)=COUNTIF($A$8:$A$137,0),"Ok","Check") -> Ok | L1: Overall Check: | M1: Ok | O1: Legend: | P1: Input | Q1: Internal | R1: Select | S1: Calculation
D2: =RIGHT(CELL("filename",D1),LEN(CELL("filename",D1))-FIND("]",CELL("filename",D1))) -> Option_4
B6: Copyright Jemena Limited. All rights reserved. Jemena is not liable for any loss caused by reliance on this document.
B8: General Assumptions
C10: =B8 -> General Assumptions
D12: =C10 -> General Assumptions | E12: Source | F12: Unit | G12: Basis
J13: Start | K13: End
D14: Next Regulatory Period | E14: AM | F14: Year | G14: n/a | J14: =Option_2!J14 -> 2027 | K14: =J14+4 -> 2031
D15: This Regulatory Period | E15: AM | F15: Year | G15: n/a | J15: =K15-4 -> 2022 | K15: =J14-1 -> 2026
D16: DVM Rollout Commencement Year | E16: AM | F16: Year | G16: n/a | J16: =Option_2!$J$15 -> 2025
D17: DVM years delay | E17: AM | F17: Years | G17: n/a | J17: 0
B19: Option
C21: Summary
D23: =C21 -> Summary | E23: Period | J23: Total DVM Cost | K23: Total Cost
D25: =D14 -> Next Regulatory Period | E25: =$J$14&" - "&$K$14 -> 2027 - 2031 | J25: =SUMIFS($K$74:$K$103,$J$74:$J$103,">="&J14,$J$74:$J$103,"<="&K14) -> 18.50239376 | K25: =SUMIFS($K$39:$K$128,$J$39:$J$128,">="&$J14,$J$39:$J$128,"<="&$K14) -> 38.29655376
D26: =D15 -> This Regulatory Period | E26: =$J$15&" - "&$K$15 -> 2022 - 2026 | J26: =SUMIFS($K$74:$K$103,$J$74:$J$103,">="&J15,$J$74:$J$103,"<="&K15) -> 2.911157003 | K26: =SUMIFS($K$39:$K$128,$J$39:$J$128,">="&$J15,$J$39:$J$128,"<="&$K15) -> 11.308657
C28: Inputs
D30: =C28 -> Inputs | E30: Source | F30: Unit
I31: Year | J31: 2024 | K31: =J31+1 -> 2025 | L31: =K31+1 -> 2026 | M31: 2027 | N31: 2028 | O31: 2029 | P31: 2030 | Q31: 2031 | R31: 2032
D32: VRR replacement per TX ($M) | E32: AM | F32: $M | I32: Unit Rate | J32: 0.2072553912 | K32: 0.218380026 | L32: 0.2301017863 | M32: 0.230875732 | N32: 0.2371350002 | O32: 0.2370089385 | P32: 0.2368829439 | Q32: 0.2367570162 | R32: 0.2366311555
D33: DVM Integration per ZSS ($M) | E33: AM | F33: $M | I33: Unit Rate | J33: 0.4578389395 | K33: 0.4876642334 | L33: 0.5194324555 | M33: 0.5238314488 | N33: 0.5423304445 | O33: 0.5415392179 | P33: 0.5407491456 | Q33: 0.539960226 | R33: 0.5391724574
I34: Reconcile | J34: =SUMIF($J$74:$J$103,J$31,$K$74:$K$103) -> 0 | K34: =SUMIF($J$74:$J$103,K$31,$K$74:$K$103) -> 1.412088519 | L34: 1.499068484 | M34: 7.064627015 | N34: 7.003486744 | O34: 4.43428 | P34: 0 | Q34: 0 | R34: 0
C35: Calculations
D37: Option 4 - Blended Centralised DVM & Distributed Solutions | J37: Indicative Year | K37: Cost ($M) | L37: PV Cost ($M)
I38: TOTAL | J38: =J14&" - "&J14+Do_Nothing!J17 -> 2027 - 2047 | K38: =SUMIFS(K$39:K$134,$J$39:$J$134,">="&$J$14,$J$39:$J$134,"<="&J14+Do_Nothing!J17) -> 49.82997376 | L38: =SUMIFS(L$39:L$134,$J$39:$J$134,">="&$J$14,$J$39:$J$134,"<="&J14+Do_Nothing!J17) -> 31.39579517
D39: Reactors
D40: =INDEX(OLTC_Taps!$D$147:$D$173,MATCH(ROW()-ROW($D$39),OLTC_Taps!$L$147:$L$173,FALSE)) -> SBY | J40: =J14+1 -> 2028 | K40: 2.31658 | L40: =VLOOKUP($J40,Do_Nothing!$D$39:$E$58,2)*K40 -> 1.869982163
D41: =INDEX(OLTC_Taps!$D$147:$D$173,MATCH(ROW()-ROW($D$39),OLTC_Taps!$L$147:$L$173,FALSE)) -> SHM | J41: =J40+1 -> 2029 | K41: 2.59457 | L41: =VLOOKUP($J41,Do_Nothing!$D$39:$E$58,2)*K41 -> 1.98519464
D42: =INDEX(OLTC_Taps!$D$147:$D$173,MATCH(ROW()-ROW($D$39),OLTC_Taps!$L$147:$L$173,FALSE)) -> COO | J42: =J41+1 -> 2030 | K42: 2.66236 | L42: =VLOOKUP($J42,Do_Nothing!$D$39:$E$58,2)*K42 -> 1.930865496
D43: =INDEX(OLTC_Taps!$D$147:$D$173,MATCH(ROW()-ROW($D$39),OLTC_Taps!$L$147:$L$173,FALSE)) -> ST | J43: =J42+1 -> 2031 | K43: 2.15895 | L43: =VLOOKUP($J43,Do_Nothing!$D$39:$E$58,2)*K43 -> 1.484141698
D44: =INDEX(OLTC_Taps!$D$147:$D$173,MATCH(ROW()-ROW($D$39),OLTC_Taps!$L$147:$L$173,FALSE)) -> BD | J44: =J43 -> 2031 | K44: 2.4241 | L44: =VLOOKUP($J44,Do_Nothing!$D$39:$E$58,2)*K44 -> 1.666415568
D45: VAr controllers
D46: CN No.1 | J46: =J14 -> 2027 | K46: 0.26952 | L46: =VLOOKUP($J46,Do_Nothing!$D$39:$E$58,2)*K46 -> 0.2295269148
D47: CN No.2 | J47: =J46 -> 2027 | K47: 0.26952 | L47: =VLOOKUP($J47,Do_Nothing!$D$39:$E$58,2)*K47 -> 0.2295269148
D48: CN No.3A & 3B | J48: =J46+1 -> 2028 | K48: 0.26952 | L48: =VLOOKUP($J48,Do_Nothing!$D$39:$E$58,2)*K48 -> 0.2175610567
D49: CS No.2 | J49: =J48 -> 2028 | K49: 0.26952 | L49: =VLOOKUP($J49,Do_Nothing!$D$39:$E$58,2)*K49 -> 0.2175610567
D50: ES No.1 | J50: =J49 -> 2028 | K50: 0.26952 | L50: =VLOOKUP($J50,Do_Nothing!$D$39:$E$58,2)*K50 -> 0.2175610567
D51: FF No.1 | J51: =J46+2 -> 2029 | K51: 0.26952 | L51: =VLOOKUP($J51,Do_Nothing!$D$39:$E$58,2)*K51 -> 0.206219011
D52: NH No.1 | J52: =J51 -> 2029 | K52: 0.26952 | L52: =VLOOKUP($J52,Do_Nothing!$D$39:$E$58,2)*K52 -> 0.206219011
D53: ST No.1 | J53: =J46+3 -> 2030 | K53: 0.26952 | L53: =VLOOKUP($J53,Do_Nothing!$D$39:$E$58,2)*K53 -> 0.1954682569
D54: ST No.2 | J54: =J53 -> 2030 | K54: 0.26952 | L54: =VLOOKUP($J54,Do_Nothing!$D$39:$E$58,2)*K54 -> 0.1954682569
D55: TH No.1 | J55: =J54 -> 2030 | K55: 0.26952 | L55: =VLOOKUP($J55,Do_Nothing!$D$39:$E$58,2)*K55 -> 0.1954682569
D56: TH No.2 | J56: =J46+4 -> 2031 | K56: 0.26952 | L56: =VLOOKUP($J56,Do_Nothing!$D$39:$E$58,2)*K56 -> 0.1852779686
D57: Traditional for spread
D58: =INDEX(Table!$A$4:$A$33,MATCH(ROW()-ROW($D$57),Table!$W$4:$W$33,FALSE)) -> EPN | J58: =MAX($J$16+1,38+$J$16-INT(INDEX(Table!$E$4:$E$33,MATCH(ROW()-ROW($J$57),Table!$W$4:$W$33,FALSE))))+1 -> 2027 | K58: 0.04107 | L58: =VLOOKUP($J58,Do_Nothing!$D$39:$E$58,2)*K58 -> 0.03497577319
D59: =INDEX(Table!$A$4:$A$33,MATCH(ROW()-ROW($D$57),Table!$W$4:$W$33,FALSE)) -> NT0 | J59: =MAX($J$16+1,38+$J$16-INT(INDEX(Table!$E$4:$E$33,MATCH(ROW()-ROW($J$57),Table!$W$4:$W$33,FALSE))))+1 -> 2027 | K59: 0.04107 | L59: =VLOOKUP($J59,Do_Nothing!$D$39:$E$58,2)*K59 -> 0.03497577319
D60: =INDEX(Table!$A$4:$A$33,MATCH(ROW()-ROW($D$57),Table!$W$4:$W$33,FALSE)) -> BY0 | J60: =MAX($J$16+1,38+$J$16-INT(INDEX(Table!$E$4:$E$33,MATCH(ROW()-ROW($J$57),Table!$W$4:$W$33,FALSE))))+1 -> 2027 | K60: 0.04107 | L60: =VLOOKUP($J60,Do_Nothing!$D$39:$E$58,2)*K60 -> 0.03497577319
D61: =INDEX(Table!$A$4:$A$33,MATCH(ROW()-ROW($D$57),Table!$W$4:$W$33,FALSE)) -> NH0 | J61: =MAX($J$16+1,38+$J$16-INT(INDEX(Table!$E$4:$E$33,MATCH(ROW()-ROW($J$57),Table!$W$4:$W$33,FALSE))))+1 -> 2027 | K61: 0.04107 | L61: =VLOOKUP($J61,Do_Nothing!$D$39:$E$58,2)*K61 -> 0.03497577319
D62: =INDEX(Table!$A$4:$A$33,MATCH(ROW()-ROW($D$57),Table!$W$4:$W$33,FALSE)) -> ES0 | J62: =MAX($J$16+1,38+$J$16-INT(INDEX(Table!$E$4:$E$33,MATCH(ROW()-ROW($J$57),Table!$W$4:$W$33,FALSE))))+1 -> 2027 | K62: 0.04107 | L62: =VLOOKUP($J62,Do_Nothing!$D$39:$E$58,2)*K62 -> 0.03497577319
D63: =INDEX(Table!$A$4:$A$33,MATCH(ROW()-ROW($D$57),Table!$W$4:$W$33,FALSE)) -> CN0 | J63: =MAX($J$16+1,38+$J$16-INT(INDEX(Table!$E$4:$E$33,MATCH(ROW()-ROW($J$57),Table!$W$4:$W$33,FALSE))))+1 -> 2027 | K63: 0.04107 | L63: =VLOOKUP($J63,Do_Nothing!$D$39:$E$58,2)*K63 -> 0.03497577319
D64: =INDEX(Table!$A$4:$A$33,MATCH(ROW()-ROW($D$57),Table!$W$4:$W$33,FALSE)) -> EP0 | J64: =MAX($J$16+1,38+$J$16-INT(INDEX(Table!$E$4:$E$33,MATCH(ROW()-ROW($J$57),Table!$W$4:$W$33,FALSE))))+1 -> 2027 | K64: 0.04107 | L64: =VLOOKUP($J64,Do_Nothing!$D$39:$E$58,2)*K64 -> 0.03497577319
D65: =INDEX(Table!$A$4:$A$33,MATCH(ROW()-ROW($D$57),Table!$W$4:$W$33,FALSE)) -> TT0 | J65: =MAX($J$16+1,38+$J$16-INT(INDEX(Table!$E$4:$E$33,MATCH(ROW()-ROW($J$57),Table!$W$4:$W$33,FALSE))))+1 -> 2027 | K65: 0.04107 | L65: =VLOOKUP($J65,Do_Nothing!$D$39:$E$58,2)*K65 -> 0.03497577319
D66: =INDEX(Table!$A$4:$A$33,MATCH(ROW()-ROW($D$57),Table!$W$4:$W$33,FALSE)) -> YVE | J66: =MAX($J$16+1,38+$J$16-INT(INDEX(Table!$E$4:$E$33,MATCH(ROW()-ROW($J$57),Table!$W$4:$W$33,FALSE))))+1 -> 2028 | K66: 0.04107 | L66: =VLOOKUP($J66,Do_Nothing!$D$39:$E$58,2)*K66 -> 0.03315239165
D67: =INDEX(Table!$A$4:$A$33,MATCH(ROW()-ROW($D$57),Table!$W$4:$W$33,FALSE)) -> AW0 | J67: =MAX($J$16+1,38+$J$16-INT(INDEX(Table!$E$4:$E$33,MATCH(ROW()-ROW($J$57),Table!$W$4:$W$33,FALSE))))+1 -> 2028 | K67: 0.04107 | L67: =VLOOKUP($J67,Do_Nothing!$D$39:$E$58,2)*K67 -> 0.03315239165
D68: =INDEX(Table!$A$4:$A$33,MATCH(ROW()-ROW($D$57),Table!$W$4:$W$33,FALSE)) -> NS0 | J68: =MAX($J$16+1,38+$J$16-INT(INDEX(Table!$E$4:$E$33,MATCH(ROW()-ROW($J$57),Table!$W$4:$W$33,FALSE))))+1 -> 2029 | K68: 0.04107 | L68: =VLOOKUP($J68,Do_Nothing!$D$39:$E$58,2)*K68 -> 0.03142406791
D69: =INDEX(Table!$A$4:$A$33,MATCH(ROW()-ROW($D$57),Table!$W$4:$W$33,FALSE)) -> PTN | J69: =MAX($J$16+1,38+$J$16-INT(INDEX(Table!$E$4:$E$33,MATCH(ROW()-ROW($J$57),Table!$W$4:$W$33,FALSE))))+1 -> 2029 | K69: 0.04107 | L69: =VLOOKUP($J69,Do_Nothing!$D$39:$E$58,2)*K69 -> 0.03142406791
D70: =INDEX(Table!$A$4:$A$33,MATCH(ROW()-ROW($D$57),Table!$W$4:$W$33,FALSE)) -> PV0 | J70: =MAX($J$16+1,38+$J$16-INT(INDEX(Table!$E$4:$E$33,MATCH(ROW()-ROW($J$57),Table!$W$4:$W$33,FALSE))))+1 -> 2029 | K70: 0.04107 | L70: =VLOOKUP($J70,Do_Nothing!$D$39:$E$58,2)*K70 -> 0.03142406791
D71: =INDEX(Table!$A$4:$A$33,MATCH(ROW()-ROW($D$57),Table!$W$4:$W$33,FALSE)) -> CS0 | J71: =MAX($J$16+1,38+$J$16-INT(INDEX(Table!$E$4:$E$33,MATCH(ROW()-ROW($J$57),Table!$W$4:$W$33,FALSE))))+1 -> 2030 | K71: 0.04107 | L71: =VLOOKUP($J71,Do_Nothing!$D$39:$E$58,2)*K71 -> 0.02978584636
D72: =INDEX(Table!$A$4:$A$33,MATCH(ROW()-ROW($D$57),Table!$W$4:$W$33,FALSE)) -> HB0 | J72: =MAX($J$16+1,38+$J$16-INT(INDEX(Table!$E$4:$E$33,MATCH(ROW()-ROW($J$57),Table!$W$4:$W$33,FALSE))))+1 -> 2031 | K72: 0.04107 | L72: =VLOOKUP($J72,Do_Nothing!$D$39:$E$58,2)*K72 -> 0.02823302973
D73: DVM Rollout
D74: =INDEX(Table!$A$4:$A$33,MATCH(ROW()-ROW($D$73),Table!$X$4:$X$33,FALSE)) -> KLO | J74: =MAX($J$16,257+$J$16-ROUND(INDEX(Table!$J$4:$J$33,MATCH(ROW()-ROW($J$73),Table!$X$4:$X$33,FALSE)),0))+$J$17 -> 2027 | K74: =INDEX(Table!$AA$4:$AA$33,MATCH(ROW()-ROW($D$73),Table!$X$4:$X$33,FALSE))*HLOOKUP($J74,$J$31:$R$33,2,FALSE)+HLOOKUP($J74,$J$31:$R$33,3,FALSE) -> 0.5238314488 | L74: =VLOOKUP($J74,Do_Nothing!$D$39:$E$58,2)*K74 -> 0.4461020195
D75: =INDEX(Table!$A$4:$A$33,MATCH(ROW()-ROW($D$73),Table!$X$4:$X$33,FALSE)) -> TH0 | J75: =MAX($J$16,257+$J$16-ROUND(INDEX(Table!$J$4:$J$33,MATCH(ROW()-ROW($J$73),Table!$X$4:$X$33,FALSE)),0))+$J$17+3 -> 2028 | K75: =INDEX(Table!$AA$4:$AA$33,MATCH(ROW()-ROW($D$73),Table!$X$4:$X$33,FALSE))*HLOOKUP($J75,$J$31:$R$33,2,FALSE)+HLOOKUP($J75,$J$31:$R$33,3,FALSE) -> 1.016600445 | L75: =VLOOKUP($J75,Do_Nothing!$D$39:$E$58,2)*K75 -> 0.8206169004
D76: =INDEX(Table!$A$4:$A$33,MATCH(ROW()-ROW($D$73),Table!$X$4:$X$33,FALSE)) -> PV0 | J76: =MAX($J$16,257+$J$16-ROUND(INDEX(Table!$J$4:$J$33,MATCH(ROW()-ROW($J$73),Table!$X$4:$X$33,FALSE)),0))+$J$17+2 -> 2027 | K76: =INDEX(Table!$AA$4:$AA$33,MATCH(ROW()-ROW($D$73),Table!$X$4:$X$33,FALSE))*HLOOKUP($J76,$J$31:$R$33,2,FALSE)+HLOOKUP($J76,$J$31:$R$33,3,FALSE) -> 1.216458645 | L76: =VLOOKUP($J76,Do_Nothing!$D$39:$E$58,2)*K76 -> 1.035952804
D77: =INDEX(Table!$A$4:$A$33,MATCH(ROW()-ROW($D$73),Table!$X$4:$X$33,FALSE)) -> CS0 | J77: 2023 | L77: =VLOOKUP($J77+1,Do_Nothing!$D$39:$E$58,2)*K77 -> 0
D78: =INDEX(Table!$A$4:$A$33,MATCH(ROW()-ROW($D$73),Table!$X$4:$X$33,FALSE)) -> EP0 | J78: =MAX($J$16,257+$J$16-ROUND(INDEX(Table!$J$4:$J$33,MATCH(ROW()-ROW($J$73),Table!$X$4:$X$33,FALSE)),0))+$J$17+2 -> 2027 | K78: =(INDEX(Table!$AA$4:$AA$33,MATCH(ROW()-ROW($D$73),Table!$X$4:$X$33,FALSE))*HLOOKUP($J78,$J$31:$R$33,2,FALSE)+HLOOKUP($J78,$J$31:$R$33,3,FALSE))*2/3 -> 0.9648895845 | L78: =VLOOKUP($J78,Do_Nothing!$D$39:$E$58,2)*K78 -> 0.8217131546
D79: =INDEX(Table!$A$4:$A$33,MATCH(ROW()-ROW($D$73),Table!$X$4:$X$33,FALSE)) -> NT0 | J79: =MAX($J$16,257+$J$16-ROUND(INDEX(Table!$J$4:$J$33,MATCH(ROW()-ROW($J$73),Table!$X$4:$X$33,FALSE)),0))+$J$17+2 -> 2028 | K79: =INDEX(Table!$AA$4:$AA$33,MATCH(ROW()-ROW($D$73),Table!$X$4:$X$33,FALSE))*HLOOKUP($J79,$J$31:$R$33,2,FALSE)+HLOOKUP($J79,$J$31:$R$33,3,FALSE) -> 1.016600445 | L79: =VLOOKUP($J79,Do_Nothing!$D$39:$E$58,2)*K79 -> 0.8206169004
D80: =INDEX(Table!$A$4:$A$33,MATCH(ROW()-ROW($D$73),Table!$X$4:$X$33,FALSE)) -> BY0 | J80: =MAX($J$16,257+$J$16-ROUND(INDEX(Table!$J$4:$J$33,MATCH(ROW()-ROW($J$73),Table!$X$4:$X$33,FALSE)),0))+$J$17+3 -> 2029 | K80: =INDEX(Table!$AA$4:$AA$33,MATCH(ROW()-ROW($D$73),Table!$X$4:$X$33,FALSE))*HLOOKUP($J80,$J$31:$R$33,2,FALSE)+HLOOKUP($J80,$J$31:$R$33,3,FALSE) -> 1.015557095 | L80: =VLOOKUP($J80,Do_Nothing!$D$39:$E$58,2)*K80 -> 0.7770376216
D81: =INDEX(Table!$A$4:$A$33,MATCH(ROW()-ROW($D$73),Table!$X$4:$X$33,FALSE)) -> TT0 | J81: =MAX($J$16,257+$J$16-ROUND(INDEX(Table!$J$4:$J$33,MATCH(ROW()-ROW($J$73),Table!$X$4:$X$33,FALSE)),0))+$J$17+2 -> 2028 | K81: =INDEX(Table!$AA$4:$AA$33,MATCH(ROW()-ROW($D$73),Table!$X$4:$X$33,FALSE))*HLOOKUP($J81,$J$31:$R$33,2,FALSE)+HLOOKUP($J81,$J$31:$R$33,3,FALSE) -> 0.5423304445 | L81: =VLOOKUP($J81,Do_Nothing!$D$39:$E$58,2)*K81 -> 0.4377782152
D82: =INDEX(Table!$A$4:$A$33,MATCH(ROW()-ROW($D$73),Table!$X$4:$X$33,FALSE)) -> FW0 | J82: =MAX($J$16,257+$J$16-ROUND(INDEX(Table!$J$4:$J$33,MATCH(ROW()-ROW($J$73),Table!$X$4:$X$33,FALSE)),0))+$J$17+2 -> 2029 | K82: =INDEX(Table!$AA$4:$AA$33,MATCH(ROW()-ROW($D$73),Table!$X$4:$X$33,FALSE))*HLOOKUP($J82,$J$31:$R$33,2,FALSE)+HLOOKUP($J82,$J$31:$R$33,3,FALSE) -> 1.252566033 | L82: =VLOOKUP($J82,Do_Nothing!$D$39:$E$58,2)*K82 -> 0.9583813027
D83: =INDEX(Table!$A$4:$A$33,MATCH(ROW()-ROW($D$73),Table!$X$4:$X$33,FALSE)) -> HB0 | J83: =MAX($J$16,257+$J$16-ROUND(INDEX(Table!$J$4:$J$33,MATCH(ROW()-ROW($J$73),Table!$X$4:$X$33,FALSE)),0))+$J$17 -> 2025 | K83: =INDEX(Table!$AA$4:$AA$33,MATCH(ROW()-ROW($D$73),Table!$X$4:$X$33,FALSE))*HLOOKUP($J83,$J$31:$R$33,2,FALSE)+HLOOKUP($J83,$J$31:$R$33,3,FALSE) -> 0.9244242854 | L83: =VLOOKUP($J83,Do_Nothing!$D$39:$E$58,2)*K83 -> 0.8762315501
D84: =INDEX(Table!$A$4:$A$33,MATCH(ROW()-ROW($D$73),Table!$X$4:$X$33,FALSE)) -> FF0 | J84: =MAX($J$16,257+$J$16-ROUND(INDEX(Table!$J$4:$J$33,MATCH(ROW()-ROW($J$73),Table!$X$4:$X$33,FALSE)),0))+$J$17 -> 2027 | K84: =INDEX(Table!$AA$4:$AA$33,MATCH(ROW()-ROW($D$73),Table!$X$4:$X$33,FALSE))*HLOOKUP($J84,$J$31:$R$33,2,FALSE)+HLOOKUP($J84,$J$31:$R$33,3,FALSE) -> 0.5238314488 | L84: =VLOOKUP($J84,Do_Nothing!$D$39:$E$58,2)*K84 -> 0.4461020195
D85: =INDEX(Table!$A$4:$A$33,MATCH(ROW()-ROW($D$73),Table!$X$4:$X$33,FALSE)) -> NS0 | J85: =MAX($J$16,257+$J$16-ROUND(INDEX(Table!$J$4:$J$33,MATCH(ROW()-ROW($J$73),Table!$X$4:$X$33,FALSE)),0))+$J$17 -> 2027 | K85: =INDEX(Table!$AA$4:$AA$33,MATCH(ROW()-ROW($D$73),Table!$X$4:$X$33,FALSE))*HLOOKUP($J85,$J$31:$R$33,2,FALSE)+HLOOKUP($J85,$J$31:$R$33,3,FALSE) -> 0.5238314488 | L85: =VLOOKUP($J85,Do_Nothing!$D$39:$E$58,2)*K85 -> 0.4461020195
D86: =INDEX(Table!$A$4:$A$33,MATCH(ROW()-ROW($D$73),Table!$X$4:$X$33,FALSE)) -> COO | J86: =MAX($J$16,257+$J$16-ROUND(INDEX(Table!$J$4:$J$33,MATCH(ROW()-ROW($J$73),Table!$X$4:$X$33,FALSE)),0))+$J$17 -> 2027 | K86: =INDEX(Table!$AA$4:$AA$33,MATCH(ROW()-ROW($D$73),Table!$X$4:$X$33,FALSE))*HLOOKUP($J86,$J$31:$R$33,2,FALSE)+HLOOKUP($J86,$J$31:$R$33,3,FALSE) -> 0.5238314488 | L86: =VLOOKUP($J86,Do_Nothing!$D$39:$E$58,2)*K86 -> 0.4461020195
D87: =INDEX(Table!$A$4:$A$33,MATCH(ROW()-ROW($D$73),Table!$X$4:$X$33,FALSE)) -> NH0 | J87: =MAX($J$16,257+$J$16-ROUND(INDEX(Table!$J$4:$J$33,MATCH(ROW()-ROW($J$73),Table!$X$4:$X$33,FALSE)),0))+$J$17+2 -> 2028 | K87: =INDEX(Table!$AA$4:$AA$33,MATCH(ROW()-ROW($D$73),Table!$X$4:$X$33,FALSE))*HLOOKUP($J87,$J$31:$R$33,2,FALSE)+HLOOKUP($J87,$J$31:$R$33,3,FALSE) -> 1.253735445 | L87: =VLOOKUP($J87,Do_Nothing!$D$39:$E$58,2)*K87 -> 1.012036243
D88: =INDEX(Table!$A$4:$A$33,MATCH(ROW()-ROW($D$73),Table!$X$4:$X$33,FALSE)) -> PTN | J88: =MAX($J$16,257+$J$16-ROUND(INDEX(Table!$J$4:$J$33,MATCH(ROW()-ROW($J$73),Table!$X$4:$X$33,FALSE)),0))+$J$17-3 -> 2025 | K88: =INDEX(Table!$AA$4:$AA$33,MATCH(ROW()-ROW($D$73),Table!$X$4:$X$33,FALSE))*HLOOKUP($J88,$J$31:$R$33,2,FALSE)+HLOOKUP($J88,$J$31:$R$33,3,FALSE) -> 0.4876642334 | L88: =VLOOKUP($J88,Do_Nothing!$D$39:$E$58,2)*K88 -> 0.4622409796
D89: =INDEX(Table!$A$4:$A$33,MATCH(ROW()-ROW($D$73),Table!$X$4:$X$33,FALSE)) -> SA0 | J89: =MAX($J$16,257+$J$16-ROUND(INDEX(Table!$J$4:$J$33,MATCH(ROW()-ROW($J$73),Table!$X$4:$X$33,FALSE)),0))+$J$17 -> 2027 | K89: =INDEX(Table!$AA$4:$AA$33,MATCH(ROW()-ROW($D$73),Table!$X$4:$X$33,FALSE))*HLOOKUP($J89,$J$31:$R$33,2,FALSE)+HLOOKUP($J89,$J$31:$R$33,3,FALSE) -> 0.5238314488 | L89: =VLOOKUP($J89,Do_Nothing!$D$39:$E$58,2)*K89 -> 0.4461020195
D90: =INDEX(Table!$A$4:$A$33,MATCH(ROW()-ROW($D$73),Table!$X$4:$X$33,FALSE)) -> SBY | J90: =MAX($J$16,257+$J$16-ROUND(INDEX(Table!$J$4:$J$33,MATCH(ROW()-ROW($J$73),Table!$X$4:$X$33,FALSE)),0))+$J$17 -> 2026 | K90: =INDEX(Table!$AA$4:$AA$33,MATCH(ROW()-ROW($D$73),Table!$X$4:$X$33,FALSE))*HLOOKUP($J90,$J$31:$R$33,2,FALSE)+HLOOKUP($J90,$J$31:$R$33,3,FALSE) -> 0.5194324555 | L90: =VLOOKUP($J90,Do_Nothing!$D$39:$E$58,2)*K90 -> 0.4666853445
D91: =INDEX(Table!$A$4:$A$33,MATCH(ROW()-ROW($D$73),Table!$X$4:$X$33,FALSE)) -> CN0 | J91: =MAX($J$16,257+$J$16-ROUND(INDEX(Table!$J$4:$J$33,MATCH(ROW()-ROW($J$73),Table!$X$4:$X$33,FALSE)),0))+$J$17 -> 2028 | K91: =INDEX(Table!$AA$4:$AA$33,MATCH(ROW()-ROW($D$73),Table!$X$4:$X$33,FALSE))*HLOOKUP($J91,$J$31:$R$33,2,FALSE)+HLOOKUP($J91,$J$31:$R$33,3,FALSE) -> 1.253735445 | L91: =VLOOKUP($J91,Do_Nothing!$D$39:$E$58,2)*K91 -> 1.012036243
D92: =INDEX(Table!$A$4:$A$33,MATCH(ROW()-ROW($D$73),Table!$X$4:$X$33,FALSE)) -> ST0 | J92: =MAX($J$16,257+$J$16-ROUND(INDEX(Table!$J$4:$J$33,MATCH(ROW()-ROW($J$73),Table!$X$4:$X$33,FALSE)),0))+$J$17 -> 2027 | K92: =INDEX(Table!$AA$4:$AA$33,MATCH(ROW()-ROW($D$73),Table!$X$4:$X$33,FALSE))*HLOOKUP($J92,$J$31:$R$33,2,FALSE)+HLOOKUP($J92,$J$31:$R$33,3,FALSE) -> 1.216458645 | L92: =VLOOKUP($J92,Do_Nothing!$D$39:$E$58,2)*K92 -> 1.035952804
D93: =INDEX(Table!$A$4:$A$33,MATCH(ROW()-ROW($D$73),Table!$X$4:$X$33,FALSE)) -> FE0 | J93: =MAX($J$16,257+$J$16-ROUND(INDEX(Table!$J$4:$J$33,MATCH(ROW()-ROW($J$73),Table!$X$4:$X$33,FALSE)),0))+$J$17 -> 2026 | K93: =INDEX(Table!$AA$4:$AA$33,MATCH(ROW()-ROW($D$73),Table!$X$4:$X$33,FALSE))*HLOOKUP($J93,$J$31:$R$33,2,FALSE)+HLOOKUP($J93,$J$31:$R$33,3,FALSE) -> 0.9796360282 | L93: =VLOOKUP($J93,Do_Nothing!$D$39:$E$58,2)*K93 -> 0.880156356
D94: =INDEX(Table!$A$4:$A$33,MATCH(ROW()-ROW($D$73),Table!$X$4:$X$33,FALSE)) -> AW0 | J94: 2023 | L94: =VLOOKUP($J94+1,Do_Nothing!$D$39:$E$58,2)*K94 -> 0
D95: =INDEX(Table!$A$4:$A$33,MATCH(ROW()-ROW($D$73),Table!$X$4:$X$33,FALSE)) -> FT0 | J95: =MAX($J$16,257+$J$16-ROUND(INDEX(Table!$J$4:$J$33,MATCH(ROW()-ROW($J$73),Table!$X$4:$X$33,FALSE)),0))+$J$17 -> 2027 | K95: =INDEX(Table!$AA$4:$AA$33,MATCH(ROW()-ROW($D$73),Table!$X$4:$X$33,FALSE))*HLOOKUP($J95,$J$31:$R$33,2,FALSE)+HLOOKUP($J95,$J$31:$R$33,3,FALSE) -> 0.5238314488 | L95: =VLOOKUP($J95,Do_Nothing!$D$39:$E$58,2)*K95 -> 0.4461020195
D96: =INDEX(Table!$A$4:$A$33,MATCH(ROW()-ROW($D$73),Table!$X$4:$X$33,FALSE)) -> ES0 | J96: =MAX($J$16,257+$J$16-ROUND(INDEX(Table!$J$4:$J$33,MATCH(ROW()-ROW($J$73),Table!$X$4:$X$33,FALSE)),0))+$J$17 -> 2028 | K96: =INDEX(Table!$AA$4:$AA$33,MATCH(ROW()-ROW($D$73),Table!$X$4:$X$33,FALSE))*HLOOKUP($J96,$J$31:$R$33,2,FALSE)+HLOOKUP($J96,$J$31:$R$33,3,FALSE) -> 0.5423304445 | L96: =VLOOKUP($J96,Do_Nothing!$D$39:$E$58,2)*K96 -> 0.4377782152
D97: =INDEX(Table!$A$4:$A$33,MATCH(ROW()-ROW($D$73),Table!$X$4:$X$33,FALSE)) -> EPN | J97: =MAX($J$16,257+$J$16-ROUND(INDEX(Table!$J$4:$J$33,MATCH(ROW()-ROW($J$73),Table!$X$4:$X$33,FALSE)),0))+$J$17 -> 2028 | K97: =(INDEX(Table!$AA$4:$AA$33,MATCH(ROW()-ROW($D$73),Table!$X$4:$X$33,FALSE))*HLOOKUP($J97,$J$31:$R$33,2,FALSE)+HLOOKUP($J97,$J$31:$R$33,3,FALSE))*2/3 -> 0.3615536297 | L97: =VLOOKUP($J97,Do_Nothing!$D$39:$E$58,2)*K97 -> 0.2918521435
D98: =INDEX(Table!$A$4:$A$33,MATCH(ROW()-ROW($D$73),Table!$X$4:$X$33,FALSE)) -> SHM | J98: =MAX($J$16,257+$J$16-ROUND(INDEX(Table!$J$4:$J$33,MATCH(ROW()-ROW($J$73),Table!$X$4:$X$33,FALSE)),0))+$J$17 -> 2028 | K98: =INDEX(Table!$AA$4:$AA$33,MATCH(ROW()-ROW($D$73),Table!$X$4:$X$33,FALSE))*HLOOKUP($J98,$J$31:$R$33,2,FALSE)+HLOOKUP($J98,$J$31:$R$33,3,FALSE) -> 1.016600445 | L98: =VLOOKUP($J98,Do_Nothing!$D$39:$E$58,2)*K98 -> 0.8206169004
D99: =INDEX(Table!$A$4:$A$33,MATCH(ROW()-ROW($D$73),Table!$X$4:$X$33,FALSE)) -> YVE | J99: =MAX($J$16,257+$J$16-ROUND(INDEX(Table!$J$4:$J$33,MATCH(ROW()-ROW($J$73),Table!$X$4:$X$33,FALSE)),0))+$J$17 -> 2027 | K99: =INDEX(Table!$AA$4:$AA$33,MATCH(ROW()-ROW($D$73),Table!$X$4:$X$33,FALSE))*HLOOKUP($J99,$J$31:$R$33,2,FALSE)+HLOOKUP($J99,$J$31:$R$33,3,FALSE) -> 0.5238314488 | L99: =VLOOKUP($J99,Do_Nothing!$D$39:$E$58,2)*K99 -> 0.4461020195
D100: =INDEX(Table!$A$4:$A$33,MATCH(ROW()-ROW($D$73),Table!$X$4:$X$33,FALSE)) -> BMS | J100: =MAX($J$16,257+$J$16-ROUND(INDEX(Table!$J$4:$J$33,MATCH(ROW()-ROW($J$73),Table!$X$4:$X$33,FALSE)),0))+$J$17 -> 2029 | K100: =INDEX(Table!$AA$4:$AA$33,MATCH(ROW()-ROW($D$73),Table!$X$4:$X$33,FALSE))*HLOOKUP($J100,$J$31:$R$33,2,FALSE)+HLOOKUP($J100,$J$31:$R$33,3,FALSE) -> 0.5415392179 | L100: =VLOOKUP($J100,Do_Nothing!$D$39:$E$58,2)*K100 -> 0.4143502596
D101: =INDEX(Table!$A$4:$A$33,MATCH(ROW()-ROW($D$73),Table!$X$4:$X$33,FALSE)) -> BD0 | J101: =MAX($J$16,257+$J$16-ROUND(INDEX(Table!$J$4:$J$33,MATCH(ROW()-ROW($J$73),Table!$X$4:$X$33,FALSE)),0))+$J$17-1 -> 2029 | K101: =INDEX(Table!$AA$4:$AA$33,MATCH(ROW()-ROW($D$73),Table!$X$4:$X$33,FALSE))*HLOOKUP($J101,$J$31:$R$33,2,FALSE)+HLOOKUP($J101,$J$31:$R$33,3,FALSE) -> 0.5415392179 | L101: =VLOOKUP($J101,Do_Nothing!$D$39:$E$58,2)*K101 -> 0.4143502596
D102: =INDEX(Table!$A$4:$A$33,MATCH(ROW()-ROW($D$73),Table!$X$4:$X$33,FALSE)) -> TMA | J102: =MAX($J$16,257+$J$16-ROUND(INDEX(Table!$J$4:$J$33,MATCH(ROW()-ROW($J$73),Table!$X$4:$X$33,FALSE)),0))+$J$17-1 -> 2029 | K102: =INDEX(Table!$AA$4:$AA$33,MATCH(ROW()-ROW($D$73),Table!$X$4:$X$33,FALSE))*HLOOKUP($J102,$J$31:$R$33,2,FALSE)+HLOOKUP($J102,$J$31:$R$33,3,FALSE) -> 0.5415392179 | L102: =VLOOKUP($J102,Do_Nothing!$D$39:$E$58,2)*K102 -> 0.4143502596
D103: =INDEX(Table!$A$4:$A$33,MATCH(ROW()-ROW($D$73),Table!$X$4:$X$33,FALSE)) -> WT0 | J103: =MAX($J$16,257+$J$16-ROUND(INDEX(Table!$J$4:$J$33,MATCH(ROW()-ROW($J$73),Table!$X$4:$X$33,FALSE)),0))+$J$17-2 -> 2029 | K103: =INDEX(Table!$AA$4:$AA$33,MATCH(ROW()-ROW($D$73),Table!$X$4:$X$33,FALSE))*HLOOKUP($J103,$J$31:$R$33,2,FALSE)+HLOOKUP($J103,$J$31:$R$33,3,FALSE) -> 0.5415392179 | L103: =VLOOKUP($J103,Do_Nothing!$D$39:$E$58,2)*K103 -> 0.4143502596
D104: Trial | J104: =2023 -> 2023 | K104: =3.6-K94-K77 -> 3.6 | L104: =VLOOKUP($J104+1,Do_Nothing!$D$39:$E$58,2)*K104 -> 3.6
D105: Trial | J105: =2024 -> 2024 | K105: 1 | L105: =VLOOKUP($J105,Do_Nothing!$D$39:$E$58,2)*K105 -> 1
D106: DVM Digital & Network | J106: 2025 | K106: =1.96+0.345+0.2 -> 2.505 | L106: =VLOOKUP($J106,Do_Nothing!$D$39:$E$58,2)*K106 -> 2.374407583
D107: DVM Digital & Network | J107: 2026 | K107: =0.46+0.2+0.6325 -> 1.2925 | L107: =VLOOKUP($J107,Do_Nothing!$D$39:$E$58,2)*K107 -> 1.161249747
D108: DVM Digital & Network | J108: 2027 | K108: =0.12433+0.6325+0.2 -> 0.95683 | L108: =VLOOKUP($J108,Do_Nothing!$D$39:$E$58,2)*K108 -> 0.8148495023
D109: DVM Digital & Network | J109: 2028 | K109: =0.575+0.2 -> 0.775 | L109: =VLOOKUP($J109,Do_Nothing!$D$39:$E$58,2)*K109 -> 0.6255929761
D110: DVM Digital & Network | J110: 2029 | K110: =0.575+0.2 -> 0.775 | L110: =VLOOKUP($J110,Do_Nothing!$D$39:$E$58,2)*K110 -> 0.5929791242
D111: DVM Digital & Network | J111: 2030 | K111: =0.575+0.2 -> 0.775 | L111: =VLOOKUP($J111,Do_Nothing!$D$39:$E$58,2)*K111 -> 0.5620655206
D112: DVM Digital & Network | J112: 2031 | K112: =0.575+0.2 -> 0.775 | L112: =VLOOKUP($J112,Do_Nothing!$D$39:$E$58,2)*K112 -> 0.5327635266
D113: DVM Digital & Network | J113: 2032 | K113: 0.2 | L113: =VLOOKUP($J113,Do_Nothing!$D$39:$E$58,2)*K113 -> 0.1303197741
D114: DVM Digital & Network | J114: 2033 | K114: =K113 -> 0.2 | L114: =VLOOKUP($J114,Do_Nothing!$D$39:$E$58,2)*K114 -> 0.1235258523
D115: DVM Digital & Network | J115: 2034 | K115: 0.2 | L115: =VLOOKUP($J115,Do_Nothing!$D$39:$E$58,2)*K115 -> 0.1170861159
D116: DVM Digital & Network | J116: 2035 | K116: 0.2 | L116: =VLOOKUP($J116,Do_Nothing!$D$39:$E$58,2)*K116 -> 0.1109821004
D117: DVM Digital & Network | J117: 2036 | K117: 0.2 | L117: =VLOOKUP($J117,Do_Nothing!$D$39:$E$58,2)*K117 -> 0.1051963037
D118: DVM Digital & Network | J118: 2037 | K118: 0.2 | L118: =VLOOKUP($J118,Do_Nothing!$D$39:$E$58,2)*K118 -> 0.09971213617
D119: DVM Digital & Network | J119: 2038 | K119: 0.2 | L119: =VLOOKUP($J119,Do_Nothing!$D$39:$E$58,2)*K119 -> 0.09451387315
D120: DVM Digital & Network | J120: 2039 | K120: 0.2 | L120: =VLOOKUP($J120,Do_Nothing!$D$39:$E$58,2)*K120 -> 0.08958660962
D121: DVM Digital & Network | J121: 2040 | K121: 0.2 | L121: =VLOOKUP($J121,Do_Nothing!$D$39:$E$58,2)*K121 -> 0.08491621765
D122: DVM Digital & Network | J122: 2041 | K122: 0.2 | L122: =VLOOKUP($J122,Do_Nothing!$D$39:$E$58,2)*K122 -> 0.08048930583
D123: DVM Digital & Network | J123: 2042 | K123: 0.2 | L123: =VLOOKUP($J123,Do_Nothing!$D$39:$E$58,2)*K123 -> 0.07629318088
D124: DVM Digital & Network | J124: 2043 | K124: 0.2 | L124: =VLOOKUP($J124,Do_Nothing!$D$39:$E$58,2)*K124 -> 0.07231581126
D125: DVM Digital & Network | J125: 2044 | K125: 0.2 | L125: =VLOOKUP($J125,Do_Nothing!$D$39:$E$58,2)*K125 -> 0.07231581126
D126: DVM Digital & Network | J126: 2045 | K126: 0.2 | L126: =VLOOKUP($J126,Do_Nothing!$D$39:$E$58,2)*K126 -> 0.07231581126
D127: DVM Digital & Network | J127: 2046 | K127: 0.2 | L127: =VLOOKUP($J127,Do_Nothing!$D$39:$E$58,2)*K127 -> 0.07231581126
D128: DVM Digital & Network | J128: 2047 | K128: 0.2 | L128: =VLOOKUP($J128,Do_Nothing!$D$39:$E$58,2)*K128 -> 0.07231581126
D129: Reactive Program (Customer Complaints)
D130: Year 1 | J130: =J14 -> 2027 | K130: 1.37785
D131: Year 2 | J131: =J130+1 -> 2028 | K131: 1.70793
D132: Year 3 | J132: =J131+1 -> 2029 | K132: 1.72044
D133: Year 4 | J133: =J132+1 -> 2030 | K133: 1.74336
D134: Year 5 | J134: =J133+1 -> 2031 | K134: 1.78384
B136: End

Sheet CECV
A1: Victorian CECV Values ($/MWh) | F1: Real AUD | G1: 2022 | I1: CPI Escalation | J1: 1.07 | L1: Source: Australian Energy Regulator (AER) - June 2023
A2: DATE | B2: YEAR | C2: MONTH | D2: DAY | E2: DayofWeek | F2: 1 | G2: 2 | H2: 3 | I2: 4 | J2: 5 | K2: 6 | L2: 7 | M2: 8 | N2: 9 | O2: 10 | P2: 11 | Q2: 12 | R2: 13 | S2: 14 | T2: 15 | U2: 16 | V2: 17 | W2: 18 | X2: 19 | Y2: 20 | Z2: 21 | AA2: 22 | AB2: 23 | AC2: 24 | AD2: 25 | AE2: 26 | AF2: 27 | AG2: 28 | AH2: 29 | AI2: 30 | AJ2: 31 | AK2: 32 | AL2: 33 | AM2: 34 | AN2: 35 | AO2: 36 | AP2: 37 | AQ2: 38 | AR2: 39 | AS2: 40 | AT2: 41 | AU2: 42 | AV2: 43 | AW2: 44 | AX2: 45 | AY2: 46 | AZ2: 47 | BA2: 48
A368: 2023-07-01 | B368: 2023 | C368: 7 | D368: 1 | E368: Saturday | F368: 15.82248995 | G368: 14.64762717 | H368: 14.64762717 | I368: 14.64762717 | J368: 14.64762717 | K368: 14.64762717 | L368: 14.64762717 | M368: 14.64762717 | N368: 14.64762717 | O368: 14.64762717 | P368: 14.64762717 | Q368: 15.58898791 | R368: 15.7738698 | S368: 15.99425983 | T368: 15.89376155 | U368: 15.89376155 | V368: 15.90355135 | W368: 16.00600609 | X368: 15.87061707 | Y368: 15.68859893 | Z368: 14.64762717 | AA368: 15.883361 | AB368: 15.76762743 | AC368: 15.44638761 | AD368: 15.52497374 | AE368: 16.04498452 | AF368: 15.89596642 | AG368: 15.89596642 | AH368: 15.89596642 | AI368: 15.89596642 | AJ368: 40.51399207 | AK368: 52.36216446 | AL368: 56.84060711 | AM368: 59.38273942 | AN368: 59.38273942 | AO368: 59.38273942 | AP368: 59.38273942 | AQ368: 59.38273942 | AR368: 59.38273942 | AS368: 57.89663653 | AT368: 55.79704212 | AU368: 54.76572218 | AV368: 54.76572218 | AW368: 52.73896537 | AX368: 51.33034437 | AY368: 51.60557209 | AZ368: 51.84378817 | BA368: 15.89596642
A369: 2023-07-02 | B369: 2023 | C369: 7 | D369: 2 | E369: Sunday | F369: 59.38273942 | G369: 59.38273942 | H369: 59.38273942 | I369: 59.38273942 | J369: 59.38273942 | K369: 59.38273942 | L369: 59.38273942 | M369: 59.38273942 | N369: 59.38273942 | O369: 59.38273942 | P369: 59.38273942 | Q369: 59.38273942 | R369: 59.38273942 | S369: 59.38273942 | T369: 59.38273942 | U369: 59.38273942 | V369: 59.38273942 | W369: 59.38273942 | X369: 59.38273942 | Y369: 57.43502693 | Z369: 54.50396277 | AA369: 48.35274393 | AB369: 34.26218241 | AC369: 15.89596642 | AD369: 15.89596642 | AE369: 15.89596642 | AF369: 32.96544718 | AG369: 43.31754727 | AH369: 51.28460155 | AI369: 52.89492209 | AJ369: 53.95717515 | AK369: 59.38273942 | AL369: 59.38273942 | AM369: 61.42192567 | AN369: 181.3186414 | AO369: 195.7074361 | AP369: 195.1619778 | AQ369: 190.9789641 | AR369: 189.9980306 | AS369: 190.9789641 | AT369: 186.9314229 | AU369: 179.2172586 | AV369: 113.9641347 | AW369: 61.43566132 | AX369: 59.97615348 | AY369: 59.38273942 | AZ369: 59.38273942 | BA369: 59.38273942
A370: 2023-07-03 | B370: 2023 | C370: 7 | D370: 3 | E370: Monday | F370: 59.38273942 | G370: 59.38273942 | H370: 59.38273942 | I370: 59.38273942 | J370: 59.38273942 | K370: 58.96535504 | L370: 57.89663653 | M370: 56.70566734 | N370: 56.70566734 | O370: 57.2848818 | P370: 58.43488494 | Q370: 59.38273942 | R370: 59.38273942 | S370: 59.38273942 | T370: 59.38273942 | U370: 84.79338399 | V370: 76.10180003 | W370: 59.38273942 | X370: 59.38273942 | Y370: 59.38273942 | Z370: 56.42281382 | AA370: 53.32169982 | AB370: 50.93700317 | AC370: 15.89596642 | AD370: 15.89596642 | AE370: 15.89596642 | AF370: 15.89596642 | AG370: 15.89596642 | AH370: 15.89596642 | AI370: 15.89596642 | AJ370: 51.84378817 | AK370: 56.92827914 | AL370: 59.38273942 | AM370: 59.38273942 | AN370: 61.42192567 | AO370: 61.37059954 | AP370: 60.21879213 | AQ370: 59.38273942 | AR370: 59.38273942 | AS370: 59.38273942 | AT370: 59.38273942 | AU370: 59.38273942 | AV370: 57.85698209 | AW370: 55.58995803 | AX370: 53.41400156 | AY370: 51.33034437 | AZ370: 15.89596642 | BA370: 15.89596642
A371: 2023-07-04 | B371: 2023 | C371: 7 | D371: 4 | E371: Tuesday | F371: 15.89596642 | G371: 15.90234528 | H371: 15.89376155 | I371: 15.95878339 | J371: 15.76762743 | K371: 15.76762743 | L371: 15.883361 | M371: 15.17027108 | N371: 15.883361 | O371: 15.52688884 | P371: 15.86091023 | Q371: 15.76762743 | R371: 15.99922369 | S371: 52.88554465 | T371: 55.02895189 | U371: 55.97783564 | V371: 57.11380968 | W371: 56.15774283 | X371: 53.14937039 | Y371: 15.89596642 | Z371: 15.89693592 | AA371: 15.89376155 | AB371: 15.89596642 | AC371: 15.89596642 | AD371: 15.89596642 | AE371: 15.92797772 | AF371: 15.99425983 | AG371: 15.6300822 | AH371: 14.64762717 | AI371: 14.64762717 | AJ371: 15.68859893 | AK371: 15.87061707 | AL371: 15.95014289 | AM371: 52.88887394 | AN371: 57.85698209 | AO371: 59.38273942 | AP371: 59.38273942 | AQ371: 59.38273942 | AR371: 57.43502693 | AS371: 56.71849713 | AT371: 55.60253538 | AU371: 53.95717515 | AV371: 51.84378817 | AW371: 15.89736222 | AX371: 15.89376155 | AY371: 15.89376155 | AZ371: 15.89376155 | BA371: 15.91548523
A372: 2023-07-05 | B372: 2023 | C372: 7 | D372: 5 | E372: Wednesday | F372: 15.95506123 | G372: 15.76762743 | H372: 15.883361 | I372: 14.64762717 | J372: 14.64762717 | K372: 14.64762717 | L372: 14.64762717 | M372: 14.64762717 | N372: 14.64762717 | O372: 14.64762717 | P372: 14.64762717 | Q372: 14.64762717 | R372: 15.883361 | S372: 15.99796366 | T372: 51.33034437 | U372: 53.91189185 | V372: 53.4234727 | W372: 50.82176298 | X372: 15.93751819 | Y372: 15.76762743 | Z372: 15.94433163 | AA372: 15.883361 | AB372: 15.66449908 | AC372: 14.64762717 | AD372: 14.64762717 | AE372: 14.64762717 | AF372: 14.64762717 | AG372: 14.64762717 | AH372: 14.64762717 | AI372: 14.64762717 | AJ372: 15.883361 | AK372: 15.94433163 | AL372: 15.9195488 | AM372: 55.02895189 | AN372: 58.58804425 | AO372: 59.38273942 | AP372: 59.38273942 | AQ372: 59.38273942 | AR372: 59.38273942 | AS372: 59.38273942 | AT372: 59.24877015 | AU372: 58.43488494 | AV372: 56.84060711 | AW372: 55.58995803 | AX372: 53.97857051 | AY372: 52.73896537 | AZ372: 52.73896537 | BA372: 52.73896537
A373: 2023-07-06 | B373: 2023 | C373: 7 | D373: 6 | E373: Thursday | F373: 15.89596642 | G373: 15.92052986 | H373: 15.95014289 | I373: 15.87061707 | J373: 15.68859893 | K373: 14.64762717 | L373: 14.64762717 | M373: 14.64762717 | N373: 14.64762717 | O373: 14.64762717 | P373: 14.64762717 | Q373: 15.6131138 | R373: 15.80885234 | S373: 16.04498452 | T373: 51.85298089 | U373: 51.33944605 | V373: 52.37144909 | W373: 15.91451573 | X373: 15.95506123 | Y373: 15.76762743 | Z373: 15.883361 | AA373: 15.66449908 | AB373: 15.51355982 | AC373: 14.64762717 | AD373: 14.64762717 | AE373: 14.64762717 | AF373: 14.64762717 | AG373: 14.64762717 | AH373: 14.64762717 | AI373: 14.64762717 | AJ373: 15.53018041 | AK373: 15.68859893 | AL373: 15.87061707 | AM373: 16.00600609 | AN373: 51.84378817 | AO373: 54.94243806 | AP373: 56.15774283 | AQ373: 57.2848818 | AR373: 56.84060711 | AS373: 55.84435336 | AT373: 54.86320435 | AU373: 52.73896537 | AV373: 15.92215798 | AW373: 15.97904585 | AX373: 15.76762743 | AY373: 15.45005301 | AZ373: 15.92797772 | BA373: 15.99425983
A374: 2023-07-07 | B374: 2023 | C374: 7 | D374: 7 | E374: Friday | F374: 15.7738698 | G374: 14.64762717 | H374: 14.64762717 | I374: 14.64762717 | J374: 14.64762717 | K374: 14.64762717 | L374: 14.64762717 | M374: 14.64762717 | N374: 14.64762717 | O374: 15.68859893 | P374: 15.87061707 | Q374: 16.00600609 | R374: 52.76780526 | S374: 54.49610515 | T374: 57.11380968 | U374: 59.38273942 | V374: 59.38273942 | W374: 57.44930912 | X374: 52.88554465 | Y374: 40.44599857 | Z374: 32.91956214 | AA374: 14.64762717 | AB374: 14.64762717 | AC374: 14.64762717 | AD374: 14.64762717 | AE374: 14.64762717 | AF374: 14.64762717 | AG374: 14.64762717 | AH374: 14.64762717 | AI374: 14.64762717 | AJ374: 14.64762717 | AK374: 15.6300822 | AL374: 15.99425983 | AM374: 54.76572218 | AN374: 57.85698209 | AO374: 58.17491488 | AP374: 58.58804425 | AQ374: 57.85698209 | AR374: 56.71849713 | AS374: 55.79704212 | AT374: 53.74643303 | AU374: 52.73896537 | AV374: 15.89596642 | AW374: 15.89596642 | AX374: 15.89693592 | AY374: 15.89376155 | AZ374: 15.89596642 | BA374: 15.89596642
A375: 2023-07-08 | B375: 2023 | C375: 7 | D375: 8 | E375: Saturday | F375: 15.89376155 | G375: 15.89376155 | H375: 15.76762743 | I375: 15.96744304 | J375: 15.89376155 | K375: 15.99425983 | L375: 15.7738698 | M375: 14.64762717 | N375: 14.64762717 | O375: 14.64762717 | P375: 14.64762717 | Q375: 15.68859893 | R375: 15.87061707 | S375: 15.99389953 | T375: 15.76762743 | U375: 15.89376155 | V375: 15.92277848 | W375: 15.92797772 | X375: 15.99425983 | Y375: 15.42198096 | Z375: 15.883361 | AA375: 14.64762717 | AB375: 14.64762717 | AC375: 14.64762717 | AD375: 14.64762717 | AE375: 14.64762717 | AF375: 14.64762717 | AG375: 14.64762717 | AH375: 14.64762717 | AI375: 14.64762717 | AJ375: 14.64762717 | AK375: 15.68859893 | AL375: 15.87061707 | AM375: 51.55357472 | AN375: 55.82181492 | AO375: 59.40612032 | AP375: 59.61549119 | AQ375: 59.61549119 | AR375: 58.96535504 | AS375: 56.9522307 | AT375: 55.79704212 | AU375: 55.82181492 | AV375: 57.32164129 | AW375: 56.9522307 | AX375: 55.2291969 | AY375: 52.59138865 | AZ375: 51.60557209 | BA375: 52.06925144
A376: 2023-07-09 | B376: 2023 | C376: 7 | D376: 9 | E376: Sunday | F376: 51.60557209 | G376: 15.89693592 | H376: 15.89376155 | I376: 15.89596642 | J376: 15.99291935 | K376: 15.76762743 | L376: 15.76762743 | M376: 15.76762743 | N376: 15.76762743 | O376: 15.46894925 | P376: 15.883361 | Q376: 15.94433163 | R376: 15.76762743 | S376: 15.96008097 | T376: 15.89596642 | U376: 15.89376155 | V376: 15.89693592 | W376: 15.89596642 | X376: 15.89596642 | Y376: 15.92797772 | Z376: 15.99425983 | AA376: 15.7738698 | AB376: 14.64762717 | AC376: 14.64762717 | AD376: 14.64762717 | AE376: 14.64762717 | AF376: 14.64762717 | AG376: 14.64762717 | AH376: 14.64762717 | AI376: 14.64762717 | AJ376: 14.64762717 | AK376: 15.68859893 | AL376: 15.87061707 | AM376: 53.64629352 | AN376: 59.88254758 | AO376: 60.04699272 | AP376: 60.04699272 | AQ376: 60.04699272 | AR376: 60.04699272 | AS376: 60.04699272 | AT376: 60.04699272 | AU376: 60.04699272 | AV376: 60.04699272 | AW376: 59.88254758 | AX376: 59.85644192 | AY376: 59.40612032 | AZ376: 59.40612032 | BA376: 59.40612032
A377: 2023-07-10 | B377: 2023 | C377: 7 | D377: 10 | E377: Monday | F377: 58.67569165 | G377: 58.08515248 | H377: 56.94217768 | I377: 56.24940992 | J377: 55.82181492 | K377: 55.82181492 | L377: 55.26990439 | M377: 55.2299166 | N377: 55.82181492 | O377: 56.4751224 | P377: 58.67569165 | Q377: 59.40612032 | R377: 60.04699272 | S377: 60.04699272 | T377: 60.04699272 | U377: 61.91425189 | V377: 61.10747405 | W377: 60.04699272 | X377: 60.04699272 | Y377: 60.04699272 | Z377: 60.04699272 | AA377: 60.04699272 | AB377: 60.04699272 | AC377: 60.04699272 | AD377: 60.04699272 | AE377: 60.04699272 | AF377: 60.04699272 | AG377: 60.04699272 | AH377: 60.04699272 | AI377: 60.04699272 | AJ377: 60.04699272 | AK377: 60.04699272 | AL377: 76.10180003 | AM377: 177.0220427 | AN377: 203.8383968 | AO377: 203.8383968 | AP377: 203.8383968 | AQ377: 203.8383968 | AR377: 203.8383968 | AS377: 199.4873319 | AT377: 190.9789172 | AU377: 191.7793888 | AV377: 191.1612753 | AW377: 155.8068388 | AX377: 124.7762383 | AY377: 65.88653632 | AZ377: 64.32948407 | BA377: 80.58859113
A378: 2023-07-11 | B378: 2023 | C378: 7 | D378: 11 | E378: Tuesday | F378: 61.44223011 | G378: 60.81310679 | H378: 60.04699272 | I378: 60.04699272 | J378: 60.04699272 | K378: 60.04699272 | L378: 60.04699272 | M378: 60.04699272 | N378: 60.04699272 | O378: 60.04699272 | P378: 60.04699272 | Q378: 60.04699272 | R378: 62.74147886 | S378: 139.9103276 | T378: 181.7094386 | U378: 196.9189075 | V378: 199.6778144 | W378: 179.8405016 | X378: 146.0705527 | Y378: 88.44320042 | Z378: 60.04699272 | AA378: 60.04699272 | AB378: 60.04699272 | AC378: 60.04699272 | AD378: 60.04699272 | AE378: 59.40612032 | AF378: 56.9522307 | AG378: 55.82181492 | AH378: 56.4069284 | AI378: 59.40612032 | AJ378: 60.04699272 | AK378: 60.04699272 | AL378: 60.04699272 | AM378: 90.35822091 | AN378: 201.7210512 | AO378: 203.8383968 | AP378: 203.8383968 | AQ378: 203.8383968 | AR378: 195.1444029 | AS378: 188.648626 | AT378: 194.079433 | AU378: 186.9313769 | AV378: 178.4876545 | AW378: 66.1262865 | AX378: 62.05687519 | AY378: 60.04699272 | AZ378: 60.04699272 | BA378: 60.04699272
A379: 2023-07-12 | B379: 2023 | C379: 7 | D379: 12 | E379: Wednesday | F379: 60.04699272 | G379: 60.04699272 | H379: 60.04699272 | I379: 60.04699272 | J379: 59.88254758 | K379: 59.40612032 | L379: 59.40612032 | M379: 57.89663653 | N379: 58.1084946 | O379: 59.40612032 | P379: 59.40612032 | Q379: 60.04699272 | R379: 60.04699272 | S379: 60.04699272 | T379: 60.04699272 | U379: 64.94224247 | V379: 65.42032252 | W379: 60.04699272 | X379: 60.04699272 | Y379: 60.04699272 | Z379: 60.04699272 | AA379: 60.04699272 | AB379: 58.44204681 | AC379: 59.02579357 | AD379: 58.44204681 | AE379: 59.40612032 | AF379: 59.61549119 | AG379: 59.88254758 | AH379: 60.04699272 | AI379: 60.04699272 | AJ379: 60.04699272 | AK379: 60.83391543 | AL379: 114.4624279 | AM379: 177.0220427 | AN379: 203.8383968 | AO379: 203.8383968 | AP379: 203.8383968 | AQ379: 203.8383968 | AR379: 203.8383968 | AS379: 203.8383968 | AT379: 203.8383968 | AU379: 203.8383968 | AV379: 199.5320503 | AW379: 196.9189075 | AX379: 146.0705527 | AY379: 91.69431743 | AZ379: 139.9103276 | BA379: 139.9103276
A380: 2023-07-13 | B380: 2023 | C380: 7 | D380: 13 | E380: Thursday | F380: 89.79261135 | G380: 62.63350478 | H380: 61.30312823 | I380: 60.21123115 | J380: 60.04699272 | K380: 60.04699272 | L380: 60.04699272 | M380: 60.04699272 | N380: 60.04699272 | O380: 60.04699272 | P380: 60.04699272 | Q380: 61.14178527 | R380: 113.3287297 | S380: 192.1474886 | T380: 199.4873319 | U380: 203.8383968 | V380: 203.8383968 | W380: 203.8383968 | X380: 203.8383968 | Y380: 166.3992861 | Z380: 93.65761276 | AA380: 60.95404933 | AB380: 60.04699272 | AC380: 60.04699272 | AD380: 60.04699272 | AE380: 60.04699272 | AF380: 60.04699272 | AG380: 60.04699272 | AH380: 60.04699272 | AI380: 60.04699272 | AJ380: 86.58921208 | AK380: 90.35822091 | AL380: 149.3079355 | AM380: 201.069497 | AN380: 203.8383968 | AO380: 203.8383968 | AP380: 203.8383968 | AQ380: 203.8383968 | AR380: 203.8383968 | AS380: 203.8383968 | AT380: 203.8383968 | AU380: 202.9863532 | AV380: 192.8496488 | AW380: 189.1930127 | AX380: 179.2172145 | AY380: 167.5241753 | AZ380: 136.5413164 | BA380: 167.408857
A381: 2023-07-14 | B381: 2023 | C381: 7 | D381: 14 | E381: Friday | F381: 62.17942416 | G381: 60.83391543 | H381: 60.04699272 | I381: 60.04699272 | J381: 60.04699272 | K381: 60.04699272 | L381: 60.04699272 | M381: 60.04699272 | N381: 60.04699272 | O381: 60.04699272 | P381: 60.04699272 | Q381: 60.04699272 | R381: 61.44223011 | S381: 147.8298423 | T381: 186.9313769 | U381: 194.079433 | V381: 196.2214729 | W381: 188.7341441 | X381: 134.1365993 | Y381: 60.04699272 | Z381: 60.04699272 | AA381: 60.04699272 | AB381: 56.52640281 | AC381: 52.84603852 | AD381: 43.4142336 | AE381: 43.88857843 | AF381: 45.62539574 | AG381: 51.55357472 | AH381: 54.68863778 | AI381: 57.0908383 | AJ381: 59.40612032 | AK381: 60.04699272 | AL381: 60.04699272 | AM381: 141.1248691 | AN381: 203.8383968 | AO381: 203.8383968 | AP381: 203.8383968 | AQ381: 203.8383968 | AR381: 203.8383968 | AS381: 203.8383968 | AT381: 203.8383968 | AU381: 203.8383968 | AV381: 190.9789172 | AW381: 191.7793888 | AX381: 191.1612753 | AY381: 152.5047233 | AZ381: 142.9397424 | BA381: 139.9103276
A382: 2023-07-15 | B382: 2023 | C382: 7 | D382: 15 | E382: Saturday | F382: 79.18542296 | G382: 62.79407042 | H382: 61.33524836 | I382: 60.94734878 | J382: 60.94734878 | K382: 60.94734878 | L382: 60.94734878 | M382: 60.94734878 | N382: 60.94734878 | O382: 60.94734878 | P382: 60.92674609 | Q382: 60.92674609 | R382: 60.94734878 | S382: 60.94734878 | T382: 60.94734878 | U382: 60.94734878 | V382: 60.94734878 | W382: 56.83223211 | X382: 50.84812393 | Y382: 15.89596642 | Z382: 16.00328976 | AA382: 15.87492133 | AB382: 15.49072984 | AC382: 15.883361 | AD382: 14.64762717 | AE382: 14.64762717 | AF382: 14.64762717 | AG382: 14.64762717 | AH382: 14.64762717 | AI382: 14.64762717 | AJ382: 14.84515762 | AK382: 14.64762717 | AL382: 48.59252709 | AM382: 60.94734878 | AN382: 60.94734878 | AO382: 61.6268314 | AP382: 61.33524836 | AQ382: 61.33524836 | AR382: 60.94734878 | AS382: 60.94734878 | AT382: 60.94734878 | AU382: 60.94734878 | AV382: 60.94734878 | AW382: 59.90078502 | AX382: 58.55178503 | AY382: 54.09287028 | AZ382: 54.82645741 | BA382: 55.94335125
A383: 2023-07-16 | B383: 2023 | C383: 7 | D383: 16 | E383: Sunday | F383: 53.74643303 | G383: 48.58067794 | H383: 15.89596642 | I383: 15.90276682 | J383: 15.89376155 | K383: 15.95796344 | L383: 15.76762743 | M383: 15.76762743 | N383: 15.76762743 | O383: 15.89376155 | P383: 15.89376155 | Q383: 15.89376155 | R383: 15.89376155 | S383: 15.89376155 | T383: 15.89376155 | U383: 15.92969555 | V383: 15.99425983 | W383: 15.7738698 | X383: 14.64762717 | Y383: 14.64762717 | Z383: 14.64762717 | AA383: 14.39497063 | AB383: 14.39497063 | AC383: 14.39497063 | AD383: 14.39497063 | AE383: 14.39497063 | AF383: 14.39497063 | AG383: 14.39497063 | AH383: 14.39497063 | AI383: 14.64762717 | AJ383: 14.64762717 | AK383: 15.7738698 | AL383: 15.99425983 | AM383: 53.5649433 | AN383: 60.94734878 | AO383: 60.94734878 | AP383: 60.94734878 | AQ383: 60.94734878 | AR383: 60.94734878 | AS383: 60.92674609 | AT383: 58.93128809 | AU383: 57.90533495 | AV383: 57.69935839 | AW383: 50.05162534 | AX383: 47.11398008 | AY383: 15.89596642 | AZ383: 15.89596642 | BA383: 48.06144179
A384: 2023-07-17 | B384: 2023 | C384: 7 | D384: 17 | E384: Monday | F384: 15.89376155 | G384: 15.90506458 | H384: 15.93751819 | I384: 15.76762743 | J384: 15.99425983 | K384: 15.60406236 | L384: 15.93751819 | M384: 15.76762743 | N384: 15.89376155 | O384: 15.76762743 | P384: 15.76762743 | Q384: 15.76762743 | R384: 15.98876053 | S384: 50.55154629 | T384: 55.5907466 | U384: 57.05011617 | V384: 59.1365378 | W384: 55.77274751 | X384: 54.83004784 | Y384: 51.39643686 | Z384: 15.89596642 | AA384: 15.89596642 | AB384: 15.89693592 | AC384: 15.89376155 | AD384: 15.95239796 | AE384: 15.76762743 | AF384: 15.76762743 | AG384: 15.76762743 | AH384: 15.76762743 | AI384: 15.98812189 | AJ384: 15.89596642 | AK384: 47.11398008 | AL384: 51.74816296 | AM384: 60.92674609 | AN384: 60.94734878 | AO384: 60.94734878 | AP384: 60.94734878 | AQ384: 60.94734878 | AR384: 60.94734878 | AS384: 60.94734878 | AT384: 60.92674609 | AU384: 59.42516891 | AV384: 58.19841974 | AW384: 51.056388 | AX384: 15.89736222 | AY384: 15.89376155 | AZ384: 15.89376155 | BA384: 15.89596642
A385: 2023-07-18 | B385: 2023 | C385: 7 | D385: 18 | E385: Tuesday | F385: 16.00600609 | G385: 15.87061707 | H385: 15.68859893 | I385: 14.64762717 | J385: 14.64762717 | K385: 14.64762717 | L385: 14.64762717 | M385: 14.64762717 | N385: 14.64762717 | O385: 14.64762717 | P385: 14.64762717 | Q385: 14.64762717 | R385: 15.68859893 | S385: 15.87061707 | T385: 48.54199911 | U385: 52.09383012 | V385: 49.05688326 | W385: 15.883361 | X385: 15.66449908 | Y385: 14.64762717 | Z385: 14.39497063 | AA385: 14.39497063 | AB385: 14.39497063 | AC385: 14.39497063 | AD385: 14.39497063 | AE385: 14.39497063 | AF385: 14.39497063 | AG385: 14.39497063 | AH385: 14.39497063 | AI385: 14.64762717 | AJ385: 14.64762717 | AK385: 15.883361 | AL385: 47.11398008 | AM385: 54.75851953 | AN385: 60.94734878 | AO385: 60.94734878 | AP385: 60.94734878 | AQ385: 60.94734878 | AR385: 60.94734878 | AS385: 60.94734878 | AT385: 60.94734878 | AU385: 60.94734878 | AV385: 60.94734878 | AW385: 60.94734878 | AX385: 60.94734878 | AY385: 60.94734878 | AZ385: 60.55904769 | BA385: 59.18600476
A386: 2023-07-19 | B386: 2023 | C386: 7 | D386: 19 | E386: Wednesday | F386: 55.78970383 | G386: 53.12644462 | H386: 49.51709775 | I386: 15.89693592 | J386: 15.89376155 | K386: 15.89596642 | L386: 15.89596642 | M386: 15.93751819 | N386: 15.76762743 | O386: 15.89376155 | P386: 15.89376155 | Q386: 15.89376155 | R386: 15.89881465 | S386: 51.56622347 | T386: 54.83638551 | U386: 58.11328708 | V386: 55.78970383 | W386: 19.78671007 | X386: 14.64762717 | Y386: 14.64762717 | Z386: 14.64762717 | AA386: 14.39497063 | AB386: 14.39497063 | AC386: 14.39497063 | AD386: 14.39497063 | AE386: 14.39497063 | AF386: 14.39497063 | AG386: 14.39497063 | AH386: 14.39497063 | AI386: 14.39497063 | AJ386: 14.39497063 | AK386: 14.64762717 | AL386: 14.64762717 | AM386: 16.04498452 | AN386: 54.80438187 | AO386: 60.26122655 | AP386: 60.94734878 | AQ386: 60.94734878 | AR386: 60.32392671 | AS386: 59.18600476 | AT386: 57.05330597 | AU386: 56.00583594 | AV386: 53.94755343 | AW386: 50.55154629 | AX386: 48.54199911 | AY386: 15.89596642 | AZ386: 15.89596642 | BA386: 15.90773663
A387: 2023-07-20 | B387: 2023 | C387: 7 | D387: 20 | E387: Thursday | F387: 15.89376155 | G387: 15.95014289 | H387: 15.87061707 | I387: 15.68859893 | J387: 14.64762717 | K387: 14.64762717 | L387: 14.64762717 | M387: 14.64762717 | N387: 14.64762717 | O387: 14.64762717 | P387: 15.58898791 | Q387: 15.7738698 | R387: 15.99425983 | S387: 48.54199911 | T387: 53.79555099 | U387: 58.11328708 | V387: 54.75851953 | W387: 49.55655355 | X387: 16.04498452 | Y387: 15.75812765 | Z387: 14.64762717 | AA387: 14.64762717 | AB387: 14.64762717 | AC387: 14.64762717 | AD387: 14.64762717 | AE387: 15.7738698 | AF387: 15.99425983 | AG387: 15.92797772 | AH387: 15.89596642 | AI387: 29.18567387 | AJ387: 33.21599727 | AK387: 47.5854571 | AL387: 60.11455583 | AM387: 60.94734878 | AN387: 60.94734878 | AO387: 60.94734878 | AP387: 60.94734878 | AQ387: 60.94734878 | AR387: 60.94734878 | AS387: 60.94734878 | AT387: 60.94734878 | AU387: 60.94734878 | AV387: 60.94734878 | AW387: 60.27168996 | AX387: 57.05330597 | AY387: 54.75851953 | AZ387: 55.78970383 | BA387: 55.78970383
A388: 2023-07-21 | B388: 2023 | C388: 7 | D388: 21 | E388: Friday | F388: 52.56087763 | G388: 49.54708241 | H388: 15.89596642 | I388: 15.89596642 | J388: 15.89596642 | K388: 15.89596642 | L388: 15.89596642 | M388: 15.89693592 | N388: 15.89376155 | O388: 15.89596642 | P388: 15.89596642 | Q388: 15.89596642 | R388: 51.57880082 | S388: 57.05330597 | T388: 60.27168996 | U388: 60.94734878 | V388: 60.94734878 | W388: 60.94734878 | X388: 58.34856487 | Y388: 49.07822829 | Z388: 35.18349284 | AA388: 15.89596642 | AB388: 15.89596642 | AC388: 15.89596642 | AD388: 15.89596642 | AE388: 34.1298346 | AF388: 31.03955023 | AG388: 30.46583332 | AH388: 30.99502647 | AI388: 15.89596642 | AJ388: 38.91885993 | AK388: 42.24878034 | AL388: 59.47071394 | AM388: 60.94734878 | AN388: 61.33524836 | AO388: 132.5540207 | AP388: 179.2172148 | AQ388: 179.2172148 | AR388: 62.48291498 | AS388: 62.17212377 | AT388: 62.17212377 | AU388: 61.53577407 | AV388: 61.34049024 | AW388: 61.33524836 | AX388: 61.27746897 | AY388: 60.94734878 | AZ388: 61.18323651 | BA388: 61.14178527
A389: 2023-07-22 | B389: 2023 | C389: 7 | D389: 22 | E389: Saturday | F389: 94.24591351 | G389: 90.57290499 | H389: 87.03969499 | I389: 76.10180003 | J389: 72.70100939 | K389: 72.70100939 | L389: 72.70100939 | M389: 72.70100939 | N389: 72.70100939 | O389: 72.70100939 | P389: 72.70100939 | Q389: 72.70100939 | R389: 76.10180003 | S389: 84.79338399 | T389: 85.7320619 | U389: 87.03969499 | V389: 87.03969499 | W389: 86.58921208 | X389: 72.70100939 | Y389: 72.70100939 | Z389: 69.89153255 | AA389: 41.79118238 | AB389: 38.80552219 | AC389: 37.43222292 | AD389: 36.85736501 | AE389: 32.97068594 | AF389: 38.22012339 | AG389: 40.33637926 | AH389: 43.2827121 | AI389: 53.26836817 | AJ389: 68.43373971 | AK389: 72.70100939 | AL389: 86.17730513 | AM389: 92.33733768 | AN389: 95.53339877 | AO389: 136.9774609 | AP389: 136.9774609 | AQ389: 134.1365993 | AR389: 95.53339877 | AS389: 94.58890114 | AT389: 90.58237613 | AU389: 89.6861901 | AV389: 87.91032995 | AW389: 72.70100939 | AX389: 72.70100939 | AY389: 72.70100939 | AZ389: 72.70100939 | BA389: 72.70100939
A390: 2023-07-23 | B390: 2023 | C390: 7 | D390: 23 | E390: Sunday | F390: 67.83154657 | G390: 61.94555296 | H390: 56.84060711 | I390: 52.03399822 | J390: 15.95014289 | K390: 15.87061707 | L390: 15.68859893 | M390: 15.53018041 | N390: 14.64762717 | O390: 14.64762717 | P390: 14.64762717 | Q390: 14.64762717 | R390: 14.64762717 | S390: 14.64762717 | T390: 15.66449908 | U390: 15.883361 | V390: 15.883361 | W390: 14.64762717 | X390: 14.64762717 | Y390: 14.64762717 | Z390: 14.64762717 | AA390: 14.39497063 | AB390: 14.39497063 | AC390: 14.39497063 | AD390: 14.39497063 | AE390: 14.39497063 | AF390: 14.39497063 | AG390: 14.39497063 | AH390: 14.39497063 | AI390: 14.39497063 | AJ390: 14.39497063 | AK390: 14.39497063 | AL390: 14.64762717 | AM390: 14.64762717 | AN390: 57.33064934 | AO390: 61.1110964 | AP390: 65.15582506 | AQ390: 62.89815305 | AR390: 59.42501582 | AS390: 56.61886519 | AT390: 55.12589289 | AU390: 57.33064934 | AV390: 15.89376155 | AW390: 15.95796344 | AX390: 15.76762743 | AY390: 15.76762743 | AZ390: 15.76762743 | BA390: 15.99425983
A391: 2023-07-24 | B391: 2023 | C391: 7 | D391: 24 | E391: Monday | F391: 14.64762717 | G391: 15.883361 | H391: 14.64762717 | I391: 14.64762717 | J391: 14.64762717 | K391: 14.64762717 | L391: 14.64762717 | M391: 14.64762717 | N391: 14.64762717 | O391: 14.64762717 | P391: 14.64762717 | Q391: 14.64762717 | R391: 15.7738698 | S391: 15.99425983 | T391: 57.38720669 | U391: 60.77385343 | V391: 57.61235798 | W391: 53.37160035 | X391: 51.36206256 | Y391: 49.05193867 | Z391: 15.9195488 | AA391: 15.94433163 | AB391: 15.883361 | AC391: 14.64762717 | AD391: 15.883361 | AE391: 15.76762743 | AF391: 15.95506123 | AG391: 15.91451573 | AH391: 15.89376155 | AI391: 15.99425983 | AJ391: 14.64762717 | AK391: 15.34980401 | AL391: 50.69732052 | AM391: 57.12272626 | AN391: 67.66972794 | AO391: 72.70100939 | AP391: 72.70100939 | AQ391: 72.70100939 | AR391: 72.70100939 | AS391: 72.70100939 | AT391: 72.70100939 | AU391: 71.3738446 | AV391: 64.03515508 | AW391: 57.12272626 | AX391: 56.0808129 | AY391: 54.03366317 | AZ391: 55.05119735 | BA391: 57.12272626
A392: 2023-07-25 | B392: 2023 | C392: 7 | D392: 25 | E392: Tuesday | F392: 57.12272626 | G392: 54.03366317 | H392: 15.89596642 | I392: 15.89754966 | J392: 15.89376155 | K392: 15.89376155 | L392: 15.89376155 | M392: 15.93751819 | N392: 15.76762743 | O392: 15.76762743 | P392: 15.76762743 | Q392: 15.76762743 | R392: 15.98938687 | S392: 54.53290669 | T392: 60.85068423 | U392: 62.87125432 | V392: 56.0808129 | W392: 15.99425983 | X392: 15.6300822 | Y392: 14.64762717 | Z392: 14.39497063 | AA392: 14.39497063 | AB392: 14.39497063 | AC392: 14.39497063 | AD392: 14.39497063 | AE392: 14.64762717 | AF392: 14.64762717 | AG392: 14.64762717 | AH392: 15.883361 | AI392: 14.64762717 | AJ392: 15.80885234 | AK392: 16.04498452 | AL392: 53.36994702 | AM392: 69.31788969 | AN392: 72.70100939 | AO392: 87.91032995 | AP392: 89.67681267 | AQ392: 88.7893288 | AR392: 84.79338399 | AS392: 72.70100939 | AT392: 72.70100939 | AU392: 72.70100939 | AV392: 72.70100939 | AW392: 72.70100939 | AX392: 68.12178095 | AY392: 63.37180671 | AZ392: 64.50753652 | BA392: 65.65742342
A393: 2023-07-26 | B393: 2023 | C393: 7 | D393: 26 | E393: Wednesday | F393: 63.54339704 | G393: 62.06576246 | H393: 58.1771591 | I393: 56.0808129 | J393: 56.0808129 | K393: 55.05119735 | L393: 55.61906699 | M393: 57.69815276 | N393: 59.24433843 | O393: 62.52470928 | P393: 67.36262463 | Q393: 72.70100939 | R393: 72.70100939 | S393: 89.67681267 | T393: 95.53339877 | U393: 97.2476242 | V393: 95.53339877 | W393: 93.31410375 | X393: 87.03969499 | Y393: 72.70100939 | Z393: 72.70100939 | AA393: 52.29594834 | AB393: 39.34400961 | AC393: 37.27981861 | AD393: 38.11469705 | AE393: 38.80552219 | AF393: 40.04912071 | AG393: 65.48196879 | AH393: 72.70100939 | AI393: 72.70100939 | AJ393: 86.17730513 | AK393: 76.10180003 | AL393: 90.57290499 | AM393: 96.14751399 | AN393: 159.2194771 | AO393: 195.4066495 | AP393: 190.9789174 | AQ393: 190.9789173 | AR393: 188.648626 | AS393: 192.9411237 | AT393: 186.9313771 | AU393: 183.0128328 | AV393: 177.2236081 | AW393: 103.4413871 | AX393: 98.07743993 | AY393: 95.53339877 | AZ393: 96.13746096 | BA393: 97.09747908
A394: 2023-07-27 | B394: 2023 | C394: 7 | D394: 27 | E394: Thursday | F394: 95.53339877 | G394: 95.53339877 | H394: 94.24591351 | I394: 89.67681267 | J394: 87.03969499 | K394: 76.10180003 | L394: 72.70100939 | M394: 72.70100939 | N394: 72.70100939 | O394: 72.70100939 | P394: 72.70100939 | Q394: 76.10180003 | R394: 88.44320042 | S394: 93.31410375 | T394: 95.53339877 | U394: 95.68553854 | V394: 94.26834608 | W394: 76.10180003 | X394: 68.30486975 | Y394: 58.46404114 | Z394: 45.38228123 | AA394: 34.64126203 | AB394: 33.36815356 | AC394: 15.89596642 | AD394: 15.89596642 | AE394: 15.89596642 | AF394: 32.74267325 | AG394: 33.36815356 | AH394: 34.97338591 | AI394: 43.75708628 | AJ394: 57.25731521 | AK394: 64.53927664 | AL394: 72.70100939 | AM394: 87.03969499 | AN394: 93.32386154 | AO394: 96.16034377 | AP394: 101.4036181 | AQ394: 101.4036181 | AR394: 99.40718561 | AS394: 96.28612158 | AT394: 95.53339877 | AU394: 95.33417717 | AV394: 89.67681267 | AW394: 86.17730513 | AX394: 72.70100939 | AY394: 72.70100939 | AZ394: 72.70100939 | BA394: 72.70100939
A395: 2023-07-28 | B395: 2023 | C395: 7 | D395: 28 | E395: Friday | F395: 71.5464865 | G395: 66.30099883 | H395: 60.04699272 | I395: 56.64866904 | J395: 52.09151112 | K395: 15.89596642 | L395: 15.89596642 | M395: 15.89596642 | N395: 15.89596642 | O395: 52.09151112 | P395: 55.11204514 | Q395: 60.93532309 | R395: 72.70100939 | S395: 72.70100939 | T395: 86.58921208 | U395: 89.67681267 | V395: 89.67681267 | W395: 86.17730513 | X395: 76.10180003 | Y395: 72.70100939 | Z395: 61.37801694 | AA395: 37.08999624 | AB395: 34.46487473 | AC395: 32.57595324 | AD395: 15.89596642 | AE395: 15.89596642 | AF395: 15.89596642 | AG395: 32.57595324 | AH395: 33.82784612 | AI395: 35.76175814 | AJ395: 42.56820332 | AK395: 67.10126379 | AL395: 72.70100939 | AM395: 86.17730513 | AN395: 88.7893288 | AO395: 95.53339877 | AP395: 96.28612158 | AQ395: 95.53339877 | AR395: 95.53339877 | AS395: 95.53339877 | AT395: 95.53339877 | AU395: 94.25576873 | AV395: 91.69431743 | AW395: 90.7866316 | AX395: 89.67681267 | AY395: 87.03969499 | AZ395: 87.03969499 | BA395: 88.7893288
A396: 2023-07-29 | B396: 2023 | C396: 7 | D396: 29 | E396: Saturday | F396: 61.27375788 | G396: 61.27375788 | H396: 61.27375788 | I396: 61.27375788 | J396: 61.27375788 | K396: 61.27375788 | L396: 61.27375788 | M396: 61.27375788 | N396: 61.27375788 | O396: 61.27375788 | P396: 61.27375788 | Q396: 61.27375788 | R396: 61.27375788 | S396: 61.27375788 | T396: 61.27375788 | U396: 61.27375788 | V396: 61.27375788 | W396: 61.27375788 | X396: 61.27375788 | Y396: 60.27672785 | Z396: 57.96081999 | AA396: 51.47930797 | AB396: 15.89754966 | AC396: 15.89376155 | AD396: 15.89376155 | AE396: 15.89376155 | AF396: 15.76762743 | AG396: 15.95239796 | AH396: 15.89376155 | AI396: 15.89693592 | AJ396: 15.89596642 | AK396: 52.12810794 | AL396: 59.98559655 | AM396: 61.27375788 | AN396: 61.27375788 | AO396: 62.24997414 | AP396: 62.24997414 | AQ396: 62.24997414 | AR396: 61.36799326 | AS396: 61.27375788 | AT396: 61.27375788 | AU396: 61.27375788 | AV396: 61.27375788 | AW396: 57.89663653 | AX396: 55.83323725 | AY396: 57.05090191 | AZ396: 54.96834047 | BA396: 53.94528023
A397: 2023-07-30 | B397: 2023 | C397: 7 | D397: 30 | E397: Sunday | F397: 15.91423306 | G397: 15.90153013 | H397: 54.71157293 | I397: 50.30980785 | J397: 15.89596642 | K397: 15.90153013 | L397: 16.06031235 | M397: 16.39577111 | N397: 16.55953981 | O397: 50.30980785 | P397: 51.27087154 | Q397: 51.27087154 | R397: 54.59792887 | S397: 53.5649433 | T397: 58.90705342 | U397: 60.91329872 | V397: 57.4719792 | W397: 15.89596642 | X397: 15.98267325 | Y397: 15.76762743 | Z397: 15.76762743 | AA397: 15.91423306 | AB397: 15.91423306 | AC397: 15.65491809 | AD397: 14.64762717 | AE397: 14.64762717 | AF397: 14.64762717 | AG397: 14.64762717 | AH397: 14.64762717 | AI397: 14.64762717 | AJ397: 15.12125033 | AK397: 15.74431854 | AL397: 15.99425983 | AM397: 55.74187315 | AN397: 59.18351082 | AO397: 61.27375788 | AP397: 61.27375788 | AQ397: 61.27375788 | AR397: 61.27375788 | AS397: 61.27375788 | AT397: 61.27375788 | AU397: 61.27375788 | AV397: 61.27375788 | AW397: 61.27375788 | AX397: 61.27375788 | AY397: 61.27375788 | AZ397: 61.27375788 | BA397: 61.27375788
A398: 2023-07-31 | B398: 2023 | C398: 7 | D398: 31 | E398: Monday | F398: 61.27375788 | G398: 61.27375788 | H398: 61.27375788 | I398: 59.98762164 | J398: 59.98762164 | K398: 57.28122736 | L398: 55.2299166 | M398: 55.2299166 | N398: 54.22252791 | O398: 54.22252791 | P398: 59.98762164 | Q398: 60.91329872 | R398: 61.27375788 | S398: 61.27375788 | T398: 61.27375788 | U398: 61.27375788 | V398: 61.27375788 | W398: 61.27375788 | X398: 60.45158345 | Y398: 43.43929693 | Z398: 32.2056446 | AA398: 15.9783171 | AB398: 15.91423306 | AC398: 15.7164717 | AD398: 15.58865439 | AE398: 15.43451496 | AF398: 14.64762717 | AG398: 15.28187793 | AH398: 15.74431854 | AI398: 15.43451496 | AJ398: 15.75689589 | AK398: 15.56649298 | AL398: 15.87083332 | AM398: 15.76762743 | AN398: 16.00072315 | AO398: 58.5395756 | AP398: 60.46252974 | AQ398: 61.06645803 | AR398: 59.18351082 | AS398: 57.96081999 | AT398: 54.96834047 | AU398: 15.89596642 | AV398: 15.92436944 | AW398: 15.94477259 | AX398: 15.76762743 | AY398: 15.58865439 | AZ398: 15.90153013 | BA398: 15.92052986
A399: 2023-08-01 | B399: 2023 | C399: 8 | D399: 1 | E399: Tuesday | F399: 15.95014289 | G399: 15.87061707 | H399: 15.68859893 | I399: 14.79408604 | J399: 14.64762717 | K399: 14.79408604 | L399: 15.09126567 | M399: 15.09126567 | N399: 15.39426696 | O399: 15.66449908 | P399: 15.883361 | Q399: 15.76762743 | R399: 15.99724685 | S399: 53.84952769 | T399: 58.01744365 | U399: 60.26915028 | V399: 57.8393916 | W399: 16.04498452 | X399: 15.13072147 | Y399: 14.64762717 | Z399: 14.64762717 | AA399: 14.39497063 | AB399: 14.39497063 | AC399: 14.39497063 | AD399: 14.39497063 | AE399: 14.39497063 | AF399: 14.39497063 | AG399: 14.64762717 | AH399: 14.64762717 | AI399: 14.64762717 | AJ399: 14.39641139 | AK399: 14.64762717 | AL399: 14.64762717 | AM399: 19.78671007 | AN399: 58.88598807 | AO399: 61.27375788 | AP399: 61.27375788 | AQ399: 61.27375788 | AR399: 61.27375788 | AS399: 61.27375788 | AT399: 61.27375788 | AU399: 61.27375788 | AV399: 61.27375788 | AW399: 61.27375788 | AX399: 61.20546589 | AY399: 59.7145202 | AZ399: 57.89663653 | BA399: 60.91329872
A400: 2023-08-02 | B400: 2023 | C400: 8 | D400: 2 | E400: Wednesday | F400: 60.91329872 | G400: 60.26915028 | H400: 58.90705342 | I400: 56.78440632 | J400: 53.60752201 | K400: 53.22702955 | L400: 52.24321222 | M400: 53.22702955 | N400: 55.2299166 | O400: 60.31088513 | P400: 61.27375788 | Q400: 61.27375788 | R400: 61.27375788 | S400: 62.24997414 | T400: 63.90275783 | U400: 179.8391102 | V400: 63.30914824 | W400: 61.90631266 | X400: 61.27375788 | Y400: 61.27375788 | Z400: 57.96081999 | AA400: 35.88303086 | AB400: 34.01079449 | AC400: 32.8001311 | AD400: 33.40180403 | AE400: 34.01079449 | AF400: 32.8235544 | AG400: 33.26120522 | AH400: 35.17332378 | AI400: 37.04323707 | AJ400: 45.01466984 | AK400: 60.68345652 | AL400: 61.27375788 | AM400: 63.14994857 | AN400: 177.0220427 | AO400: 203.8383968 | AP400: 203.8383968 | AQ400: 203.8383968 | AR400: 203.8383968 | AS400: 203.8383968 | AT400: 203.8383968 | AU400: 177.0220427 | AV400: 156.1249525 | AW400: 90.35822091 | AX400: 61.29395495 | AY400: 61.27375788 | AZ400: 61.27375788 | BA400: 61.27375788
A401: 2023-08-03 | B401: 2023 | C401: 8 | D401: 3 | E401: Thursday | F401: 61.27375788 | G401: 59.86466533 | H401: 57.38776111 | I401: 52.70144025 | J401: 15.99007023 | K401: 15.77098042 | L401: 15.44684482 | M401: 14.64762717 | N401: 14.64762717 | O401: 14.64762717 | P401: 14.64762717 | Q401: 14.98102413 | R401: 14.98102413 | S401: 53.8895286 | T401: 56.83246313 | U401: 58.04765236 | V401: 51.180488 | W401: 14.64762717 | X401: 14.64762717 | Y401: 14.39641139 | Z401: 14.39497063 | AA401: 14.39497063 | AB401: 14.39497063 | AC401: 14.39497063 | AD401: 14.39497063 | AE401: 14.39497063 | AF401: 14.39497063 | AG401: 14.39497063 | AH401: 14.39497063 | AI401: 14.39497063 | AJ401: 14.39497063 | AK401: 14.39497063 | AL401: 14.64762717 | AM401: 15.6300822 | AN401: 15.99425983 | AO401: 57.38776111 | AP401: 59.00762793 | AQ401: 59.00607526 | AR401: 59.0080809 | AS401: 58.5395756 | AT401: 56.88219833 | AU401: 55.83786975 | AV401: 15.89596642 | AW401: 15.89693592 | AX401: 15.89376155 | AY401: 15.89596642 | AZ401: 15.89596642 | BA401: 15.90192168
A402: 2023-08-04 | B402: 2023 | C402: 8 | D402: 4 | E402: Friday | F402: 15.89376155 | G402: 15.89376155 | H402: 15.94433163 | I402: 15.883361 | J402: 15.46894925 | K402: 15.883361 | L402: 15.66449908 | M402: 14.64762717 | N402: 14.64762717 | O402: 14.64762717 | P402: 14.79408604 | Q402: 15.70991828 | R402: 15.90153013 | S402: 15.93604647 | T402: 53.78576019 | U402: 59.00850097 | V402: 55.78613104 | W402: 50.06110768 | X402: 32.07252093 | Y402: 15.92797772 | Z402: 15.99425983 | AA402: 15.6300822 | AB402: 14.64762717 | AC402: 14.64762717 | AD402: 14.64762717 | AE402: 14.64762717 | AF402: 15.883361 | AG402: 15.94433163 | AH402: 15.89376155 | AI402: 15.90730525 | AJ402: 15.89596642 | AK402: 36.66666505 | AL402: 51.44328201 | AM402: 59.12411331 | AN402: 61.27375788 | AO402: 61.27375788 | AP402: 61.27375788 | AQ402: 62.24997414 | AR402: 62.24997414 | AS402: 61.27375788 | AT402: 61.27375788 | AU402: 61.27375788 | AV402: 61.27375788 | AW402: 58.96535504 | AX402: 58.96535504 | AY402: 53.74643303 | AZ402: 15.89596642 | BA402: 54.76572218
A403: 2023-08-05 | B403: 2023 | C403: 8 | D403: 5 | E403: Saturday | F403: 16.20245497 | G403: 15.89957172 | H403: 15.89376155 | I403: 15.89376155 | J403: 15.89376155 | K403: 15.95169654 | L403: 15.85319106 | M403: 15.71699227 | N403: 15.56153199 | O403: 14.77778475 | P403: 14.64762717 | Q403: 14.92566836 | R403: 14.92566836 | S403: 15.41694982 | T403: 15.72655803 | U403: 15.883361 | V403: 15.41694982 | W403: 14.64762717 | X403: 14.64762717 | Y403: 14.64762717 | Z403: 14.64762717 | AA403: 14.39497063 | AB403: 14.64762717 | AC403: 14.39497063 | AD403: 14.64762717 | AE403: 14.64762717 | AF403: 14.64762717 | AG403: 14.64762717 | AH403: 14.64762717 | AI403: 14.64762717 | AJ403: 14.64762717 | AK403: 14.64762717 | AL403: 14.64762717 | AM403: 15.68859893 | AN403: 15.87061707 | AO403: 52.80208152 | AP403: 55.81463659 | AQ403: 54.86320435 | AR403: 52.83283993 | AS403: 15.89596642 | AT403: 15.90801247 | AU403: 15.89376155 | AV403: 15.971483 | AW403: 15.82381877 | AX403: 15.65632424 | AY403: 15.41694982 | AZ403: 15.57100314 | BA403: 15.88363656
A404: 2023-08-06 | B404: 2023 | C404: 8 | D404: 6 | E404: Sunday | F404: 15.883361 | G404: 15.56153199 | H404: 14.64762717 | I404: 14.64762717 | J404: 14.64762717 | K404: 14.64762717 | L404: 14.64762717 | M404: 14.39497063 | N404: 14.64762717 | O404: 14.39497063 | P404: 14.64762717 | Q404: 14.64762717 | R404: 14.64762717 | S404: 14.64762717 | T404: 14.64762717 | U404: 14.64762717 | V404: 14.64762717 | W404: 14.39497063 | X404: 14.39497063 | Y404: 14.39903279 | Z404: 14.39497063 | AA404: 14.44316488 | AB404: 0 | AC404: 0 | AD404: 0 | AE404: 0 | AF404: 0 | AG404: 0 | AH404: 0 | AI404: 0 | AJ404: 0 | AK404: 14.21374778 | AL404: 14.44316488 | AM404: 14.64762717 | AN404: 15.57100314 | AO404: 15.883361 | AP404: 55.92229941 | AQ404: 60.26127456 | AR404: 58.10324467 | AS404: 53.80603786 | AT404: 59.17577698 | AU404: 62.47211746 | AV404: 59.17577698 | AW404: 60.11358488 | AX404: 16.87248303 | AY404: 15.89596642 | AZ404: 15.89596642 | BA404: 16.04498452
A405: 2023-08-07 | B405: 2023 | C405: 8 | D405: 7 | E405: Monday | F405: 15.72361376 | G405: 15.68670806 | H405: 15.52887636 | I405: 15.07496586 | J405: 14.64762717 | K405: 14.64762717 | L405: 14.64762717 | M405: 14.64762717 | N405: 14.64762717 | O405: 15.37788438 | P405: 15.64600257 | Q405: 15.80885234 | R405: 16.04498452 | S405: 54.82645741 | T405: 59.17577698 | U405: 59.17895958 | V405: 58.10324467 | W405: 16.04498452 | X405: 15.80885234 | Y405: 15.64600257 | Z405: 15.25509181 | AA405: 14.77778475 | AB405: 15.40757238 | AC405: 15.57100314 | AD405: 15.40757238 | AE405: 15.40757238 | AF405: 15.57100314 | AG405: 15.22569761 | AH405: 14.77778475 | AI405: 15.22569761 | AJ405: 15.883361 | AK405: 15.76762743 | AL405: 15.95506123 | AM405: 53.80603786 | AN405: 61.35997395 | AO405: 63.44208609 | AP405: 63.44208609 | AQ405: 63.44208609 | AR405: 63.44208609 | AS405: 63.44208609 | AT405: 62.47211746 | AU405: 60.36672474 | AV405: 57.99969167 | AW405: 54.82645741 | AX405: 16.04226123 | AY405: 15.89596642 | AZ405: 15.89596642 | BA405: 15.89596642
A406: 2023-08-08 | B406: 2023 | C406: 8 | D406: 8 | E406: Tuesday | F406: 15.89596642 | G406: 15.89596642 | H406: 15.90553228 | I406: 15.93305412 | J406: 15.84338857 | K406: 15.76762743 | L406: 15.76762743 | M406: 15.79898254 | N406: 15.68670806 | O406: 15.53154733 | P406: 15.62974891 | Q406: 15.85649972 | R406: 16.00518836 | S406: 58.10324467 | T406: 63.44208609 | U406: 63.44208609 | V406: 63.44208609 | W406: 59.51830028 | X406: 29.83127501 | Y406: 15.99425983 | Z406: 15.7738698 | AA406: 15.22569761 | AB406: 14.64762717 | AC406: 14.64762717 | AD406: 14.64762717 | AE406: 14.77778475 | AF406: 14.64762717 | AG406: 14.64762717 | AH406: 14.92566836 | AI406: 15.22569761 | AJ406: 15.88363656 | AK406: 15.76762743 | AL406: 15.76762743 | AM406: 15.99689803 | AN406: 55.99615772 | AO406: 61.32301331 | AP406: 62.47211746 | AQ406: 61.35997395 | AR406: 60.26127456 | AS406: 57.04344674 | AT406: 54.96115744 | AU406: 16.05471423 | AV406: 15.91214347 | AW406: 15.96639255 | AX406: 15.76762743 | AY406: 15.68670806 | AZ406: 15.79898254 | BA406: 15.94968694
A407: 2023-08-09 | B407: 2023 | C407: 8 | D407: 9 | E407: Wednesday | F407: 15.87161695 | G407: 15.68670806 | H407: 14.77778475 | I407: 14.64762717 | J407: 14.64762717 | K407: 14.64762717 | L407: 14.64762717 | M407: 14.64762717 | N407: 14.64762717 | O407: 14.64762717 | P407: 14.64762717 | Q407: 15.07496586 | R407: 15.80885234 | S407: 16.04498452 | T407: 55.8684758 | U407: 61.35997395 | V407: 62.19332074 | W407: 56.39566125 | X407: 37.42759167 | Y407: 15.91861116 | Z407: 15.96484366 | AA407: 15.83837868 | AB407: 15.53154733 | AC407: 15.84338857 | AD407: 14.77778475 | AE407: 14.64762717 | AF407: 14.64762717 | AG407: 14.77778475 | AH407: 15.883361 | AI407: 15.65463244 | AJ407: 15.99425983 | AK407: 15.89376155 | AL407: 51.42506562 | AM407: 63.44208609 | AN407: 63.44208609 | AO407: 63.80614641 | AP407: 63.80614641 | AQ407: 63.80614641 | AR407: 63.59795337 | AS407: 63.44208609 | AT407: 63.44208609 | AU407: 63.44208609 | AV407: 63.44208609 | AW407: 63.44208609 | AX407: 63.44208609 | AY407: 63.44208609 | AZ407: 63.44208609 | BA407: 63.44208609
A408: 2023-08-10 | B408: 2023 | C408: 8 | D408: 10 | E408: Thursday | F408: 63.44208609 | G408: 63.44208609 | H408: 63.44208609 | I408: 63.44208609 | J408: 63.44208609 | K408: 63.44208609 | L408: 62.81453699 | M408: 61.14178527 | N408: 61.14178527 | O408: 60.04699272 | P408: 61.14178527 | Q408: 62.3190094 | R408: 63.44208609 | S408: 63.44208609 | T408: 63.44208609 | U408: 63.44208609 | V408: 63.44208609 | W408: 63.44208609 | X408: 55.37979568 | Y408: 29.89158683 | Z408: 15.91708545 | AA408: 15.95537464 | AB408: 15.82133703 | AC408: 15.71699227 | AD408: 15.71699227 | AE408: 15.37788438 | AF408: 14.64762717 | AG408: 14.64762717 | AH408: 14.64762717 | AI408: 14.64762717 | AJ408: 14.64762717 | AK408: 14.64762717 | AL408: 14.77778475 | AM408: 15.7738698 | AN408: 15.99425983 | AO408: 54.75642957 | AP408: 61.16375728 | AQ408: 60.96950716 | AR408: 60.26127456 | AS408: 59.76990489 | AT408: 58.10324467 | AU408: 54.96115744 | AV408: 16.37694412 | AW408: 15.899934 | AX408: 15.90062553 | AY408: 15.87397526 | AZ408: 15.89376155 | BA408: 15.95506123
A409: 2023-08-11 | B409: 2023 | C409: 8 | D409: 11 | E409: Friday | F409: 15.76762743 | G409: 15.883361 | H409: 15.37788438 | I409: 14.64762717 | J409: 14.64762717 | K409: 14.64762717 | L409: 14.64762717 | M409: 14.64762717 | N409: 14.64762717 | O409: 14.64762717 | P409: 14.64762717 | Q409: 15.22569761 | R409: 15.7738698 | S409: 15.99425983 | T409: 15.92797772 | U409: 52.82433466 | V409: 15.99425983 | W409: 15.7738698 | X409: 14.92566836 | Y409: 14.64762717 | Z409: 14.39497063 | AA409: 14.39497063 | AB409: 14.39497063 | AC409: 14.39497063 | AD409: 14.39497063 | AE409: 14.39497063 | AF409: 14.39497063 | AG409: 14.39497063 | AH409: 14.39497063 | AI409: 14.39497063 | AJ409: 14.39497063 | AK409: 14.64762717 | AL409: 15.6300822 | AM409: 15.99425983 | AN409: 55.85892108 | AO409: 61.20510205 | AP409: 62.55021507 | AQ409: 63.44208609 | AR409: 62.3190094 | AS409: 62.3190094 | AT409: 63.17499615 | AU409: 63.44208609 | AV409: 63.44208609 | AW409: 63.44208609 | AX409: 63.44208609 | AY409: 63.44208609 | AZ409: 63.44208609 | BA409: 63.44208609
A410: 2023-08-12 | B410: 2023 | C410: 8 | D410: 12 | E410: Saturday | F410: 62.24997414 | G410: 62.24997414 | H410: 62.24997414 | I410: 62.24997414 | J410: 60.66533242 | K410: 58.29993282 | L410: 52.86683109 | M410: 49.6492346 | N410: 49.35821886 | O410: 48.45202676 | P410: 50.39470978 | Q410: 49.05193867 | R410: 51.63738045 | S410: 54.15150783 | T410: 56.64866904 | U410: 56.4966703 | V410: 58.64634528 | W410: 54.92507281 | X410: 34.50229802 | Y410: 25.22395756 | Z410: 20.64758156 | AA410: 15.89376155 | AB410: 15.89596642 | AC410: 15.89596642 | AD410: 21.03979755 | AE410: 15.89596642 | AF410: 15.89596642 | AG410: 15.89596642 | AH410: 15.89596642 | AI410: 15.89376155 | AJ410: 15.89693592 | AK410: 30.35412134 | AL410: 47.14155323 | AM410: 56.65150782 | AN410: 61.18385644 | AO410: 62.24997414 | AP410: 62.24997414 | AQ410: 62.24997414 | AR410: 62.24997414 | AS410: 62.24997414 | AT410: 62.23494678 | AU410: 61.02439782 | AV410: 59.62021269 | AW410: 60.04699272 | AX410: 59.47006757 | AY410: 61.14178527 | AZ410: 61.42469164 | BA410: 62.24997414
A411: 2023-08-13 | B411: 2023 | C411: 8 | D411: 13 | E411: Sunday | F411: 61.27000219 | G411: 60.04699272 | H411: 55.93423814 | I411: 52.92280259 | J411: 16.41692951 | K411: 15.89596642 | L411: 15.89596642 | M411: 15.89596642 | N411: 15.89596642 | O411: 15.89596642 | P411: 15.92511617 | Q411: 16.25462239 | R411: 16.09391286 | S411: 50.30980785 | T411: 53.76853495 | U411: 49.91405885 | V411: 16.04498452 | W411: 15.80885234 | X411: 15.46658812 | Y411: 14.64762717 | Z411: 14.64762717 | AA411: 14.39497063 | AB411: 14.39497063 | AC411: 14.39497063 | AD411: 14.39497063 | AE411: 14.39497063 | AF411: 14.39497063 | AG411: 14.39497063 | AH411: 14.39497063 | AI411: 14.39497063 | AJ411: 14.64762717 | AK411: 14.97384696 | AL411: 15.27484467 | AM411: 15.93477747 | AN411: 56.90364338 | AO411: 62.23494678 | AP411: 62.24997414 | AQ411: 62.24997414 | AR411: 62.24997414 | AS411: 61.42469164 | AT411: 60.66393866 | AU411: 59.47006757 | AV411: 57.96084394 | AW411: 54.82645741 | AX411: 52.76945175 | AY411: 15.89596642 | AZ411: 16.9136783 | BA411: 52.73896537
A412: 2023-08-14 | B412: 2023 | C412: 8 | D412: 14 | E412: Monday | F412: 16.58085817 | G412: 15.89596642 | H412: 16.01056302 | I412: 15.73734322 | J412: 15.883361 | K412: 15.58168165 | L412: 15.42752268 | M412: 15.42752268 | N412: 15.73734322 | O412: 15.83328803 | P412: 15.76762743 | Q412: 15.95889456 | R412: 15.91241903 | S412: 56.8516755 | T412: 60.06275789 | U412: 62.24997414 | V412: 62.24997414 | W412: 62.24997414 | X412: 59.54465505 | Y412: 57.72354645 | Z412: 32.08944318 | AA412: 28.66294966 | AB412: 16.59368795 | AC412: 16.09391286 | AD412: 15.89596642 | AE412: 15.89596642 | AF412: 16.58085817 | AG412: 15.92511617 | AH412: 16.7593907 | AI412: 29.23078324 | AJ412: 30.92573455 | AK412: 49.13222204 | AL412: 60.39072998 | AM412: 62.24997414 | AN412: 62.24997414 | AO412: 62.24997414 | AP412: 62.24997414 | AQ412: 62.24997414 | AR412: 62.24997414 | AS412: 62.24997414 | AT412: 62.24997414 | AU412: 62.24997414 | AV412: 62.24997414 | AW412: 62.23494678 | AX412: 60.11358488 | AY412: 59.03074766 | AZ412: 59.03074766 | BA412: 59.03074766
A413: 2023-08-15 | B413: 2023 | C413: 8 | D413: 15 | E413: Tuesday | F413: 57.96084394 | G413: 55.82929626 | H413: 54.76572218 | I413: 17.4256969 | J413: 16.05326293 | K413: 15.89754966 | L413: 15.89376155 | M413: 15.89376155 | N413: 15.89376155 | O413: 15.89376155 | P413: 15.89154791 | Q413: 15.89452948 | R413: 15.89763999 | S413: 16.41692951 | T413: 54.5820944 | U413: 54.82645741 | V413: 15.93477747 | W413: 15.64854224 | X413: 14.64762717 | Y413: 14.64762717 | Z413: 14.39497063 | AA413: 14.39497063 | AB413: 14.39497063 | AC413: 14.39497063 | AD413: 14.39497063 | AE413: 14.39497063 | AF413: 14.39497063 | AG413: 14.39497063 | AH413: 14.39497063 | AI413: 14.39497063 | AJ413: 14.39497063 | AK413: 14.39497063 | AL413: 14.39497063 | AM413: 14.64762717 | AN413: 15.75812765 | AO413: 16.04498452 | AP413: 53.80506711 | AQ413: 54.82645741 | AR413: 55.85892108 | AS413: 52.79745292 | AT413: 15.93477747 | AU413: 15.89596642 | AV413: 15.89596642 | AW413: 15.89596642 | AX413: 15.93419977 | AY413: 15.77719319 | AZ413: 15.76762743 | BA413: 15.95855037
A414: 2023-08-16 | B414: 2023 | C414: 8 | D414: 16 | E414: Wednesday | F414: 15.89596642 | G414: 15.89596642 | H414: 15.99796366 | I414: 15.883361 | J414: 15.27484467 | K414: 14.64762717 | L414: 14.64762717 | M414: 14.64762717 | N414: 14.64762717 | O414: 14.64762717 | P414: 14.64762717 | Q414: 14.64762717 | R414: 15.64854224 | S414: 15.93477747 | T414: 15.9655158 | U414: 53.74643303 | V414: 47.30729039 | W414: 15.89596642 | X414: 15.92797772 | Y414: 15.99425983 | Z414: 14.64762717 | AA414: 14.64762717 | AB414: 14.39497063 | AC414: 14.39497063 | AD414: 14.39497063 | AE414: 14.39497063 | AF414: 14.39497063 | AG414: 14.39497063 | AH414: 14.64762717 | AI414: 14.64762717 | AJ414: 14.64762717 | AK414: 15.46658812 | AL414: 15.6300822 | AM414: 15.99425983 | AN414: 52.73896537 | AO414: 59.62021269 | AP414: 60.11250945 | AQ414: 60.42088548 | AR414: 61.20959156 | AS414: 61.20959156 | AT414: 60.11358488 | AU414: 60.11358488 | AV414: 59.47006757 | AW414: 58.88207761 | AX414: 55.79704212 | AY414: 53.74643303 | AZ414: 53.74643303 | BA414: 56.84060711
A415: 2023-08-17 | B415: 2023 | C415: 8 | D415: 17 | E415: Thursday | F415: 50.66944661 | G415: 50.30980785 | H415: 51.7786818 | I415: 16.92676561 | J415: 16.9136783 | K415: 16.7464328 | L415: 16.58085817 | M415: 17.26663423 | N415: 16.58085817 | O415: 16.9136783 | P415: 51.66389442 | Q415: 57.89663653 | R415: 62.24997414 | S415: 62.24997414 | T415: 62.24997414 | U415: 62.24997414 | V415: 62.24997414 | W415: 62.24997414 | X415: 37.03621415 | Y415: 32.53552522 | Z415: 24.01347029 | AA415: 21.03735844 | AB415: 20.64301676 | AC415: 15.89596642 | AD415: 15.93477747 | AE415: 16.25462239 | AF415: 16.58085817 | AG415: 23.68308876 | AH415: 26.11142917 | AI415: 32.08944318 | AJ415: 37.09810311 | AK415: 42.53795945 | AL415: 62.24997414 | AM415: 62.24997414 | AN415: 63.52194291 | AO415: 190.9789172 | AP415: 190.9789172 | AQ415: 189.0648073 | AR415: 188.648626 | AS415: 188.648626 | AT415: 190.0829666 | AU415: 190.9789172 | AV415: 186.9313769 | AW415: 146.2112576 | AX415: 62.87222919 | AY415: 62.28638061 | AZ415: 62.28638061 | BA415: 62.28638061
A416: 2023-08-18 | B416: 2023 | C416: 8 | D416: 18 | E416: Friday | F416: 62.24997414 | G416: 62.24997414 | H416: 62.24997414 | I416: 62.24997414 | J416: 62.24997414 | K416: 60.04699272 | L416: 57.89663653 | M416: 56.84060711 | N416: 54.76572218 | O416: 53.74643303 | P416: 55.79704212 | Q416: 57.93010436 | R416: 60.21563577 | S416: 62.24997414 | T416: 62.24997414 | U416: 62.24997414 | V416: 61.04459488 | W416: 56.5877106 | X416: 15.99425983 | Y416: 15.6300822 | Z416: 14.64762717 | AA416: 14.64762717 | AB416: 14.39497063 | AC416: 14.39497063 | AD416: 14.39497063 | AE416: 14.64762717 | AF416: 14.39497063 | AG416: 14.39497063 | AH416: 14.39497063 | AI416: 14.39497063 | AJ416: 14.39497063 | AK416: 14.39497063 | AL416: 14.64762717 | AM416: 14.64762717 | AN416: 15.63875416 | AO416: 16.42963245 | AP416: 55.85892108 | AQ416: 55.85873647 | AR416: 53.80603786 | AS416: 56.90364338 | AT416: 53.80603786 | AU416: 52.79745292 | AV416: 57.96084394 | AW416: 56.90364338 | AX416: 55.85892108 | AY416: 55.79704212 | AZ416: 57.90994267 | BA416: 61.15583723
A417: 2023-08-19 | B417: 2023 | C417: 8 | D417: 19 | E417: Saturday | F417: 61.22353455 | G417: 57.66991325 | H417: 54.76572218 | I417: 52.73896537 | J417: 15.89376155 | K417: 15.99724685 | L417: 15.76762743 | M417: 15.883361 | N417: 15.17027108 | O417: 15.883361 | P417: 15.76762743 | Q417: 15.76762743 | R417: 15.66825904 | S417: 15.99425983 | T417: 15.91432609 | U417: 16.04498452 | V417: 15.80885234 | W417: 14.64762717 | X417: 14.39497063 | Y417: 14.39497063 | Z417: 14.39497063 | AA417: 14.39497063 | AB417: 14.39497063 | AC417: 14.39497063 | AD417: 14.39497063 | AE417: 14.39497063 | AF417: 14.39497063 | AG417: 14.39497063 | AH417: 14.39497063 | AI417: 14.39497063 | AJ417: 14.64762717 | AK417: 14.64762717 | AL417: 14.64762717 | AM417: 14.64762717 | AN417: 19.78671007 | AO417: 57.164336 | AP417: 60.3889832 | AQ417: 61.63406251 | AR417: 62.24997414 | AS417: 62.24997414 | AT417: 62.24997414 | AU417: 62.24997414 | AV417: 60.66393866 | AW417: 58.29993282 | AX417: 57.89663653 | AY417: 56.84060711 | AZ417: 57.67976848 | BA417: 58.837421
A418: 2023-08-20 | B418: 2023 | C418: 8 | D418: 20 | E418: Sunday | F418: 57.89663653 | G418: 55.42236665 | H418: 53.26036401 | I418: 50.81702419 | J418: 15.89596642 | K418: 15.95239796 | L418: 15.76762743 | M418: 15.89596642 | N418: 15.89596642 | O418: 15.76762743 | P418: 15.95239796 | Q418: 15.76762743 | R418: 15.76762743 | S418: 15.9772113 | T418: 15.89376155 | U418: 55.42236665 | V418: 15.89376155 | W418: 15.89596642 | X418: 15.89596642 | Y418: 15.89596642 | Z418: 21.43632726 | AA418: 20.64301676 | AB418: 15.89596642 | AC418: 15.89693592 | AD418: 15.89376155 | AE418: 15.93751819 | AF418: 15.76762743 | AG418: 15.76762743 | AH418: 15.76762743 | AI418: 15.95269761 | AJ418: 15.90801025 | AK418: 24.01853566 | AL418: 52.73265997 | AM418: 61.02439782 | AN418: 62.24997414 | AO418: 62.87222919 | AP418: 63.73273326 | AQ418: 118.6495708 | AR418: 142.0721649 | AS418: 118.6495708 | AT418: 117.4744009 | AU418: 63.73273326 | AV418: 62.89303783 | AW418: 62.89303783 | AX418: 62.24997414 | AY418: 62.24997414 | AZ418: 62.24997414 | BA418: 62.24997414
A419: 2023-08-21 | B419: 2023 | C419: 8 | D419: 21 | E419: Monday | F419: 62.24997414 | G419: 62.24997414 | H419: 62.24997414 | I419: 62.24997414 | J419: 62.24997414 | K419: 62.24997414 | L419: 62.24997414 | M419: 62.24997414 | N419: 62.24997414 | O419: 62.24997414 | P419: 62.24997414 | Q419: 62.24997414 | R419: 62.24997414 | S419: 62.87222919 | T419: 62.89303783 | U419: 114.020771 | V419: 62.89303783 | W419: 62.24997414 | X419: 62.24997414 | Y419: 62.24997414 | Z419: 56.5877106 | AA419: 49.57057631 | AB419: 37.9312963 | AC419: 46.08785145 | AD419: 42.45778271 | AE419: 35.98276221 | AF419: 34.10532225 | AG419: 33.49463919 | AH419: 33.49463919 | AI419: 33.49463919 | AJ419: 34.10532225 | AK419: 38.86716306 | AL419: 56.42063331 | AM419: 61.27000219 | AN419: 62.24997414 | AO419: 62.24997414 | AP419: 62.24997414 | AQ419: 62.24997414 | AR419: 62.24997414 | AS419: 62.24997414 | AT419: 62.24997414 | AU419: 62.24997414 | AV419: 62.24997414 | AW419: 62.24997414 | AX419: 62.24997414 | AY419: 62.24997414 | AZ419: 62.24997414 | BA419: 62.24997414
A420: 2023-08-22 | B420: 2023 | C420: 8 | D420: 22 | E420: Tuesday | F420: 62.24997414 | G420: 61.88227574 | H420: 61.27000219 | I420: 60.04699272 | J420: 58.96535504 | K420: 57.70113249 | L420: 57.71096911 | M420: 56.57538074 | N420: 57.69815276 | O420: 58.76624217 | P420: 60.06399116 | Q420: 61.88227574 | R420: 62.24997414 | S420: 62.24997414 | T420: 62.24997414 | U420: 62.24997414 | V420: 62.24997414 | W420: 62.24997414 | X420: 58.29993282 | Y420: 42.74400381 | Z420: 34.10532225 | AA420: 22.29429854 | AB420: 21.88498642 | AC420: 22.70849952 | AD420: 33.49463919 | AE420: 38.16294683 | AF420: 40.43385784 | AG420: 44.26193971 | AH420: 44.26193971 | AI420: 50.08339912 | AJ420: 60.06399116 | AK420: 62.24997414 | AL420: 62.24997414 | AM420: 62.24997414 | AN420: 92.33733768 | AO420: 184.9406101 | AP420: 195.1619298 | AQ420: 195.1619298 | AR420: 195.1619298 | AS420: 195.1619298 | AT420: 195.1619298 | AU420: 191.0686764 | AV420: 190.9789179 | AW420: 183.0128334 | AX420: 134.1365993 | AY420: 80.58859113 | AZ420: 89.79261135 | BA420: 89.79261135
A421: 2023-08-23 | B421: 2023 | C421: 8 | D421: 23 | E421: Wednesday | F421: 63.37180671 | G421: 62.89453005 | H421: 62.87222919 | I421: 62.24997414 | J421: 62.24997414 | K421: 62.24997414 | L421: 62.24997414 | M421: 62.24997414 | N421: 62.24997414 | O421: 62.24997414 | P421: 62.24997414 | Q421: 62.24997414 | R421: 62.24997414 | S421: 100.9637446 | T421: 114.6766839 | U421: 117.4633922 | V421: 62.89303783 | W421: 62.24997414 | X421: 59.84323245 | Y421: 56.73057859 | Z421: 44.3100612 | AA421: 40.02463872 | AB421: 32.89129401 | AC421: 38.11380215 | AD421: 52.77020094 | AE421: 56.02809603 | AF421: 57.89169989 | AG421: 57.1528335 | AH421: 57.72354645 | AI421: 57.72354645 | AJ421: 59.38273942 | AK421: 61.53631845 | AL421: 62.24997414 | AM421: 62.27057683 | AN421: 100.9637446 | AO421: 191.5616704 | AP421: 191.5616704 | AQ421: 191.5616704 | AR421: 191.5616704 | AS421: 179.9812976 | AT421: 109.4086348 | AU421: 62.89303783 | AV421: 62.60451143 | AW421: 62.24997414 | AX421: 62.24997414 | AY421: 62.24997414 | AZ421: 62.24997414 | BA421: 62.24997414
A422: 2023-08-24 | B422: 2023 | C422: 8 | D422: 24 | E422: Thursday | F422: 60.21142332 | G422: 57.89663653 | H422: 55.47390963 | I422: 53.74643303 | J422: 15.89596642 | K422: 15.89596642 | L422: 15.89596642 | M422: 15.89596642 | N422: 15.89596642 | O422: 15.89596642 | P422: 52.73896537 | Q422: 54.76572218 | R422: 58.22637991 | S422: 62.24997414 | T422: 62.24997414 | U422: 62.24997414 | V422: 60.04699272 | W422: 53.40788781 | X422: 38.3511047 | Y422: 15.89736222 | Z422: 15.89376155 | AA422: 15.89376155 | AB422: 15.89376155 | AC422: 15.76762743 | AD422: 15.93751819 | AE422: 31.60837104 | AF422: 39.06838054 | AG422: 53.28917898 | AH422: 57.1528335 | AI422: 57.1528335 | AJ422: 55.46182245 | AK422: 60.21563577 | AL422: 62.24997414 | AM422: 62.24997414 | AN422: 62.89303783 | AO422: 106.5101923 | AP422: 191.5616704 | AQ422: 191.5616704 | AR422: 187.0798104 | AS422: 178.1524543 | AT422: 174.5818613 | AU422: 149.3079355 | AV422: 97.78133959 | AW422: 86.58921208 | AX422: 62.89303783 | AY422: 62.36077815 | AZ422: 62.24997414 | BA422: 62.43022876
A423: 2023-08-25 | B423: 2023 | C423: 8 | D423: 25 | E423: Friday | F423: 62.36189012 | G423: 62.24997414 | H423: 62.24997414 | I423: 62.24997414 | J423: 62.24997414 | K423: 62.24997414 | L423: 62.24997414 | M423: 62.24997414 | N423: 62.24997414 | O423: 62.24997414 | P423: 62.24997414 | Q423: 62.24997414 | R423: 62.24997414 | S423: 62.89303783 | T423: 105.7583818 | U423: 63.73273326 | V423: 62.24997414 | W423: 61.04459488 | X423: 57.11778861 | Y423: 41.81237751 | Z423: 29.98014223 | AA423: 15.89596642 | AB423: 15.89754966 | AC423: 15.89376155 | AD423: 15.89376155 | AE423: 15.89376155 | AF423: 15.89376155 | AG423: 15.89376155 | AH423: 15.89376155 | AI423: 15.89376155 | AJ423: 15.89763208 | AK423: 15.89596642 | AL423: 52.42734582 | AM423: 57.89663653 | AN423: 62.24997414 | AO423: 62.24997414 | AP423: 62.89303783 | AQ423: 62.89303783 | AR423: 62.89303783 | AS423: 62.89303783 | AT423: 62.89303783 | AU423: 62.89303783 | AV423: 62.87222919 | AW423: 62.24997414 | AX423: 62.24997414 | AY423: 62.24997414 | AZ423: 62.24997414 | BA423: 62.24997414
A424: 2023-08-26 | B424: 2023 | C424: 8 | D424: 26 | E424: Saturday | F424: 60.04699272 | G424: 60.04699272 | H424: 60.04699272 | I424: 60.04699272 | J424: 60.04699272 | K424: 60.04699272 | L424: 60.04699272 | M424: 60.04699272 | N424: 60.04699272 | O424: 60.04699272 | P424: 60.04699272 | Q424: 60.04699272 | R424: 60.04699272 | S424: 60.6470447 | T424: 60.04699272 | U424: 60.04699272 | V424: 60.04699272 | W424: 42.13050056 | X424: 33.89117936 | Y424: 16.00600609 | Z424: 15.87061707 | AA424: 15.68859893 | AB424: 15.42653205 | AC424: 14.64762717 | AD424: 14.64762717 | AE424: 14.64762717 | AF424: 14.64762717 | AG424: 14.64762717 | AH424: 14.64762717 | AI424: 15.53018041 | AJ424: 15.68859893 | AK424: 15.87061707 | AL424: 16.00600609 | AM424: 57.50093846 | AN424: 60.04699272 | AO424: 61.32943863 | AP424: 62.82098285 | AQ424: 63.84194786 | AR424: 62.82098285 | AS424: 62.82098285 | AT424: 62.82098285 | AU424: 62.505894 | AV424: 62.64483234 | AW424: 62.3190094 | AX424: 61.86578489 | AY424: 61.25327676 | AZ424: 62.24997414 | BA424: 62.4344225
A425: 2023-08-27 | B425: 2023 | C425: 8 | D425: 27 | E425: Sunday | F425: 61.86578489 | G425: 61.14178527 | H425: 60.04699272 | I425: 60.04699272 | J425: 60.04699272 | K425: 60.04699272 | L425: 60.04699272 | M425: 60.04699272 | N425: 60.04699272 | O425: 60.04699272 | P425: 60.04699272 | Q425: 60.04699272 | R425: 60.04699272 | S425: 60.04699272 | T425: 60.04699272 | U425: 60.04699272 | V425: 60.04699272 | W425: 59.19368056 | X425: 53.31094241 | Y425: 17.09395181 | Z425: 15.99425983 | AA425: 15.7738698 | AB425: 15.12242032 | AC425: 14.64762717 | AD425: 14.64762717 | AE425: 14.64762717 | AF425: 14.64762717 | AG425: 14.64762717 | AH425: 14.64762717 | AI425: 14.64762717 | AJ425: 14.64762717 | AK425: 15.7738698 | AL425: 15.99425983 | AM425: 54.98263788 | AN425: 60.04699272 | AO425: 60.04699272 | AP425: 61.58262766 | AQ425: 61.8868016 | AR425: 60.34034768 | AS425: 60.34034768 | AT425: 60.04699272 | AU425: 60.04699272 | AV425: 60.04699272 | AW425: 60.04699272 | AX425: 60.04699272 | AY425: 60.04699272 | AZ425: 60.04699272 | BA425: 60.04699272
A426: 2023-08-28 | B426: 2023 | C426: 8 | D426: 28 | E426: Monday | F426: 60.04699272 | G426: 60.04699272 | H426: 60.04699272 | I426: 60.04699272 | J426: 60.04699272 | K426: 60.04699272 | L426: 60.04699272 | M426: 60.04699272 | N426: 60.04699272 | O426: 60.04699272 | P426: 60.04699272 | Q426: 60.04699272 | R426: 60.04699272 | S426: 62.70541831 | T426: 62.82098285 | U426: 62.24997414 | V426: 60.04699272 | W426: 58.88505219 | X426: 54.03697536 | Y426: 33.50456653 | Z426: 15.90421576 | AA426: 15.93060762 | AB426: 15.78754802 | AC426: 15.78754802 | AD426: 15.93060762 | AE426: 15.89596642 | AF426: 15.89376155 | AG426: 15.89693592 | AH426: 15.89596642 | AI426: 15.89596642 | AJ426: 15.94530453 | AK426: 53.73242674 | AL426: 60.04699272 | AM426: 60.04699272 | AN426: 62.82098285 | AO426: 145.3685383 | AP426: 182.8263198 | AQ426: 183.0606207 | AR426: 178.8148859 | AS426: 159.2194771 | AT426: 141.1248691 | AU426: 136.9774609 | AV426: 84.79338399 | AW426: 64.99247005 | AX426: 62.82098285 | AY426: 62.24997414 | AZ426: 62.24997414 | BA426: 62.82098285
A427: 2023-08-29 | B427: 2023 | C427: 8 | D427: 29 | E427: Tuesday | F427: 62.24997414 | G427: 60.04699272 | H427: 60.04699272 | I427: 60.04699272 | J427: 60.04699272 | K427: 60.04699272 | L427: 60.04699272 | M427: 60.04699272 | N427: 60.04699272 | O427: 60.04699272 | P427: 60.04699272 | Q427: 60.04699272 | R427: 61.65653121 | S427: 98.69314654 | T427: 98.69314654 | U427: 62.82098285 | V427: 60.04699272 | W427: 60.04699272 | X427: 52.44441657 | Y427: 34.41936154 | Z427: 31.39209986 | AA427: 25.0305286 | AB427: 21.04435831 | AC427: 21.48047711 | AD427: 32.5814386 | AE427: 33.79935916 | AF427: 20.63872597 | AG427: 33.79935916 | AH427: 33.79935916 | AI427: 33.79935916 | AJ427: 34.41936154 | AK427: 44.46327479 | AL427: 60.04699272 | AM427: 60.04699272 | AN427: 94.38382349 | AO427: 199.8481478 | AP427: 199.8481478 | AQ427: 199.8481478 | AR427: 199.8481478 | AS427: 196.9189075 | AT427: 181.7094386 | AU427: 167.3016103 | AV427: 100.9637446 | AW427: 63.84194786 | AX427: 62.70541831 | AY427: 60.04699272 | AZ427: 60.04699272 | BA427: 60.15209087
A428: 2023-08-30 | B428: 2023 | C428: 8 | D428: 30 | E428: Wednesday | F428: 60.04699272 | G428: 60.04699272 | H428: 60.04699272 | I428: 60.04699272 | J428: 60.04699272 | K428: 60.04699272 | L428: 60.04699272 | M428: 58.96535504 | N428: 58.86505486 | O428: 58.86505486 | P428: 60.04699272 | Q428: 60.04699272 | R428: 60.04699272 | S428: 60.47332829 | T428: 61.58262766 | U428: 60.04699272 | V428: 60.04699272 | W428: 54.71826185 | X428: 33.79935916 | Y428: 27.866158 | Z428: 15.89766832 | AA428: 15.89376155 | AB428: 15.89376155 | AC428: 15.89376155 | AD428: 15.89376155 | AE428: 15.89376155 | AF428: 15.89376155 | AG428: 15.76762743 | AH428: 15.93751819 | AI428: 15.89376155 | AJ428: 15.89376155 | AK428: 15.89866345 | AL428: 52.57035142 | AM428: 60.04699272 | AN428: 60.04699272 | AO428: 62.82098285 | AP428: 68.77871793 | AQ428: 110.9235868 | AR428: 68.09838056 | AS428: 62.82098285 | AT428: 60.41577539 | AU428: 60.04699272 | AV428: 60.04699272 | AW428: 60.04699272 | AX428: 59.47322389 | AY428: 55.12192567 | AZ428: 54.57680673 | BA428: 15.89596642
A429: 2023-08-31 | B429: 2023 | C429: 8 | D429: 31 | E429: Thursday | F429: 15.89596642 | G429: 16.00209418 | H429: 15.82462149 | I429: 15.77558043 | J429: 15.59016765 | K429: 14.64762717 | L429: 14.64762717 | M429: 14.64762717 | N429: 14.64762717 | O429: 14.64762717 | P429: 14.64762717 | Q429: 15.12242032 | R429: 15.79035139 | S429: 16.10459871 | T429: 55.12192567 | U429: 57.3619966 | V429: 56.37407575 | W429: 56.2283401 | X429: 54.05024693 | Y429: 34.4910118 | Z429: 16.25653833 | AA429: 15.92374621 | AB429: 15.89596642 | AC429: 15.89596642 | AD429: 15.89596642 | AE429: 16.57935808 | AF429: 16.91211143 | AG429: 16.91211143 | AH429: 16.91566493 | AI429: 16.92494121 | AJ429: 16.92494121 | AK429: 52.00538508 | AL429: 54.6421229 | AM429: 57.92962128 | AN429: 60.04699272 | AO429: 60.04699272 | AP429: 60.04699272 | AQ429: 60.04699272 | AR429: 60.04699272 | AS429: 60.04699272 | AT429: 60.04699272 | AU429: 60.04699272 | AV429: 60.04699272 | AW429: 59.29303341 | AX429: 59.09256766 | AY429: 55.07006263 | AZ429: 56.10711375 | BA429: 57.15647797
A430: 2023-09-01 | B430: 2023 | C430: 9 | D430: 1 | E430: Friday | F430: 15.99425983 | G430: 15.6300822 | H430: 14.64762717 | I430: 14.64762717 | J430: 14.64762717 | K430: 14.64762717 | L430: 14.64762717 | M430: 14.64762717 | N430: 14.64762717 | O430: 14.64762717 | P430: 14.64762717 | Q430: 15.66449908 | R430: 15.883361 | S430: 15.99796366 | T430: 15.89596642 | U430: 15.89596642 | V430: 15.8988287 | W430: 15.89376155 | X430: 15.89376155 | Y430: 15.89376155 | Z430: 15.89376155 | AA430: 15.99425983 | AB430: 15.7738698 | AC430: 15.27375276 | AD430: 14.64762717 | AE430: 14.64762717 | AF430: 14.64762717 | AG430: 14.64762717 | AH430: 14.64762717 | AI430: 14.64762717 | AJ430: 14.64762717 | AK430: 14.64762717 | AL430: 15.46482797 | AM430: 15.68859893 | AN430: 15.87061707 | AO430: 16.00600609 | AP430: 52.64212295 | AQ430: 53.68319811 | AR430: 52.73896537 | AS430: 15.93656517 | AT430: 15.89596642 | AU430: 15.89596642 | AV430: 15.89596642 | AW430: 15.89596642 | AX430: 15.89596642 | AY430: 15.89376155 | AZ430: 15.89693592 | BA430: 15.89596642
A431: 2023-09-02 | B431: 2023 | C431: 9 | D431: 2 | E431: Saturday | F431: 17.60064064 | G431: 16.37514221 | H431: 15.89376155 | I431: 15.93751819 | J431: 15.76762743 | K431: 15.76762743 | L431: 15.93751819 | M431: 15.89376155 | N431: 15.89693592 | O431: 15.89596642 | P431: 16.05268028 | Q431: 16.37514221 | R431: 16.73450777 | S431: 52.76780526 | T431: 52.80833298 | U431: 54.50396277 | V431: 39.64675442 | W431: 16.9113876 | X431: 17.2635145 | Y431: 17.4358966 | Z431: 25.49791475 | AA431: 17.08374379 | AB431: 16.74416908 | AC431: 16.05268028 | AD431: 16.05268028 | AE431: 16.70392108 | AF431: 16.21313307 | AG431: 15.89596642 | AH431: 16.53873049 | AI431: 17.07040498 | AJ431: 18.14299811 | AK431: 31.59840871 | AL431: 55.33245599 | AM431: 61.34049024 | AN431: 61.34049024 | AO431: 61.34049024 | AP431: 62.45228061 | AQ431: 62.45228061 | AR431: 61.34049024 | AS431: 61.34049024 | AT431: 61.34049024 | AU431: 61.34049024 | AV431: 61.34049024 | AW431: 61.34049024 | AX431: 61.34049024 | AY431: 61.34049024 | AZ431: 61.34049024 | BA431: 61.34049024
A432: 2023-09-03 | B432: 2023 | C432: 9 | D432: 3 | E432: Sunday | F432: 61.34049024 | G432: 61.34049024 | H432: 61.34049024 | I432: 61.34049024 | J432: 61.34049024 | K432: 61.34049024 | L432: 61.34049024 | M432: 61.34049024 | N432: 61.34049024 | O432: 61.34049024 | P432: 61.34049024 | Q432: 61.34049024 | R432: 61.34049024 | S432: 61.34049024 | T432: 61.34049024 | U432: 61.34049024 | V432: 60.08606366 | W432: 33.98948777 | X432: 31.59840871 | Y432: 30.44495407 | Z432: 29.31825445 | AA432: 29.31825445 | AB432: 16.9238406 | AC432: 29.31825445 | AD432: 29.8783184 | AE432: 30.44495407 | AF432: 20.68553273 | AG432: 17.08374379 | AH432: 17.2635145 | AI432: 29.31825445 | AJ432: 31.0182778 | AK432: 32.77958281 | AL432: 57.37479475 | AM432: 61.34049024 | AN432: 61.34049024 | AO432: 63.85190249 | AP432: 72.74244747 | AQ432: 137.9259617 | AR432: 134.1365993 | AS432: 72.74244747 | AT432: 72.0222539 | AU432: 63.85190249 | AV432: 63.85190249 | AW432: 63.85190249 | AX432: 62.59356799 | AY432: 62.45228061 | AZ432: 63.21947849 | BA432: 63.57775904
A433: 2023-09-04 | B433: 2023 | C433: 9 | D433: 4 | E433: Monday | F433: 61.34049024 | G433: 61.34049024 | H433: 61.34049024 | I433: 61.34049024 | J433: 61.34049024 | K433: 61.34049024 | L433: 61.34049024 | M433: 60.52642963 | N433: 61.13111937 | O433: 61.13111937 | P433: 61.34049024 | Q433: 61.34049024 | R433: 61.34049024 | S433: 61.97407088 | T433: 62.45228061 | U433: 61.34049024 | V433: 61.34049024 | W433: 61.34049024 | X433: 54.66190197 | Y433: 15.89596642 | Z433: 15.89596642 | AA433: 15.89596642 | AB433: 15.93205747 | AC433: 15.93205747 | AD433: 15.93205747 | AE433: 16.09135912 | AF433: 15.89596642 | AG433: 15.89596642 | AH433: 16.59078838 | AI433: 16.42668519 | AJ433: 48.74866951 | AK433: 53.79600052 | AL433: 58.02059149 | AM433: 61.34049024 | AN433: 61.34049024 | AO433: 61.36088909 | AP433: 62.45228061 | AQ433: 62.45228061 | AR433: 61.34049024 | AS433: 61.34049024 | AT433: 61.34049024 | AU433: 61.34049024 | AV433: 61.34049024 | AW433: 61.34049024 | AX433: 61.34049024 | AY433: 61.34049024 | AZ433: 61.34049024 | BA433: 61.34049024
A434: 2023-09-05 | B434: 2023 | C434: 9 | D434: 5 | E434: Tuesday | F434: 61.34049024 | G434: 61.34049024 | H434: 61.34049024 | I434: 61.34049024 | J434: 61.34049024 | K434: 61.34049024 | L434: 61.34049024 | M434: 61.34049024 | N434: 61.34049024 | O434: 61.34049024 | P434: 61.34049024 | Q434: 61.34049024 | R434: 61.34049024 | S434: 62.45228061 | T434: 61.34049024 | U434: 61.34049024 | V434: 61.34049024 | W434: 50.58893313 | X434: 29.8783184 | Y434: 15.99425983 | Z434: 15.7738698 | AA434: 14.64762717 | AB434: 14.64762717 | AC434: 14.64762717 | AD434: 14.64762717 | AE434: 14.64762717 | AF434: 14.64762717 | AG434: 15.68859893 | AH434: 15.87061707 | AI434: 15.76762743 | AJ434: 15.92286475 | AK434: 15.92286475 | AL434: 16.9238406 | AM434: 60.24213972 | AN434: 61.34049024 | AO434: 63.85190249 | AP434: 63.85190249 | AQ434: 63.85190249 | AR434: 63.85190249 | AS434: 62.57275935 | AT434: 61.34049024 | AU434: 61.34049024 | AV434: 61.34049024 | AW434: 61.34049024 | AX434: 61.34049024 | AY434: 60.37327031 | AZ434: 59.15698682 | BA434: 58.08479507
A435: 2023-09-06 | B435: 2023 | C435: 9 | D435: 6 | E435: Wednesday | F435: 54.94370556 | G435: 17.78587954 | H435: 17.07040498 | I435: 15.89596642 | J435: 15.89693592 | K435: 15.89376155 | L435: 15.91940641 | M435: 15.89376155 | N435: 15.77974506 | O435: 15.73635497 | P435: 15.76762743 | Q435: 15.76762743 | R435: 15.99078048 | S435: 16.41459802 | T435: 16.41794584 | U435: 15.99425983 | V435: 15.7738698 | W435: 14.64762717 | X435: 14.39497063 | Y435: 14.39497063 | Z435: 14.39497063 | AA435: 14.39497063 | AB435: 14.39497063 | AC435: 14.39497063 | AD435: 14.39497063 | AE435: 14.39497063 | AF435: 14.39497063 | AG435: 14.64762717 | AH435: 14.64762717 | AI435: 14.64762717 | AJ435: 15.883361 | AK435: 15.58043906 | AL435: 15.84016027 | AM435: 16.05268028 | AN435: 55.97837719 | AO435: 59.15698682 | AP435: 60.23877196 | AQ435: 61.34049024 | AR435: 57.02533366 | AS435: 52.91036197 | AT435: 16.74416908 | AU435: 16.24282107 | AV435: 15.8996665 | AW435: 15.89376155 | AX435: 15.89376155 | AY435: 15.90791456 | AZ435: 15.89376155 | BA435: 15.89376155
A436: 2023-09-07 | B436: 2023 | C436: 9 | D436: 7 | E436: Thursday | F436: 15.73635497 | G436: 14.64762717 | H436: 14.64762717 | I436: 15.66449908 | J436: 15.883361 | K436: 15.58043906 | L436: 15.84016027 | M436: 15.76762743 | N436: 15.58043906 | O436: 15.84016027 | P436: 15.76762743 | Q436: 15.95977956 | R436: 15.91309943 | S436: 17.4358966 | T436: 54.94370556 | U436: 53.92110381 | V436: 16.57858045 | W436: 15.99425983 | X436: 14.64762717 | Y436: 14.64762717 | Z436: 14.39497063 | AA436: 14.39497063 | AB436: 14.39497063 | AC436: 14.39497063 | AD436: 14.64762717 | AE436: 14.64762717 | AF436: 14.64762717 | AG436: 14.64762717 | AH436: 15.66449908 | AI436: 15.883361 | AJ436: 15.94433163 | AK436: 15.76762743 | AL436: 15.96276729 | AM436: 16.25219851 | AN436: 57.44696686 | AO436: 61.34049024 | AP436: 61.34049024 | AQ436: 61.34049024 | AR436: 61.34049024 | AS436: 61.34049024 | AT436: 61.34049024 | AU436: 61.3094587 | AV436: 60.52642963 | AW436: 61.14178527 | AX436: 61.34049024 | AY436: 61.13111937 | AZ436: 61.34049024 | BA436: 61.34049024
A437: 2023-09-08 | B437: 2023 | C437: 9 | D437: 8 | E437: Friday | F437: 61.34049024 | G437: 61.34049024 | H437: 61.34049024 | I437: 58.95364287 | J437: 54.79546485 | K437: 48.43870984 | L437: 45.84512312 | M437: 48.46112235 | N437: 49.35821886 | O437: 47.57140049 | P437: 55.33245599 | Q437: 61.13111937 | R437: 61.34049024 | S437: 61.34049024 | T437: 61.34049024 | U437: 61.34049024 | V437: 61.34049024 | W437: 33.38087881 | X437: 27.23211879 | Y437: 15.89596642 | Z437: 15.89596642 | AA437: 15.89376155 | AB437: 15.89693592 | AC437: 15.89596642 | AD437: 16.25219851 | AE437: 16.74758411 | AF437: 15.89596642 | AG437: 15.89596642 | AH437: 15.89596642 | AI437: 15.89596642 | AJ437: 15.89596642 | AK437: 16.74758411 | AL437: 53.21056066 | AM437: 61.34049024 | AN437: 61.34049024 | AO437: 64.8436602 | AP437: 152.5047233 | AQ437: 192.6333834 | AR437: 190.9789172 | AS437: 188.648626 | AT437: 189.5563694 | AU437: 190.9789172 | AV437: 186.9313769 | AW437: 183.0128327 | AX437: 142.0721649 | AY437: 63.85190249 | AZ437: 63.85190249 | BA437: 63.85190249
A438: 2023-09-09 | B438: 2023 | C438: 9 | D438: 9 | E438: Saturday | F438: 63.24693616 | G438: 63.24693616 | H438: 63.24693616 | I438: 63.24693616 | J438: 63.24693616 | K438: 63.24693616 | L438: 63.24693616 | M438: 63.24693616 | N438: 63.24693616 | O438: 63.24693616 | P438: 63.24693616 | Q438: 63.24693616 | R438: 63.24693616 | S438: 63.24693616 | T438: 63.24693616 | U438: 60.20594439 | V438: 33.50456653 | W438: 15.883361 | X438: 15.66449908 | Y438: 14.64762717 | Z438: 14.64762717 | AA438: 14.39497063 | AB438: 14.39497063 | AC438: 14.39497063 | AD438: 14.39497063 | AE438: 14.39497063 | AF438: 14.39497063 | AG438: 14.39497063 | AH438: 14.39497063 | AI438: 14.39497063 | AJ438: 14.64762717 | AK438: 14.64762717 | AL438: 14.64762717 | AM438: 14.64762717 | AN438: 27.38200188 | AO438: 61.56607593 | AP438: 63.24693616 | AQ438: 63.24693616 | AR438: 63.24693616 | AS438: 63.24693616 | AT438: 63.24693616 | AU438: 63.24693616 | AV438: 63.24693616 | AW438: 62.64755752 | AX438: 62.02786765 | AY438: 59.2371299 | AZ438: 56.99162106 | BA438: 57.10258888
A439: 2023-09-10 | B439: 2023 | C439: 9 | D439: 10 | E439: Sunday | F439: 53.99415357 | G439: 29.64767275 | H439: 28.16662205 | I439: 26.27270791 | J439: 15.90182333 | K439: 15.89376155 | L439: 15.95193273 | M439: 15.76762743 | N439: 15.76762743 | O439: 15.89596642 | P439: 15.89376155 | Q439: 15.89376155 | R439: 15.89376155 | S439: 28.763459 | T439: 28.16662205 | U439: 19.78671007 | V439: 14.64762717 | W439: 14.64762717 | X439: 14.64762717 | Y439: 14.64762717 | Z439: 14.64762717 | AA439: 14.64762717 | AB439: 14.64762717 | AC439: 14.64762717 | AD439: 14.64762717 | AE439: 14.64762717 | AF439: 14.64762717 | AG439: 14.64762717 | AH439: 14.64762717 | AI439: 15.883361 | AJ439: 15.19189591 | AK439: 15.58898791 | AL439: 15.7738698 | AM439: 15.99425983 | AN439: 51.75068335 | AO439: 62.536888 | AP439: 63.24693616 | AQ439: 63.24693616 | AR439: 63.24693616 | AS439: 63.24693616 | AT439: 63.24693616 | AU439: 63.24693616 | AV439: 63.24693616 | AW439: 63.24693616 | AX439: 63.24693616 | AY439: 63.24693616 | AZ439: 63.24693616 | BA439: 63.24693616
A440: 2023-09-11 | B440: 2023 | C440: 9 | D440: 11 | E440: Monday | F440: 63.24693616 | G440: 63.24693616 | H440: 63.24693616 | I440: 63.24693616 | J440: 63.24693616 | K440: 63.24693616 | L440: 63.24693616 | M440: 63.24693616 | N440: 63.24693616 | O440: 63.24693616 | P440: 63.24693616 | Q440: 63.24693616 | R440: 63.24693616 | S440: 63.24693616 | T440: 63.24693616 | U440: 63.24693616 | V440: 63.24693616 | W440: 45.85859364 | X440: 28.21072113 | Y440: 26.53550683 | Z440: 22.248476 | AA440: 21.43632726 | AB440: 21.03735844 | AC440: 20.64301676 | AD440: 20.64301676 | AE440: 20.64301676 | AF440: 20.64301676 | AG440: 21.03735844 | AH440: 21.03735844 | AI440: 25.11634193 | AJ440: 28.16662205 | AK440: 29.35451121 | AL440: 52.29147088 | AM440: 63.24693616 | AN440: 63.24693616 | AO440: 86.58921208 | AP440: 145.3685383 | AQ440: 157.4808059 | AR440: 153.7671458 | AS440: 136.9774609 | AT440: 76.10180003 | AU440: 63.42983231 | AV440: 63.24693616 | AW440: 63.24693616 | AX440: 63.24693616 | AY440: 60.32375292 | AZ440: 56.97865726 | BA440: 55.01814069
A441: 2023-09-12 | B441: 2023 | C441: 9 | D441: 12 | E441: Tuesday | F441: 29.06072501 | G441: 26.01239775 | H441: 15.99425983 | I441: 15.7738698 | J441: 14.64762717 | K441: 14.64762717 | L441: 14.64762717 | M441: 14.64762717 | N441: 14.39497063 | O441: 14.39497063 | P441: 14.64762717 | Q441: 14.64762717 | R441: 14.64762717 | S441: 15.883361 | T441: 15.883361 | U441: 14.64762717 | V441: 14.39497063 | W441: 14.39497063 | X441: 14.40897718 | Y441: 14.44316488 | Z441: 0 | AA441: 0 | AB441: 0 | AC441: 0 | AD441: 0 | AE441: 0 | AF441: 0 | AG441: 0 | AH441: 0 | AI441: 9.7396572 | AJ441: 14.44316488 | AK441: 14.40897718 | AL441: 14.39497063 | AM441: 14.64762717 | AN441: 14.64762717 | AO441: 15.883361 | AP441: 15.99796366 | AQ441: 15.89596642 | AR441: 15.89596642 | AS441: 15.89596642 | AT441: 15.89596642 | AU441: 15.89596642 | AV441: 15.90250916 | AW441: 15.93751819 | AX441: 15.76762743 | AY441: 15.76762743 | AZ441: 15.76762743 | BA441: 15.98185022
A442: 2023-09-13 | B442: 2023 | C442: 9 | D442: 13 | E442: Wednesday | F442: 15.89376155 | G442: 15.89376155 | H442: 15.95878339 | I442: 15.76762743 | J442: 15.76762743 | K442: 15.883361 | L442: 14.64762717 | M442: 15.66449908 | N442: 15.883361 | O442: 15.94433163 | P442: 15.9195488 | Q442: 15.89596642 | R442: 27.61231785 | S442: 53.5649433 | T442: 53.47986458 | U442: 38.85346607 | V442: 28.49242586 | W442: 19.78671007 | X442: 14.64762717 | Y442: 14.64762717 | Z442: 14.64762717 | AA442: 14.64762717 | AB442: 14.64762717 | AC442: 14.64762717 | AD442: 14.64762717 | AE442: 14.64762717 | AF442: 14.64762717 | AG442: 14.64762717 | AH442: 14.64762717 | AI442: 14.64762717 | AJ442: 15.68859893 | AK442: 15.87061707 | AL442: 26.27270791 | AM442: 30.25261401 | AN442: 62.536888 | AO442: 63.24693616 | AP442: 63.24693616 | AQ442: 63.24693616 | AR442: 63.24693616 | AS442: 63.24693616 | AT442: 63.24693616 | AU442: 63.24693616 | AV442: 63.24693616 | AW442: 63.24693616 | AX442: 63.24693616 | AY442: 63.24693616 | AZ442: 63.24693616 | BA442: 63.24693616
A443: 2023-09-14 | B443: 2023 | C443: 9 | D443: 14 | E443: Thursday | F443: 63.24693616 | G443: 63.24693616 | H443: 62.536888 | I443: 60.32375292 | J443: 55.2299166 | K443: 54.22252791 | L443: 53.22702955 | M443: 53.22702955 | N443: 52.24321222 | O443: 53.22702955 | P443: 55.61906699 | Q443: 58.1634856 | R443: 62.536888 | S443: 63.24693616 | T443: 63.24693616 | U443: 59.50748315 | V443: 29.56453113 | W443: 22.74552422 | X443: 14.64762717 | Y443: 14.64762717 | Z443: 14.64762717 | AA443: 14.64762717 | AB443: 14.64762717 | AC443: 14.64762717 | AD443: 14.64762717 | AE443: 14.64762717 | AF443: 14.64762717 | AG443: 14.64762717 | AH443: 14.64762717 | AI443: 14.64762717 | AJ443: 14.64762717 | AK443: 14.64762717 | AL443: 14.64762717 | AM443: 28.48894228 | AN443: 62.536888 | AO443: 63.24693616 | AP443: 63.24693616 | AQ443: 63.24693616 | AR443: 63.24693616 | AS443: 63.24693616 | AT443: 63.24693616 | AU443: 63.24693616 | AV443: 63.24693616 | AW443: 63.24693616 | AX443: 60.19949453 | AY443: 29.95336469 | AZ443: 29.06072501 | BA443: 29.35451121
A444: 2023-09-15 | B444: 2023 | C444: 9 | D444: 15 | E444: Friday | F444: 27.33919826 | G444: 15.92052986 | H444: 15.95014289 | I444: 15.87061707 | J444: 15.68859893 | K444: 14.64762717 | L444: 14.64762717 | M444: 14.64762717 | N444: 14.64762717 | O444: 14.64762717 | P444: 14.64762717 | Q444: 14.64762717 | R444: 15.883361 | S444: 15.99425983 | T444: 15.883361 | U444: 14.64762717 | V444: 14.39497063 | W444: 14.39497063 | X444: 14.40897718 | Y444: 14.44316488 | Z444: 14.21374778 | AA444: 0 | AB444: 0 | AC444: 0 | AD444: 0 | AE444: 0 | AF444: 0 | AG444: 0 | AH444: 0 | AI444: 14.44316488 | AJ444: 14.39497063 | AK444: 14.39903279 | AL444: 14.39497063 | AM444: 14.64762717 | AN444: 14.64762717 | AO444: 15.99425983 | AP444: 15.92797772 | AQ444: 26.27270791 | AR444: 15.89596642 | AS444: 15.89596642 | AT444: 15.89596642 | AU444: 16.0419064 | AV444: 15.78642938 | AW444: 15.4156556 | AX444: 15.89462533 | AY444: 15.76762743 | AZ444: 15.76762743 | BA444: 15.95239796
A445: 2023-09-16 | B445: 2023 | C445: 9 | D445: 16 | E445: Saturday | F445: 15.883361 | G445: 14.64762717 | H445: 14.64762717 | I445: 14.64762717 | J445: 14.64762717 | K445: 14.64762717 | L445: 14.64762717 | M445: 14.64762717 | N445: 14.64762717 | O445: 14.64762717 | P445: 14.64762717 | Q445: 15.883361 | R445: 15.99796366 | S445: 15.89596642 | T445: 28.86982241 | U445: 27.94365891 | V445: 22.17282714 | W445: 15.89596642 | X445: 20.73177603 | Y445: 15.91101151 | Z445: 15.89376155 | AA445: 15.99425983 | AB445: 14.64762717 | AC445: 14.64762717 | AD445: 14.64762717 | AE445: 14.64762717 | AF445: 14.64762717 | AG445: 14.64762717 | AH445: 14.64762717 | AI445: 14.64762717 | AJ445: 14.64762717 | AK445: 14.64762717 | AL445: 14.64762717 | AM445: 14.64762717 | AN445: 14.64762717 | AO445: 28.88165699 | AP445: 57.97073678 | AQ445: 60.12384516 | AR445: 61.2200389 | AS445: 61.2200389 | AT445: 62.19303949 | AU445: 62.81437951 | AV445: 63.44208609 | AW445: 63.44208609 | AX445: 63.44208609 | AY445: 63.44208609 | AZ445: 63.44208609 | BA445: 63.44208609
A446: 2023-09-17 | B446: 2023 | C446: 9 | D446: 17 | E446: Sunday | F446: 63.44208609 | G446: 63.44208609 | H446: 62.03976984 | I446: 54.47345549 | J446: 48.56534236 | K446: 31.29089211 | L446: 30.98153091 | M446: 30.37194371 | N446: 30.35348925 | O446: 46.3987732 | P446: 52.80833298 | Q446: 57.89169989 | R446: 60.02850117 | S446: 58.91562056 | T446: 33.82529869 | U446: 29.77423995 | V446: 20.06912803 | W446: 19.10989835 | X446: 15.89376155 | Y446: 15.89376155 | Z446: 15.95239796 | AA446: 15.76762743 | AB446: 15.76762743 | AC446: 15.93751819 | AD446: 15.90250916 | AE446: 15.89736222 | AF446: 15.89376155 | AG446: 15.89376155 | AH446: 15.89376155 | AI446: 15.89693592 | AJ446: 15.89596642 | AK446: 21.04235613 | AL446: 28.86982241 | AM446: 58.45941427 | AN446: 63.44208609 | AO446: 63.45639191 | AP446: 134.1365993 | AQ446: 157.7010167 | AR446: 154.3587566 | AS446: 151.1230151 | AT446: 138.2012791 | AU446: 63.80978448 | AV446: 63.44208609 | AW446: 63.44208609 | AX446: 63.44208609 | AY446: 63.44208609 | AZ446: 63.44208609 | BA446: 63.44208609
A447: 2023-09-18 | B447: 2023 | C447: 9 | D447: 18 | E447: Monday | F447: 63.44208609 | G447: 63.44208609 | H447: 63.44208609 | I447: 63.44208609 | J447: 60.12714015 | K447: 53.22702955 | L447: 52.24321222 | M447: 50.30980785 | N447: 31.61351293 | O447: 31.29089211 | P447: 31.61351293 | Q447: 52.80935844 | R447: 55.87151694 | S447: 56.91647482 | T447: 30.3817015 | U447: 16.04498452 | V447: 15.80885234 | W447: 14.64762717 | X447: 14.39497063 | Y447: 14.39497063 | Z447: 14.39497063 | AA447: 14.39497063 | AB447: 14.39497063 | AC447: 14.39497063 | AD447: 14.39497063 | AE447: 14.39497063 | AF447: 14.39497063 | AG447: 14.39497063 | AH447: 14.39497063 | AI447: 14.39497063 | AJ447: 14.39497063 | AK447: 14.39497063 | AL447: 14.39497063 | AM447: 15.61434005 | AN447: 16.04498452 | AO447: 55.81093265 | AP447: 58.59343309 | AQ447: 59.7694463 | AR447: 59.04405875 | AS447: 55.87151694 | AT447: 30.39415449 | AU447: 28.02052373 | AV447: 15.90397565 | AW447: 15.93751819 | AX447: 15.76762743 | AY447: 15.89376155 | AZ447: 15.89376155 | BA447: 15.99425983
A448: 2023-09-19 | B448: 2023 | C448: 9 | D448: 19 | E448: Tuesday | F448: 15.6300822 | G448: 14.64762717 | H448: 14.64762717 | I448: 14.64762717 | J448: 14.64762717 | K448: 14.64762717 | L448: 14.64762717 | M448: 14.64762717 | N448: 14.64762717 | O448: 14.64762717 | P448: 14.64762717 | Q448: 15.68859893 | R448: 15.87061707 | S448: 16.00600609 | T448: 15.99796366 | U448: 15.883361 | V448: 14.64762717 | W448: 14.64762717 | X448: 14.39497063 | Y448: 14.39497063 | Z448: 14.39497063 | AA448: 14.39497063 | AB448: 14.39497063 | AC448: 14.39497063 | AD448: 14.64762717 | AE448: 15.51355982 | AF448: 15.66449908 | AG448: 15.883361 | AH448: 15.99796366 | AI448: 21.33604371 | AJ448: 22.87858193 | AK448: 29.17083732 | AL448: 30.36369905 | AM448: 47.3731654 | AN448: 59.04405875 | AO448: 62.55349865 | AP448: 63.44208609 | AQ448: 63.44208609 | AR448: 63.44208609 | AS448: 63.44208609 | AT448: 63.44208609 | AU448: 63.44208609 | AV448: 63.44208609 | AW448: 63.44208609 | AX448: 63.44208609 | AY448: 56.91254043 | AZ448: 63.44208609 | BA448: 63.44208609
A449: 2023-09-20 | B449: 2023 | C449: 9 | D449: 20 | E449: Wednesday | F449: 55.2299166 | G449: 55.80563988 | H449: 51.8322546 | I449: 29.44975164 | J449: 28.30092952 | K449: 15.89596642 | L449: 15.89596642 | M449: 15.89596642 | N449: 15.89596642 | O449: 28.30092952 | P449: 28.86982241 | Q449: 49.52755511 | R449: 59.04405875 | S449: 62.33306198 | T449: 59.67402401 | U449: 58.01406565 | V449: 28.0580647 | W449: 22.11416252 | X449: 15.95506123 | Y449: 15.76762743 | Z449: 15.883361 | AA449: 14.64762717 | AB449: 14.64762717 | AC449: 15.883361 | AD449: 15.99425983 | AE449: 14.64762717 | AF449: 14.64762717 | AG449: 14.64762717 | AH449: 15.66449908 | AI449: 15.883361 | AJ449: 15.76762743 | AK449: 15.95506123 | AL449: 15.91451573 | AM449: 51.43089753 | AN449: 61.22339396 | AO449: 63.44208609 | AP449: 63.44208609 | AQ449: 63.44208609 | AR449: 63.44208609 | AS449: 63.44208609 | AT449: 63.44208609 | AU449: 63.44208609 | AV449: 63.44208609 | AW449: 63.44208609 | AX449: 63.44208609 | AY449: 63.44208609 | AZ449: 63.44208609 | BA449: 63.44208609
A450: 2023-09-21 | B450: 2023 | C450: 9 | D450: 21 | E450: Thursday | F450: 63.44208609 | G450: 63.44208609 | H450: 63.44208609 | I450: 63.44208609 | J450: 63.44208609 | K450: 62.81437951 | L450: 62.24997414 | M450: 62.24997414 | N450: 62.32875316 | O450: 62.81437951 | P450: 63.44208609 | Q450: 63.44208609 | R450: 63.44208609 | S450: 63.44208609 | T450: 63.44208609 | U450: 63.44208609 | V450: 56.87938177 | W450: 31.51407522 | X450: 15.89810589 | Y450: 15.89376155 | Z450: 15.89376155 | AA450: 15.89376155 | AB450: 15.93751819 | AC450: 15.76762743 | AD450: 15.89376155 | AE450: 15.93751819 | AF450: 15.76762743 | AG450: 15.76762743 | AH450: 15.93751819 | AI450: 15.89376155 | AJ450: 15.90116022 | AK450: 22.18039542 | AL450: 32.69209687 | AM450: 59.38485586 | AN450: 63.44208609 | AO450: 63.44208609 | AP450: 125.2652371 | AQ450: 147.6921795 | AR450: 147.6921795 | AS450: 144.6290986 | AT450: 65.74323872 | AU450: 65.74323872 | AV450: 64.23405459 | AW450: 63.44208609 | AX450: 63.44208609 | AY450: 63.44208609 | AZ450: 63.44208609 | BA450: 63.44208609
A451: 2023-09-22 | B451: 2023 | C451: 9 | D451: 22 | E451: Friday | F451: 63.44208609 | G451: 63.44208609 | H451: 63.44208609 | I451: 63.44208609 | J451: 63.44208609 | K451: 63.44208609 | L451: 63.44208609 | M451: 63.44208609 | N451: 63.44208609 | O451: 63.44208609 | P451: 63.44208609 | Q451: 63.44208609 | R451: 63.44208609 | S451: 63.44208609 | T451: 63.44208609 | U451: 63.44208609 | V451: 56.58892992 | W451: 37.04790028 | X451: 35.13516102 | Y451: 23.93953973 | Z451: 22.248476 | AA451: 15.92052986 | AB451: 15.95014289 | AC451: 15.87061707 | AD451: 15.68859893 | AE451: 14.64762717 | AF451: 14.64762717 | AG451: 14.64762717 | AH451: 14.64762717 | AI451: 14.64762717 | AJ451: 15.68859893 | AK451: 15.87061707 | AL451: 29.2400065 | AM451: 57.28474573 | AN451: 63.44208609 | AO451: 63.44208609 | AP451: 63.44208609 | AQ451: 63.44208609 | AR451: 63.59832136 | AS451: 63.44208609 | AT451: 63.44208609 | AU451: 63.44208609 | AV451: 63.44208609 | AW451: 63.44208609 | AX451: 63.44208609 | AY451: 63.44208609 | AZ451: 63.44208609 | BA451: 63.44208609
A452: 2023-09-23 | B452: 2023 | C452: 9 | D452: 23 | E452: Saturday | F452: 132.9650779 | G452: 132.9650779 | H452: 78.18515902 | I452: 73.3428637 | J452: 72.57924023 | K452: 71.86156359 | L452: 71.86156359 | M452: 71.86156359 | N452: 71.86156359 | O452: 71.86156359 | P452: 71.86156359 | Q452: 71.86156359 | R452: 72.64260598 | S452: 71.86156359 | T452: 67.03274517 | U452: 59.97736337 | V452: 31.18545278 | W452: 15.99425983 | X452: 15.7738698 | Y452: 14.64762717 | Z452: 14.64762717 | AA452: 14.64762717 | AB452: 14.64762717 | AC452: 14.39497063 | AD452: 14.39497063 | AE452: 14.39497063 | AF452: 14.64762717 | AG452: 14.64762717 | AH452: 14.64762717 | AI452: 14.64762717 | AJ452: 14.64762717 | AK452: 14.64762717 | AL452: 14.64762717 | AM452: 19.78671007 | AN452: 60.95079847 | AO452: 69.40857818 | AP452: 71.86156359 | AQ452: 71.86156359 | AR452: 72.64416418 | AS452: 72.64416418 | AT452: 71.86156359 | AU452: 71.86156359 | AV452: 71.86156359 | AW452: 70.44761342 | AX452: 70.44761342 | AY452: 70.44761342 | AZ452: 71.86156359 | BA452: 71.86156359
A453: 2023-09-24 | B453: 2023 | C453: 9 | D453: 24 | E453: Sunday | F453: 71.86156359 | G453: 71.86156359 | H453: 69.75112816 | I453: 67.70240476 | J453: 66.82173376 | K453: 66.36954983 | L453: 66.82173376 | M453: 66.82173376 | N453: 65.65742342 | O453: 65.65742342 | P453: 65.06218108 | Q453: 65.71272559 | R453: 65.71272559 | S453: 64.80240724 | T453: 42.02373786 | U453: 24.1212015 | V453: 15.89693592 | W453: 15.89376155 | X453: 15.89596642 | Y453: 15.9195488 | Z453: 15.94433163 | AA453: 15.883361 | AB453: 15.66449908 | AC453: 14.64762717 | AD453: 14.64762717 | AE453: 14.64762717 | AF453: 14.64762717 | AG453: 14.39497063 | AH453: 14.64762717 | AI453: 14.64762717 | AJ453: 14.64762717 | AK453: 14.64762717 | AL453: 15.80885234 | AM453: 16.04498452 | AN453: 56.88709139 | AO453: 65.8430533 | AP453: 69.89686381 | AQ453: 71.86156359 | AR453: 71.46791907 | AS453: 69.4987938 | AT453: 68.29956349 | AU453: 66.96701318 | AV453: 65.71272559 | AW453: 65.65742342 | AX453: 63.77957442 | AY453: 60.93532309 | AZ453: 62.44715088 | BA453: 65.06218108
A454: 2023-09-25 | B454: 2023 | C454: 9 | D454: 25 | E454: Monday | F454: 64.41782667 | G454: 62.52352577 | H454: 58.32559375 | I454: 56.24940992 | J454: 56.44549961 | K454: 52.92708772 | L454: 55.2299166 | M454: 52.5351276 | N454: 57.69815276 | O454: 56.24940992 | P454: 59.80723587 | Q454: 65.48237708 | R454: 68.37862357 | S454: 69.89686381 | T454: 67.01674662 | U454: 58.00728051 | V454: 30.60503509 | W454: 15.91311669 | X454: 15.95948274 | Y454: 15.76762743 | Z454: 15.76762743 | AA454: 15.87061707 | AB454: 15.68859893 | AC454: 14.64762717 | AD454: 15.883361 | AE454: 14.64762717 | AF454: 14.64762717 | AG454: 14.64762717 | AH454: 14.64762717 | AI454: 14.64762717 | AJ454: 14.64762717 | AK454: 15.68859893 | AL454: 15.87061707 | AM454: 51.76365636 | AN454: 64.93428578 | AO454: 71.86156359 | AP454: 74.53752768 | AQ454: 78.47838017 | AR454: 75.834244 | AS454: 73.68485217 | AT454: 73.25728317 | AU454: 73.25728317 | AV454: 71.86156359 | AW454: 71.86156359 | AX454: 70.79402588 | AY454: 69.41960037 | AZ454: 70.46031635 | BA454: 71.29971758
A455: 2023-09-26 | B455: 2023 | C455: 9 | D455: 26 | E455: Tuesday | F455: 69.38420454 | G455: 68.00074066 | H455: 66.82173376 | I455: 65.65742342 | J455: 64.50753652 | K455: 64.50753652 | L455: 65.65742342 | M455: 65.65742342 | N455: 65.71272559 | O455: 66.36954983 | P455: 68.37862357 | Q455: 70.46031635 | R455: 72.186729 | S455: 76.58744501 | T455: 72.23472847 | U455: 70.70362264 | V455: 64.41782667 | W455: 42.8071166 | X455: 38.77313869 | Y455: 34.67309881 | Z455: 33.40679436 | AA455: 30.28092493 | AB455: 32.18762772 | AC455: 31.58427616 | AD455: 31.58427616 | AE455: 31.58427616 | AF455: 15.89596642 | AG455: 15.89596642 | AH455: 15.89596642 | AI455: 15.89596642 | AJ455: 15.89596642 | AK455: 15.89596642 | AL455: 45.89515608 | AM455: 60.96114374 | AN455: 70.74496986 | AO455: 77.14775207 | AP455: 132.9650779 | AQ455: 132.9650779 | AR455: 132.9650779 | AS455: 98.31219901 | AT455: 90.35822091 | AU455: 89.21096316 | AV455: 78.47838017 | AW455: 75.44387968 | AX455: 72.64416418 | AY455: 71.86156359 | AZ455: 71.86156359 | BA455: 71.86156359
A456: 2023-09-27 | B456: 2023 | C456: 9 | D456: 27 | E456: Wednesday | F456: 70.40397134 | G456: 68.37862357 | H456: 66.36954983 | I456: 64.50753652 | J456: 63.77957442 | K456: 60.45290037 | L456: 63.77957442 | M456: 64.41782667 | N456: 63.77957442 | O456: 64.28970894 | P456: 65.65742342 | Q456: 68.37862357 | R456: 71.86156359 | S456: 72.64416418 | T456: 69.16468912 | U456: 64.41782667 | V456: 41.26675643 | W456: 32.79805893 | X456: 16.00600609 | Y456: 15.87061707 | Z456: 15.68859893 | AA456: 14.64762717 | AB456: 14.64762717 | AC456: 14.64762717 | AD456: 14.64762717 | AE456: 14.64762717 | AF456: 14.64762717 | AG456: 14.64762717 | AH456: 14.64762717 | AI456: 15.66449908 | AJ456: 15.883361 | AK456: 15.99796366 | AL456: 50.34169164 | AM456: 65.06218108 | AN456: 72.64416418 | AO456: 94.38382349 | AP456: 146.0705527 | AQ456: 166.3992861 | AR456: 164.5986715 | AS456: 157.4965556 | AT456: 145.3685383 | AU456: 141.1248691 | AV456: 132.9650779 | AW456: 88.44320042 | AX456: 75.834244 | AY456: 71.86156359 | AZ456: 70.72319978 | BA456: 69.27146112
A457: 2023-09-28 | B457: 2023 | C457: 9 | D457: 28 | E457: Thursday | F457: 66.36954983 | G457: 63.1053313 | H457: 54.76296991 | I457: 15.89596642 | J457: 15.89693592 | K457: 15.89376155 | L457: 15.89596642 | M457: 15.89596642 | N457: 15.89596642 | O457: 15.89596642 | P457: 15.89596642 | Q457: 55.59334404 | R457: 59.75596579 | S457: 61.97537989 | T457: 56.20775219 | U457: 36.56406261 | V457: 15.94433163 | W457: 15.883361 | X457: 14.64762717 | Y457: 14.64762717 | Z457: 14.64762717 | AA457: 14.39497063 | AB457: 14.39497063 | AC457: 14.39497063 | AD457: 14.39497063 | AE457: 14.39497063 | AF457: 14.39497063 | AG457: 14.39497063 | AH457: 14.39497063 | AI457: 14.39497063 | AJ457: 14.64762717 | AK457: 14.64762717 | AL457: 14.64762717 | AM457: 14.64762717 | AN457: 54.82410766 | AO457: 65.8430533 | AP457: 70.627281 | AQ457: 71.86156359 | AR457: 71.86156359 | AS457: 71.86156359 | AT457: 71.86156359 | AU457: 71.86156359 | AV457: 71.86156359 | AW457: 71.15105696 | AX457: 70.627281 | AY457: 69.43833703 | AZ457: 69.75112816 | BA457: 71.15105696
A458: 2023-09-29 | B458: 2023 | C458: 9 | D458: 29 | E458: Friday | F458: 70.13070695 | G458: 68.92057272 | H458: 66.36954983 | I458: 64.41782667 | J458: 63.77056292 | K458: 60.50721395 | L458: 55.10582505 | M458: 54.09739591 | N458: 53.12292942 | O458: 50.27388602 | P458: 55.80693859 | Q458: 58.95364287 | R458: 64.41782667 | S458: 64.86841236 | T458: 57.32104159 | U458: 33.38087881 | V458: 24.42734196 | W458: 15.96055422 | X458: 15.76762743 | Y458: 15.95506123 | Z458: 15.76762743 | AA458: 15.883361 | AB458: 14.64762717 | AC458: 14.64762717 | AD458: 14.39497063 | AE458: 14.64762717 | AF458: 14.64762717 | AG458: 14.64762717 | AH458: 14.64762717 | AI458: 14.64762717 | AJ458: 15.68859893 | AK458: 15.87061707 | AL458: 15.95014289 | AM458: 15.92052986 | AN458: 55.85892108 | AO458: 62.45228061 | AP458: 65.06218108 | AQ458: 68.37862357 | AR458: 70.63277753 | AS458: 70.63277753 | AT458: 70.63277753 | AU458: 69.06149845 | AV458: 68.07615353 | AW458: 67.70240476 | AX458: 67.03274517 | AY458: 66.36954983 | AZ458: 68.07615353 | BA458: 71.70821326
A459: 2023-09-30 | B459: 2023 | C459: 9 | D459: 30 | E459: Saturday | F459: 58.95955794 | G459: 58.95955794 | H459: 58.95955794 | I459: 58.02318989 | J459: 56.24940992 | K459: 55.74988 | L459: 56.30658344 | M459: 55.74988 | N459: 55.74988 | O459: 55.74988 | P459: 58.02318989 | Q459: 58.60266361 | R459: 58.95955794 | S459: 53.70686669 | T459: 34.50878929 | U459: 20.52142658 | V459: 15.99425983 | W459: 15.7738698 | X459: 14.64762717 | Y459: 15.883361 | Z459: 14.64762717 | AA459: 14.64762717 | AB459: 14.64762717 | AC459: 14.64762717 | AD459: 14.64762717 | AE459: 14.64762717 | AF459: 14.64762717 | AG459: 14.64762717 | AH459: 14.64762717 | AI459: 14.64762717 | AJ459: 14.64762717 | AK459: 14.84515762 | AL459: 14.64762717 | AM459: 37.10700981 | AN459: 55.72168306 | AO459: 58.95955794 | AP459: 59.03868455 | AQ459: 61.2178214 | AR459: 61.96510539 | AS459: 60.53294549 | AT459: 59.79268307 | AU459: 58.95955794 | AV459: 58.95955794 | AW459: 58.95955794 | AX459: 58.95955794 | AY459: 58.95955794 | AZ459: 58.95955794 | BA459: 58.95955794
A460: 2023-10-01 | B460: 2023 | C460: 10 | D460: 1 | E460: Sunday | F460: 58.95955794 | G460: 58.95955794 | H460: 58.95955794 | I460: 58.95955794 | J460: 58.32559375 | K460: 57.28122736 | L460: 56.88152395 | M460: 56.31916079 | N460: 56.31916079 | O460: 56.24940992 | P460: 56.31916079 | Q460: 56.88152395 | R460: 57.89169989 | S460: 53.01975414 | T460: 30.93155292 | U460: 15.91177902 | V460: 15.96073187 | W460: 15.76762743 | X460: 15.76762743 | Y460: 15.76762743 | Z460: 15.76762743 | AA460: 15.76762743 | AB460: 15.76762743 | AC460: 15.883361 | AD460: 14.64762717 | AE460: 14.64762717 | AF460: 14.64762717 | AG460: 14.64762717 | AH460: 14.64762717 | AI460: 14.64762717 | AJ460: 14.64762717 | AK460: 14.64762717 | AL460: 14.64762717 | AM460: 19.78671007 | AN460: 57.91970352 | AO460: 58.95955794 | AP460: 59.341174 | AQ460: 61.98612211 | AR460: 61.2178214 | AS460: 59.03868455 | AT460: 58.95955794 | AU460: 58.95955794 | AV460: 58.95955794 | AW460: 58.95955794 | AX460: 58.95955794 | AY460: 58.95955794 | AZ460: 58.95955794 | BA460: 58.95955794
A461: 2023-10-02 | B461: 2023 | C461: 10 | D461: 2 | E461: Monday | F461: 58.95955794 | G461: 58.02677888 | H461: 55.2299166 | I461: 54.22252791 | J461: 53.44479929 | K461: 52.24321222 | L461: 50.87892789 | M461: 45.79650935 | N461: 15.89596642 | O461: 15.89596642 | P461: 15.89596642 | Q461: 15.89596642 | R461: 15.92797772 | S461: 15.99425983 | T461: 15.7738698 | U461: 15.62187667 | V461: 14.64762717 | W461: 14.64762717 | X461: 14.64762717 | Y461: 14.39497063 | Z461: 14.39497063 | AA461: 14.39497063 | AB461: 14.39497063 | AC461: 14.39497063 | AD461: 14.39497063 | AE461: 14.39497063 | AF461: 14.64762717 | AG461: 14.64762717 | AH461: 15.75812765 | AI461: 16.04498452 | AJ461: 22.03691554 | AK461: 27.17464216 | AL461: 37.69677439 | AM461: 58.95955794 | AN461: 60.12166737 | AO461: 82.39296911 | AP461: 114.4203233 | AQ461: 115.5649414 | AR461: 76.10180003 | AS461: 61.37242258 | AT461: 60.12166737 | AU461: 58.95955794 | AV461: 58.95955794 | AW461: 58.95955794 | AX461: 57.59816606 | AY461: 55.86643151 | AZ461: 55.21095926 | BA461: 56.88504232
A462: 2023-10-03 | B462: 2023 | C462: 10 | D462: 3 | E462: Tuesday | F462: 55.86643151 | G462: 54.83382902 | H462: 55.21095926 | I462: 53.5793952 | J462: 52.49486783 | K462: 49.30378356 | L462: 15.89754966 | M462: 15.89376155 | N462: 15.89376155 | O462: 15.89376155 | P462: 15.89376155 | Q462: 15.89376155 | R462: 15.89736222 | S462: 15.89596642 | T462: 15.89596642 | U462: 24.75134599 | V462: 22.70870279 | W462: 20.63872597 | X462: 15.99425983 | Y462: 15.7738698 | Z462: 14.64762717 | AA462: 14.64762717 | AB462: 15.883361 | AC462: 14.64762717 | AD462: 14.64762717 | AE462: 14.64762717 | AF462: 14.64762717 | AG462: 15.883361 | AH462: 14.64762717 | AI462: 14.64762717 | AJ462: 15.68859893 | AK462: 15.87061707 | AL462: 15.95014289 | AM462: 49.52935763 | AN462: 56.88152395 | AO462: 54.66495984 | AP462: 56.31916079 | AQ462: 54.79527964 | AR462: 53.81327228 | AS462: 52.52397103 | AT462: 51.97497595 | AU462: 52.73896537 | AV462: 54.11478538 | AW462: 54.79866286 | AX462: 54.11478538 | AY462: 55.86643151 | AZ462: 58.95955794 | BA462: 58.95955794
A463: 2023-10-04 | B463: 2023 | C463: 10 | D463: 4 | E463: Wednesday | F463: 58.95955794 | G463: 58.95955794 | H463: 58.95955794 | I463: 58.02318989 | J463: 55.64165105 | K463: 54.62510987 | L463: 55.20129796 | M463: 54.65539408 | N463: 54.65539408 | O463: 53.5497072 | P463: 58.48423852 | Q463: 58.95955794 | R463: 58.95955794 | S463: 58.95955794 | T463: 58.95955794 | U463: 58.95955794 | V463: 58.95955794 | W463: 58.95955794 | X463: 58.95955794 | Y463: 58.95955794 | Z463: 58.02318989 | AA463: 51.46000755 | AB463: 40.92966522 | AC463: 42.980666 | AD463: 40.65148873 | AE463: 30.35983216 | AF463: 15.89596642 | AG463: 15.89596642 | AH463: 15.89596642 | AI463: 30.91541865 | AJ463: 15.89596642 | AK463: 50.86756258 | AL463: 54.08480072 | AM463: 55.86643151 | AN463: 57.96863698 | AO463: 58.95955794 | AP463: 58.95955794 | AQ463: 58.95955794 | AR463: 58.95955794 | AS463: 58.95955794 | AT463: 58.03614779 | AU463: 58.95955794 | AV463: 58.02677888 | AW463: 57.45305895 | AX463: 56.31916079 | AY463: 55.86643151 | AZ463: 55.86643151 | BA463: 56.91129428
A464: 2023-10-05 | B464: 2023 | C464: 10 | D464: 5 | E464: Thursday | F464: 55.86643151 | G464: 54.66495984 | H464: 53.5793952 | I464: 15.89763208 | J464: 15.89376155 | K464: 15.89376155 | L464: 15.89376155 | M464: 15.89376155 | N464: 15.89376155 | O464: 15.89376155 | P464: 15.89376155 | Q464: 15.89376155 | R464: 51.48853702 | S464: 52.21512001 | T464: 15.89596642 | U464: 15.9195488 | V464: 15.94433163 | W464: 15.883361 | X464: 15.46894925 | Y464: 15.883361 | Z464: 14.64762717 | AA464: 14.64762717 | AB464: 14.64762717 | AC464: 14.64762717 | AD464: 14.64762717 | AE464: 14.39497063 | AF464: 14.64762717 | AG464: 14.64762717 | AH464: 14.64762717 | AI464: 14.39497063 | AJ464: 14.64762717 | AK464: 14.64762717 | AL464: 14.64762717 | AM464: 14.64762717 | AN464: 19.62326385 | AO464: 55.76578214 | AP464: 58.95955794 | AQ464: 58.95955794 | AR464: 58.95955794 | AS464: 58.95955794 | AT464: 58.95955794 | AU464: 58.95955794 | AV464: 58.95955794 | AW464: 58.95955794 | AX464: 57.96863698 | AY464: 56.91129428 | AZ464: 57.46233523 | BA464: 57.96863698
A465: 2023-10-06 | B465: 2023 | C465: 10 | D465: 6 | E465: Friday | F465: 56.91129428 | G465: 56.31916079 | H465: 55.762333 | I465: 53.37130568 | J465: 53.58877264 | K465: 51.46000755 | L465: 46.89464705 | M465: 43.34906109 | N465: 50.70233589 | O465: 50.88829925 | P465: 52.52397103 | Q465: 53.60752201 | R465: 55.78673678 | S465: 56.84244086 | T465: 52.80833298 | U465: 15.92797772 | V465: 15.99425983 | W465: 15.7738698 | X465: 14.64762717 | Y465: 14.64762717 | Z465: 14.64762717 | AA465: 14.39497063 | AB465: 14.39497063 | AC465: 14.39497063 | AD465: 14.39497063 | AE465: 14.39497063 | AF465: 14.39497063 | AG465: 14.39497063 | AH465: 14.39497063 | AI465: 14.39497063 | AJ465: 14.64762717 | AK465: 14.64762717 | AL465: 14.64762717 | AM465: 14.64762717 | AN465: 53.58877264 | AO465: 57.96863698 | AP465: 58.95955794 | AQ465: 58.95955794 | AR465: 58.95955794 | AS465: 58.95955794 | AT465: 58.95955794 | AU465: 58.95955794 | AV465: 58.95955794 | AW465: 58.95955794 | AX465: 58.95955794 | AY465: 58.95955794 | AZ465: 58.95955794 | BA465: 58.95955794
A466: 2023-10-07 | B466: 2023 | C466: 10 | D466: 7 | E466: Saturday | F466: 61.11651187 | G466: 61.11651187 | H466: 61.11651187 | I466: 61.11651187 | J466: 61.11651187 | K466: 60.93532309 | L466: 58.74253321 | M466: 58.74253321 | N466: 59.31780404 | O466: 60.91218335 | P466: 61.11651187 | Q466: 61.11651187 | R466: 61.11651187 | S466: 58.73486976 | T466: 48.23324524 | U466: 27.22581588 | V466: 15.90073668 | W466: 15.89376155 | X466: 15.89376155 | Y466: 15.93751819 | Z466: 15.76762743 | AA466: 15.76762743 | AB466: 15.90624051 | AC466: 15.90461195 | AD466: 15.99425983 | AE466: 14.64762717 | AF466: 14.64762717 | AG466: 15.68859893 | AH466: 15.87061707 | AI466: 15.76762743 | AJ466: 15.95707719 | AK466: 20.70797542 | AL466: 30.62887755 | AM466: 55.84495987 | AN466: 61.11651187 | AO466: 61.11651187 | AP466: 61.11651187 | AQ466: 61.11651187 | AR466: 61.11651187 | AS466: 61.11651187 | AT466: 61.11651187 | AU466: 61.11651187 | AV466: 61.11651187 | AW466: 61.11651187 | AX466: 61.11651187 | AY466: 61.11651187 | AZ466: 61.11651187 | BA466: 61.11651187
A467: 2023-10-08 | B467: 2023 | C467: 10 | D467: 8 | E467: Sunday | F467: 61.11651187 | G467: 61.11651187 | H467: 61.11651187 | I467: 61.11651187 | J467: 60.51208856 | K467: 59.31780404 | L467: 58.32559375 | M467: 56.40285307 | N467: 54.74525195 | O467: 54.22252791 | P467: 54.61013668 | Q467: 54.20328352 | R467: 51.53595557 | S467: 16.04498452 | T467: 15.80885234 | U467: 14.64762717 | V467: 14.64762717 | W467: 14.64762717 | X467: 14.64762717 | Y467: 14.64762717 | Z467: 14.64762717 | AA467: 14.64762717 | AB467: 14.64762717 | AC467: 14.64762717 | AD467: 14.64762717 | AE467: 14.64762717 | AF467: 14.64762717 | AG467: 14.64762717 | AH467: 15.66449908 | AI467: 15.883361 | AJ467: 15.99796366 | AK467: 27.67014342 | AL467: 32.775571 | AM467: 57.37680837 | AN467: 61.11651187 | AO467: 61.11651187 | AP467: 61.11651187 | AQ467: 61.11651187 | AR467: 61.11651187 | AS467: 61.11651187 | AT467: 61.11651187 | AU467: 61.11651187 | AV467: 61.11651187 | AW467: 61.11651187 | AX467: 59.91014511 | AY467: 60.23686622 | AZ467: 61.11651187 | BA467: 61.11651187
A468: 2023-10-09 | B468: 2023 | C468: 10 | D468: 9 | E468: Monday | F468: 61.11651187 | G468: 60.93532309 | H468: 58.68988558 | I468: 57.28122736 | J468: 61.11651187 | K468: 59.8999917 | L468: 58.32559375 | M468: 58.32559375 | N468: 59.30775102 | O468: 60.23686622 | P468: 61.11651187 | Q468: 61.11651187 | R468: 61.11651187 | S468: 61.11651187 | T468: 56.8306395 | U468: 15.89596642 | V468: 15.89596642 | W468: 15.89376155 | X468: 15.89693592 | Y468: 15.90269661 | Z468: 15.93751819 | AA468: 15.76762743 | AB468: 15.89376155 | AC468: 15.89376155 | AD468: 16.04498452 | AE468: 15.10181968 | AF468: 15.883361 | AG468: 15.94433163 | AH468: 15.91602652 | AI468: 15.89596642 | AJ468: 30.39304225 | AK468: 43.85692691 | AL468: 58.76684936 | AM468: 61.11651187 | AN468: 61.11651187 | AO468: 62.04388128 | AP468: 62.04388128 | AQ468: 61.33512059 | AR468: 61.11651187 | AS468: 61.11651187 | AT468: 61.11651187 | AU468: 61.11651187 | AV468: 61.11651187 | AW468: 61.11651187 | AX468: 61.11651187 | AY468: 61.11651187 | AZ468: 61.11651187 | BA468: 61.11651187
A469: 2023-10-10 | B469: 2023 | C469: 10 | D469: 10 | E469: Tuesday | F469: 61.11651187 | G469: 61.11651187 | H469: 61.11651187 | I469: 61.11651187 | J469: 60.52155104 | K469: 60.52155104 | L469: 61.11651187 | M469: 61.11651187 | N469: 61.11651187 | O469: 61.11651187 | P469: 61.11651187 | Q469: 61.11651187 | R469: 61.11651187 | S469: 61.11651187 | T469: 61.11651187 | U469: 61.11651187 | V469: 61.11651187 | W469: 59.4245848 | X469: 55.32214004 | Y469: 53.13474429 | Z469: 45.29625397 | AA469: 42.45778271 | AB469: 35.85616235 | AC469: 38.03443675 | AD469: 38.59990384 | AE469: 31.01448154 | AF469: 29.31466626 | AG469: 15.89596642 | AH469: 15.89596642 | AI469: 15.89596642 | AJ469: 15.89596642 | AK469: 15.89596642 | AL469: 15.89596642 | AM469: 15.89596642 | AN469: 52.90573028 | AO469: 54.93889587 | AP469: 55.84495987 | AQ469: 55.97347693 | AR469: 55.97347693 | AS469: 55.91621985 | AT469: 55.29245203 | AU469: 53.74643303 | AV469: 52.73896537 | AW469: 15.89754966 | AX469: 15.89376155 | AY469: 15.89376155 | AZ469: 15.89376155 | BA469: 15.99724685
A470: 2023-10-11 | B470: 2023 | C470: 10 | D470: 11 | E470: Wednesday | F470: 15.76762743 | G470: 15.883361 | H470: 14.64762717 | I470: 14.64762717 | J470: 14.64762717 | K470: 14.64762717 | L470: 14.64762717 | M470: 14.64762717 | N470: 14.64762717 | O470: 15.66449908 | P470: 15.883361 | Q470: 15.99796366 | R470: 53.82578983 | S470: 54.20328352 | T470: 16.04498452 | U470: 15.80885234 | V470: 15.6131138 | W470: 14.64762717 | X470: 14.64762717 | Y470: 14.39497063 | Z470: 14.39497063 | AA470: 14.39497063 | AB470: 14.39497063 | AC470: 14.39497063 | AD470: 14.39497063 | AE470: 14.39497063 | AF470: 14.39497063 | AG470: 14.39497063 | AH470: 14.39497063 | AI470: 14.39497063 | AJ470: 14.39497063 | AK470: 14.39497063 | AL470: 14.64762717 | AM470: 14.64762717 | AN470: 15.80885234 | AO470: 16.04498452 | AP470: 54.93889587 | AQ470: 56.44270304 | AR470: 58.07971042 | AS470: 57.5792127 | AT470: 57.02034175 | AU470: 55.97347693 | AV470: 54.74525195 | AW470: 52.59138865 | AX470: 15.89596642 | AY470: 15.89596642 | AZ470: 51.63738045 | BA470: 52.61667189
A471: 2023-10-12 | B471: 2023 | C471: 10 | D471: 12 | E471: Thursday | F471: 15.89596642 | G471: 50.30980785 | H471: 50.66944661 | I471: 15.89596642 | J471: 15.89596642 | K471: 15.89596642 | L471: 50.30980785 | M471: 51.53572149 | N471: 53.66647205 | O471: 55.87494453 | P471: 60.23686622 | Q471: 61.11651187 | R471: 61.11651187 | S471: 61.11651187 | T471: 59.03629805 | U471: 31.01448154 | V471: 15.99425983 | W471: 15.7738698 | X471: 14.64762717 | Y471: 14.64762717 | Z471: 14.64762717 | AA471: 14.64762717 | AB471: 14.39497063 | AC471: 14.39497063 | AD471: 14.39497063 | AE471: 14.39497063 | AF471: 14.39497063 | AG471: 14.39497063 | AH471: 14.39497063 | AI471: 14.39497063 | AJ471: 14.64762717 | AK471: 14.64762717 | AL471: 14.64762717 | AM471: 15.80885234 | AN471: 16.04498452 | AO471: 55.88441567 | AP471: 59.6257957 | AQ471: 60.23686622 | AR471: 59.15180831 | AS471: 58.16327712 | AT471: 57.02034175 | AU471: 55.88441567 | AV471: 54.93889587 | AW471: 54.20328352 | AX471: 53.13474429 | AY471: 53.5649433 | AZ471: 54.74525195 | BA471: 57.02034175
A472: 2023-10-13 | B472: 2023 | C472: 10 | D472: 13 | E472: Friday | F472: 55.51325248 | G472: 54.22252791 | H472: 54.9471516 | I472: 54.61013668 | J472: 53.13474429 | K472: 49.35088273 | L472: 47.5564678 | M472: 49.35088273 | N472: 52.36516266 | O472: 54.51056712 | P472: 57.56600577 | Q472: 59.92310301 | R472: 60.23686622 | S472: 57.5792127 | T472: 53.71470866 | U472: 16.04498452 | V472: 15.80885234 | W472: 14.64762717 | X472: 14.64762717 | Y472: 14.64762717 | Z472: 14.64762717 | AA472: 14.39497063 | AB472: 14.39497063 | AC472: 14.39497063 | AD472: 14.64762717 | AE472: 14.64762717 | AF472: 14.64762717 | AG472: 14.64762717 | AH472: 14.64762717 | AI472: 15.7738698 | AJ472: 15.99425983 | AK472: 15.92797772 | AL472: 37.83970882 | AM472: 55.29245203 | AN472: 61.11651187 | AO472: 61.11651187 | AP472: 61.11651187 | AQ472: 61.11651187 | AR472: 61.11651187 | AS472: 61.11651187 | AT472: 61.11651187 | AU472: 59.92310301 | AV472: 58.73135139 | AW472: 56.96621076 | AX472: 56.96621076 | AY472: 57.53511362 | AZ472: 58.96535504 | BA472: 60.04699272
A473: 2023-10-14 | B473: 2023 | C473: 10 | D473: 14 | E473: Saturday | F473: 60.04699272 | G473: 57.89856636 | H473: 57.46432692 | I473: 56.19652006 | J473: 52.86683109 | K473: 45.82309373 | L473: 15.92522696 | M473: 15.97796589 | N473: 15.80960197 | O473: 15.3606239 | P473: 15.883361 | Q473: 15.76762743 | R473: 15.99425983 | S473: 15.6300822 | T473: 14.64762717 | U473: 14.39497063 | V473: 14.39497063 | W473: 14.39497063 | X473: 14.39497063 | Y473: 14.39497063 | Z473: 14.39497063 | AA473: 14.39497063 | AB473: 14.39497063 | AC473: 14.39497063 | AD473: 14.39497063 | AE473: 14.39497063 | AF473: 14.64762717 | AG473: 14.64762717 | AH473: 14.64762717 | AI473: 14.64762717 | AJ473: 14.64762717 | AK473: 15.68859893 | AL473: 15.87061707 | AM473: 16.00600609 | AN473: 50.46470172 | AO473: 56.7584185 | AP473: 56.99873228 | AQ473: 53.89595051 | AR473: 15.89596642 | AS473: 15.89596642 | AT473: 16.00078316 | AU473: 15.76762743 | AV473: 15.87061707 | AW473: 15.68859893 | AX473: 14.64762717 | AY473: 14.64762717 | AZ473: 14.64762717 | BA473: 15.883361
A474: 2023-10-15 | B474: 2023 | C474: 10 | D474: 15 | E474: Sunday | F474: 14.64762717 | G474: 14.64762717 | H474: 14.64762717 | I474: 14.39497063 | J474: 14.39497063 | K474: 14.39497063 | L474: 14.39497063 | M474: 14.39497063 | N474: 14.39497063 | O474: 14.39497063 | P474: 14.39497063 | Q474: 14.39497063 | R474: 14.39497063 | S474: 14.39497063 | T474: 14.4821225 | U474: 14.23971953 | V474: 0 | W474: 0 | X474: 0 | Y474: 0 | Z474: 0 | AA474: 0 | AB474: 0 | AC474: 0 | AD474: 14.44316488 | AE474: 14.39497063 | AF474: 14.39497063 | AG474: 14.39614873 | AH474: 14.39497063 | AI474: 14.39497063 | AJ474: 14.39497063 | AK474: 14.64762717 | AL474: 14.64762717 | AM474: 15.7738698 | AN474: 15.99425983 | AO474: 15.92797772 | AP474: 52.88568016 | AQ474: 52.88568016 | AR474: 15.89596642 | AS474: 15.89596642 | AT474: 16.04498452 | AU474: 15.75812765 | AV474: 14.64762717 | AW474: 14.64762717 | AX474: 14.64762717 | AY474: 14.64762717 | AZ474: 14.64762717 | BA474: 14.64762717
A475: 2023-10-16 | B475: 2023 | C475: 10 | D475: 16 | E475: Monday | F475: 14.64762717 | G475: 14.64762717 | H475: 14.64762717 | I475: 14.39497063 | J475: 14.39497063 | K475: 14.39497063 | L475: 14.39497063 | M475: 14.39497063 | N475: 14.39497063 | O475: 14.39497063 | P475: 14.64762717 | Q475: 14.64762717 | R475: 15.85957703 | S475: 16.04498452 | T475: 15.99425983 | U475: 15.6300822 | V475: 14.64762717 | W475: 14.39497063 | X475: 14.39497063 | Y475: 14.39497063 | Z475: 14.39497063 | AA475: 14.39497063 | AB475: 14.39497063 | AC475: 14.39497063 | AD475: 14.39497063 | AE475: 14.64762717 | AF475: 14.64762717 | AG475: 15.66449908 | AH475: 15.883361 | AI475: 15.94433163 | AJ475: 15.9195488 | AK475: 32.39581798 | AL475: 44.62222339 | AM475: 55.63996824 | AN475: 55.69497716 | AO475: 58.47697517 | AP475: 61.31187592 | AQ475: 61.31187592 | AR475: 59.12939106 | AS475: 56.19652006 | AT475: 16.04498452 | AU475: 15.80885234 | AV475: 15.37602229 | AW475: 15.87814397 | AX475: 15.883361 | AY475: 14.64762717 | AZ475: 14.64762717 | BA475: 15.883361
A476: 2023-10-17 | B476: 2023 | C476: 10 | D476: 17 | E476: Tuesday | F476: 15.76762743 | G476: 15.883361 | H476: 15.66449908 | I476: 14.64762717 | J476: 14.64762717 | K476: 14.64762717 | L476: 14.64762717 | M476: 14.64762717 | N476: 14.64762717 | O476: 15.66449908 | P476: 15.883361 | Q476: 15.94433163 | R476: 15.9195488 | S476: 52.59138865 | T476: 15.90355135 | U476: 15.89376155 | V476: 15.89376155 | W476: 15.99425983 | X476: 15.6300822 | Y476: 14.64762717 | Z476: 14.64762717 | AA476: 14.64762717 | AB476: 14.64762717 | AC476: 15.5607205 | AD476: 15.68519335 | AE476: 15.86567897 | AF476: 15.95239467 | AG476: 15.89376155 | AH476: 15.89376155 | AI476: 29.54878605 | AJ476: 38.79278707 | AK476: 54.59128635 | AL476: 59.06104941 | AM476: 62.73199193 | AN476: 63.37180671 | AO476: 63.37180671 | AP476: 63.37180671 | AQ476: 63.37180671 | AR476: 63.37180671 | AS476: 63.37180671 | AT476: 63.37180671 | AU476: 63.37180671 | AV476: 63.37180671 | AW476: 62.20470471 | AX476: 61.09732174 | AY476: 59.65087273 | AZ476: 57.89856636 | BA476: 60.24653044
A477: 2023-10-18 | B477: 2023 | C477: 10 | D477: 18 | E477: Wednesday | F477: 60.84810953 | G477: 59.84422741 | H477: 58.47697517 | I477: 57.28122736 | J477: 56.19652006 | K477: 55.63996824 | L477: 56.24940992 | M477: 57.28122736 | N477: 58.32559375 | O477: 59.84422741 | P477: 62.73561676 | Q477: 63.37180671 | R477: 63.37180671 | S477: 63.37180671 | T477: 63.37180671 | U477: 63.37180671 | V477: 63.04616576 | W477: 61.41633253 | X477: 57.75964604 | Y477: 44.0591277 | Z477: 38.53336787 | AA477: 34.38077398 | AB477: 31.79227541 | AC477: 36.52586267 | AD477: 29.29913333 | AE477: 31.01583144 | AF477: 35.85073996 | AG477: 31.9502035 | AH477: 39.51832364 | AI477: 55.63996824 | AJ477: 39.46199032 | AK477: 50.35265587 | AL477: 52.36913754 | AM477: 57.92855102 | AN477: 60.21403776 | AO477: 63.37180671 | AP477: 63.37180671 | AQ477: 63.37180671 | AR477: 63.37180671 | AS477: 63.37180671 | AT477: 63.37180671 | AU477: 63.37180671 | AV477: 63.37180671 | AW477: 63.37180671 | AX477: 63.37180671 | AY477: 63.37180671 | AZ477: 63.37180671 | BA477: 63.37180671
A478: 2023-10-19 | B478: 2023 | C478: 10 | D478: 19 | E478: Thursday | F478: 63.34823144 | G478: 62.06938859 | H478: 61.14178527 | I478: 60.09218411 | J478: 59.06104941 | K478: 59.06104941 | L478: 59.06104941 | M478: 59.06104941 | N478: 60.21403776 | O478: 61.31187592 | P478: 63.37180671 | Q478: 63.37180671 | R478: 63.37180671 | S478: 63.37180671 | T478: 63.37180671 | U478: 63.24249876 | V478: 60.3395148 | W478: 46.4959851 | X478: 38.44860562 | Y478: 37.16310132 | Z478: 35.51451698 | AA478: 32.16447765 | AB478: 30.05058502 | AC478: 23.95511111 | AD478: 15.89596642 | AE478: 15.89596642 | AF478: 15.89596642 | AG478: 15.89596642 | AH478: 15.89596642 | AI478: 15.89596642 | AJ478: 15.89376155 | AK478: 15.89693592 | AL478: 49.7856951 | AM478: 56.7584185 | AN478: 62.42314766 | AO478: 63.37180671 | AP478: 63.37180671 | AQ478: 63.37180671 | AR478: 63.37180671 | AS478: 63.37180671 | AT478: 63.37180671 | AU478: 63.37180671 | AV478: 63.37180671 | AW478: 63.37180671 | AX478: 63.37180671 | AY478: 63.37180671 | AZ478: 63.37180671 | BA478: 63.37180671
A479: 2023-10-20 | B479: 2023 | C479: 10 | D479: 20 | E479: Friday | F479: 63.37180671 | G479: 63.37180671 | H479: 63.37180671 | I479: 62.42314766 | J479: 60.27773107 | K479: 58.47697517 | L479: 56.19652006 | M479: 55.2299166 | N479: 55.08868707 | O479: 55.63996824 | P479: 56.7584185 | Q479: 57.32574096 | R479: 57.32574096 | S479: 51.40117699 | T479: 14.64762717 | U479: 14.64762717 | V479: 14.64762717 | W479: 14.39497063 | X479: 14.39497063 | Y479: 14.39903279 | Z479: 14.39497063 | AA479: 14.44316488 | AB479: 9.7396572 | AC479: 14.44316488 | AD479: 14.39497063 | AE479: 14.39497063 | AF479: 14.39614873 | AG479: 14.39497063 | AH479: 14.39497063 | AI479: 14.39497063 | AJ479: 14.64762717 | AK479: 15.7738698 | AL479: 15.99425983 | AM479: 15.92797772 | AN479: 53.89595051 | AO479: 55.9522642 | AP479: 56.99873228 | AQ479: 58.21602261 | AR479: 58.05769948 | AS479: 58.05769948 | AT479: 58.05769948 | AU479: 55.9522642 | AV479: 52.73896537 | AW479: 15.76762743 | AX479: 15.76762743 | AY479: 15.60406236 | AZ479: 15.99425983 | BA479: 15.89596642
A480: 2023-10-21 | B480: 2023 | C480: 10 | D480: 21 | E480: Saturday | F480: 15.89596642 | G480: 15.89596642 | H480: 15.90250916 | I480: 15.93751819 | J480: 15.76762743 | K480: 15.89376155 | L480: 15.89693592 | M480: 15.89596642 | N480: 15.89376155 | O480: 15.89693592 | P480: 15.89596642 | Q480: 15.89596642 | R480: 53.21056066 | S480: 59.99964094 | T480: 48.7363912 | U480: 29.94101799 | V480: 15.89596642 | W480: 15.89596642 | X480: 15.89596642 | Y480: 15.89596642 | Z480: 15.92797772 | AA480: 15.99425983 | AB480: 15.7738698 | AC480: 15.58898791 | AD480: 14.64762717 | AE480: 14.64762717 | AF480: 14.64762717 | AG480: 14.64762717 | AH480: 14.64762717 | AI480: 14.64762717 | AJ480: 14.64762717 | AK480: 14.64762717 | AL480: 14.64762717 | AM480: 14.64762717 | AN480: 19.62326385 | AO480: 60.33256086 | AP480: 65.00917862 | AQ480: 67.75279146 | AR480: 68.32413478 | AS480: 68.63468378 | AT480: 67.75279146 | AU480: 66.82173376 | AV480: 66.31747892 | AW480: 64.36637277 | AX480: 65.65742342 | AY480: 66.94159594 | AZ480: 68.33359725 | BA480: 69.52379652
A481: 2023-10-22 | B481: 2023 | C481: 10 | D481: 22 | E481: Sunday | F481: 69.52379652 | G481: 68.33359725 | H481: 68.32413478 | I481: 66.31396055 | J481: 63.06001065 | K481: 62.43611996 | L481: 61.81822279 | M481: 62.43611996 | N481: 63.68998247 | O481: 64.24640442 | P481: 65.65834294 | Q481: 66.89583911 | R481: 64.35671147 | S481: 60.6000668 | T481: 31.44179613 | U481: 15.95014289 | V481: 15.87061707 | W481: 15.68859893 | X481: 14.64762717 | Y481: 14.64762717 | Z481: 14.64762717 | AA481: 14.64762717 | AB481: 14.64762717 | AC481: 14.64762717 | AD481: 14.64762717 | AE481: 14.64762717 | AF481: 14.64762717 | AG481: 14.64762717 | AH481: 14.64762717 | AI481: 14.64762717 | AJ481: 14.64762717 | AK481: 14.64762717 | AL481: 15.6300822 | AM481: 15.99425983 | AN481: 58.44135129 | AO481: 65.66182653 | AP481: 70.05087163 | AQ481: 70.05087163 | AR481: 70.05087163 | AS481: 70.05087163 | AT481: 70.05087163 | AU481: 69.32023941 | AV481: 68.11618012 | AW481: 67.65790231 | AX481: 66.96984879 | AY481: 65.65834294 | AZ481: 66.82173376 | BA481: 68.32413478
A482: 2023-10-23 | B482: 2023 | C482: 10 | D482: 23 | E482: Monday | F482: 67.13952083 | G482: 65.96967332 | H482: 64.32612478 | I482: 61.81822279 | J482: 59.99964094 | K482: 54.22252791 | L482: 53.22702955 | M482: 51.27087154 | N482: 58.17197812 | O482: 59.99964094 | P482: 60.6000668 | Q482: 61.81822279 | R482: 61.43255996 | S482: 52.32783715 | T482: 14.64762717 | U482: 14.64762717 | V482: 14.64762717 | W482: 14.39497063 | X482: 14.39497063 | Y482: 14.39497063 | Z482: 14.39497063 | AA482: 14.39497063 | AB482: 14.39497063 | AC482: 14.39497063 | AD482: 14.39497063 | AE482: 14.39497063 | AF482: 14.39497063 | AG482: 14.39497063 | AH482: 14.39497063 | AI482: 14.39497063 | AJ482: 14.64762717 | AK482: 14.64762717 | AL482: 14.64762717 | AM482: 14.64762717 | AN482: 53.74643303 | AO482: 59.99964094 | AP482: 64.76369454 | AQ482: 66.97968166 | AR482: 69.52379652 | AS482: 70.05087163 | AT482: 68.32413478 | AU482: 65.96967332 | AV482: 63.48460757 | AW482: 62.25966662 | AX482: 61.14178527 | AY482: 60.04699272 | AZ482: 60.04699272 | BA482: 61.20623317
A483: 2023-10-24 | B483: 2023 | C483: 10 | D483: 24 | E483: Tuesday | F483: 60.6000668 | G483: 61.20623317 | H483: 60.19682239 | I483: 58.96535504 | J483: 53.22702955 | K483: 53.22702955 | L483: 54.61013668 | M483: 54.61013668 | N483: 57.90565119 | O483: 60.33256086 | P483: 63.6731868 | Q483: 64.99942083 | R483: 67.13952083 | S483: 65.96967332 | T483: 60.6000668 | U483: 28.06585591 | V483: 15.89693592 | W483: 15.89376155 | X483: 15.92797772 | Y483: 15.99425983 | Z483: 15.6300822 | AA483: 14.64762717 | AB483: 14.64762717 | AC483: 14.64762717 | AD483: 14.64762717 | AE483: 14.64762717 | AF483: 14.39497063 | AG483: 14.39497063 | AH483: 14.39497063 | AI483: 14.39497063 | AJ483: 14.64762717 | AK483: 14.64762717 | AL483: 14.64762717 | AM483: 14.64762717 | AN483: 19.78671007 | AO483: 59.24577918 | AP483: 64.96852868 | AQ483: 67.13952083 | AR483: 68.32413478 | AS483: 68.32413478 | AT483: 67.13952083 | AU483: 66.31396055 | AV483: 64.57907542 | AW483: 64.32612478 | AX483: 63.44208609 | AY483: 63.68998247 | AZ483: 64.51758051 | BA483: 65.64848772
A484: 2023-10-25 | B484: 2023 | C484: 10 | D484: 25 | E484: Wednesday | F484: 64.81431786 | G484: 63.06001065 | H484: 62.43611996 | I484: 61.20623317 | J484: 59.99964094 | K484: 59.99964094 | L484: 59.98142777 | M484: 60.6000668 | N484: 61.81822279 | O484: 63.6731868 | P484: 66.32666349 | Q484: 69.32023941 | R484: 70.03318262 | S484: 68.63468378 | T484: 44.63464665 | U484: 24.00637978 | V484: 15.89376155 | W484: 15.90355135 | X484: 15.89376155 | Y484: 15.89376155 | Z484: 15.99425983 | AA484: 14.64762717 | AB484: 14.64762717 | AC484: 14.64762717 | AD484: 14.64762717 | AE484: 14.64762717 | AF484: 14.64762717 | AG484: 14.64762717 | AH484: 14.64762717 | AI484: 15.68859893 | AJ484: 15.87061707 | AK484: 15.76762743 | AL484: 16.00078316 | AM484: 53.60752201 | AN484: 61.43255996 | AO484: 65.96967332 | AP484: 70.01278377 | AQ484: 70.05087163 | AR484: 70.05087163 | AS484: 69.41104571 | AT484: 66.94067545 | AU484: 65.65742342 | AV484: 63.37180671 | AW484: 62.24997414 | AX484: 61.14178527 | AY484: 61.3421719 | AZ484: 63.37180671 | BA484: 65.65742342
A485: 2023-10-26 | B485: 2023 | C485: 10 | D485: 26 | E485: Thursday | F485: 65.65742342 | G485: 65.68796278 | H485: 65.65742342 | I485: 64.50753652 | J485: 65.11282345 | K485: 65.53732167 | L485: 65.65742342 | M485: 66.46115142 | N485: 67.79867852 | O485: 69.52379652 | P485: 70.05087163 | Q485: 72.87625739 | R485: 88.44320042 | S485: 70.05087163 | T485: 63.2395224 | U485: 32.60238475 | V485: 22.35407694 | W485: 14.64762717 | X485: 14.81226885 | Y485: 14.64762717 | Z485: 14.64762717 | AA485: 14.64762717 | AB485: 14.64762717 | AC485: 14.64762717 | AD485: 14.64762717 | AE485: 14.64762717 | AF485: 14.64762717 | AG485: 14.64762717 | AH485: 14.64762717 | AI485: 14.64762717 | AJ485: 14.64762717 | AK485: 14.64762717 | AL485: 15.68859893 | AM485: 15.87061707 | AN485: 16.00600609 | AO485: 58.17197812 | AP485: 63.8617218 | AQ485: 65.80407859 | AR485: 68.32413478 | AS485: 68.63468378 | AT485: 68.47577939 | AU485: 67.79508953 | AV485: 66.93517173 | AW485: 66.45119778 | AX485: 65.76302274 | AY485: 66.89583911 | AZ485: 67.78493612 | BA485: 69.15608677
A486: 2023-10-27 | B486: 2023 | C486: 10 | D486: 27 | E486: Friday | F486: 67.75279146 | G486: 65.95196354 | H486: 65.66764645 | I486: 64.28970894 | J486: 63.83143759 | K486: 62.57479026 | L486: 63.15781424 | M486: 63.15781424 | N486: 63.83143759 | O486: 65.79422337 | P486: 69.1693048 | Q486: 70.05087163 | R486: 70.05087163 | S486: 70.05087163 | T486: 63.2395224 | U486: 30.20380098 | V486: 21.91385173 | W486: 14.64762717 | X486: 14.64762717 | Y486: 15.29438975 | Z486: 15.25831201 | AA486: 14.64762717 | AB486: 14.64762717 | AC486: 14.64762717 | AD486: 14.64762717 | AE486: 14.64762717 | AF486: 14.64762717 | AG486: 14.64762717 | AH486: 14.64762717 | AI486: 14.64762717 | AJ486: 14.64762717 | AK486: 15.6131138 | AL486: 15.80885234 | AM486: 16.04498452 | AN486: 57.96084394 | AO486: 63.44208609 | AP486: 70.05087163 | AQ486: 70.05087163 | AR486: 70.05087163 | AS486: 70.05087163 | AT486: 70.05087163 | AU486: 69.27146112 | AV486: 68.07615353 | AW486: 66.89583911 | AX486: 65.73023755 | AY486: 66.60620427 | AZ486: 68.07615353 | BA486: 70.01278377
A487: 2023-10-28 | B487: 2023 | C487: 10 | D487: 28 | E487: Saturday | F487: 63.63585629 | G487: 63.63585629 | H487: 62.68609342 | I487: 60.95960111 | J487: 61.14178527 | K487: 61.18069852 | L487: 60.83031065 | M487: 59.60149097 | N487: 59.60149097 | O487: 60.30913478 | P487: 62.52173356 | Q487: 62.06586676 | R487: 59.4409087 | S487: 57.21071466 | T487: 31.42772053 | U487: 28.18672137 | V487: 15.96647355 | W487: 15.76762743 | X487: 15.99425983 | Y487: 15.6300822 | Z487: 14.64762717 | AA487: 14.64762717 | AB487: 14.39497063 | AC487: 14.39497063 | AD487: 14.39497063 | AE487: 14.39497063 | AF487: 14.39497063 | AG487: 14.39497063 | AH487: 14.39497063 | AI487: 14.39497063 | AJ487: 14.64762717 | AK487: 14.64762717 | AL487: 14.64762717 | AM487: 14.64762717 | AN487: 19.78671007 | AO487: 55.00480825 | AP487: 57.42195967 | AQ487: 59.22277508 | AR487: 61.1547393 | AS487: 61.40870677 | AT487: 61.39654308 | AU487: 61.1547393 | AV487: 61.1547393 | AW487: 61.14178527 | AX487: 62.24997414 | AY487: 63.00604351 | AZ487: 63.63585629 | BA487: 63.63585629
A488: 2023-10-29 | B488: 2023 | C488: 10 | D488: 29 | E488: Sunday | F488: 63.63585629 | G488: 63.63585629 | H488: 63.63585629 | I488: 63.63585629 | J488: 61.76558171 | K488: 59.9385327 | L488: 58.74936009 | M488: 58.74936009 | N488: 59.34594313 | O488: 60.5370723 | P488: 61.39654308 | Q488: 62.50934941 | R488: 59.44563645 | S488: 58.2446875 | T488: 43.45950591 | U488: 36.39776044 | V488: 32.12521406 | W488: 15.9195488 | X488: 15.94433163 | Y488: 15.883361 | Z488: 15.66449908 | AA488: 14.64762717 | AB488: 14.64762717 | AC488: 14.64762717 | AD488: 14.64762717 | AE488: 14.64762717 | AF488: 14.64762717 | AG488: 14.64762717 | AH488: 14.64762717 | AI488: 14.64762717 | AJ488: 15.53018041 | AK488: 15.68859893 | AL488: 15.87061707 | AM488: 51.31673665 | AN488: 58.14939096 | AO488: 62.38265121 | AP488: 63.63585629 | AQ488: 63.63585629 | AR488: 63.63585629 | AS488: 63.63585629 | AT488: 63.63585629 | AU488: 63.63585629 | AV488: 63.63585629 | AW488: 62.38265121 | AX488: 62.38265121 | AY488: 62.38265121 | AZ488: 63.63585629 | BA488: 63.63585629
A489: 2023-10-30 | B489: 2023 | C489: 10 | D489: 30 | E489: Monday | F489: 63.63585629 | G489: 63.63585629 | H489: 63.49143636 | I489: 62.36930112 | J489: 61.75236368 | K489: 62.24997414 | L489: 61.61581675 | M489: 62.36748605 | N489: 62.50611205 | O489: 63.63585629 | P489: 63.63585629 | Q489: 63.63585629 | R489: 63.63585629 | S489: 63.63585629 | T489: 61.78577878 | U489: 49.41776672 | V489: 31.05900312 | W489: 15.99425983 | X489: 15.7738698 | Y489: 14.64762717 | Z489: 14.64762717 | AA489: 14.64762717 | AB489: 14.64762717 | AC489: 14.64762717 | AD489: 14.39497063 | AE489: 14.39497063 | AF489: 14.39497063 | AG489: 14.64762717 | AH489: 14.64762717 | AI489: 14.64762717 | AJ489: 14.64762717 | AK489: 15.68859893 | AL489: 15.87061707 | AM489: 41.14483217 | AN489: 59.21104438 | AO489: 63.63585629 | AP489: 63.63585629 | AQ489: 63.63585629 | AR489: 63.63585629 | AS489: 63.63585629 | AT489: 63.63585629 | AU489: 63.63585629 | AV489: 63.63585629 | AW489: 63.63585629 | AX489: 63.63585629 | AY489: 63.63585629 | AZ489: 63.63585629 | BA489: 63.63585629
A490: 2023-10-31 | B490: 2023 | C490: 10 | D490: 31 | E490: Tuesday | F490: 63.63585629 | G490: 63.63585629 | H490: 63.63585629 | I490: 63.63585629 | J490: 63.63585629 | K490: 63.63585629 | L490: 63.63585629 | M490: 63.63585629 | N490: 63.63585629 | O490: 63.63585629 | P490: 63.63585629 | Q490: 63.63585629 | R490: 63.63585629 | S490: 63.63585629 | T490: 54.22845935 | U490: 29.78990712 | V490: 21.03989207 | W490: 15.99425983 | X490: 15.7738698 | Y490: 14.64762717 | Z490: 14.64762717 | AA490: 14.64762717 | AB490: 14.64762717 | AC490: 14.64762717 | AD490: 14.64762717 | AE490: 14.64762717 | AF490: 14.64762717 | AG490: 14.64762717 | AH490: 14.64762717 | AI490: 14.64762717 | AJ490: 14.64762717 | AK490: 14.64762717 | AL490: 15.80885234 | AM490: 16.04498452 | AN490: 59.22277508 | AO490: 63.63585629 | AP490: 63.63585629 | AQ490: 63.63585629 | AR490: 63.63585629 | AS490: 63.63585629 | AT490: 63.63585629 | AU490: 63.63585629 | AV490: 63.63585629 | AW490: 63.63585629 | AX490: 63.63585629 | AY490: 63.63585629 | AZ490: 63.63585629 | BA490: 63.63585629
A491: 2023-11-01 | B491: 2023 | C491: 11 | D491: 1 | E491: Wednesday | F491: 63.63585629 | G491: 63.63585629 | H491: 63.63585629 | I491: 63.63585629 | J491: 62.50611205 | K491: 62.38265121 | L491: 62.12717776 | M491: 62.12717776 | N491: 62.52173356 | O491: 63.00604351 | P491: 63.63585629 | Q491: 63.63585629 | R491: 63.63585629 | S491: 63.63585629 | T491: 43.70216921 | U491: 34.39909661 | V491: 29.78152469 | W491: 22.66591869 | X491: 21.44019895 | Y491: 21.04115807 | Z491: 15.95443437 | AA491: 15.96163888 | AB491: 15.883361 | AC491: 15.66449908 | AD491: 14.67422165 | AE491: 14.67422165 | AF491: 15.883361 | AG491: 15.96163888 | AH491: 15.92859854 | AI491: 25.49870926 | AJ491: 29.36383919 | AK491: 31.06650578 | AL491: 48.77873723 | AM491: 59.9385327 | AN491: 63.63585629 | AO491: 63.63585629 | AP491: 63.63585629 | AQ491: 63.63585629 | AR491: 63.63585629 | AS491: 63.63585629 | AT491: 63.63585629 | AU491: 63.63585629 | AV491: 63.63585629 | AW491: 62.52173356 | AX491: 60.55003019 | AY491: 59.9385327 | AZ491: 60.30913478 | BA491: 61.40870677
A492: 2023-11-02 | B492: 2023 | C492: 11 | D492: 2 | E492: Thursday | F492: 60.30913478 | G492: 60.30913478 | H492: 58.16850491 | I492: 54.22252791 | J492: 53.22702955 | K492: 50.30980785 | L492: 15.93730779 | M492: 15.93730779 | N492: 15.93730779 | O492: 15.93730779 | P492: 54.63692807 | Q492: 56.42641216 | R492: 57.56275244 | S492: 55.24150811 | T492: 30.49229063 | U492: 27.65734421 | V492: 16.01100843 | W492: 15.883361 | X492: 14.67422165 | Y492: 14.6687128 | Z492: 14.41867645 | AA492: 14.6687128 | AB492: 14.6687128 | AC492: 14.6687128 | AD492: 14.6687128 | AE492: 14.67422165 | AF492: 15.883361 | AG492: 15.96163888 | AH492: 15.92859854 | AI492: 15.92859854 | AJ492: 15.94343825 | AK492: 15.93730779 | AL492: 15.93730779 | AM492: 55.00480825 | AN492: 56.99349535 | AO492: 59.34594313 | AP492: 63.63585629 | AQ492: 63.63585629 | AR492: 63.63585629 | AS492: 63.63585629 | AT492: 63.63585629 | AU492: 63.63585629 | AV492: 63.63585629 | AW492: 63.63585629 | AX492: 62.52173356 | AY492: 62.36930112 | AZ492: 59.21104438 | BA492: 59.81325009
A493: 2023-11-03 | B493: 2023 | C493: 11 | D493: 3 | E493: Friday | F493: 58.72540695 | G493: 57.89169989 | H493: 54.09582193 | I493: 44.93511647 | J493: 15.92859854 | K493: 15.92859854 | L493: 15.92859854 | M493: 15.92859854 | N493: 15.94137718 | O493: 15.92859854 | P493: 15.94032908 | Q493: 15.93730779 | R493: 49.91405885 | S493: 45.98173206 | T493: 30.49229063 | U493: 29.92477394 | V493: 29.36383919 | W493: 15.93730779 | X493: 15.93730779 | Y493: 15.96043835 | Z493: 15.99425983 | AA493: 14.67422165 | AB493: 14.6687128 | AC493: 14.67422165 | AD493: 14.67422165 | AE493: 14.6687128 | AF493: 14.6687128 | AG493: 14.6687128 | AH493: 14.67422165 | AI493: 14.6687128 | AJ493: 14.67422165 | AK493: 14.67422165 | AL493: 14.67422165 | AM493: 14.67422165 | AN493: 14.67422165 | AO493: 15.7738698 | AP493: 15.99425983 | AQ493: 15.96043835 | AR493: 15.93730779 | AS493: 15.93730779 | AT493: 15.94211635 | AU493: 15.92859854 | AV493: 15.92859854 | AW493: 15.92859854 | AX493: 15.96028857 | AY493: 15.80037677 | AZ493: 15.92859854 | BA493: 15.92859854
A494: 2023-11-04 | B494: 2023 | C494: 11 | D494: 4 | E494: Saturday | F494: 15.9684545 | G494: 15.80037677 | H494: 15.883361 | I494: 14.67422165 | J494: 14.67422165 | K494: 14.67422165 | L494: 15.883361 | M494: 15.80037677 | N494: 15.80037677 | O494: 15.80037677 | P494: 15.9705553 | Q494: 15.92859854 | R494: 15.92859854 | S494: 15.99425983 | T494: 14.67422165 | U494: 14.6687128 | V494: 14.6687128 | W494: 14.6687128 | X494: 14.4254734 | Y494: 14.39497063 | Z494: 14.39497063 | AA494: 14.39497063 | AB494: 14.39497063 | AC494: 14.39497063 | AD494: 14.39497063 | AE494: 14.39497063 | AF494: 14.39497063 | AG494: 14.39497063 | AH494: 14.39497063 | AI494: 14.39497063 | AJ494: 14.39497063 | AK494: 14.4254734 | AL494: 14.67422165 | AM494: 14.67422165 | AN494: 19.70101674 | AO494: 58.24227924 | AP494: 62.20900056 | AQ494: 64.77631831 | AR494: 64.77631831 | AS494: 64.77631831 | AT494: 64.77631831 | AU494: 64.77631831 | AV494: 64.77631831 | AW494: 64.77631831 | AX494: 64.77631831 | AY494: 64.77631831 | AZ494: 64.77631831 | BA494: 64.77631831
A495: 2023-11-05 | B495: 2023 | C495: 11 | D495: 5 | E495: Sunday | F495: 64.77631831 | G495: 64.77631831 | H495: 64.77631831 | I495: 64.77631831 | J495: 64.77631831 | K495: 64.77631831 | L495: 64.77631831 | M495: 64.77631831 | N495: 64.77631831 | O495: 64.77631831 | P495: 64.13541062 | Q495: 64.13541062 | R495: 59.4027815 | S495: 56.16924494 | T495: 25.18286397 | U495: 22.82452536 | V495: 16.01100843 | W495: 15.883361 | X495: 14.67422165 | Y495: 14.67422165 | Z495: 14.67422165 | AA495: 14.67422165 | AB495: 14.67422165 | AC495: 14.6687128 | AD495: 14.41867645 | AE495: 14.41867645 | AF495: 14.41867645 | AG495: 14.41867645 | AH495: 14.6687128 | AI495: 14.67422165 | AJ495: 15.883361 | AK495: 15.96163888 | AL495: 36.884706 | AM495: 55.2723093 | AN495: 62.25129863 | AO495: 64.77631831 | AP495: 64.77631831 | AQ495: 64.77631831 | AR495: 64.77631831 | AS495: 64.77631831 | AT495: 64.77631831 | AU495: 64.77631831 | AV495: 64.77631831 | AW495: 64.77631831 | AX495: 64.77631831 | AY495: 64.77631831 | AZ495: 64.77631831 | BA495: 64.77631831
A496: 2023-11-06 | B496: 2023 | C496: 11 | D496: 6 | E496: Monday | F496: 63.50100338 | G496: 63.50100338 | H496: 62.54580492 | I496: 62.20900056 | J496: 62.87299819 | K496: 62.24114521 | L496: 61.06292011 | M496: 59.10928262 | N496: 59.1513848 | O496: 58.24227924 | P496: 56.80905658 | Q496: 54.06729905 | R496: 55.09267335 | S496: 55.68960848 | T496: 55.725071 | U496: 55.68960848 | V496: 53.79600052 | W496: 37.58931119 | X496: 15.99425983 | Y496: 15.7738698 | Z496: 14.67422165 | AA496: 14.42513664 | AB496: 14.39497063 | AC496: 14.39497063 | AD496: 14.39497063 | AE496: 14.39497063 | AF496: 14.42513664 | AG496: 14.6687128 | AH496: 14.6687128 | AI496: 14.6687128 | AJ496: 14.67422165 | AK496: 14.67422165 | AL496: 15.80885234 | AM496: 16.04498452 | AN496: 56.13015027 | AO496: 58.22461244 | AP496: 59.317378 | AQ496: 60.40547306 | AR496: 60.40547306 | AS496: 60.4132429 | AT496: 59.78504476 | AU496: 59.31563568 | AV496: 59.1513848 | AW496: 58.13787287 | AX496: 58.5291465 | AY496: 58.5291465 | AZ496: 58.5291465 | BA496: 59.317378
A497: 2023-11-07 | B497: 2023 | C497: 11 | D497: 7 | E497: Tuesday | F497: 58.24227924 | G497: 57.95022166 | H497: 56.60930527 | I497: 55.59153394 | J497: 53.22702955 | K497: 53.22702955 | L497: 53.22702955 | M497: 55.13783547 | N497: 56.24665684 | O497: 57.17994533 | P497: 58.24227924 | Q497: 58.60850676 | R497: 60.40547306 | S497: 62.62160626 | T497: 63.75013617 | U497: 63.75013617 | V497: 62.62160626 | W497: 63.50100338 | X497: 62.87299819 | Y497: 59.82569469 | Z497: 62.21791785 | AA497: 56.8306395 | AB497: 29.99157658 | AC497: 29.99157658 | AD497: 15.87347572 | AE497: 15.69057042 | AF497: 14.6687128 | AG497: 14.6687128 | AH497: 14.6687128 | AI497: 14.67422165 | AJ497: 15.883361 | AK497: 15.883361 | AL497: 14.67422165 | AM497: 15.69057042 | AN497: 15.87347572 | AO497: 16.01551613 | AP497: 56.13015027 | AQ497: 59.317378 | AR497: 59.81593691 | AS497: 61.50680151 | AT497: 62.25129863 | AU497: 62.38358074 | AV497: 61.6358102 | AW497: 62.38327543 | AX497: 61.50680151 | AY497: 60.98497449 | AZ497: 62.62160626 | BA497: 64.77631831
A498: 2023-11-08 | B498: 2023 | C498: 11 | D498: 8 | E498: Wednesday | F498: 64.13541062 | G498: 61.59393034 | H498: 59.70409138 | I498: 56.80905658 | J498: 55.10859559 | K498: 56.61770238 | L498: 57.66089979 | M498: 57.37688519 | N498: 57.95022166 | O498: 57.95022166 | P498: 58.5291465 | Q498: 60.37855869 | R498: 62.62160626 | S498: 60.40547306 | T498: 56.24665684 | U498: 14.67422165 | V498: 14.6687128 | W498: 14.39497063 | X498: 14.39497063 | Y498: 14.39497063 | Z498: 14.39497063 | AA498: 14.39497063 | AB498: 14.39497063 | AC498: 14.39497063 | AD498: 14.39497063 | AE498: 14.43074036 | AF498: 14.39497063 | AG498: 14.41867645 | AH498: 14.41867645 | AI498: 14.41867645 | AJ498: 14.41867645 | AK498: 14.6687128 | AL498: 14.67422165 | AM498: 14.67422165 | AN498: 15.7738698 | AO498: 15.99425983 | AP498: 53.0538168 | AQ498: 57.17994533 | AR498: 59.19047971 | AS498: 60.98497449 | AT498: 62.25129863 | AU498: 61.50054461 | AV498: 60.98497449 | AW498: 60.37855869 | AX498: 60.29718889 | AY498: 60.98145612 | AZ498: 62.87299819 | BA498: 64.77631831
A499: 2023-11-09 | B499: 2023 | C499: 11 | D499: 9 | E499: Thursday | F499: 64.77631831 | G499: 64.77631831 | H499: 64.1249499 | I499: 62.86274337 | J499: 61.59393034 | K499: 59.77154732 | L499: 60.87285522 | M499: 61.99665993 | N499: 63.75013617 | O499: 64.77631831 | P499: 64.77631831 | Q499: 64.77631831 | R499: 64.77631831 | S499: 64.77631831 | T499: 55.68960848 | U499: 33.50741397 | V499: 22.55986847 | W499: 19.59777528 | X499: 15.9684545 | Y499: 15.80037677 | Z499: 15.883361 | AA499: 14.67422165 | AB499: 14.67422165 | AC499: 14.6687128 | AD499: 14.6687128 | AE499: 14.6687128 | AF499: 14.6687128 | AG499: 14.6687128 | AH499: 14.67422165 | AI499: 15.66449908 | AJ499: 15.883361 | AK499: 15.96163888 | AL499: 15.95443437 | AM499: 37.46236643 | AN499: 59.80264313 | AO499: 64.77631831 | AP499: 64.77631831 | AQ499: 64.77631831 | AR499: 64.77631831 | AS499: 64.77631831 | AT499: 64.77631831 | AU499: 64.77631831 | AV499: 64.77631831 | AW499: 64.77631831 | AX499: 64.77631831 | AY499: 64.77631831 | AZ499: 64.77631831 | BA499: 64.77631831
A500: 2023-11-10 | B500: 2023 | C500: 11 | D500: 10 | E500: Friday | F500: 64.77631831 | G500: 64.77631831 | H500: 64.77631831 | I500: 64.77631831 | J500: 64.77631831 | K500: 64.77631831 | L500: 64.77631831 | M500: 64.77631831 | N500: 64.77631831 | O500: 64.77631831 | P500: 64.77631831 | Q500: 64.77631831 | R500: 64.77631831 | S500: 64.77631831 | T500: 56.88608456 | U500: 29.58284816 | V500: 24.9918517 | W500: 15.94211494 | X500: 15.92859854 | Y500: 15.92859854 | Z500: 15.92859854 | AA500: 15.92859854 | AB500: 15.96163888 | AC500: 15.883361 | AD500: 15.66449908 | AE500: 14.67422165 | AF500: 15.883361 | AG500: 15.80037677 | AH500: 15.9684545 | AI500: 15.80037677 | AJ500: 15.96028857 | AK500: 15.94756457 | AL500: 15.93730779 | AM500: 44.36865192 | AN500: 59.19389475 | AO500: 62.87299819 | AP500: 64.77631831 | AQ500: 64.77631831 | AR500: 64.77631831 | AS500: 64.77631831 | AT500: 64.77631831 | AU500: 64.77631831 | AV500: 64.77631831 | AW500: 64.77631831 | AX500: 64.77631831 | AY500: 64.77631831 | AZ500: 64.77631831 | BA500: 64.77631831
... 625 more rows

Sheet OLTC_Taps
D1: Voltage PQ Management Strategy | H1: Section Check: | I1: =IF(COUNTA($A$8:$A$210)=COUNTIF($A$8:$A$210,0),"Ok","Check") -> Ok | L1: Overall Check: | M1: Ok | O1: Legend: | P1: Input | Q1: Internal | R1: Select | S1: Calculation
D2: =RIGHT(CELL("filename",D1),LEN(CELL("filename",D1))-FIND("]",CELL("filename",D1))) -> OLTC_Taps | F2: Zone Substation OLTC Tap Positions
B6: Copyright Jemena Limited. All rights reserved. Jemena is not liable for any loss caused by reliance on this document.
B8: General Assumptions
C10: =B8 -> General Assumptions
D12: =C10 -> General Assumptions | E12: Source | F12: Unit | G12: Basis
D14: Inflation Rate | E14: AM | F14: Per cent | G14: n/a | J14: 0.02
B16: Zone Substation OLTC Tap Positions
C18: Summary
D20: Item | F20: Source | G20: Unit | H20: Input $ | J20: Cost ($) | K20: ="Convert to $"&L20 -> Convert to $2021 | L20: 2021 | N20: Assumed 0.7 USD:AUD, and 34% overheads
D22: Cost for upgrade from T3 to E3 device A$ | F22: AM | G22: $'000 | H22: 2018 | J22: =(6957+1600+4900)/0.7*1.34/1000 -> 25.76054286 | K22: =J22*(1+$J$14)^($L$20-$H22) -> 27.33729416 | M22: =COUNTIF(H70:H135,"DRMCC-T3") -> 13 | N22: TX having DRMCC-T3 | Q22: Source: http://cityofbatavia.net/AgendaCenter/ViewFile/Item/11920?fileID=8448
D23: Cost for install one DRMCC-E3 device A$ | F23: AM | G23: $'000 | H23: 2018 | J23: =485510/2/1000 -> 242.755 | K23: =J23*(1+$J$14)^($L$20-$H23) -> 257.613548 | M23: =COUNTIF(H70:H135,"<>DRMCC-E3")-M22 -> 20 | N23: TX not having DRMCC-E3 | Q23: Source: BAA-PSA-000004 DR VR at CS
D24: Cost of 240 new access points | F24: AM | G24: $'000 | H24: 2021 | J24: =2000 -> 2000 | K24: =J24*(1+$J$14)^($L$20-$H24) -> 2000 | Q24: Source: Lawrence Law meeting 15/11/21
D25: Total cost to upgrade VRRs and AP | F25: AM | G25: $'000 | K25: =K22*M22 +K23*M23 +K24 -> 7507.655785
D27: OSII ADMS VVC data pre-processor integration with Itron SensorIQ | F27: AM | G27: $'000 | H27: 2021 | J27: 500 | K27: =J27*(1+$J$14)^($L$20-$H27) -> 500
D28: VVC reconfiguration to set-point control | F28: AM | G28: $'000 | H28: 2021 | J28: 500 | K28: =J28*(1+$J$14)^($L$20-$H28) -> 500
D30: Total cost of VVC w/o tap changes maintenance | F30: AM | G30: $'000 | H30: 2021 | J30: =K25+J27+J28 -> 8507.655785 | K30: =J30*(1+$J$14)^($L$20-$H30) -> 8507.655785
D31: Additional tap changer maintenance costs | F31: AM | G31: $'000 | H31: 2021 | J31: 100 | K31: =J31*(1+$J$14)^($L$20-$H31) -> 100 | M31: per annum
D33: Installed cost of 8MVAr 22kV reactor | F33: AM | G33: $'000 | H33: 2019 | J33: =6500/100*8 -> 520 | K33: =J33*(1+$J$14)^($L$20-$H33) -> 541.008 | M33: Source: https://aemo.com.au/-/media/files/electricity/nem/planning_and_forecasting/victorian_transmission/2019/reactive-power-rit-t/victorian-reactive-power-support-pacr.pdf
D34: Number of reactors required | F34: AM | G34: $'000 | H34: N/A | J34: 4
D35: Total cost of reactors | F35: AM | G35: $'000 | K35: =K33*J34 -> 2164.032
D37: One off tap changes | F37: AM | G37: $'000 | H37: 2021 | J37: 20 | K37: =J37*(1+$J$14)^($L$20-$H37) -> 20
C66: Inputs
D68: ZSS | E68: ZSS TX | F68: 2022-12-18T13:30:00 | G68: Tx Tap Position | H68: Tx VR relay | I68: Note: The following ZSS don't have tap position in SCADA: EP, FW, NH No.1 & No.2 Tx, ST, TH.
D70: =TRIM(LEFT(E70,3)) -> AW | E70: AW No1 | F70: \\HISY\AW_DNP.1TRTAP | G70: 4 | H70: DRMCC-E3
D71: AW | E71: AW No2 | F71: \\HISY\AW_DNP.2TRTAP | G71: 4 | H71: DRMCC-E3
D72: AW | E72: AW No3 | F72: \\HISY\AW_DNP.3TRTAP | G72: 4 | H72: DRMCC-E3
D73: AW | E73: AW No4 | F73: \\HISY\AW_DNP.4TRTAP | G73: 14 | H73: DRMCC-E3
D74: BD | E74: BD No1 | F74: \\HISY\BD_DNP.1TRTAP | G74: 4 | H74: DRMCC-E3
D75: BD | E75: BD No2 | F75: \\HISY\BD_DNP.2TRTAP | G75: 3 | H75: DRMCC-E3
D76: BD | E76: BD No3 | F76: \\HISY\BD_DNP.3TRTAP | G76: 4 | H76: DRMCC-E3
D77: BD | E77: BD No4 | F77: \\HISY\BD_DNP.4TRTAP | G77: 3 | H77: DRMCC-E3
D78: BMS | E78: BMS No1 | F78: \\HISY\BMS_1.1TRTAP | G78: 4 | H78: DRMCC-E3
D79: BMS | E79: BMS No2 | F79: \\HISY\BMS_1.2TRTAP | G79: 4 | H79: DRMCC-E3
D80: BY | E80: BY No1 | F80: \\HISY\BY_DNP.1TRTAP | G80: 4 | H80: KVGC202 ?
D81: BY | E81: BY No2 | F81: \\HISY\BY_DNP.2TR_TPI | G81: 5 | H81: DRMCC-T3
D82: CN | E82: CN No1 | F82: \\HISY\CN_1.1TRTAP | G82: 6 | H82: CDG11-1055 ?
D83: CN | E83: CN No2 | F83: \\HISY\CN_1.2TRTAP | G83: 3 | H83: CDG11-1055 ?
D84: CN | E84: CN No3 | F84: \\HISY\CN_1.3TRTAP | G84: 3 | H84: CDG11-1055 ?
D85: CS | E85: CS No1 | F85: \\HISY\CS_1.1TRTAP | G85: 3 | H85: DRMCC-E3
D86: CS | E86: CS No2 | F86: \\HISY\CS_1.2TRTAP | G86: 3 | H86: DRMCC-E3
D87: COO | E87: COO No1 | F87: \\HISY\COO_DNP.1TRTAPPOS | G87: 4 | H87: DRMCC-T3
D88: COO | E88: COO No2 | F88: \\HISY\COO_DNP.2TRTAP | G88: 3 | H88: DRMCC-T3
D89: EP A | E89: EP No1 | F89: - | G89: 4 | H89: CDG11-521 ?
D90: EP A | E90: EP No2 | F90: - | G90: 4 | H90: CDG11-521 ?
D91: EP B | E91: EP No3 | F91: - | G91: 4 | H91: CDG11-521 ?
D92: EP B | E92: EP No4 | F92: - | G92: 4 | H92: CDG11-521 ?
D93: =TRIM(LEFT(E93,3)) -> EPN | E93: EPN No1 | F93: \\HISY\EPN_1.3TRTAP | G93: 4 | H93: DRMCC-E3
D94: ES | E94: ES No2 | F94: \\HISY\ES_1.2TRTAP | G94: 5 | H94: DRMCC-E3
D95: ES | E95: ES No3 | F95: \\HISY\ES_1.3TRTAP | G95: 5 | H95: DRMCC-E3
D96: FE | E96: FE No1 | F96: \\HISY\FE_1.1TRTAP | G96: 4 | H96: DRMCC-T3
D97: FE | E97: FE No2 | F97: \\HISY\FE_1.2TRTAP | G97: 4 | H97: DRMCC-T3
D98: FW | E98: FW No1 | F98: - | G98: 4 | H98: CDG11-520 ?
D99: FW | E99: FW No2 | F99: - | G99: 4 | H99: CDG11-520 ?
D100: FW | E100: FW No3 | F100: - | G100: 4 | H100: CDG11-520 ?
D101: FF | E101: FF No1 | F101: \\HISY\FF_DNP.1TRTAP | G101: 6 | H101: DRMCC-E3
D102: FF | E102: FF No2 | F102: \\HISY\FF_DNP.2TRTAP | G102: 6 | H102: DRMCC-E3
D103: FF | E103: FF No3 | F103: \\HISY\FF_DNP.3TRTAP | G103: 9 | H103: DRMCC-E3
D104: FT | E104: FT No1 | F104: \\HISY\FT_1.1TRTAP | G104: 6 | H104: DRMCC-E3
D105: FT | E105: FT No2 | F105: \\HISY\FT_1.2TRTAP | G105: 6 | H105: DRMCC-E3
D106: HB | E106: HB No1 | F106: \\HISY\HB_1.1TRTAP | G106: 4 | H106: DRMCC-T3
D107: HB | E107: HB No3 | F107: \\HISY\HB_1.3TRTAP | G107: 4 | H107: DRMCC-T3
D108: NH | E108: NH No1 | F108: - | G108: 4 | H108: CDG11-1054 ?
D109: NH | E109: NH No2 | F109: - | G109: 4 | H109: CDG11-1054 ?
D110: NH | E110: NH No3 | F110: \\HISY\NH_DNP.3TR_TPI | G110: 3 | H110: GP3 - 1511 ?
D111: NS | E111: NS No1 | F111: \\HISY\NS_1.1TRTAP | G111: 6 | H111: DRMCC-E3
D112: NS | E112: NS No2 | F112: \\HISY\NS_1.2TRTAP | G112: 6 | H112: DRMCC-E3
D113: NS | E113: NS No3 | F113: \\HISY\NS_1.3TRTAP | G113: 6 | H113: DRMCC-E3
D114: NT | E114: NT No1 | F114: \\HISY\NT_1.1TRTAP | G114: 3 | H114: DRMCC-T3
D115: NT | E115: NT No3 | F115: \\HISY\NT_1.3TRTAP | G115: 3 | H115: DRMCC-T3
D116: PTN | E116: PTN No1 | F116: \\HISY\PTN_1.1TRTAP | G116: 4 | H116: DRMCC-E3
D117: PTN | E117: PTN No2 | F117: \\HISY\PTN_1.2TRTAP | G117: 4 | H117: DRMCC-E3
D118: PV | E118: PV No1 | F118: \\HISY\PV_1.1TRTAP | G118: 5 | H118: DRMCC-T3
D119: PV | E119: PV No2 | F119: \\HISY\PV_1.2TRTAP | G119: 5 | H119: DRMCC-T3
D120: PV | E120: PV No3 | F120: \\HISY\PV_1.TR3TAPPOS | H120: ?
D121: SBY | E121: SBY No1 | F121: \\HISY\SBY_DNP.1TRTAP | G121: 2 | H121: DRMCC-E3
D122: SBY | E122: SBY No2 | F122: \\HISY\SBY_DNP.2TRTAP | G122: 2 | H122: DRMCC-E3
D123: SBY | E123: SBY No3 | F123: \\HISY\SBY_DNP.3TRTAP | G123: 2 | H123: DRMCC-E3
D124: SHM | E124: SHM No1 | F124: \\HISY\SHM.1TRTAP | G124: 1 | H124: DRMCC-T3
D125: SHM | E125: SHM No2 | F125: \\HISY\SHM.2TRTAP | G125: 1 | H125: DRMCC-T3
D126: ST | E126: ST No1 | F126: - | G126: 2 | H126: 2V161K - 2415 ?
D127: ST | E127: ST No2 | F127: - | G127: 2 | H127: ?
D128: ST | E128: ST No3 | F128: - | G128: 2 | H128: ?
D129: TH | E129: TH No1 | F129: - | G129: 6 | H129: ?
D130: TH | E130: TH No2 | F130: - | G130: 6 | H130: ?
D131: TMA | E131: TMA No1 | F131: \\HISY\TMA_1.1TRTAP | G131: 3 | H131: DRMCC-E3
D132: TMA | E132: TMA No2 | F132: \\HISY\TMA_1.2TRTAP | G132: 3 | H132: DRMCC-E3
D133: YVE | E133: YVE No1 | F133: \\HISY\YVE_1.1TRTAP | G133: 3 | H133: DRMCC-E3
D134: YVE | E134: YVE No2 | F134: \\HISY\YVE_1.2TRTAP | G134: 3 | H134: DRMCC-E3
D135: YVE | E135: YVE No3 | F135: \\HISY\YVE_1.4TRTAP | G135: 5 | H135: DRMCC-E3
C138: Calculation
D140: Calculation Metrics | G140: Factors
D142: HV Cable Charging Factor | G142: =10*G143 -> 0.4
D143: PV growth factor | G143: 0.04
D145: ZSS | F145: Min tap | G145: 2023 Actual | H145: Margin | I145: 2028 | J145: 2033 | L145: Rank | N145: 2028 delta tap pa | O145: 2033 delta tap pa
D147: SBY | G147: =IF(OR(Do_Nothing!$K$35=1,Do_Nothing!$Q$35=1),999,_xlfn.MINIFS($G$70:$G$135,$D$70:$D$135,$D147)) -> 2 | H147: =(G147-1)*1.25% -> 0.0125 | I147: =ROUND(MAX(1,$G147-$G$142*VLOOKUP($D147,Cable_Charging!$D$51:$AQ$81,41-1,FALSE)-$G$143*SUMPRODUCT(PV_Uptake!$W$50:$W$80*(PV_Uptake!$D$50:$D$80=$D147))),0) -> 1 | J147: =ROUND(MAX(1,$I147-$G$142*VLOOKUP($D147,Cable_Charging!$D$51:$AR$81,42-1,FALSE)-$G$143*SUMPRODUCT(PV_Uptake!$X$50:$X$80*(PV_Uptake!$D$50:$D$80=$D147))),0) -> 1 | L147: 1 | N147: =(-$G$142*VLOOKUP($D147,Cable_Charging!$D$51:$AQ$81,41-1,FALSE)-$G$143*SUMPRODUCT(PV_Uptake!$W$50:$W$80*(PV_Uptake!$D$50:$D$80=$D147)))*1.25%/5 -> -0.002258191591 | O147: =(-$G$142*VLOOKUP($D147,Cable_Charging!$D$51:$AR$81,42-1,FALSE)-$G$143*SUMPRODUCT(PV_Uptake!$X$50:$X$80*(PV_Uptake!$D$50:$D$80=$D147)))*1.25%/5 -> -0.001993424516
D148: SHM | G148: =IF(OR(Do_Nothing!$K$35=1,Do_Nothing!$Q$35=1),999,_xlfn.MINIFS($G$70:$G$135,$D$70:$D$135,$D148)) -> 1 | H148: 0 | I148: =ROUND(MAX(1,$G148-$G$142*VLOOKUP($D148,Cable_Charging!$D$51:$AQ$81,41-1,FALSE)-$G$143*SUMPRODUCT(PV_Uptake!$W$50:$W$80*(PV_Uptake!$D$50:$D$80=$D148))),0) -> 1 | J148: =ROUND(MAX(1,$I148-$G$142*VLOOKUP($D148,Cable_Charging!$D$51:$AR$81,42-1,FALSE)-$G$143*SUMPRODUCT(PV_Uptake!$X$50:$X$80*(PV_Uptake!$D$50:$D$80=$D148))),0) -> 1 | L148: =L147+1 -> 2 | N148: =(-$G$142*VLOOKUP($D148,Cable_Charging!$D$51:$AQ$81,41-1,FALSE)-$G$143*SUMPRODUCT(PV_Uptake!$W$50:$W$80*(PV_Uptake!$D$50:$D$80=$D148)))*1.25%/5 -> -0.002512592903 | O148: =(-$G$142*VLOOKUP($D148,Cable_Charging!$D$51:$AR$81,42-1,FALSE)-$G$143*SUMPRODUCT(PV_Uptake!$X$50:$X$80*(PV_Uptake!$D$50:$D$80=$D148)))*1.25%/5 -> -0.001726494424
D149: COO | G149: =IF(OR(Do_Nothing!$K$35=1,Do_Nothing!$Q$35=1),999,_xlfn.MINIFS($G$70:$G$135,$D$70:$D$135,$D149)) -> 3 | H149: 0.025 | I149: =ROUND(MAX(1,$G149-$G$142*VLOOKUP($D149,Cable_Charging!$D$51:$AQ$81,41-1,FALSE)-$G$143*SUMPRODUCT(PV_Uptake!$W$50:$W$80*(PV_Uptake!$D$50:$D$80=$D149))),0) -> 1 | J149: =ROUND(MAX(1,$I149-$G$142*VLOOKUP($D149,Cable_Charging!$D$51:$AR$81,42-1,FALSE)-$G$143*SUMPRODUCT(PV_Uptake!$X$50:$X$80*(PV_Uptake!$D$50:$D$80=$D149))),0) -> 1 | L149: =L148+1 -> 3 | N149: =(-$G$142*VLOOKUP($D149,Cable_Charging!$D$51:$AQ$81,41-1,FALSE)-$G$143*SUMPRODUCT(PV_Uptake!$W$50:$W$80*(PV_Uptake!$D$50:$D$80=$D149)))*1.25%/5 -> -0.004076552522 | O149: =(-$G$142*VLOOKUP($D149,Cable_Charging!$D$51:$AR$81,42-1,FALSE)-$G$143*SUMPRODUCT(PV_Uptake!$X$50:$X$80*(PV_Uptake!$D$50:$D$80=$D149)))*1.25%/5 -> -0.003996549948
D150: ST | G150: =IF(OR(Do_Nothing!$K$35=1,Do_Nothing!$Q$35=1),999,_xlfn.MINIFS($G$70:$G$135,$D$70:$D$135,$D150)) -> 2 | H150: 0.0125 | I150: =ROUND(MAX(1,$G150-$G$142*VLOOKUP($D150,Cable_Charging!$D$51:$AQ$81,41-1,FALSE)-$G$143*SUMPRODUCT(PV_Uptake!$W$50:$W$80*(PV_Uptake!$D$50:$D$80=$D150))),0) -> 1 | J150: =ROUND(MAX(1,$I150-$G$142*VLOOKUP($D150,Cable_Charging!$D$51:$AR$81,42-1,FALSE)-$G$143*SUMPRODUCT(PV_Uptake!$X$50:$X$80*(PV_Uptake!$D$50:$D$80=$D150))),0) -> 1 | L150: =L149+1 -> 4 | N150: =(-$G$142*VLOOKUP($D150,Cable_Charging!$D$51:$AQ$81,41-1,FALSE)-$G$143*SUMPRODUCT(PV_Uptake!$W$50:$W$80*(PV_Uptake!$D$50:$D$80=$D150)))*1.25%/5 -> -0.00394124796 | O150: =(-$G$142*VLOOKUP($D150,Cable_Charging!$D$51:$AR$81,42-1,FALSE)-$G$143*SUMPRODUCT(PV_Uptake!$X$50:$X$80*(PV_Uptake!$D$50:$D$80=$D150)))*1.25%/5 -> -0.003046228503
D151: BD | G151: =IF(OR(Do_Nothing!$K$35=1,Do_Nothing!$Q$35=1),999,_xlfn.MINIFS($G$70:$G$135,$D$70:$D$135,$D151)) -> 3 | H151: 0.025 | I151: =ROUND(MAX(1,$G151-$G$142*VLOOKUP($D151,Cable_Charging!$D$51:$AQ$81,41-1,FALSE)-$G$143*SUMPRODUCT(PV_Uptake!$W$50:$W$80*(PV_Uptake!$D$50:$D$80=$D151))),0) -> 2 | J151: =ROUND(MAX(1,$I151-$G$142*VLOOKUP($D151,Cable_Charging!$D$51:$AR$81,42-1,FALSE)-$G$143*SUMPRODUCT(PV_Uptake!$X$50:$X$80*(PV_Uptake!$D$50:$D$80=$D151))),0) -> 1 | L151: =L150+1 -> 5 | N151: =(-$G$142*VLOOKUP($D151,Cable_Charging!$D$51:$AQ$81,41-1,FALSE)-$G$143*SUMPRODUCT(PV_Uptake!$W$50:$W$80*(PV_Uptake!$D$50:$D$80=$D151)))*1.25%/5 -> -0.00224844792 | O151: =(-$G$142*VLOOKUP($D151,Cable_Charging!$D$51:$AR$81,42-1,FALSE)-$G$143*SUMPRODUCT(PV_Uptake!$X$50:$X$80*(PV_Uptake!$D$50:$D$80=$D151)))*1.25%/5 -> -0.001888001882
D152: NH | G152: =IF(OR(Do_Nothing!$K$35=1,Do_Nothing!$Q$35=1),999,_xlfn.MINIFS($G$70:$G$135,$D$70:$D$135,$D152)) -> 3 | H152: 0.025 | I152: =ROUND(MAX(1,$G152-$G$142*VLOOKUP($D152,Cable_Charging!$D$51:$AQ$81,41-1,FALSE)-$G$143*SUMPRODUCT(PV_Uptake!$W$50:$W$80*(PV_Uptake!$D$50:$D$80=$D152))),0) -> 2 | J152: =ROUND(MAX(1,$I152-$G$142*VLOOKUP($D152,Cable_Charging!$D$51:$AR$81,42-1,FALSE)-$G$143*SUMPRODUCT(PV_Uptake!$X$50:$X$80*(PV_Uptake!$D$50:$D$80=$D152))),0) -> 1 | N152: =(-$G$142*VLOOKUP($D152,Cable_Charging!$D$51:$AQ$81,41-1,FALSE)-$G$143*SUMPRODUCT(PV_Uptake!$W$50:$W$80*(PV_Uptake!$D$50:$D$80=$D152)))*1.25%/5 -> -0.001445581172 | O152: =(-$G$142*VLOOKUP($D152,Cable_Charging!$D$51:$AR$81,42-1,FALSE)-$G$143*SUMPRODUCT(PV_Uptake!$X$50:$X$80*(PV_Uptake!$D$50:$D$80=$D152)))*1.25%/5 -> -0.002093585247
D153: CN | G153: =IF(OR(Do_Nothing!$K$35=1,Do_Nothing!$Q$35=1),999,_xlfn.MINIFS($G$70:$G$135,$D$70:$D$135,$D153)) -> 3 | H153: 0.025 | I153: =ROUND(MAX(1,$G153-$G$142*VLOOKUP($D153,Cable_Charging!$D$51:$AQ$81,41-1,FALSE)-$G$143*SUMPRODUCT(PV_Uptake!$W$50:$W$80*(PV_Uptake!$D$50:$D$80=$D153))),0) -> 2 | J153: =ROUND(MAX(1,$I153-$G$142*VLOOKUP($D153,Cable_Charging!$D$51:$AR$81,42-1,FALSE)-$G$143*SUMPRODUCT(PV_Uptake!$X$50:$X$80*(PV_Uptake!$D$50:$D$80=$D153))),0) -> 2 | N153: =(-$G$142*VLOOKUP($D153,Cable_Charging!$D$51:$AQ$81,41-1,FALSE)-$G$143*SUMPRODUCT(PV_Uptake!$W$50:$W$80*(PV_Uptake!$D$50:$D$80=$D153)))*1.25%/5 -> -0.001286038831 | O153: =(-$G$142*VLOOKUP($D153,Cable_Charging!$D$51:$AR$81,42-1,FALSE)-$G$143*SUMPRODUCT(PV_Uptake!$X$50:$X$80*(PV_Uptake!$D$50:$D$80=$D153)))*1.25%/5 -> -0.001087802217
D154: AW | G154: =IF(OR(Do_Nothing!$K$35=1,Do_Nothing!$Q$35=1),999,_xlfn.MINIFS($G$70:$G$135,$D$70:$D$135,$D154)) -> 4 | H154: 0.0375 | I154: =ROUND(MAX(1,$G154-$G$142*VLOOKUP($D154,Cable_Charging!$D$51:$AQ$81,41-1,FALSE)-$G$143*SUMPRODUCT(PV_Uptake!$W$50:$W$80*(PV_Uptake!$D$50:$D$80=$D154))),0) -> 3 | J154: =ROUND(MAX(1,$I154-$G$142*VLOOKUP($D154,Cable_Charging!$D$51:$AR$81,42-1,FALSE)-$G$143*SUMPRODUCT(PV_Uptake!$X$50:$X$80*(PV_Uptake!$D$50:$D$80=$D154))),0) -> 2 | N154: =(-$G$142*VLOOKUP($D154,Cable_Charging!$D$51:$AQ$81,41-1,FALSE)-$G$143*SUMPRODUCT(PV_Uptake!$W$50:$W$80*(PV_Uptake!$D$50:$D$80=$D154)))*1.25%/5 -> -0.001577117871 | O154: =(-$G$142*VLOOKUP($D154,Cable_Charging!$D$51:$AR$81,42-1,FALSE)-$G$143*SUMPRODUCT(PV_Uptake!$X$50:$X$80*(PV_Uptake!$D$50:$D$80=$D154)))*1.25%/5 -> -0.001676676289
D155: YVE | G155: =IF(OR(Do_Nothing!$K$35=1,Do_Nothing!$Q$35=1),999,_xlfn.MINIFS($G$70:$G$135,$D$70:$D$135,$D155)) -> 3 | H155: 0.025 | I155: =ROUND(MAX(1,$G155-$G$142*VLOOKUP($D155,Cable_Charging!$D$51:$AQ$81,41-1,FALSE)-$G$143*SUMPRODUCT(PV_Uptake!$W$50:$W$80*(PV_Uptake!$D$50:$D$80=$D155))),0) -> 3 | J155: =ROUND(MAX(1,$I155-$G$142*VLOOKUP($D155,Cable_Charging!$D$51:$AR$81,42-1,FALSE)-$G$143*SUMPRODUCT(PV_Uptake!$X$50:$X$80*(PV_Uptake!$D$50:$D$80=$D155))),0) -> 3 | N155: =(-$G$142*VLOOKUP($D155,Cable_Charging!$D$51:$AQ$81,41-1,FALSE)-$G$143*SUMPRODUCT(PV_Uptake!$W$50:$W$80*(PV_Uptake!$D$50:$D$80=$D155)))*1.25%/5 -> -0.0007110949867 | O155: =(-$G$142*VLOOKUP($D155,Cable_Charging!$D$51:$AR$81,42-1,FALSE)-$G$143*SUMPRODUCT(PV_Uptake!$X$50:$X$80*(PV_Uptake!$D$50:$D$80=$D155)))*1.25%/5 -> -0.0006734850067
D156: TMA | G156: =IF(OR(Do_Nothing!$K$35=1,Do_Nothing!$Q$35=1),999,_xlfn.MINIFS($G$70:$G$135,$D$70:$D$135,$D156)) -> 3 | H156: 0.025 | I156: =ROUND(MAX(1,$G156-$G$142*VLOOKUP($D156,Cable_Charging!$D$51:$AQ$81,41-1,FALSE)-$G$143*SUMPRODUCT(PV_Uptake!$W$50:$W$80*(PV_Uptake!$D$50:$D$80=$D156))),0) -> 3 | J156: =ROUND(MAX(1,$I156-$G$142*VLOOKUP($D156,Cable_Charging!$D$51:$AR$81,42-1,FALSE)-$G$143*SUMPRODUCT(PV_Uptake!$X$50:$X$80*(PV_Uptake!$D$50:$D$80=$D156))),0) -> 3 | N156: =(-$G$142*VLOOKUP($D156,Cable_Charging!$D$51:$AQ$81,41-1,FALSE)-$G$143*SUMPRODUCT(PV_Uptake!$W$50:$W$80*(PV_Uptake!$D$50:$D$80=$D156)))*1.25%/5 -> -0.0005067636306 | O156: =(-$G$142*VLOOKUP($D156,Cable_Charging!$D$51:$AR$81,42-1,FALSE)-$G$143*SUMPRODUCT(PV_Uptake!$X$50:$X$80*(PV_Uptake!$D$50:$D$80=$D156)))*1.25%/5 -> -0.0002891153509
D157: NT | G157: =IF(OR(Do_Nothing!$K$35=1,Do_Nothing!$Q$35=1),999,_xlfn.MINIFS($G$70:$G$135,$D$70:$D$135,$D157)) -> 3 | H157: 0.025 | I157: =ROUND(MAX(1,$G157-$G$142*VLOOKUP($D157,Cable_Charging!$D$51:$AQ$81,41-1,FALSE)-$G$143*SUMPRODUCT(PV_Uptake!$W$50:$W$80*(PV_Uptake!$D$50:$D$80=$D157))),0) -> 3 | J157: =ROUND(MAX(1,$I157-$G$142*VLOOKUP($D157,Cable_Charging!$D$51:$AR$81,42-1,FALSE)-$G$143*SUMPRODUCT(PV_Uptake!$X$50:$X$80*(PV_Uptake!$D$50:$D$80=$D157))),0) -> 3 | N157: =(-$G$142*VLOOKUP($D157,Cable_Charging!$D$51:$AQ$81,41-1,FALSE)-$G$143*SUMPRODUCT(PV_Uptake!$W$50:$W$80*(PV_Uptake!$D$50:$D$80=$D157)))*1.25%/5 -> -0.0006212965847 | O157: =(-$G$142*VLOOKUP($D157,Cable_Charging!$D$51:$AR$81,42-1,FALSE)-$G$143*SUMPRODUCT(PV_Uptake!$X$50:$X$80*(PV_Uptake!$D$50:$D$80=$D157)))*1.25%/5 -> -0.0006690131219
D158: CS | G158: =IF(OR(Do_Nothing!$K$35=1,Do_Nothing!$Q$35=1),999,_xlfn.MINIFS($G$70:$G$135,$D$70:$D$135,$D158)) -> 3 | H158: 0.025 | I158: =ROUND(MAX(1,$G158-$G$142*VLOOKUP($D158,Cable_Charging!$D$51:$AQ$81,41-1,FALSE)-$G$143*SUMPRODUCT(PV_Uptake!$W$50:$W$80*(PV_Uptake!$D$50:$D$80=$D158))),0) -> 3 | J158: =ROUND(MAX(1,$I158-$G$142*VLOOKUP($D158,Cable_Charging!$D$51:$AR$81,42-1,FALSE)-$G$143*SUMPRODUCT(PV_Uptake!$X$50:$X$80*(PV_Uptake!$D$50:$D$80=$D158))),0) -> 3 | N158: =(-$G$142*VLOOKUP($D158,Cable_Charging!$D$51:$AQ$81,41-1,FALSE)-$G$143*SUMPRODUCT(PV_Uptake!$W$50:$W$80*(PV_Uptake!$D$50:$D$80=$D158)))*1.25%/5 -> -0.00103786795 | O158: =(-$G$142*VLOOKUP($D158,Cable_Charging!$D$51:$AR$81,42-1,FALSE)-$G$143*SUMPRODUCT(PV_Uptake!$X$50:$X$80*(PV_Uptake!$D$50:$D$80=$D158)))*1.25%/5 -> -0.0009114376949
D159: FW | G159: =IF(OR(Do_Nothing!$K$35=1,Do_Nothing!$Q$35=1),999,_xlfn.MINIFS($G$70:$G$135,$D$70:$D$135,$D159)) -> 4 | H159: 0.0375 | I159: =ROUND(MAX(1,$G159-$G$142*VLOOKUP($D159,Cable_Charging!$D$51:$AQ$81,41-1,FALSE)-$G$143*SUMPRODUCT(PV_Uptake!$W$50:$W$80*(PV_Uptake!$D$50:$D$80=$D159))),0) -> 4 | J159: =ROUND(MAX(1,$I159-$G$142*VLOOKUP($D159,Cable_Charging!$D$51:$AR$81,42-1,FALSE)-$G$143*SUMPRODUCT(PV_Uptake!$X$50:$X$80*(PV_Uptake!$D$50:$D$80=$D159))),0) -> 3 | N159: =(-$G$142*VLOOKUP($D159,Cable_Charging!$D$51:$AQ$81,41-1,FALSE)-$G$143*SUMPRODUCT(PV_Uptake!$W$50:$W$80*(PV_Uptake!$D$50:$D$80=$D159)))*1.25%/5 -> -0.001061095003 | O159: =(-$G$142*VLOOKUP($D159,Cable_Charging!$D$51:$AR$81,42-1,FALSE)-$G$143*SUMPRODUCT(PV_Uptake!$X$50:$X$80*(PV_Uptake!$D$50:$D$80=$D159)))*1.25%/5 -> -0.001311239521
D160: HB | G160: =IF(OR(Do_Nothing!$K$35=1,Do_Nothing!$Q$35=1),999,_xlfn.MINIFS($G$70:$G$135,$D$70:$D$135,$D160)) -> 4 | H160: 0.0375 | I160: =ROUND(MAX(1,$G160-$G$142*VLOOKUP($D160,Cable_Charging!$D$51:$AQ$81,41-1,FALSE)-$G$143*SUMPRODUCT(PV_Uptake!$W$50:$W$80*(PV_Uptake!$D$50:$D$80=$D160))),0) -> 4 | J160: =ROUND(MAX(1,$I160-$G$142*VLOOKUP($D160,Cable_Charging!$D$51:$AR$81,42-1,FALSE)-$G$143*SUMPRODUCT(PV_Uptake!$X$50:$X$80*(PV_Uptake!$D$50:$D$80=$D160))),0) -> 4 | N160: =(-$G$142*VLOOKUP($D160,Cable_Charging!$D$51:$AQ$81,41-1,FALSE)-$G$143*SUMPRODUCT(PV_Uptake!$W$50:$W$80*(PV_Uptake!$D$50:$D$80=$D160)))*1.25%/5 -> -0.0007442246746 | O160: =(-$G$142*VLOOKUP($D160,Cable_Charging!$D$51:$AR$81,42-1,FALSE)-$G$143*SUMPRODUCT(PV_Uptake!$X$50:$X$80*(PV_Uptake!$D$50:$D$80=$D160)))*1.25%/5 -> -0.0009294123297
D161: PTN | G161: =IF(OR(Do_Nothing!$K$35=1,Do_Nothing!$Q$35=1),999,_xlfn.MINIFS($G$70:$G$135,$D$70:$D$135,$D161)) -> 4 | H161: 0.0375 | I161: =ROUND(MAX(1,$G161-$G$142*VLOOKUP($D161,Cable_Charging!$D$51:$AQ$81,41-1,FALSE)-$G$143*SUMPRODUCT(PV_Uptake!$W$50:$W$80*(PV_Uptake!$D$50:$D$80=$D161))),0) -> 4 | J161: =ROUND(MAX(1,$I161-$G$142*VLOOKUP($D161,Cable_Charging!$D$51:$AR$81,42-1,FALSE)-$G$143*SUMPRODUCT(PV_Uptake!$X$50:$X$80*(PV_Uptake!$D$50:$D$80=$D161))),0) -> 4 | N161: =(-$G$142*VLOOKUP($D161,Cable_Charging!$D$51:$AQ$81,41-1,FALSE)-$G$143*SUMPRODUCT(PV_Uptake!$W$50:$W$80*(PV_Uptake!$D$50:$D$80=$D161)))*1.25%/5 -> -0.000771740161 | O161: =(-$G$142*VLOOKUP($D161,Cable_Charging!$D$51:$AR$81,42-1,FALSE)-$G$143*SUMPRODUCT(PV_Uptake!$X$50:$X$80*(PV_Uptake!$D$50:$D$80=$D161)))*1.25%/5 -> -0.0009264113491
D162: FE | G162: =IF(OR(Do_Nothing!$K$35=1,Do_Nothing!$Q$35=1),999,_xlfn.MINIFS($G$70:$G$135,$D$70:$D$135,$D162)) -> 4 | H162: 0.0375 | I162: =ROUND(MAX(1,$G162-$G$142*VLOOKUP($D162,Cable_Charging!$D$51:$AQ$81,41-1,FALSE)-$G$143*SUMPRODUCT(PV_Uptake!$W$50:$W$80*(PV_Uptake!$D$50:$D$80=$D162))),0) -> 4 | J162: =ROUND(MAX(1,$I162-$G$142*VLOOKUP($D162,Cable_Charging!$D$51:$AR$81,42-1,FALSE)-$G$143*SUMPRODUCT(PV_Uptake!$X$50:$X$80*(PV_Uptake!$D$50:$D$80=$D162))),0) -> 4 | N162: =(-$G$142*VLOOKUP($D162,Cable_Charging!$D$51:$AQ$81,41-1,FALSE)-$G$143*SUMPRODUCT(PV_Uptake!$W$50:$W$80*(PV_Uptake!$D$50:$D$80=$D162)))*1.25%/5 -> -0.0009823977458 | O162: =(-$G$142*VLOOKUP($D162,Cable_Charging!$D$51:$AR$81,42-1,FALSE)-$G$143*SUMPRODUCT(PV_Uptake!$X$50:$X$80*(PV_Uptake!$D$50:$D$80=$D162)))*1.25%/5 -> -0.001034077458
D163: BMS | G163: =IF(OR(Do_Nothing!$K$35=1,Do_Nothing!$Q$35=1),999,_xlfn.MINIFS($G$70:$G$135,$D$70:$D$135,$D163)) -> 4 | H163: 0.0375 | I163: =ROUND(MAX(1,$G163-$G$142*VLOOKUP($D163,Cable_Charging!$D$51:$AQ$81,41-1,FALSE)-$G$143*SUMPRODUCT(PV_Uptake!$W$50:$W$80*(PV_Uptake!$D$50:$D$80=$D163))),0) -> 4 | J163: =ROUND(MAX(1,$I163-$G$142*VLOOKUP($D163,Cable_Charging!$D$51:$AR$81,42-1,FALSE)-$G$143*SUMPRODUCT(PV_Uptake!$X$50:$X$80*(PV_Uptake!$D$50:$D$80=$D163))),0) -> 4 | N163: =(-$G$142*VLOOKUP($D163,Cable_Charging!$D$51:$AQ$81,41-1,FALSE)-$G$143*SUMPRODUCT(PV_Uptake!$W$50:$W$80*(PV_Uptake!$D$50:$D$80=$D163)))*1.25%/5 -> -0.0006191964093 | O163: =(-$G$142*VLOOKUP($D163,Cable_Charging!$D$51:$AR$81,42-1,FALSE)-$G$143*SUMPRODUCT(PV_Uptake!$X$50:$X$80*(PV_Uptake!$D$50:$D$80=$D163)))*1.25%/5 -> -0.0006046346
D164: EPN | G164: =IF(OR(Do_Nothing!$K$35=1,Do_Nothing!$Q$35=1),999,_xlfn.MINIFS($G$70:$G$135,$D$70:$D$135,$D164)) -> 4 | H164: 0.0375 | I164: =ROUND(MAX(1,$G164-$G$142*VLOOKUP($D164,Cable_Charging!$D$51:$AQ$81,41-1,FALSE)-$G$143*SUMPRODUCT(PV_Uptake!$W$50:$W$80*(PV_Uptake!$D$50:$D$80=$D164))),0) -> 4 | J164: =ROUND(MAX(1,$I164-$G$142*VLOOKUP($D164,Cable_Charging!$D$51:$AR$81,42-1,FALSE)-$G$143*SUMPRODUCT(PV_Uptake!$X$50:$X$80*(PV_Uptake!$D$50:$D$80=$D164))),0) -> 4 | N164: =(-$G$142*VLOOKUP($D164,Cable_Charging!$D$51:$AQ$81,41-1,FALSE)-$G$143*SUMPRODUCT(PV_Uptake!$W$50:$W$80*(PV_Uptake!$D$50:$D$80=$D164)))*1.25%/5 -> -0.0003181464723 | O164: =(-$G$142*VLOOKUP($D164,Cable_Charging!$D$51:$AR$81,42-1,FALSE)-$G$143*SUMPRODUCT(PV_Uptake!$X$50:$X$80*(PV_Uptake!$D$50:$D$80=$D164)))*1.25%/5 -> -0.00034144012
D165: BY | G165: =IF(OR(Do_Nothing!$K$35=1,Do_Nothing!$Q$35=1),999,_xlfn.MINIFS($G$70:$G$135,$D$70:$D$135,$D165)) -> 4 | H165: 0.0375 | I165: =ROUND(MAX(1,$G165-$G$142*VLOOKUP($D165,Cable_Charging!$D$51:$AQ$81,41-1,FALSE)-$G$143*SUMPRODUCT(PV_Uptake!$W$50:$W$80*(PV_Uptake!$D$50:$D$80=$D165))),0) -> 4 | J165: =ROUND(MAX(1,$I165-$G$142*VLOOKUP($D165,Cable_Charging!$D$51:$AR$81,42-1,FALSE)-$G$143*SUMPRODUCT(PV_Uptake!$X$50:$X$80*(PV_Uptake!$D$50:$D$80=$D165))),0) -> 4 | N165: =(-$G$142*VLOOKUP($D165,Cable_Charging!$D$51:$AQ$81,41-1,FALSE)-$G$143*SUMPRODUCT(PV_Uptake!$W$50:$W$80*(PV_Uptake!$D$50:$D$80=$D165)))*1.25%/5 -> -0.0006597091579 | O165: =(-$G$142*VLOOKUP($D165,Cable_Charging!$D$51:$AR$81,42-1,FALSE)-$G$143*SUMPRODUCT(PV_Uptake!$X$50:$X$80*(PV_Uptake!$D$50:$D$80=$D165)))*1.25%/5 -> -0.0006442608856
D166: EP A | G166: =IF(OR(Do_Nothing!$K$35=1,Do_Nothing!$Q$35=1),999,_xlfn.MINIFS($G$70:$G$135,$D$70:$D$135,$D166)) -> 4 | H166: 0.0375 | I166: =ROUND(MAX(1,$G166-$G$142*VLOOKUP($D166,Cable_Charging!$D$51:$AQ$81,41-1,FALSE)-$G$143*SUMPRODUCT(PV_Uptake!$W$50:$W$80*(PV_Uptake!$D$50:$D$80=$D166))),0) -> 4 | J166: =ROUND(MAX(1,$I166-$G$142*VLOOKUP($D166,Cable_Charging!$D$51:$AR$81,42-1,FALSE)-$G$143*SUMPRODUCT(PV_Uptake!$X$50:$X$80*(PV_Uptake!$D$50:$D$80=$D166))),0) -> 4 | N166: =(-$G$142*VLOOKUP($D166,Cable_Charging!$D$51:$AQ$81,41-1,FALSE)-$G$143*SUMPRODUCT(PV_Uptake!$W$50:$W$80*(PV_Uptake!$D$50:$D$80=$D166)))*1.25%/5 -> -8.365600272e-06 | O166: =(-$G$142*VLOOKUP($D166,Cable_Charging!$D$51:$AR$81,42-1,FALSE)-$G$143*SUMPRODUCT(PV_Uptake!$X$50:$X$80*(PV_Uptake!$D$50:$D$80=$D166)))*1.25%/5 -> -1.037569977e-06
D167: EP B | G167: =IF(OR(Do_Nothing!$K$35=1,Do_Nothing!$Q$35=1),999,_xlfn.MINIFS($G$70:$G$135,$D$70:$D$135,$D167)) -> 4 | H167: 0.0375 | I167: =ROUND(MAX(1,$G167-$G$142*VLOOKUP($D167,Cable_Charging!$D$51:$AQ$81,41-1,FALSE)-$G$143*SUMPRODUCT(PV_Uptake!$W$50:$W$80*(PV_Uptake!$D$50:$D$80=$D167))),0) -> 4 | J167: =ROUND(MAX(1,$I167-$G$142*VLOOKUP($D167,Cable_Charging!$D$51:$AR$81,42-1,FALSE)-$G$143*SUMPRODUCT(PV_Uptake!$X$50:$X$80*(PV_Uptake!$D$50:$D$80=$D167))),0) -> 4 | N167: =(-$G$142*VLOOKUP($D167,Cable_Charging!$D$51:$AQ$81,41-1,FALSE)-$G$143*SUMPRODUCT(PV_Uptake!$W$50:$W$80*(PV_Uptake!$D$50:$D$80=$D167)))*1.25%/5 -> -0.000252868836 | O167: =(-$G$142*VLOOKUP($D167,Cable_Charging!$D$51:$AR$81,42-1,FALSE)-$G$143*SUMPRODUCT(PV_Uptake!$X$50:$X$80*(PV_Uptake!$D$50:$D$80=$D167)))*1.25%/5 -> -0.0002773313733
D168: PV | G168: =IF(OR(Do_Nothing!$K$35=1,Do_Nothing!$Q$35=1),999,_xlfn.MINIFS($G$70:$G$135,$D$70:$D$135,$D168)) -> 5 | H168: 0.05 | I168: =ROUND(MAX(1,$G168-$G$142*VLOOKUP($D168,Cable_Charging!$D$51:$AQ$81,41-1,FALSE)-$G$143*SUMPRODUCT(PV_Uptake!$W$50:$W$80*(PV_Uptake!$D$50:$D$80=$D168))),0) -> 5 | J168: =ROUND(MAX(1,$I168-$G$142*VLOOKUP($D168,Cable_Charging!$D$51:$AR$81,42-1,FALSE)-$G$143*SUMPRODUCT(PV_Uptake!$X$50:$X$80*(PV_Uptake!$D$50:$D$80=$D168))),0) -> 4 | N168: =(-$G$142*VLOOKUP($D168,Cable_Charging!$D$51:$AQ$81,41-1,FALSE)-$G$143*SUMPRODUCT(PV_Uptake!$W$50:$W$80*(PV_Uptake!$D$50:$D$80=$D168)))*1.25%/5 -> -0.0009775594616 | O168: =(-$G$142*VLOOKUP($D168,Cable_Charging!$D$51:$AR$81,42-1,FALSE)-$G$143*SUMPRODUCT(PV_Uptake!$X$50:$X$80*(PV_Uptake!$D$50:$D$80=$D168)))*1.25%/5 -> -0.00145027816
D169: ES | G169: =IF(OR(Do_Nothing!$K$35=1,Do_Nothing!$Q$35=1),999,_xlfn.MINIFS($G$70:$G$135,$D$70:$D$135,$D169)) -> 5 | H169: 0.05 | I169: =ROUND(MAX(1,$G169-$G$142*VLOOKUP($D169,Cable_Charging!$D$51:$AQ$81,41-1,FALSE)-$G$143*SUMPRODUCT(PV_Uptake!$W$50:$W$80*(PV_Uptake!$D$50:$D$80=$D169))),0) -> 5 | J169: =ROUND(MAX(1,$I169-$G$142*VLOOKUP($D169,Cable_Charging!$D$51:$AR$81,42-1,FALSE)-$G$143*SUMPRODUCT(PV_Uptake!$X$50:$X$80*(PV_Uptake!$D$50:$D$80=$D169))),0) -> 5 | N169: =(-$G$142*VLOOKUP($D169,Cable_Charging!$D$51:$AQ$81,41-1,FALSE)-$G$143*SUMPRODUCT(PV_Uptake!$W$50:$W$80*(PV_Uptake!$D$50:$D$80=$D169)))*1.25%/5 -> -0.0006028420759 | O169: =(-$G$142*VLOOKUP($D169,Cable_Charging!$D$51:$AR$81,42-1,FALSE)-$G$143*SUMPRODUCT(PV_Uptake!$X$50:$X$80*(PV_Uptake!$D$50:$D$80=$D169)))*1.25%/5 -> -0.0004743224792
D170: FT | G170: =IF(OR(Do_Nothing!$K$35=1,Do_Nothing!$Q$35=1),999,_xlfn.MINIFS($G$70:$G$135,$D$70:$D$135,$D170)) -> 6 | H170: 0.0625 | I170: =ROUND(MAX(1,$G170-$G$142*VLOOKUP($D170,Cable_Charging!$D$51:$AQ$81,41-1,FALSE)-$G$143*SUMPRODUCT(PV_Uptake!$W$50:$W$80*(PV_Uptake!$D$50:$D$80=$D170))),0) -> 6 | J170: =ROUND(MAX(1,$I170-$G$142*VLOOKUP($D170,Cable_Charging!$D$51:$AR$81,42-1,FALSE)-$G$143*SUMPRODUCT(PV_Uptake!$X$50:$X$80*(PV_Uptake!$D$50:$D$80=$D170))),0) -> 6 | N170: =(-$G$142*VLOOKUP($D170,Cable_Charging!$D$51:$AQ$81,41-1,FALSE)-$G$143*SUMPRODUCT(PV_Uptake!$W$50:$W$80*(PV_Uptake!$D$50:$D$80=$D170)))*1.25%/5 -> -0.0007085340853 | O170: =(-$G$142*VLOOKUP($D170,Cable_Charging!$D$51:$AR$81,42-1,FALSE)-$G$143*SUMPRODUCT(PV_Uptake!$X$50:$X$80*(PV_Uptake!$D$50:$D$80=$D170)))*1.25%/5 -> -0.0007433471713
D171: NS | G171: =IF(OR(Do_Nothing!$K$35=1,Do_Nothing!$Q$35=1),999,_xlfn.MINIFS($G$70:$G$135,$D$70:$D$135,$D171)) -> 6 | H171: 0.0625 | I171: =ROUND(MAX(1,$G171-$G$142*VLOOKUP($D171,Cable_Charging!$D$51:$AQ$81,41-1,FALSE)-$G$143*SUMPRODUCT(PV_Uptake!$W$50:$W$80*(PV_Uptake!$D$50:$D$80=$D171))),0) -> 6 | J171: =ROUND(MAX(1,$I171-$G$142*VLOOKUP($D171,Cable_Charging!$D$51:$AR$81,42-1,FALSE)-$G$143*SUMPRODUCT(PV_Uptake!$X$50:$X$80*(PV_Uptake!$D$50:$D$80=$D171))),0) -> 6 | N171: =(-$G$142*VLOOKUP($D171,Cable_Charging!$D$51:$AQ$81,41-1,FALSE)-$G$143*SUMPRODUCT(PV_Uptake!$W$50:$W$80*(PV_Uptake!$D$50:$D$80=$D171)))*1.25%/5 -> -0.0005157784451 | O171: =(-$G$142*VLOOKUP($D171,Cable_Charging!$D$51:$AR$81,42-1,FALSE)-$G$143*SUMPRODUCT(PV_Uptake!$X$50:$X$80*(PV_Uptake!$D$50:$D$80=$D171)))*1.25%/5 -> -0.0005611707168
D172: FF | G172: =IF(OR(Do_Nothing!$K$35=1,Do_Nothing!$Q$35=1),999,_xlfn.MINIFS($G$70:$G$135,$D$70:$D$135,$D172)) -> 6 | H172: 0.0625 | I172: =ROUND(MAX(1,$G172-$G$142*VLOOKUP($D172,Cable_Charging!$D$51:$AQ$81,41-1,FALSE)-$G$143*SUMPRODUCT(PV_Uptake!$W$50:$W$80*(PV_Uptake!$D$50:$D$80=$D172))),0) -> 6 | J172: =ROUND(MAX(1,$I172-$G$142*VLOOKUP($D172,Cable_Charging!$D$51:$AR$81,42-1,FALSE)-$G$143*SUMPRODUCT(PV_Uptake!$X$50:$X$80*(PV_Uptake!$D$50:$D$80=$D172))),0) -> 6 | N172: =(-$G$142*VLOOKUP($D172,Cable_Charging!$D$51:$AQ$81,41-1,FALSE)-$G$143*SUMPRODUCT(PV_Uptake!$W$50:$W$80*(PV_Uptake!$D$50:$D$80=$D172)))*1.25%/5 -> -0.0004131817618 | O172: =(-$G$142*VLOOKUP($D172,Cable_Charging!$D$51:$AR$81,42-1,FALSE)-$G$143*SUMPRODUCT(PV_Uptake!$X$50:$X$80*(PV_Uptake!$D$50:$D$80=$D172)))*1.25%/5 -> -0.0003290254097
D173: TH | G173: =IF(OR(Do_Nothing!$K$35=1,Do_Nothing!$Q$35=1),999,_xlfn.MINIFS($G$70:$G$135,$D$70:$D$135,$D173)) -> 6 | H173: 0.0625 | I173: =ROUND(MAX(1,$G173-$G$142*VLOOKUP($D173,Cable_Charging!$D$51:$AQ$81,41-1,FALSE)-$G$143*SUMPRODUCT(PV_Uptake!$W$50:$W$80*(PV_Uptake!$D$50:$D$80=$D173))),0) -> 6 | J173: =ROUND(MAX(1,$I173-$G$142*VLOOKUP($D173,Cable_Charging!$D$51:$AR$81,42-1,FALSE)-$G$143*SUMPRODUCT(PV_Uptake!$X$50:$X$80*(PV_Uptake!$D$50:$D$80=$D173))),0) -> 6 | N173: =(-$G$142*VLOOKUP($D173,Cable_Charging!$D$51:$AQ$81,41-1,FALSE)-$G$143*SUMPRODUCT(PV_Uptake!$W$50:$W$80*(PV_Uptake!$D$50:$D$80=$D173)))*1.25%/5 -> -0.0001392353455 | O173: =(-$G$142*VLOOKUP($D173,Cable_Charging!$D$51:$AR$81,42-1,FALSE)-$G$143*SUMPRODUCT(PV_Uptake!$X$50:$X$80*(PV_Uptake!$D$50:$D$80=$D173)))*1.25%/5 -> -0.0001120720912
B175: End

Sheet Cable_Charging
D1: Voltage PQ Management Strategy | H1: Section Check: | I1: =IF(COUNTA($A$8:$A$210)=COUNTIF($A$8:$A$210,0),"Ok","Check") -> Ok | L1: Overall Check: | M1: Ok | O1: Legend: | P1: Input | Q1: Internal | R1: Select | S1: Calculation
D2: =RIGHT(CELL("filename",D1),LEN(CELL("filename",D1))-FIND("]",CELL("filename",D1))) -> Cable_Charging | F2: Cable Charging
B6: Copyright Jemena Limited. All rights reserved. Jemena is not liable for any loss caused by reliance on this document.
B8: Cable Charging
C10: Summary
C40: Inputs
D42: MVAr Conversion | E42: Source | F42: Unit
D44: Charging A/km | E44: AM | F44: A/km | J44: 1.2 | K44: =F44 -> A/km
D45: MVAr/km (22 kV) | E45: AM | F45: MVAr/km | J45: =SQRT(3)*22*J44/1000 -> 0.04572614132 | K45: =F45 -> MVAr/km
D47: Zone Substation HV cable lengths (km) | Y47: Zone Substation HV cable charging (MVAr)
AQ48: Growth to
D49: Neutral | E49: =PV_Uptake!F49 -> 2023 Actual | F49: =PV_Uptake!G49 -> 2024 | G49: =PV_Uptake!H49 -> 2025 | H49: =PV_Uptake!I49 -> 2026 | I49: =PV_Uptake!J49 -> 2027 | J49: =PV_Uptake!K49 -> 2028 | K49: =PV_Uptake!L49 -> 2029 | L49: =PV_Uptake!M49 -> 2030 | M49: =PV_Uptake!N49 -> 2031 | N49: =PV_Uptake!O49 -> 2032 | O49: =PV_Uptake!P49 -> 2033 | P49: =PV_Uptake!Q49 -> 2034 | Q49: =PV_Uptake!R49 -> 2035 | R49: =PV_Uptake!S49 -> 2036 | S49: =PV_Uptake!T49 -> 2037 | T49: =PV_Uptake!U49 -> 2038 | U49: =PV_Uptake!V49 -> 2039 | V49: kV | W49: 2022 | Y49: =D49 -> Neutral | Z49: 2023 Actual | AA49: 2024 | AB49: 2025 | AC49: 2026 | AD49: 2027 | AE49: 2028 | AF49: 2029 | AG49: 2030 | AH49: 2031 | AI49: 2032 | AJ49: 2033 | AK49: 2034 | AL49: 2035 | AM49: 2036 | AN49: 2037 | AO49: 2038 | AP49: 2039 | AQ49: =AE49 -> 2028 | AR49: =AJ49 -> 2033 | AT49: Check
D51: COO | E51: 146.832395 | F51: 152 | G51: 158 | H51: 162.3310875 | I51: 166.8025907 | J51: 171.4145097 | K51: 176.1668445 | L51: 181.0595951 | M51: 186.0927614 | N51: 191.2663436 | O51: 196.5803415 | P51: 201.8943394 | Q51: 207.2083373 | R51: 212.5223352 | S51: 217.8363331 | T51: 223.150331 | U51: 228.4643289 | V51: 22 | W51: 102.810618 | Y51: =D51 -> COO | Z51: =E51*$J$45*($V51/22)^2 -> 6.714078844 | AA51: =F51*$J$45*($V51/22)^2 -> 6.950373481 | AB51: =G51*$J$45*($V51/22)^2 -> 7.224730329 | AC51: =H51*$J$45*($V51/22)^2 -> 7.422774246 | AD51: =I51*$J$45*($V51/22)^2 -> 7.627238835 | AE51: =J51*$J$45*($V51/22)^2 -> 7.838124095 | AF51: =K51*$J$45*($V51/22)^2 -> 8.055430028 | AG51: =L51*$J$45*($V51/22)^2 -> 8.279156632 | AH51: =M51*$J$45*($V51/22)^2 -> 8.509303907 | AI51: =N51*$J$45*($V51/22)^2 -> 8.745871855 | AJ51: =O51*$J$45*($V51/22)^2 -> 8.988860474 | AK51: =P51*$J$45*($V51/22)^2 -> 9.231849093 | AL51: =Q51*$J$45*($V51/22)^2 -> 9.474837713 | AM51: =R51*$J$45*($V51/22)^2 -> 9.717826332 | AN51: =S51*$J$45*($V51/22)^2 -> 9.960814951 | AO51: =T51*$J$45*($V51/22)^2 -> 10.20380357 | AP51: =U51*$J$45*($V51/22)^2 -> 10.44679219 | AQ51: =AE51-Z51 -> 1.124045251 | AR51: =AJ51-AE51 -> 1.150736379 | AT51: =W51>E51 -> FALSE
D52: ST | E52: 116 | F52: =E52+MAX(0,$E52-$W52) -> 121 | G52: 126 | H52: 131 | I52: 136 | J52: 141 | K52: 146 | L52: 151 | M52: 156 | N52: 161 | O52: 166 | P52: 171 | Q52: 176 | R52: 181 | S52: 186 | T52: 191 | U52: 196 | V52: 22 | W52: 111 | Y52: ST | Z52: 5.304232393 | AA52: 5.5328631 | AB52: 5.761493806 | AC52: 5.990124513 | AD52: 6.218755219 | AE52: 6.447385926 | AF52: 6.676016633 | AG52: 6.904647339 | AH52: 7.133278046 | AI52: 7.361908752 | AJ52: 7.590539459 | AK52: 7.819170166 | AL52: 8.047800872 | AM52: 8.276431579 | AN52: 8.505062285 | AO52: 8.733692992 | AP52: 8.962323699 | AQ52: 1.143153533 | AR52: 1.143153533 | AT52: FALSE
D53: KLO | E53: 76.42453 | F53: =E53+MAX(0,$E53-$W53)+4 -> 81.709024 | G53: 86.993518 | H53: 92.278012 | I53: 97.562506 | J53: 102.847 | K53: 108.131494 | L53: =K53+MAX(0,$E53-$W53)+2 -> 111.415988 | M53: 114.700482 | N53: 117.984976 | O53: 121.26947 | P53: 124.553964 | Q53: 127.838458 | R53: =Q53+MAX(0,$E53-$W53) -> 129.122952 | S53: =R53+MAX(0,$E53-$W53) -> 130.407446 | T53: =S53+MAX(0,$E53-$W53) -> 131.69194 | U53: =T53+MAX(0,$E53-$W53) -> 132.976434 | V53: 22 | W53: 75.140036 | Y53: KLO | Z53: 3.494598859 | AA53: 3.736238379 | AB53: 3.977877898 | AC53: 4.219517417 | AD53: 4.461156937 | AE53: 4.702796456 | AF53: 4.944435976 | AG53: 5.094623213 | AH53: 5.244810449 | AI53: 5.394997686 | AJ53: 5.545184923 | AK53: 5.69537216 | AL53: 5.845559397 | AM53: 5.904294351 | AN53: 5.963029305 | AO53: 6.021764259 | AP53: 6.080499213 | AQ53: 1.208197597 | AR53: 0.8423884667 | AT53: FALSE
D54: SHM | E54: 90.635359 | F54: 99 | G54: 102.9255276 | H54: 105.3520471 | I54: 107.3758225 | J54: 108.7368538 | K54: 110.0851411 | L54: 111.4206844 | M54: 112.7434836 | N54: 114.0535388 | O54: 115.3508499 | P54: 116.648161 | Q54: 117.9454722 | R54: 119.2427833 | S54: 120.5400944 | T54: 121.8374055 | U54: 123.1347167 | V54: 22 | W54: 88.502043 | Y54: SHM | Z54: 4.144405234 | AA54: 4.526887991 | AB54: 4.706387222 | AC54: 4.817342593 | AD54: 4.909882032 | AE54: 4.972116744 | AF54: 5.03376872 | AG54: 5.09483796 | AH54: 5.155324464 | AI54: 5.215228232 | AJ54: 5.274549264 | AK54: 5.333870296 | AL54: 5.393191328 | AM54: 5.45251236 | AN54: 5.511833392 | AO54: 5.571154424 | AP54: 5.630475456 | AQ54: 0.8277115099 | AR54: 0.3024325196 | AT54: FALSE
D55: SBY | E55: 72.27307 | F55: =E55+MAX(0,$E55-$W55) -> 75.23728 | G55: 78.20149 | H55: 81.1657 | I55: 84.12991 | J55: 87.09412 | K55: 90.05833 | L55: 93.02254 | M55: 95.98675 | N55: 98.95096 | O55: 101.91517 | P55: 104.87938 | Q55: 107.84359 | R55: 110.8078 | S55: 113.77201 | T55: 116.73622 | U55: 119.70043 | V55: 22 | W55: 69.30886 | Y55: SBY | Z55: 3.304768612 | AA55: 3.440310498 | AB55: 3.575852383 | AC55: 3.711394269 | AD55: 3.846936154 | AE55: 3.982478039 | AF55: 4.118019925 | AG55: 4.25356181 | AH55: 4.389103695 | AI55: 4.524645581 | AJ55: 4.660187466 | AK55: 4.795729351 | AL55: 4.931271237 | AM55: 5.066813122 | AN55: 5.202355007 | AO55: 5.337896893 | AP55: 5.473438778 | AQ55: 0.6777094268 | AR55: 0.6777094268 | AT55: FALSE
D56: BD | E56: 47.1331 | F56: =E56+MAX(0,$E56-$W56) -> 49.2662 | G56: 51.3993 | H56: 53.5324 | I56: 55.6655 | J56: 57.7986 | K56: 59.9317 | L56: 62.0648 | M56: 64.1979 | N56: 66.331 | O56: 68.4641 | P56: 70.5972 | Q56: 72.7303 | R56: 74.8634 | S56: 76.9965 | T56: 79.1296 | U56: 81.2627 | V56: 22 | W56: 45 | Y56: BD | Z56: 2.155214791 | AA56: 2.252753223 | AB56: 2.350291656 | AC56: 2.447830088 | AD56: 2.54536852 | AE56: 2.642906952 | AF56: 2.740445384 | AG56: 2.837983816 | AH56: 2.935522248 | AI56: 3.03306068 | AJ56: 3.130599112 | AK56: 3.228137544 | AL56: 3.325675976 | AM56: 3.423214408 | AN56: 3.52075284 | AO56: 3.618291272 | AP56: 3.715829704 | AQ56: 0.4876921602 | AR56: 0.4876921602 | AT56: FALSE
D57: YVE | E57: 38.999806 | F57: =E57+MAX(0,$E57-$W57) -> 41.071186 | G57: 43.142566 | H57: 45.213946 | I57: 47.285326 | J57: 49.356706 | K57: 51.428086 | L57: 53.499466 | M57: 55.570846 | N57: 57.642226 | O57: 59.713606 | P57: 61.784986 | Q57: 63.856366 | R57: 65.927746 | S57: 67.999126 | T57: 70.070506 | U57: 72.141886 | V57: 22 | W57: 36.928426 | Y57: YVE | Z57: 1.783310641 | AA57: 1.878026855 | AB57: 1.97274307 | AC57: 2.067459284 | AD57: 2.162175499 | AE57: 2.256891714 | AF57: 2.351607928 | AG57: 2.446324143 | AH57: 2.541040357 | AI57: 2.635756572 | AJ57: 2.730472787 | AK57: 2.825189001 | AL57: 2.919905216 | AM57: 3.01462143 | AN57: 3.109337645 | AO57: 3.20405386 | AP57: 3.298770074 | AQ57: 0.473581073 | AR57: 0.473581073 | AT57: FALSE
D58: AW | E58: 46.950377 | F58: =E58+MAX(0,$E58-$W58) -> 47.900754 | G58: 48.851131 | H58: 49.801508 | I58: 50.751885 | J58: 51.702262 | K58: 52.652639 | L58: 53.603016 | M58: 54.553393 | N58: 55.50377 | O58: 56.454147 | P58: 57.404524 | Q58: 58.354901 | R58: 59.305278 | S58: 60.255655 | T58: 61.206032 | U58: 62.156409 | V58: 22 | W58: 46 | Y58: AW | Z58: 2.146859574 | AA58: 2.190316647 | AB58: 2.23377372 | AC58: 2.277230793 | AD58: 2.320687866 | AE58: 2.364144939 | AF58: 2.407602012 | AG58: 2.451059085 | AH58: 2.494516158 | AI58: 2.537973231 | AJ58: 2.581430304 | AK58: 2.624887377 | AL58: 2.66834445 | AM58: 2.711801523 | AN58: 2.755258596 | AO58: 2.798715669 | AP58: 2.842172742 | AQ58: 0.217285365 | AR58: 0.217285365 | AT58: FALSE
D59: FE | E59: 16.63447 | F59: =E59+MAX(0,$E59-$W59) -> 18.874827 | G59: 21.115184 | H59: 23.355541 | I59: 25.595898 | J59: 27.836255 | K59: 30.076612 | L59: 32.316969 | M59: 34.557326 | N59: 36.797683 | O59: 39.03804 | P59: 41.278397 | Q59: 43.518754 | R59: 45.759111 | S59: 47.999468 | T59: 50.239825 | U59: 52.480182 | V59: 22 | W59: 14.394113 | Y59: FE | Z59: 0.760630126 | AA59: 0.8630730068 | AB59: 0.9655158876 | AC59: 1.067958768 | AD59: 1.170401649 | AE59: 1.27284453 | AF59: 1.375287411 | AG59: 1.477730292 | AH59: 1.580173172 | AI59: 1.682616053 | AJ59: 1.785058934 | AK59: 1.887501815 | AL59: 1.989944695 | AM59: 2.092387576 | AN59: 2.194830457 | AO59: 2.297273338 | AP59: 2.399716219 | AQ59: 0.5122144039 | AR59: 0.5122144039 | AT59: FALSE
D60: NH | E60: 34.682275 | F60: =E60+MAX(0,$E60-$W60) -> 34.872662 | G60: 35.063049 | H60: 35.253436 | I60: 35.443823 | J60: 35.63421 | K60: 35.824597 | L60: 36.014984 | M60: 36.205371 | N60: 36.395758 | O60: 36.586145 | P60: 36.776532 | Q60: 36.966919 | R60: 37.157306 | S60: 37.347693 | T60: 37.53808 | U60: 37.728467 | V60: 22 | W60: 34.491888 | Y60: NH | Z60: 1.585886608 | AA60: 1.594592271 | AB60: 1.603297934 | AC60: 1.612003597 | AD60: 1.620709259 | AE60: 1.629414922 | AF60: 1.638120585 | AG60: 1.646826248 | AH60: 1.655531911 | AI60: 1.664237574 | AJ60: 1.672943237 | AK60: 1.681648899 | AL60: 1.690354562 | AM60: 1.699060225 | AN60: 1.707765888 | AO60: 1.716471551 | AP60: 1.725177214 | AQ60: 0.04352831434 | AR60: 0.04352831434 | AT60: FALSE
D61: TMA | E61: 28.433087 | F61: =E61+MAX(0,$E61-$W61) -> 28.866174 | G61: 29.299261 | H61: 29.732348 | I61: 30.165435 | J61: 30.598522 | K61: 31.031609 | L61: 31.464696 | M61: 31.897783 | N61: 32.33087 | O61: 32.763957 | P61: 33.197044 | Q61: 33.630131 | R61: 34.063218 | S61: 34.496305 | T61: 34.929392 | U61: 35.362479 | V61: 22 | W61: 28 | Y61: TMA | Z61: 1.300135354 | AA61: 1.319938752 | AB61: 1.339742149 | AC61: 1.359545546 | AD61: 1.379348944 | AE61: 1.399152341 | AF61: 1.418955739 | AG61: 1.438759136 | AH61: 1.458562533 | AI61: 1.478365931 | AJ61: 1.498169328 | AK61: 1.517972725 | AL61: 1.537776123 | AM61: 1.55757952 | AN61: 1.577382917 | AO61: 1.597186315 | AP61: 1.616989712 | AQ61: 0.09901698683 | AR61: 0.09901698683 | AT61: FALSE
D62: FW | E62: 9.989255 | F62: =E62+MAX(0,$E62-$W62) -> 11.373447 | G62: 12.757639 | H62: 14.141831 | I62: 15.526023 | J62: 16.910215 | K62: 18.294407 | L62: 19.678599 | M62: 21.062791 | N62: 22.446983 | O62: 23.831175 | P62: 25.215367 | Q62: 26.599559 | R62: 27.983751 | S62: 29.367943 | T62: 30.752135 | U62: 32.136327 | V62: 22 | W62: 8.605063 | Y62: FW | Z62: 0.4567700858 | AA62: 0.5200638448 | AB62: 0.5833576038 | AC62: 0.6466513628 | AD62: 0.7099451218 | AE62: 0.7732388808 | AF62: 0.8365326398 | AG62: 0.8998263989 | AH62: 0.9631201579 | AI62: 1.026413917 | AJ62: 1.089707676 | AK62: 1.153001435 | AL62: 1.216295194 | AM62: 1.279588953 | AN62: 1.342882712 | AO62: 1.406176471 | AP62: 1.46947023 | AQ62: 0.316468795 | AR62: 0.316468795 | AT62: FALSE
D63: BMS | E63: 12 | F63: =E63+MAX(0,$E63-$W63) -> 12.944641 | G63: 13.889282 | H63: 14.833923 | I63: 15.778564 | J63: 16.723205 | K63: 17.667846 | L63: 18.612487 | M63: 19.557128 | N63: 20.501769 | O63: 21.44641 | P63: 22.391051 | Q63: 23.335692 | R63: 24.280333 | S63: 25.224974 | T63: 26.169615 | U63: 27.114256 | V63: 22 | W63: 11.055359 | Y63: BMS | Z63: 0.5487136958 | AA63: 0.5919084837 | AB63: 0.6351032716 | AC63: 0.6782980594 | AD63: 0.7214928473 | AE63: 0.7646876352 | AF63: 0.807882423 | AG63: 0.8510772109 | AH63: 0.8942719987 | AI63: 0.9374667866 | AJ63: 0.9806615745 | AK63: 1.023856362 | AL63: 1.06705115 | AM63: 1.110245938 | AN63: 1.153440726 | AO63: 1.196635514 | AP63: 1.239830302 | AQ63: 0.2159739393 | AR63: 0.2159739393 | AT63: FALSE
D64: CN | E64: 17.239028 | F64: =E64+MAX(0,$E64-$W64) -> 17.478056 | G64: 17.717084 | H64: 17.956112 | I64: 18.19514 | J64: 18.434168 | K64: 18.673196 | L64: 18.912224 | M64: 19.151252 | N64: 19.39028 | O64: 19.629308 | P64: 19.868336 | Q64: 20.107364 | R64: 20.346392 | S64: 20.58542 | T64: 20.824448 | U64: 21.063476 | V64: 22 | W64: 17 | Y64: CN | Z64: 0.7882742305 | AA64: 0.7992040587 | AB64: 0.8101338868 | AC64: 0.8210637149 | AD64: 0.831993543 | AE64: 0.8429233711 | AF64: 0.8538531992 | AG64: 0.8647830273 | AH64: 0.8757128554 | AI64: 0.8866426835 | AJ64: 0.8975725116 | AK64: 0.9085023397 | AL64: 0.9194321678 | AM64: 0.9303619959 | AN64: 0.941291824 | AO64: 0.9522216522 | AP64: 0.9631514803 | AQ64: 0.05464914054 | AR64: 0.05464914054 | AT64: FALSE
D65: BY | E65: 16.474688 | F65: =E65+MAX(0,$E65-$W65) -> 16.700708 | G65: 16.926728 | H65: 17.152748 | I65: 17.378768 | J65: 17.604788 | K65: 17.830808 | L65: 18.056828 | M65: 18.282848 | N65: 18.508868 | O65: 18.734888 | P65: 18.960908 | Q65: 19.186928 | R65: 19.412948 | S65: 19.638968 | T65: 19.864988 | U65: 20.091008 | V65: 22 | W65: 16.248668 | Y65: BY | Z65: 0.7533239117 | AA65: 0.7636589341 | AB65: 0.7739939566 | AC65: 0.7843289791 | AD65: 0.7946640015 | AE65: 0.804999024 | AF65: 0.8153340465 | AG65: 0.8256690689 | AH65: 0.8360040914 | AI65: 0.8463391138 | AJ65: 0.8566741363 | AK65: 0.8670091588 | AL65: 0.8773441812 | AM65: 0.8876792037 | AN65: 0.8980142261 | AO65: 0.9083492486 | AP65: 0.9186842711 | AQ65: 0.05167511231 | AR65: 0.05167511231 | AT65: FALSE
D66: NT | E66: 17.14768 | F66: =E66+MAX(0,$E66-$W66) -> 17.29536 | G66: 17.44304 | H66: 17.59072 | I66: 17.7384 | J66: 17.88608 | K66: 18.03376 | L66: 18.18144 | M66: 18.32912 | N66: 18.4768 | O66: 18.62448 | P66: 18.77216 | Q66: 18.91984 | R66: 19.06752 | S66: 19.2152 | T66: 19.36288 | U66: 19.51056 | V66: 22 | W66: 17 | Y66: NT | Z66: 0.784097239 | AA66: 0.7908500755 | AB66: 0.7976029121 | AC66: 0.8043557486 | AD66: 0.8111085852 | AE66: 0.8178614217 | AF66: 0.8246142583 | AG66: 0.8313670948 | AH66: 0.8381199314 | AI66: 0.8448727679 | AJ66: 0.8516256045 | AK66: 0.858378441 | AL66: 0.8651312776 | AM66: 0.8718841141 | AN66: 0.8786369507 | AO66: 0.8853897872 | AP66: 0.8921426238 | AQ66: 0.03376418275 | AR66: 0.03376418275 | AT66: FALSE
D67: FT | E67: 35.62092 | F67: =E67+MAX(0,$E67-$W67) -> 39.1655 | G67: 42.71008 | H67: 46.25466 | I67: 49.79924 | J67: 53.34382 | K67: 56.8884 | L67: 60.43298 | M67: 63.97756 | N67: 67.52214 | O67: 71.06672 | P67: 74.6113 | Q67: 78.15588 | R67: 81.70046 | S67: 85.24504 | T67: 88.78962 | U67: 92.3342 | V67: 11 | W67: 32.07634 | Y67: FT | Z67: 0.4072018055 | AA67: 0.447721797 | AB67: 0.4882417885 | AC67: 0.52876178 | AD67: 0.5692817715 | AE67: 0.609801763 | AF67: 0.6503217545 | AG67: 0.690841746 | AH67: 0.7313617375 | AI67: 0.771881729 | AJ67: 0.8124017205 | AK67: 0.852921712 | AL67: 0.8934417035 | AM67: 0.933961695 | AN67: 0.9744816865 | AO67: 1.015001678 | AP67: 1.055521669 | AQ67: 0.2025999575 | AR67: 0.2025999575 | AT67: FALSE
D68: TT | E68: 10.017883 | F68: =E68+MAX(0,$E68-$W68) -> 10.435166 | G68: 10.852449 | H68: 11.269732 | I68: 11.687015 | J68: 12.104298 | K68: 12.521581 | L68: 12.938864 | M68: 13.356147 | N68: 13.77343 | O68: 14.190713 | P68: 14.607996 | Q68: 15.025279 | R68: 15.442562 | S68: 15.859845 | T68: 16.277128 | U68: 16.694411 | V68: 22 | W68: 9.6006 | Y68: TT | Z68: 0.4580791338 | AA68: 0.4771598752 | AB68: 0.4962406166 | AC68: 0.5153213581 | AD68: 0.5344020995 | AE68: 0.5534828409 | AF68: 0.5725635824 | AG68: 0.5916443238 | AH68: 0.6107250652 | AI68: 0.6298058066 | AJ68: 0.6488865481 | AK68: 0.6679672895 | AL68: 0.6870480309 | AM68: 0.7061287724 | AN68: 0.7252095138 | AO68: 0.7442902552 | AP68: 0.7633709966 | AQ68: 0.09540370714 | AR68: 0.09540370714 | AT68: FALSE
D69: PTN | E69: 9.05367 | F69: =E69+MAX(0,$E69-$W69) -> 9.50218 | G69: 9.95069 | H69: 10.3992 | I69: 10.84771 | J69: 11.29622 | K69: 11.74473 | L69: 12.19324 | M69: 12.64175 | N69: 13.09026 | O69: 13.53877 | P69: 13.98728 | Q69: 14.43579 | R69: 14.8843 | S69: 15.33281 | T69: 15.78132 | U69: 16.22983 | V69: 22 | W69: 8.60516 | Y69: PTN | Z69: 0.4139893939 | AA69: 0.4344980255 | AB69: 0.4550066572 | AC69: 0.4755152888 | AD69: 0.4960239205 | AE69: 0.5165325521 | AF69: 0.5370411837 | AG69: 0.5575498154 | AH69: 0.578058447 | AI69: 0.5985670787 | AJ69: 0.6190757103 | AK69: 0.639584342 | AL69: 0.6600929736 | AM69: 0.6806016052 | AN69: 0.7011102369 | AO69: 0.7216188685 | AP69: 0.7421275002 | AQ69: 0.1025431582 | AR69: 0.1025431582 | AT69: FALSE
D70: CS | E70: 11.619751 | F70: =E70+MAX(0,$E70-$W70) -> 11.739502 | G70: 11.859253 | H70: 11.979004 | I70: 12.098755 | J70: 12.218506 | K70: 12.338257 | L70: 12.458008 | M70: 12.577759 | N70: 12.69751 | O70: 12.817261 | P70: 12.937012 | Q70: 13.056763 | R70: 13.176514 | S70: 13.296265 | T70: 13.416016 | U70: 13.535767 | V70: 22 | W70: 11.5 | Y70: CS | Z70: 0.5313263763 | AA70: 0.5368021275 | AB70: 0.5422778786 | AC70: 0.5477536298 | AD70: 0.5532293809 | AE70: 0.5587051321 | AF70: 0.5641808832 | AG70: 0.5696566344 | AH70: 0.5751323855 | AI70: 0.5806081367 | AJ70: 0.5860838878 | AK70: 0.591559639 | AL70: 0.5970353901 | AM70: 0.6025111413 | AN70: 0.6079868924 | AO70: 0.6134626436 | AP70: 0.6189383947 | AQ70: 0.02737875575 | AR70: 0.02737875575 | AT70: FALSE
D71: TH | E71: 11.593963 | F71: =E71+MAX(0,$E71-$W71) -> 11.687926 | G71: 11.781889 | H71: 11.875852 | I71: 11.969815 | J71: 12.063778 | K71: 12.157741 | L71: 12.251704 | M71: 12.345667 | N71: 12.43963 | O71: 12.533593 | P71: 12.627556 | Q71: 12.721519 | R71: 12.815482 | S71: 12.909445 | T71: 13.003408 | U71: 13.097371 | V71: 22 | W71: 11.5 | Y71: TH | Z71: 0.5301471906 | AA71: 0.534443756 | AB71: 0.5387403214 | AC71: 0.5430368868 | AD71: 0.5473334523 | AE71: 0.5516300177 | AF71: 0.5559265831 | AG71: 0.5602231485 | AH71: 0.5645197139 | AI71: 0.5688162793 | AJ71: 0.5731128448 | AK71: 0.5774094102 | AL71: 0.5817059756 | AM71: 0.586002541 | AN71: 0.5902991064 | AO71: 0.5945956718 | AP71: 0.5988922373 | AQ71: 0.02148282708 | AR71: 0.02148282708 | AT71: FALSE
D72: SA | E72: 8.207202 | F72: =E72+MAX(0,$E72-$W72) -> 8.314404 | G72: 8.421606 | H72: 8.528808 | I72: 8.63601 | J72: 8.743212 | K72: 8.850414 | L72: 8.957616 | M72: 9.064818 | N72: 9.17202 | O72: 9.279222 | P72: 9.386424 | Q72: 9.493626 | R72: 9.600828 | S72: 9.70803 | T72: 9.815232 | U72: 9.922434 | V72: 22 | W72: 8.1 | Y72: SA | Z72: 0.3752836785 | AA72: 0.3801856123 | AB72: 0.3850875461 | AC72: 0.3899894799 | AD72: 0.3948914137 | AE72: 0.3997933475 | AF72: 0.4046952813 | AG72: 0.4095972151 | AH72: 0.4144991489 | AI72: 0.4194010827 | AJ72: 0.4243030165 | AK72: 0.4292049503 | AL72: 0.4341068841 | AM72: 0.4390088179 | AN72: 0.4439107517 | AO72: 0.4488126855 | AP72: 0.4537146193 | AQ72: 0.02450966901 | AR72: 0.02450966901 | AT72: FALSE
D73: EPN | E73: 4.478279 | F73: =E73+MAX(0,$E73-$W73) -> 4.911099 | G73: 5.343919 | H73: 5.776739 | I73: 6.209559 | J73: 6.642379 | K73: 7.075199 | L73: 7.508019 | M73: 7.940839 | N73: 8.373659 | O73: 8.806479 | P73: 9.239299 | Q73: 9.672119 | R73: 10.104939 | S73: 10.537759 | T73: 10.970579 | U73: 11.403399 | V73: 22 | W73: 4.045459 | Y73: EPN | Z73: 0.2047744184 | AA73: 0.2245656069 | AB73: 0.2443567954 | AC73: 0.2641479839 | AD73: 0.2839391724 | AE73: 0.3037303609 | AF73: 0.3235215493 | AG73: 0.3433127378 | AH73: 0.3631039263 | AI73: 0.3828951148 | AJ73: 0.4026863033 | AK73: 0.4224774918 | AL73: 0.4422686803 | AM73: 0.4620598687 | AN73: 0.4818510572 | AO73: 0.5016422457 | AP73: 0.5214334342 | AQ73: 0.09895594243 | AR73: 0.09895594243 | AT73: FALSE
D74: ES | E74: 17.232171 | F74: =E74+MAX(0,$E74-$W74) -> 18.8815 | G74: 20.530829 | H74: 22.180158 | I74: 23.829487 | J74: 25.478816 | K74: 27.128145 | L74: 28.777474 | M74: 30.426803 | N74: 32.076132 | O74: 33.725461 | P74: 35.37479 | Q74: 37.024119 | R74: 38.673448 | S74: 40.322777 | T74: 41.972106 | U74: 43.621435 | V74: 11 | W74: 15.582842 | Y74: ES | Z74: 0.1969901716 | AA74: 0.2158445343 | AB74: 0.2346988971 | AC74: 0.2535532598 | AD74: 0.2724076225 | AE74: 0.2912619853 | AF74: 0.310116348 | AG74: 0.3289707107 | AH74: 0.3478250735 | AI74: 0.3666794362 | AJ74: 0.3855337989 | AK74: 0.4043881617 | AL74: 0.4232425244 | AM74: 0.4420968871 | AN74: 0.4609512499 | AO74: 0.4798056126 | AP74: 0.4986599753 | AQ74: 0.09427181367 | AR74: 0.09427181367 | AT74: FALSE
D75: NS | E75: 14.496849 | F75: =E75+MAX(0,$E75-$W75) -> 14.993698 | G75: 15.490547 | H75: 15.987396 | I75: 16.484245 | J75: 16.981094 | K75: 17.477943 | L75: 17.974792 | M75: 18.471641 | N75: 18.96849 | O75: 19.465339 | P75: 19.962188 | Q75: 20.459037 | R75: 20.955886 | S75: 21.452735 | T75: 21.949584 | U75: 22.446433 | V75: 11 | W75: 14 | Y75: NS | Z75: 0.1657212415 | AA75: 0.1714009884 | AB75: 0.1770807353 | AC75: 0.1827604822 | AD75: 0.1884402291 | AE75: 0.194119976 | AF75: 0.1997997229 | AG75: 0.2054794698 | AH75: 0.2111592167 | AI75: 0.2168389636 | AJ75: 0.2225187105 | AK75: 0.2281984574 | AL75: 0.2338782043 | AM75: 0.2395579512 | AN75: 0.2452376981 | AO75: 0.250917445 | AP75: 0.2565971919 | AQ75: 0.02839873449 | AR75: 0.02839873449 | AT75: FALSE
D76: PV | E76: 7.576986 | F76: =E76+MAX(0,$E76-$W76) -> 7.602666 | G76: 7.628346 | H76: 7.654026 | I76: 7.679706 | J76: 7.705386 | K76: 7.731066 | L76: 7.756746 | M76: 7.782426 | N76: 7.808106 | O76: 7.833786 | P76: 7.859466 | Q76: 7.885146 | R76: 7.910826 | S76: 7.936506 | T76: 7.962186 | U76: 7.987866 | V76: 11 | W76: 7.551306 | Y76: PV | Z76: 0.08661658315 | AA76: 0.08691014498 | AB76: 0.08720370681 | AC76: 0.08749726864 | AD76: 0.08779083046 | AE76: 0.08808439229 | AF76: 0.08837795412 | AG76: 0.08867151594 | AH76: 0.08896507777 | AI76: 0.0892586396 | AJ76: 0.08955220143 | AK76: 0.08984576325 | AL76: 0.09013932508 | AM76: 0.09043288691 | AN76: 0.09072644874 | AO76: 0.09102001056 | AP76: 0.09131357239 | AQ76: 0.001467809136 | AR76: 0.001467809136 | AT76: FALSE
D77: WT | E77: 1.537108 | F77: =E77+MAX(0,$E77-$W77) -> 1.574216 | G77: 1.611324 | H77: 1.648432 | I77: 1.68554 | J77: 1.722648 | K77: 1.759756 | L77: 1.796864 | M77: 1.833972 | N77: 1.87108 | O77: 1.908188 | P77: 1.945296 | Q77: 1.982404 | R77: 2.019512 | S77: 2.05662 | T77: 2.093728 | U77: 2.130836 | V77: 22 | W77: 1.5 | Y77: WT | Z77: 0.07028601763 | AA77: 0.07198282328 | AB77: 0.07367962894 | AC77: 0.07537643459 | AD77: 0.07707324024 | AE77: 0.07877004589 | AF77: 0.08046685154 | AG77: 0.0821636572 | AH77: 0.08386046285 | AI77: 0.0855572685 | AJ77: 0.08725407415 | AK77: 0.0889508798 | AL77: 0.09064768546 | AM77: 0.09234449111 | AN77: 0.09404129676 | AO77: 0.09573810241 | AP77: 0.09743490807 | AQ77: 0.00848402826 | AR77: 0.00848402826 | AT77: FALSE
D78: HB | E78: 6.873388 | F78: =E78+MAX(0,$E78-$W78) -> 6.876988 | G78: 6.880588 | H78: 6.884188 | I78: 6.887788 | J78: 6.891388 | K78: 6.894988 | L78: 6.898588 | M78: 6.902188 | N78: 6.905788 | O78: 6.909388 | P78: 6.912988 | Q78: 6.916588 | R78: 6.920188 | S78: 6.923788 | T78: 6.927388 | U78: 6.930988 | V78: 11 | W78: 6.869788 | Y78: HB | Z78: 0.07857337776 | AA78: 0.07861453129 | AB78: 0.07865568481 | AC78: 0.07869683834 | AD78: 0.07873799187 | AE78: 0.07877914539 | AF78: 0.07882029892 | AG78: 0.07886145245 | AH78: 0.07890260598 | AI78: 0.0789437595 | AJ78: 0.07898491303 | AK78: 0.07902606656 | AL78: 0.07906722008 | AM78: 0.07910837361 | AN78: 0.07914952714 | AO78: 0.07919068067 | AP78: 0.07923183419 | AQ78: 0.0002057676359 | AR78: 0.0002057676359 | AT78: FALSE
D79: FF | E79: 6.139163 | F79: =E79+MAX(0,$E79-$W79) -> 6.954033 | G79: 7.768903 | H79: 8.583773 | I79: 9.398643 | J79: 10.213513 | K79: 11.028383 | L79: 11.843253 | M79: 12.658123 | N79: 13.472993 | O79: 14.287863 | P79: 15.102733 | Q79: 15.917603 | R79: 16.732473 | S79: 17.547343 | T79: 18.362213 | U79: 19.177083 | V79: 6.6 | W79: 5.324293 | Y79: FF | Z79: 0.02526482114 | AA79: 0.02861829861 | AB79: 0.03197177608 | AC79: 0.03532525355 | AD79: 0.03867873102 | AE79: 0.04203220849 | AF79: 0.04538568596 | AG79: 0.04873916343 | AH79: 0.0520926409 | AI79: 0.05544611837 | AJ79: 0.05879959584 | AK79: 0.06215307331 | AL79: 0.06550655078 | AM79: 0.06886002825 | AN79: 0.07221350572 | AO79: 0.07556698319 | AP79: 0.07892046066 | AQ79: 0.01676738735 | AR79: 0.01676738735 | AT79: FALSE
D80: EP B | E80: 4 | F80: =E80+MAX(0,$E80-$W80) -> 4 | G80: 4 | H80: 4 | I80: 4 | J80: 4 | K80: 4 | L80: 4 | M80: 4 | N80: 4 | O80: 4 | P80: 4 | Q80: 4 | R80: 4 | S80: 4 | T80: 4 | U80: 4 | V80: 6.6 | W80: 4 | Y80: EP B | Z80: 0.01646141088 | AA80: 0.01646141088 | AB80: 0.01646141088 | AC80: 0.01646141088 | AD80: 0.01646141088 | AE80: 0.01646141088 | AF80: 0.01646141088 | AG80: 0.01646141088 | AH80: 0.01646141088 | AI80: 0.01646141088 | AJ80: 0.01646141088 | AK80: 0.01646141088 | AL80: 0.01646141088 | AM80: 0.01646141088 | AN80: 0.01646141088 | AO80: 0.01646141088 | AP80: 0.01646141088 | AQ80: 0 | AR80: 0 | AT80: FALSE
D81: EP A | E81: 4 | F81: =E81+MAX(0,$E81-$W81) -> 4 | G81: 4 | H81: 4 | I81: 4 | J81: 4 | K81: 4 | L81: 4 | M81: 4 | N81: 4 | O81: 4 | P81: 4 | Q81: 4 | R81: 4 | S81: 4 | T81: 4 | U81: 4 | V81: 6.6 | W81: 4 | Y81: EP A | Z81: 0.01646141088 | AA81: 0.01646141088 | AB81: 0.01646141088 | AC81: 0.01646141088 | AD81: 0.01646141088 | AE81: 0.01646141088 | AF81: 0.01646141088 | AG81: 0.01646141088 | AH81: 0.01646141088 | AI81: 0.01646141088 | AJ81: 0.01646141088 | AK81: 0.01646141088 | AL81: 0.01646141088 | AM81: 0.01646141088 | AN81: 0.01646141088 | AO81: 0.01646141088 | AP81: 0.01646141088 | AQ81: 0 | AR81: 0 | AT81: FALSE
B83: End

Sheet Curtailment
D1: Voltage PQ Management Strategy | H1: Section Check: | I1: =IF(COUNTA($A$8:$A$277)=COUNTIF($A$8:$A$277,0),"Ok","Check") -> Ok | L1: Overall Check: | M1: Ok | O1: Legend: | P1: Input | Q1: Internal | R1: Select | S1: Calculation
D2: =RIGHT(CELL("filename",D1),LEN(CELL("filename",D1))-FIND("]",CELL("filename",D1))) -> Curtailment | E2: Typical JEN Residential Solar PV System Model and AS4777 Voltage Curtailment Analysis
B6: Copyright Jemena Limited. All rights reserved. Jemena is not liable for any loss caused by reliance on this document.
B8: Typical JEN Residential Solar PV System Model and AS4777 Voltage Curtailment Analysis
C10: Inputs
D12: MVAr Conversion | E12: Source | F12: Unit
D14: Typical JEN Residential Inverter Rating (VA) | E14: AM | F14: VA | I14: 5000
D15: Typical JEN Residential PV Panel Rating (W) | E15: AM | F15: W | I15: 5000 | S15: V-P | T15: V | U15: P
D16: Panel Direction Adjustment (h) | E16: AM | F16: h | I16: 7 | S16: V1 | T16: 207 | U16: 1
D17: PV Output Cloud Factor | E17: AM | F17: % | I17: 0.15 | S17: V2 | T17: 220 | U17: 1
S18: V3 | T18: 253 | U18: 1
I19: Summer | J19: Winter | K19: Shoulder | L19: Annual | S19: V3' | T19: 258 | U19: =(20%-100%)/(260-253)*(T19-253)+100% -> 0.4285714286
D20: Seasonal Adjustment | E20: AM | F20: Factor | I20: 0.06 | J20: 0.5 | K20: =AVERAGE(I20,J20) -> 0.28 | S20: V> | T20: 258 | U20: 0
D21: Cloud Likelihood | E21: AM | F21: % | I21: 0.15 | J21: 0.3 | K21: =AVERAGE(I21:J21) -> 0.225 | S21: V>' | T21: 276 | U21: 0
D22: PV Output Shading Factor | E22: AM | F22: % | I22: 0.05 | J22: 0.1 | K22: =AVERAGE(I22:J22) -> 0.075
D23: Capacity Factor | E23: AM | F23: % | I23: =(1-(1-$I$17)*I$21-I$22) -> 0.8225 | J23: =(1-(1-$I$17)*J$21-J$22) -> 0.645 | K23: =(1-(1-$I$17)*K$21-K$22) -> 0.73375 | S23: Source: AS 4777.2 Table 3.6 and Table 4.3 Australia A
D24: Generated Energy (kWh pa) | E24: AM | F24: kWh p.a. | L24: =(G29+G30+G31*2)/4*365 -> 6436.809549
C26: Calculations
F28: Peak W | G28: kWh/d | H28: hh | I28: 1 | J28: =I28+1 -> 2 | K28: 3 | L28: 4 | M28: 5 | N28: 6 | O28: 7 | P28: 8 | Q28: 9 | R28: 10 | S28: 11 | T28: 12 | U28: 13 | V28: 14 | W28: 15 | X28: 16 | Y28: 17 | Z28: 18 | AA28: 19 | AB28: 20 | AC28: 21 | AD28: 22 | AE28: 23 | AF28: 24 | AG28: 25 | AH28: 26 | AI28: 27 | AJ28: 28 | AK28: 29 | AL28: 30 | AM28: 31 | AN28: 32 | AO28: 33 | AP28: 34 | AQ28: 35 | AR28: 36 | AS28: 37 | AT28: 38 | AU28: 39 | AV28: 40 | AW28: 41 | AX28: 42 | AY28: 43 | AZ28: 44 | BA28: 45 | BB28: 46 | BC28: 47 | BD28: 48
D29: Summer Expected Normal Generated Energy | F29: =MAX(I29:BD29)*2 -> 3865.75 | G29: =SUM(I29:BD29)/1000 -> 28.53468753 | H29: Wh | I29: =MIN($I$14,MAX(0,$I$15*(SIN((I$28/2-$I$16)*PI()/12)-$I$20)))/2*$I$23 -> 0 | J29: 0 | K29: 0 | L29: 0 | M29: 0 | N29: 0 | O29: 0 | P29: 0 | Q29: 0 | R29: 0 | S29: 0 | T29: 0 | U29: 0 | V29: 0 | W29: 145.0194828 | X29: 408.8216615 | Y29: 663.5178078 | Z29: 904.75 | AA29: 1128.390688 | AB29: 1330.613319 | AC29: 1507.957806 | AD29: 1657.389737 | AE29: 1776.352289 | AF29: 1862.80998 | AG29: 1915.283496 | AH29: 1932.875 | AI29: 1915.283496 | AJ29: 1862.80998 | AK29: 1776.352289 | AL29: 1657.389737 | AM29: 1507.957806 | AN29: 1330.613319 | AO29: 1128.390688 | AP29: 904.75 | AQ29: 663.5178078 | AR29: 408.8216615 | AS29: 145.0194828 | AT29: 0 | AU29: 0 | AV29: 0 | AW29: 0 | AX29: 0 | AY29: 0 | AZ29: 0 | BA29: 0 | BB29: 0 | BC29: 0 | BD29: 0
D30: Winter Expected Normal Generated Energy | F30: 1612.5 | G30: 8.405953388 | H30: Wh | I30: =MIN($I$14,MAX(0,$I$15*(SIN((I$28/2-$I$16)*PI()/12)-$J$20)))/2*$J$23 -> 0 | J30: 0 | K30: 0 | L30: 0 | M30: 0 | N30: 0 | O30: 0 | P30: 0 | Q30: 0 | R30: 0 | S30: 0 | T30: 0 | U30: 0 | V30: 0 | W30: 0 | X30: 0 | Y30: 0 | Z30: 0 | AA30: 175.3778043 | AB30: 333.9596847 | AC30: 473.0322612 | AD30: 590.2159636 | AE30: 683.5057462 | AF30: 751.3053949 | AG30: 792.454839 | AH30: 806.25 | AI30: 792.454839 | AJ30: 751.3053949 | AK30: 683.5057462 | AL30: 590.2159636 | AM30: 473.0322612 | AN30: 333.9596847 | AO30: 175.3778043 | AP30: 0 | AQ30: 0 | AR30: 0 | AS30: 0 | AT30: 0 | AU30: 0 | AV30: 0 | AW30: 0 | AX30: 0 | AY30: 0 | AZ30: 0 | BA30: 0 | BB30: 0 | BC30: 0 | BD30: 0
D31: Shoulder Expected Normal Generated Energy | F31: 2641.5 | G31: 16.79986885 | H31: Wh | I31: =MIN($I$14,MAX(0,$I$15*(SIN((I$28/2-$I$16)*PI()/12)-$K$20)))/2*$K$23 -> 0 | J31: 0 | K31: 0 | L31: 0 | M31: 0 | N31: 0 | O31: 0 | P31: 0 | Q31: 0 | R31: 0 | S31: 0 | T31: 0 | U31: 0 | V31: 0 | W31: 0 | X31: 0 | Y31: 188.3599212 | Z31: 403.5625 | AA31: 603.0717463 | AB31: 783.4740017 | AC31: 941.6825336 | AD31: 1074.99035 | AE31: 1181.116517 | AF31: 1258.245188 | AG31: 1305.056668 | AH31: 1320.75 | AI31: 1305.056668 | AJ31: 1258.245188 | AK31: 1181.116517 | AL31: 1074.99035 | AM31: 941.6825336 | AN31: 783.4740017 | AO31: 603.0717463 | AP31: 403.5625 | AQ31: 188.3599212 | AR31: 0 | AS31: 0 | AT31: 0 | AU31: 0 | AV31: 0 | AW31: 0 | AX31: 0 | AY31: 0 | AZ31: 0 | BA31: 0 | BB31: 0 | BC31: 0 | BD31: 0
D32: Summer Expected Normal Curtailed Generated Energy | F32: 0 | G32: 0 | H32: Wh | I32: =MAX(0,$I$15*(SIN((I$28/2-$I$16)*PI()/12)-$I$20)-$I$14)/2*$I$23 -> 0 | J32: 0 | K32: 0 | L32: 0 | M32: 0 | N32: 0 | O32: 0 | P32: 0 | Q32: 0 | R32: 0 | S32: 0 | T32: 0 | U32: 0 | V32: 0 | W32: 0 | X32: 0 | Y32: 0 | Z32: 0 | AA32: 0 | AB32: 0 | AC32: 0 | AD32: 0 | AE32: 0 | AF32: 0 | AG32: 0 | AH32: 0 | AI32: 0 | AJ32: 0 | AK32: 0 | AL32: 0 | AM32: 0 | AN32: 0 | AO32: 0 | AP32: 0 | AQ32: 0 | AR32: 0 | AS32: 0 | AT32: 0 | AU32: 0 | AV32: 0 | AW32: 0 | AX32: 0 | AY32: 0 | AZ32: 0 | BA32: 0 | BB32: 0 | BC32: 0 | BD32: 0
D33: Winter Expected Normal Curtailed Generated Energy | F33: 0 | G33: 0 | H33: Wh | I33: =MAX(0,$I$15*(SIN((I$28/2-$I$16)*PI()/12)-$J$20)-$I$14)/2*$J$23 -> 0 | J33: 0 | K33: 0 | L33: 0 | M33: 0 | N33: 0 | O33: 0 | P33: 0 | Q33: 0 | R33: 0 | S33: 0 | T33: 0 | U33: 0 | V33: 0 | W33: 0 | X33: 0 | Y33: 0 | Z33: 0 | AA33: 0 | AB33: 0 | AC33: 0 | AD33: 0 | AE33: 0 | AF33: 0 | AG33: 0 | AH33: 0 | AI33: 0 | AJ33: 0 | AK33: 0 | AL33: 0 | AM33: 0 | AN33: 0 | AO33: 0 | AP33: 0 | AQ33: 0 | AR33: 0 | AS33: 0 | AT33: 0 | AU33: 0 | AV33: 0 | AW33: 0 | AX33: 0 | AY33: 0 | AZ33: 0 | BA33: 0 | BB33: 0 | BC33: 0 | BD33: 0
D34: Shoulder Expected Normal Curtailed Generated Energy | F34: 0 | G34: 0 | H34: Wh | I34: =MAX(0,$I$15*(SIN((I$28/2-$I$16)*PI()/12)-$K$20)-$I$14)/2*$K$23 -> 0 | J34: 0 | K34: 0 | L34: 0 | M34: 0 | N34: 0 | O34: 0 | P34: 0 | Q34: 0 | R34: 0 | S34: 0 | T34: 0 | U34: 0 | V34: 0 | W34: 0 | X34: 0 | Y34: 0 | Z34: 0 | AA34: 0 | AB34: 0 | AC34: 0 | AD34: 0 | AE34: 0 | AF34: 0 | AG34: 0 | AH34: 0 | AI34: 0 | AJ34: 0 | AK34: 0 | AL34: 0 | AM34: 0 | AN34: 0 | AO34: 0 | AP34: 0 | AQ34: 0 | AR34: 0 | AS34: 0 | AT34: 0 | AU34: 0 | AV34: 0 | AW34: 0 | AX34: 0 | AY34: 0 | AZ34: 0 | BA34: 0 | BB34: 0 | BC34: 0 | BD34: 0
D36: Expected Voltage Curtailed Generated Energy (Wh)
E37: Annual Voltage-Induced Curtailed Energy (kWh pa) | F37: Bin (V) | G37: AS4777 | H37: Season | I37: =I28 -> 1 | J37: 2 | K37: 3 | L37: 4 | M37: 5 | N37: 6 | O37: 7 | P37: 8 | Q37: 9 | R37: 10 | S37: 11 | T37: 12 | U37: 13 | V37: 14 | W37: 15 | X37: 16 | Y37: 17 | Z37: 18 | AA37: 19 | AB37: 20 | AC37: 21 | AD37: 22 | AE37: 23 | AF37: 24 | AG37: 25 | AH37: 26 | AI37: 27 | AJ37: 28 | AK37: 29 | AL37: 30 | AM37: 31 | AN37: 32 | AO37: 33 | AP37: 34 | AQ37: 35 | AR37: 36 | AS37: 37 | AT37: 38 | AU37: 39 | AV37: 40 | AW37: 41 | AX37: 42 | AY37: 43 | AZ37: 44 | BA37: 45 | BB37: 46 | BC37: 47 | BD37: 48
E38: =(SUM(I38:BD38)+SUM(I39:BD39)+SUM(I40:BD40)*2)/4*365/1000 -> 0 | F38: 253.5 | G38: =IF($F38<258,MIN(100%,(20%-100%)/(260-253)*($F38-253)+100%),0%) -> 0.9428571429 | H38: Summer | I38: =MAX(0,$I$15*(SIN((I$28/2-$I$16)*PI()/12)-$I$20)-$I$14*$G38)/2*$I$23-I$32 -> 0 | J38: 0 | K38: 0 | L38: 0 | M38: 0 | N38: 0 | O38: 0 | P38: 0 | Q38: 0 | R38: 0 | S38: 0 | T38: 0 | U38: 0 | V38: 0 | W38: 0 | X38: 0 | Y38: 0 | Z38: 0 | AA38: 0 | AB38: 0 | AC38: 0 | AD38: 0 | AE38: 0 | AF38: 0 | AG38: 0 | AH38: 0 | AI38: 0 | AJ38: 0 | AK38: 0 | AL38: 0 | AM38: 0 | AN38: 0 | AO38: 0 | AP38: 0 | AQ38: 0 | AR38: 0 | AS38: 0 | AT38: 0 | AU38: 0 | AV38: 0 | AW38: 0 | AX38: 0 | AY38: 0 | AZ38: 0 | BA38: 0 | BB38: 0 | BC38: 0 | BD38: 0
H39: Winter | I39: =MAX(0,$I$15*(SIN((I$28/2-$I$16)*PI()/12)-$J$20)-$I$14*$G38)/2*$J$23-I$33 -> 0 | J39: 0 | K39: 0 | L39: 0 | M39: 0 | N39: 0 | O39: 0 | P39: 0 | Q39: 0 | R39: 0 | S39: 0 | T39: 0 | U39: 0 | V39: 0 | W39: 0 | X39: 0 | Y39: 0 | Z39: 0 | AA39: 0 | AB39: 0 | AC39: 0 | AD39: 0 | AE39: 0 | AF39: 0 | AG39: 0 | AH39: 0 | AI39: 0 | AJ39: 0 | AK39: 0 | AL39: 0 | AM39: 0 | AN39: 0 | AO39: 0 | AP39: 0 | AQ39: 0 | AR39: 0 | AS39: 0 | AT39: 0 | AU39: 0 | AV39: 0 | AW39: 0 | AX39: 0 | AY39: 0 | AZ39: 0 | BA39: 0 | BB39: 0 | BC39: 0 | BD39: 0
H40: Shoulder | I40: =MAX(0,$I$15*(SIN((I$28/2-$I$16)*PI()/12)-$K$20)-$I$14*$G38)/2*$K$23-I$34 -> 0 | J40: 0 | K40: 0 | L40: 0 | M40: 0 | N40: 0 | O40: 0 | P40: 0 | Q40: 0 | R40: 0 | S40: 0 | T40: 0 | U40: 0 | V40: 0 | W40: 0 | X40: 0 | Y40: 0 | Z40: 0 | AA40: 0 | AB40: 0 | AC40: 0 | AD40: 0 | AE40: 0 | AF40: 0 | AG40: 0 | AH40: 0 | AI40: 0 | AJ40: 0 | AK40: 0 | AL40: 0 | AM40: 0 | AN40: 0 | AO40: 0 | AP40: 0 | AQ40: 0 | AR40: 0 | AS40: 0 | AT40: 0 | AU40: 0 | AV40: 0 | AW40: 0 | AX40: 0 | AY40: 0 | AZ40: 0 | BA40: 0 | BB40: 0 | BC40: 0 | BD40: 0
E41: =(SUM(I41:BD41)+SUM(I42:BD42)+SUM(I43:BD43)*2)/4*365/1000 -> 101.7908834 | F41: =F38+1 -> 254.5 | G41: =IF($F41<258,MIN(100%,(20%-100%)/(260-253)*($F41-253)+100%),0%) -> 0.8285714286 | H41: =H38 -> Summer | I41: =MAX(0,$I$15*(SIN((I$28/2-$I$16)*PI()/12)-$I$20)-$I$14*$G41)/2*$I$23-I$32 -> 0 | J41: 0 | K41: 0 | L41: 0 | M41: 0 | N41: 0 | O41: 0 | P41: 0 | Q41: 0 | R41: 0 | S41: 0 | T41: 0 | U41: 0 | V41: 0 | W41: 0 | X41: 0 | Y41: 0 | Z41: 0 | AA41: 0 | AB41: 0 | AC41: 0 | AD41: 0 | AE41: 72.60228873 | AF41: 159.0599803 | AG41: 211.5334962 | AH41: 229.125 | AI41: 211.5334962 | AJ41: 159.0599803 | AK41: 72.60228873 | AL41: 0 | AM41: 0 | AN41: 0 | AO41: 0 | AP41: 0 | AQ41: 0 | AR41: 0 | AS41: 0 | AT41: 0 | AU41: 0 | AV41: 0 | AW41: 0 | AX41: 0 | AY41: 0 | AZ41: 0 | BA41: 0 | BB41: 0 | BC41: 0 | BD41: 0
H42: Winter | I42: =MAX(0,$I$15*(SIN((I$28/2-$I$16)*PI()/12)-$J$20)-$I$14*$G41)/2*$J$23-I$33 -> 0 | J42: 0 | K42: 0 | L42: 0 | M42: 0 | N42: 0 | O42: 0 | P42: 0 | Q42: 0 | R42: 0 | S42: 0 | T42: 0 | U42: 0 | V42: 0 | W42: 0 | X42: 0 | Y42: 0 | Z42: 0 | AA42: 0 | AB42: 0 | AC42: 0 | AD42: 0 | AE42: 0 | AF42: 0 | AG42: 0 | AH42: 0 | AI42: 0 | AJ42: 0 | AK42: 0 | AL42: 0 | AM42: 0 | AN42: 0 | AO42: 0 | AP42: 0 | AQ42: 0 | AR42: 0 | AS42: 0 | AT42: 0 | AU42: 0 | AV42: 0 | AW42: 0 | AX42: 0 | AY42: 0 | AZ42: 0 | BA42: 0 | BB42: 0 | BC42: 0 | BD42: 0
H43: Shoulder | I43: =MAX(0,$I$15*(SIN((I$28/2-$I$16)*PI()/12)-$K$20)-$I$14*$G41)/2*$K$23-I$34 -> 0 | J43: 0 | K43: 0 | L43: 0 | M43: 0 | N43: 0 | O43: 0 | P43: 0 | Q43: 0 | R43: 0 | S43: 0 | T43: 0 | U43: 0 | V43: 0 | W43: 0 | X43: 0 | Y43: 0 | Z43: 0 | AA43: 0 | AB43: 0 | AC43: 0 | AD43: 0 | AE43: 0 | AF43: 0 | AG43: 0 | AH43: 0 | AI43: 0 | AJ43: 0 | AK43: 0 | AL43: 0 | AM43: 0 | AN43: 0 | AO43: 0 | AP43: 0 | AQ43: 0 | AR43: 0 | AS43: 0 | AT43: 0 | AU43: 0 | AV43: 0 | AW43: 0 | AX43: 0 | AY43: 0 | AZ43: 0 | BA43: 0 | BB43: 0 | BC43: 0 | BD43: 0
E44: =(SUM(I44:BD44)+SUM(I45:BD45)+SUM(I46:BD46)*2)/4*365/1000 -> 295.392301 | F44: =F41+1 -> 255.5 | G44: =IF($F44<258,MIN(100%,(20%-100%)/(260-253)*($F44-253)+100%),0%) -> 0.7142857143 | H44: Summer | I44: =MAX(0,$I$15*(SIN((I$28/2-$I$16)*PI()/12)-$I$20)-$I$14*$G44)/2*$I$23-I$32 -> 0 | J44: 0 | K44: 0 | L44: 0 | M44: 0 | N44: 0 | O44: 0 | P44: 0 | Q44: 0 | R44: 0 | S44: 0 | T44: 0 | U44: 0 | V44: 0 | W44: 0 | X44: 0 | Y44: 0 | Z44: 0 | AA44: 0 | AB44: 0 | AC44: 39.20780597 | AD44: 188.6397365 | AE44: 307.6022887 | AF44: 394.0599803 | AG44: 446.5334962 | AH44: 464.125 | AI44: 446.5334962 | AJ44: 394.0599803 | AK44: 307.6022887 | AL44: 188.6397365 | AM44: 39.20780597 | AN44: 0 | AO44: 0 | AP44: 0 | AQ44: 0 | AR44: 0 | AS44: 0 | AT44: 0 | AU44: 0 | AV44: 0 | AW44: 0 | AX44: 0 | AY44: 0 | AZ44: 0 | BA44: 0 | BB44: 0 | BC44: 0 | BD44: 0
H45: Winter | I45: =MAX(0,$I$15*(SIN((I$28/2-$I$16)*PI()/12)-$J$20)-$I$14*$G44)/2*$J$23-I$33 -> 0 | J45: 0 | K45: 0 | L45: 0 | M45: 0 | N45: 0 | O45: 0 | P45: 0 | Q45: 0 | R45: 0 | S45: 0 | T45: 0 | U45: 0 | V45: 0 | W45: 0 | X45: 0 | Y45: 0 | Z45: 0 | AA45: 0 | AB45: 0 | AC45: 0 | AD45: 0 | AE45: 0 | AF45: 0 | AG45: 0 | AH45: 0 | AI45: 0 | AJ45: 0 | AK45: 0 | AL45: 0 | AM45: 0 | AN45: 0 | AO45: 0 | AP45: 0 | AQ45: 0 | AR45: 0 | AS45: 0 | AT45: 0 | AU45: 0 | AV45: 0 | AW45: 0 | AX45: 0 | AY45: 0 | AZ45: 0 | BA45: 0 | BB45: 0 | BC45: 0 | BD45: 0
H46: Shoulder | I46: =MAX(0,$I$15*(SIN((I$28/2-$I$16)*PI()/12)-$K$20)-$I$14*$G44)/2*$K$23-I$34 -> 0 | J46: 0 | K46: 0 | L46: 0 | M46: 0 | N46: 0 | O46: 0 | P46: 0 | Q46: 0 | R46: 0 | S46: 0 | T46: 0 | U46: 0 | V46: 0 | W46: 0 | X46: 0 | Y46: 0 | Z46: 0 | AA46: 0 | AB46: 0 | AC46: 0 | AD46: 0 | AE46: 0 | AF46: 0 | AG46: 0 | AH46: 10.48214286 | AI46: 0 | AJ46: 0 | AK46: 0 | AL46: 0 | AM46: 0 | AN46: 0 | AO46: 0 | AP46: 0 | AQ46: 0 | AR46: 0 | AS46: 0 | AT46: 0 | AU46: 0 | AV46: 0 | AW46: 0 | AX46: 0 | AY46: 0 | AZ46: 0 | BA46: 0 | BB46: 0 | BC46: 0 | BD46: 0
E47: =(SUM(I47:BD47)+SUM(I48:BD48)+SUM(I49:BD49)*2)/4*365/1000 -> 748.7392591 | F47: =F44+1 -> 256.5 | G47: =IF($F47<258,MIN(100%,(20%-100%)/(260-253)*($F47-253)+100%),0%) -> 0.6 | H47: Summer | I47: =MAX(0,$I$15*(SIN((I$28/2-$I$16)*PI()/12)-$I$20)-$I$14*$G47)/2*$I$23-I$32 -> 0 | J47: 0 | K47: 0 | L47: 0 | M47: 0 | N47: 0 | O47: 0 | P47: 0 | Q47: 0 | R47: 0 | S47: 0 | T47: 0 | U47: 0 | V47: 0 | W47: 0 | X47: 0 | Y47: 0 | Z47: 0 | AA47: 0 | AB47: 96.86331881 | AC47: 274.207806 | AD47: 423.6397365 | AE47: 542.6022887 | AF47: 629.0599803 | AG47: 681.5334962 | AH47: 699.125 | AI47: 681.5334962 | AJ47: 629.0599803 | AK47: 542.6022887 | AL47: 423.6397365 | AM47: 274.207806 | AN47: 96.86331881 | AO47: 0 | AP47: 0 | AQ47: 0 | AR47: 0 | AS47: 0 | AT47: 0 | AU47: 0 | AV47: 0 | AW47: 0 | AX47: 0 | AY47: 0 | AZ47: 0 | BA47: 0 | BB47: 0 | BC47: 0 | BD47: 0
H48: Winter | I48: =MAX(0,$I$15*(SIN((I$28/2-$I$16)*PI()/12)-$J$20)-$I$14*$G47)/2*$J$23-I$33 -> 0 | J48: 0 | K48: 0 | L48: 0 | M48: 0 | N48: 0 | O48: 0 | P48: 0 | Q48: 0 | R48: 0 | S48: 0 | T48: 0 | U48: 0 | V48: 0 | W48: 0 | X48: 0 | Y48: 0 | Z48: 0 | AA48: 0 | AB48: 0 | AC48: 0 | AD48: 0 | AE48: 0 | AF48: 0 | AG48: 0 | AH48: 0 | AI48: 0 | AJ48: 0 | AK48: 0 | AL48: 0 | AM48: 0 | AN48: 0 | AO48: 0 | AP48: 0 | AQ48: 0 | AR48: 0 | AS48: 0 | AT48: 0 | AU48: 0 | AV48: 0 | AW48: 0 | AX48: 0 | AY48: 0 | AZ48: 0 | BA48: 0 | BB48: 0 | BC48: 0 | BD48: 0
H49: Shoulder | I49: =MAX(0,$I$15*(SIN((I$28/2-$I$16)*PI()/12)-$K$20)-$I$14*$G47)/2*$K$23-I$34 -> 0 | J49: 0 | K49: 0 | L49: 0 | M49: 0 | N49: 0 | O49: 0 | P49: 0 | Q49: 0 | R49: 0 | S49: 0 | T49: 0 | U49: 0 | V49: 0 | W49: 0 | X49: 0 | Y49: 0 | Z49: 0 | AA49: 0 | AB49: 0 | AC49: 0 | AD49: 0 | AE49: 80.49151745 | AF49: 157.6201876 | AG49: 204.4316676 | AH49: 220.125 | AI49: 204.4316676 | AJ49: 157.6201876 | AK49: 80.49151745 | AL49: 0 | AM49: 0 | AN49: 0 | AO49: 0 | AP49: 0 | AQ49: 0 | AR49: 0 | AS49: 0 | AT49: 0 | AU49: 0 | AV49: 0 | AW49: 0 | AX49: 0 | AY49: 0 | AZ49: 0 | BA49: 0 | BB49: 0 | BC49: 0 | BD49: 0
E50: =(SUM(I50:BD50)+SUM(I51:BD51)+SUM(I52:BD52)*2)/4*365/1000 -> 1408.443233 | F50: =F47+1 -> 257.5 | G50: =IF($F50<258,MIN(100%,(20%-100%)/(260-253)*($F50-253)+100%),0%) -> 0.4857142857 | H50: Summer | I50: =MAX(0,$I$15*(SIN((I$28/2-$I$16)*PI()/12)-$I$20)-$I$14*$G50)/2*$I$23-I$32 -> 0 | J50: 0 | K50: 0 | L50: 0 | M50: 0 | N50: 0 | O50: 0 | P50: 0 | Q50: 0 | R50: 0 | S50: 0 | T50: 0 | U50: 0 | V50: 0 | W50: 0 | X50: 0 | Y50: 0 | Z50: 0 | AA50: 129.6406884 | AB50: 331.8633188 | AC50: 509.207806 | AD50: 658.6397365 | AE50: 777.6022887 | AF50: 864.0599803 | AG50: 916.5334962 | AH50: 934.125 | AI50: 916.5334962 | AJ50: 864.0599803 | AK50: 777.6022887 | AL50: 658.6397365 | AM50: 509.207806 | AN50: 331.8633188 | AO50: 129.6406884 | AP50: 0 | AQ50: 0 | AR50: 0 | AS50: 0 | AT50: 0 | AU50: 0 | AV50: 0 | AW50: 0 | AX50: 0 | AY50: 0 | AZ50: 0 | BA50: 0 | BB50: 0 | BC50: 0 | BD50: 0
H51: Winter | I51: =MAX(0,$I$15*(SIN((I$28/2-$I$16)*PI()/12)-$J$20)-$I$14*$G50)/2*$J$23-I$33 -> 0 | J51: 0 | K51: 0 | L51: 0 | M51: 0 | N51: 0 | O51: 0 | P51: 0 | Q51: 0 | R51: 0 | S51: 0 | T51: 0 | U51: 0 | V51: 0 | W51: 0 | X51: 0 | Y51: 0 | Z51: 0 | AA51: 0 | AB51: 0 | AC51: 0 | AD51: 0 | AE51: 0 | AF51: 0 | AG51: 9.240553251 | AH51: 23.03571429 | AI51: 9.240553251 | AJ51: 0 | AK51: 0 | AL51: 0 | AM51: 0 | AN51: 0 | AO51: 0 | AP51: 0 | AQ51: 0 | AR51: 0 | AS51: 0 | AT51: 0 | AU51: 0 | AV51: 0 | AW51: 0 | AX51: 0 | AY51: 0 | AZ51: 0 | BA51: 0 | BB51: 0 | BC51: 0 | BD51: 0
H52: Shoulder | I52: =MAX(0,$I$15*(SIN((I$28/2-$I$16)*PI()/12)-$K$20)-$I$14*$G50)/2*$K$23-I$34 -> 0 | J52: 0 | K52: 0 | L52: 0 | M52: 0 | N52: 0 | O52: 0 | P52: 0 | Q52: 0 | R52: 0 | S52: 0 | T52: 0 | U52: 0 | V52: 0 | W52: 0 | X52: 0 | Y52: 0 | Z52: 0 | AA52: 0 | AB52: 0 | AC52: 50.70039074 | AD52: 184.0082072 | AE52: 290.1343746 | AF52: 367.2630447 | AG52: 414.0745247 | AH52: 429.7678571 | AI52: 414.0745247 | AJ52: 367.2630447 | AK52: 290.1343746 | AL52: 184.0082072 | AM52: 50.70039074 | AN52: 0 | AO52: 0 | AP52: 0 | AQ52: 0 | AR52: 0 | AS52: 0 | AT52: 0 | AU52: 0 | AV52: 0 | AW52: 0 | AX52: 0 | AY52: 0 | AZ52: 0 | BA52: 0 | BB52: 0 | BC52: 0 | BD52: 0
E53: =(SUM(I53:BD53)+SUM(I54:BD54)+SUM(I55:BD55)*2)/4*365/1000 -> 1820.197237 | F53: 257.99999 | G53: =IF($F53<258,MIN(100%,(20%-100%)/(260-253)*($F53-253)+100%),0%) -> 0.4285725714 | H53: =H47 -> Summer | I53: =MAX(0,$I$15*(SIN((I$28/2-$I$16)*PI()/12)-$I$20)-$I$14*$G53)/2*$I$23-I$32 -> 0 | J53: 0 | K53: 0 | L53: 0 | M53: 0 | N53: 0 | O53: 0 | P53: 0 | Q53: 0 | R53: 0 | S53: 0 | T53: 0 | U53: 0 | V53: 0 | W53: 0 | X53: 0 | Y53: 0 | Z53: 23.49765 | AA53: 247.1383384 | AB53: 449.3609688 | AC53: 626.705456 | AD53: 776.1373865 | AE53: 895.0999387 | AF53: 981.5576303 | AG53: 1034.031146 | AH53: 1051.62265 | AI53: 1034.031146 | AJ53: 981.5576303 | AK53: 895.0999387 | AL53: 776.1373865 | AM53: 626.705456 | AN53: 449.3609688 | AO53: 247.1383384 | AP53: 23.49765 | AQ53: 0 | AR53: 0 | AS53: 0 | AT53: 0 | AU53: 0 | AV53: 0 | AW53: 0 | AX53: 0 | AY53: 0 | AZ53: 0 | BA53: 0 | BB53: 0 | BC53: 0 | BD53: 0
H54: =H48 -> Winter | I54: =MAX(0,$I$15*(SIN((I$28/2-$I$16)*PI()/12)-$J$20)-$I$14*$G53)/2*$J$23-I$33 -> 0 | J54: 0 | K54: 0 | L54: 0 | M54: 0 | N54: 0 | O54: 0 | P54: 0 | Q54: 0 | R54: 0 | S54: 0 | T54: 0 | U54: 0 | V54: 0 | W54: 0 | X54: 0 | Y54: 0 | Z54: 0 | AA54: 0 | AB54: 0 | AC54: 0 | AD54: 0 | AE54: 0 | AF54: 60.23212346 | AG54: 101.3815675 | AH54: 115.1767286 | AI54: 101.3815675 | AJ54: 60.23212346 | AK54: 0 | AL54: 0 | AM54: 0 | AN54: 0 | AO54: 0 | AP54: 0 | AQ54: 0 | AR54: 0 | AS54: 0 | AT54: 0 | AU54: 0 | AV54: 0 | AW54: 0 | AX54: 0 | AY54: 0 | AZ54: 0 | BA54: 0 | BB54: 0 | BC54: 0 | BD54: 0
H55: =H49 -> Shoulder | I55: =MAX(0,$I$15*(SIN((I$28/2-$I$16)*PI()/12)-$K$20)-$I$14*$G53)/2*$K$23-I$34 -> 0 | J55: 0 | K55: 0 | L55: 0 | M55: 0 | N55: 0 | O55: 0 | P55: 0 | Q55: 0 | R55: 0 | S55: 0 | T55: 0 | U55: 0 | V55: 0 | W55: 0 | X55: 0 | Y55: 0 | Z55: 0 | AA55: 0 | AB55: 0 | AC55: 155.5197229 | AD55: 288.8275394 | AE55: 394.9537067 | AF55: 472.0823769 | AG55: 518.8938569 | AH55: 534.5871893 | AI55: 518.8938569 | AJ55: 472.0823769 | AK55: 394.9537067 | AL55: 288.8275394 | AM55: 155.5197229 | AN55: 0 | AO55: 0 | AP55: 0 | AQ55: 0 | AR55: 0 | AS55: 0 | AT55: 0 | AU55: 0 | AV55: 0 | AW55: 0 | AX55: 0 | AY55: 0 | AZ55: 0 | BA55: 0 | BB55: 0 | BC55: 0 | BD55: 0
E57: Inverter Voltage | F57: Annual Generated Energy (kWh pa)
E58: 250 | F58: =F59 -> 6436.809549
E59: =F38 -> 253.5 | F59: =$L$24-E38 -> 6436.809549
E60: =E59+1 -> 254.5 | F60: =$L$24-E41 -> 6335.018666
E61: =E60+1 -> 255.5 | F61: =$L$24-E44 -> 6141.417248
E62: =E61+1 -> 256.5 | F62: =$L$24-E47 -> 5688.07029
E63: =E62+1 -> 257.5 | F63: =$L$24-E50 -> 5028.366317
E64: 257.99999 | F64: =$L$24-E53 -> 4616.612313
E65: 258 | F65: 0
E66: 260 | F66: 0
I86: Curtailment MWh pa | U86: V99% | AG86: No. PV
E87: ZSS | I87: =PV_Uptake!F49 -> 2023 Actual | J87: =V87 -> 2024 | K87: 2025 | L87: 2026 | M87: 2027 | N87: 2028 | O87: 2029 | P87: 2030 | Q87: 2031 | R87: 2032 | S87: 2033 | U87: =I87 -> 2023 Actual | V87: =PV_Uptake!G49 -> 2024 | W87: =PV_Uptake!H49 -> 2025 | X87: =PV_Uptake!I49 -> 2026 | Y87: =PV_Uptake!J49 -> 2027 | Z87: =PV_Uptake!K49 -> 2028 | AA87: =PV_Uptake!L49 -> 2029 | AB87: =PV_Uptake!M49 -> 2030 | AC87: =PV_Uptake!N49 -> 2031 | AD87: =PV_Uptake!O49 -> 2032 | AE87: =PV_Uptake!P49 -> 2033 | AG87: =U87 -> 2023 Actual | AH87: 2024 | AI87: 2025 | AJ87: 2026 | AK87: 2027 | AL87: 2028 | AM87: 2029 | AN87: 2030 | AO87: 2031 | AP87: 2032 | AQ87: 2033
D88: =IF(LEN(E88)=2,E88&"0",E88) -> ST0 | E88: ST | I88: =AG88/1000* IF(U88>=258,4.8%*$L$24+9.6%*$E$53+14.4%*$E$50+19.2%*$E$47+24%*$E$44+28%*$E$41, IF(U88>=257,6.7%*$E$53+13.4%*$E$50+20.1%*$E$47+26.8%*$E$44+33%*$E$41, IF(U88>=256,10%*$E$50+20%*$E$47+30%*$E$44+40%*$E$41, IF(U88>=255,16.7%*$E$47+33.3%*$E$44+50%*$E$41, IF(U88>=254,33.3%*$E$44+66.7%*$E$41,0))))) -> 2062.739933 | J88: =AH88/1000* IF(V88>=258,4.8%*$L$24+9.6%*$E$53+14.4%*$E$50+19.2%*$E$47+24%*$E$44+28%*$E$41, IF(V88>=257,6.7%*$E$53+13.4%*$E$50+20.1%*$E$47+26.8%*$E$44+33%*$E$41, IF(V88>=256,10%*$E$50+20%*$E$47+30%*$E$44+40%*$E$41, IF(V88>=255,16.7%*$E$47+33.3%*$E$44+50%*$E$41, IF(V88>=254,33.3%*$E$44+66.7%*$E$41,0))))) -> 2414.384651 | K88: =AI88/1000* IF(W88>=258,4.8%*$L$24+9.6%*$E$53+14.4%*$E$50+19.2%*$E$47+24%*$E$44+28%*$E$41, IF(W88>=257,6.7%*$E$53+13.4%*$E$50+20.1%*$E$47+26.8%*$E$44+33%*$E$41, IF(W88>=256,10%*$E$50+20%*$E$47+30%*$E$44+40%*$E$41, IF(W88>=255,16.7%*$E$47+33.3%*$E$44+50%*$E$41, IF(W88>=254,33.3%*$E$44+66.7%*$E$41,0))))) -> 2734.844344 | L88: =AJ88/1000* IF(X88>=258,4.8%*$L$24+9.6%*$E$53+14.4%*$E$50+19.2%*$E$47+24%*$E$44+28%*$E$41, IF(X88>=257,6.7%*$E$53+13.4%*$E$50+20.1%*$E$47+26.8%*$E$44+33%*$E$41, IF(X88>=256,10%*$E$50+20%*$E$47+30%*$E$44+40%*$E$41, IF(X88>=255,16.7%*$E$47+33.3%*$E$44+50%*$E$41, IF(X88>=254,33.3%*$E$44+66.7%*$E$41,0))))) -> 3030.800347 | M88: =AK88/1000* IF(Y88>=258,4.8%*$L$24+9.6%*$E$53+14.4%*$E$50+19.2%*$E$47+24%*$E$44+28%*$E$41, IF(Y88>=257,6.7%*$E$53+13.4%*$E$50+20.1%*$E$47+26.8%*$E$44+33%*$E$41, IF(Y88>=256,10%*$E$50+20%*$E$47+30%*$E$44+40%*$E$41, IF(Y88>=255,16.7%*$E$47+33.3%*$E$44+50%*$E$41, IF(Y88>=254,33.3%*$E$44+66.7%*$E$41,0))))) -> 3311.120367 | N88: =AL88/1000* IF(Z88>=258,4.8%*$L$24+9.6%*$E$53+14.4%*$E$50+19.2%*$E$47+24%*$E$44+28%*$E$41, IF(Z88>=257,6.7%*$E$53+13.4%*$E$50+20.1%*$E$47+26.8%*$E$44+33%*$E$41, IF(Z88>=256,10%*$E$50+20%*$E$47+30%*$E$44+40%*$E$41, IF(Z88>=255,16.7%*$E$47+33.3%*$E$44+50%*$E$41, IF(Z88>=254,33.3%*$E$44+66.7%*$E$41,0))))) -> 3597.777526 | O88: =AM88/1000* IF(AA88>=258,4.8%*$L$24+9.6%*$E$53+14.4%*$E$50+19.2%*$E$47+24%*$E$44+28%*$E$41, IF(AA88>=257,6.7%*$E$53+13.4%*$E$50+20.1%*$E$47+26.8%*$E$44+33%*$E$41, IF(AA88>=256,10%*$E$50+20%*$E$47+30%*$E$44+40%*$E$41, IF(AA88>=255,16.7%*$E$47+33.3%*$E$44+50%*$E$41, IF(AA88>=254,33.3%*$E$44+66.7%*$E$41,0))))) -> 5898.14939 | P88: =AN88/1000* IF(AB88>=258,4.8%*$L$24+9.6%*$E$53+14.4%*$E$50+19.2%*$E$47+24%*$E$44+28%*$E$41, IF(AB88>=257,6.7%*$E$53+13.4%*$E$50+20.1%*$E$47+26.8%*$E$44+33%*$E$41, IF(AB88>=256,10%*$E$50+20%*$E$47+30%*$E$44+40%*$E$41, IF(AB88>=255,16.7%*$E$47+33.3%*$E$44+50%*$E$41, IF(AB88>=254,33.3%*$E$44+66.7%*$E$41,0))))) -> 8564.966417 | Q88: =AO88/1000* IF(AC88>=258,4.8%*$L$24+9.6%*$E$53+14.4%*$E$50+19.2%*$E$47+24%*$E$44+28%*$E$41, IF(AC88>=257,6.7%*$E$53+13.4%*$E$50+20.1%*$E$47+26.8%*$E$44+33%*$E$41, IF(AC88>=256,10%*$E$50+20%*$E$47+30%*$E$44+40%*$E$41, IF(AC88>=255,16.7%*$E$47+33.3%*$E$44+50%*$E$41, IF(AC88>=254,33.3%*$E$44+66.7%*$E$41,0))))) -> 14543.62458 | R88: =AP88/1000* IF(AD88>=258,4.8%*$L$24+9.6%*$E$53+14.4%*$E$50+19.2%*$E$47+24%*$E$44+28%*$E$41, IF(AD88>=257,6.7%*$E$53+13.4%*$E$50+20.1%*$E$47+26.8%*$E$44+33%*$E$41, IF(AD88>=256,10%*$E$50+20%*$E$47+30%*$E$44+40%*$E$41, IF(AD88>=255,16.7%*$E$47+33.3%*$E$44+50%*$E$41, IF(AD88>=254,33.3%*$E$44+66.7%*$E$41,0))))) -> 15139.9616 | S88: =AQ88/1000* IF(AE88>=258,4.8%*$L$24+9.6%*$E$53+14.4%*$E$50+19.2%*$E$47+24%*$E$44+28%*$E$41, IF(AE88>=257,6.7%*$E$53+13.4%*$E$50+20.1%*$E$47+26.8%*$E$44+33%*$E$41, IF(AE88>=256,10%*$E$50+20%*$E$47+30%*$E$44+40%*$E$41, IF(AE88>=255,16.7%*$E$47+33.3%*$E$44+50%*$E$41, IF(AE88>=254,33.3%*$E$44+66.7%*$E$41,0))))) -> 15732.27767 | U88: =IF(OR(Do_Nothing!$Q$35=1,AND(Do_Nothing!$N$35=1,VLOOKUP($D88,Table!$A$4:$E$34,COLUMN(Table!$E:$E),FALSE)<37)),253,VLOOKUP($D88,Table!$A$4:$J$34,COLUMN(Table!J:J),FALSE)) -> 255.0066253 | V88: =(1-MIN(0,VLOOKUP($E88,OLTC_Taps!$D$147:$H$173,6-1,FALSE)+VLOOKUP($E88,OLTC_Taps!$D$147:$N$173,12-1,FALSE)*(V$87-$V$87+1)))*$U88 -> 255.0066253 | W88: =(1-MIN(0,VLOOKUP($E88,OLTC_Taps!$D$147:$H$173,6-1,FALSE)+VLOOKUP($E88,OLTC_Taps!$D$147:$N$173,12-1,FALSE)*(W$87-$V$87+1)))*$U88 -> 255.0066253 | X88: =(1-MIN(0,VLOOKUP($E88,OLTC_Taps!$D$147:$H$173,6-1,FALSE)+VLOOKUP($E88,OLTC_Taps!$D$147:$N$173,12-1,FALSE)*(X$87-$V$87+1)))*$U88 -> 255.0066253 | Y88: =(1-MIN(0,VLOOKUP($E88,OLTC_Taps!$D$147:$H$173,6-1,FALSE)+VLOOKUP($E88,OLTC_Taps!$D$147:$N$173,12-1,FALSE)*(Y$87-$V$87+1)))*$U88 -> 255.8392198 | Z88: =(1-MIN(0,VLOOKUP($E88,OLTC_Taps!$D$147:$H$173,6-1,FALSE)+VLOOKUP($E88,OLTC_Taps!$D$147:$O$173,13-1,FALSE)*(Z$87-$V$87+1)))*$U88 -> 255.7030847 | AA88: =(1-MIN(0,VLOOKUP($E88,OLTC_Taps!$D$147:$H$173,6-1,FALSE)+VLOOKUP($E88,OLTC_Taps!$D$147:$O$173,13-1,FALSE)*(AA$87-$V$87+1)))*$U88 -> 256.4798932 | AB88: =(1-MIN(0,VLOOKUP($E88,OLTC_Taps!$D$147:$H$173,6-1,FALSE)+VLOOKUP($E88,OLTC_Taps!$D$147:$O$173,13-1,FALSE)*(AB$87-$V$87+1)))*$U88 -> 257.2567016 | AC88: =(1-MIN(0,VLOOKUP($E88,OLTC_Taps!$D$147:$H$173,6-1,FALSE)+VLOOKUP($E88,OLTC_Taps!$D$147:$O$173,13-1,FALSE)*(AC$87-$V$87+1)))*$U88 -> 258.0335101 | AD88: =(1-MIN(0,VLOOKUP($E88,OLTC_Taps!$D$147:$H$173,6-1,FALSE)+VLOOKUP($E88,OLTC_Taps!$D$147:$O$173,13-1,FALSE)*(AD$87-$V$87+1)))*$U88 -> 258.8103185 | AE88: =(1-MIN(0,VLOOKUP($E88,OLTC_Taps!$D$147:$H$173,6-1,FALSE)+VLOOKUP($E88,OLTC_Taps!$D$147:$O$173,13-1,FALSE)*(AE$87-$V$87+1)))*$U88 -> 259.587127 | AG88: =SUMIFS(PV_Uptake!F$50:F$80,PV_Uptake!$D$50:$D$80,$E88)/$I$15*1000000 -> 7519.999695 | AH88: =SUMIFS(PV_Uptake!G$50:G$80,PV_Uptake!$D$50:$D$80,$E88)/$I$15*1000000 -> 8801.968463 | AI88: =SUMIFS(PV_Uptake!H$50:H$80,PV_Uptake!$D$50:$D$80,$E88)/$I$15*1000000 -> 9970.247968 | AJ88: =SUMIFS(PV_Uptake!I$50:I$80,PV_Uptake!$D$50:$D$80,$E88)/$I$15*1000000 -> 11049.19593 | AK88: =SUMIFS(PV_Uptake!J$50:J$80,PV_Uptake!$D$50:$D$80,$E88)/$I$15*1000000 -> 12071.14079 | AL88: =SUMIFS(PV_Uptake!K$50:K$80,PV_Uptake!$D$50:$D$80,$E88)/$I$15*1000000 -> 13116.18855 | AM88: =SUMIFS(PV_Uptake!L$50:L$80,PV_Uptake!$D$50:$D$80,$E88)/$I$15*1000000 -> 14045.68023 | AN88: =SUMIFS(PV_Uptake!M$50:M$80,PV_Uptake!$D$50:$D$80,$E88)/$I$15*1000000 -> 14923.17368 | AO88: =SUMIFS(PV_Uptake!N$50:N$80,PV_Uptake!$D$50:$D$80,$E88)/$I$15*1000000 -> 15643.77029 | AP88: =SUMIFS(PV_Uptake!O$50:O$80,PV_Uptake!$D$50:$D$80,$E88)/$I$15*1000000 -> 16285.21694 | AQ88: =SUMIFS(PV_Uptake!P$50:P$80,PV_Uptake!$D$50:$D$80,$E88)/$I$15*1000000 -> 16922.33849
D89: CS0 | E89: CS | I89: 1194.270189 | J89: 1364.085478 | K89: 1533.171087 | L89: 1699.803659 | M89: 1866.29422 | N89: 2042.932001 | O89: 2206.489751 | P89: 2368.247673 | Q89: 2508.889322 | R89: 2642.751567 | S89: 2785.411056 | U89: =IF(OR(Do_Nothing!$Q$35=1,AND(Do_Nothing!$N$35=1,VLOOKUP($D89,Table!$A$4:$E$34,COLUMN(Table!$E:$E),FALSE)<37)),253,VLOOKUP($D89,Table!$A$4:$J$34,COLUMN(Table!J:J),FALSE)) -> 256.2385335 | V89: =(1-MIN(0,VLOOKUP($E89,OLTC_Taps!$D$147:$H$173,6-1,FALSE)+VLOOKUP($E89,OLTC_Taps!$D$147:$N$173,12-1,FALSE)*(V$87-$V$87+1)))*$U89 -> 256.2385335 | W89: =(1-MIN(0,VLOOKUP($E89,OLTC_Taps!$D$147:$H$173,6-1,FALSE)+VLOOKUP($E89,OLTC_Taps!$D$147:$N$173,12-1,FALSE)*(W$87-$V$87+1)))*$U89 -> 256.2385335 | X89: =(1-MIN(0,VLOOKUP($E89,OLTC_Taps!$D$147:$H$173,6-1,FALSE)+VLOOKUP($E89,OLTC_Taps!$D$147:$N$173,12-1,FALSE)*(X$87-$V$87+1)))*$U89 -> 256.2385335 | Y89: =(1-MIN(0,VLOOKUP($E89,OLTC_Taps!$D$147:$H$173,6-1,FALSE)+VLOOKUP($E89,OLTC_Taps!$D$147:$N$173,12-1,FALSE)*(Y$87-$V$87+1)))*$U89 -> 256.2385335 | Z89: =(1-MIN(0,VLOOKUP($E89,OLTC_Taps!$D$147:$H$173,6-1,FALSE)+VLOOKUP($E89,OLTC_Taps!$D$147:$O$173,13-1,FALSE)*(Z$87-$V$87+1)))*$U89 -> 256.2385335 | AA89: =(1-MIN(0,VLOOKUP($E89,OLTC_Taps!$D$147:$H$173,6-1,FALSE)+VLOOKUP($E89,OLTC_Taps!$D$147:$O$173,13-1,FALSE)*(AA$87-$V$87+1)))*$U89 -> 256.2385335 | AB89: =(1-MIN(0,VLOOKUP($E89,OLTC_Taps!$D$147:$H$173,6-1,FALSE)+VLOOKUP($E89,OLTC_Taps!$D$147:$O$173,13-1,FALSE)*(AB$87-$V$87+1)))*$U89 -> 256.2385335 | AC89: =(1-MIN(0,VLOOKUP($E89,OLTC_Taps!$D$147:$H$173,6-1,FALSE)+VLOOKUP($E89,OLTC_Taps!$D$147:$O$173,13-1,FALSE)*(AC$87-$V$87+1)))*$U89 -> 256.2385335 | AD89: =(1-MIN(0,VLOOKUP($E89,OLTC_Taps!$D$147:$H$173,6-1,FALSE)+VLOOKUP($E89,OLTC_Taps!$D$147:$O$173,13-1,FALSE)*(AD$87-$V$87+1)))*$U89 -> 256.2385335 | AE89: =(1-MIN(0,VLOOKUP($E89,OLTC_Taps!$D$147:$H$173,6-1,FALSE)+VLOOKUP($E89,OLTC_Taps!$D$147:$O$173,13-1,FALSE)*(AE$87-$V$87+1)))*$U89 -> 256.2385335 | AG89: =SUMIFS(PV_Uptake!F$50:F$80,PV_Uptake!$D$50:$D$80,$E89)/$I$15*1000000 -> 2844.000053 | AH89: =SUMIFS(PV_Uptake!G$50:G$80,PV_Uptake!$D$50:$D$80,$E89)/$I$15*1000000 -> 3248.39321 | AI89: =SUMIFS(PV_Uptake!H$50:H$80,PV_Uptake!$D$50:$D$80,$E89)/$I$15*1000000 -> 3651.048729 | AJ89: =SUMIFS(PV_Uptake!I$50:I$80,PV_Uptake!$D$50:$D$80,$E89)/$I$15*1000000 -> 4047.862655 | AK89: =SUMIFS(PV_Uptake!J$50:J$80,PV_Uptake!$D$50:$D$80,$E89)/$I$15*1000000 -> 4444.338403 | AL89: =SUMIFS(PV_Uptake!K$50:K$80,PV_Uptake!$D$50:$D$80,$E89)/$I$15*1000000 -> 4864.978442 | AM89: =SUMIFS(PV_Uptake!L$50:L$80,PV_Uptake!$D$50:$D$80,$E89)/$I$15*1000000 -> 5254.470076 | AN89: =SUMIFS(PV_Uptake!M$50:M$80,PV_Uptake!$D$50:$D$80,$E89)/$I$15*1000000 -> 5639.675656 | AO89: =SUMIFS(PV_Uptake!N$50:N$80,PV_Uptake!$D$50:$D$80,$E89)/$I$15*1000000 -> 5974.595559 | AP89: =SUMIFS(PV_Uptake!O$50:O$80,PV_Uptake!$D$50:$D$80,$E89)/$I$15*1000000 -> 6293.371189 | AQ89: =SUMIFS(PV_Uptake!P$50:P$80,PV_Uptake!$D$50:$D$80,$E89)/$I$15*1000000 -> 6633.09632
D90: SBY | E90: SBY | I90: 1188.818519 | J90: 1361.988621 | K90: 1534.700146 | L90: 1705.812609 | M90: 1875.975063 | N90: 2055.872723 | O90: 2220.784757 | P90: 3645.448308 | Q90: 3855.65246 | R90: 5534.977351 | S90: 5811.915808 | U90: =IF(OR(Do_Nothing!$Q$35=1,AND(Do_Nothing!$N$35=1,VLOOKUP($D90,Table!$A$4:$E$34,COLUMN(Table!$E:$E),FALSE)<37)),253,VLOOKUP($D90,Table!$A$4:$J$34,COLUMN(Table!J:J),FALSE)) -> 255.9142112 | V90: =(1-MIN(0,VLOOKUP($E90,OLTC_Taps!$D$147:$H$173,6-1,FALSE)+VLOOKUP($E90,OLTC_Taps!$D$147:$N$173,12-1,FALSE)*(V$87-$V$87+1)))*$U90 -> 255.9142112 | W90: =(1-MIN(0,VLOOKUP($E90,OLTC_Taps!$D$147:$H$173,6-1,FALSE)+VLOOKUP($E90,OLTC_Taps!$D$147:$N$173,12-1,FALSE)*(W$87-$V$87+1)))*$U90 -> 255.9142112 | X90: =(1-MIN(0,VLOOKUP($E90,OLTC_Taps!$D$147:$H$173,6-1,FALSE)+VLOOKUP($E90,OLTC_Taps!$D$147:$N$173,12-1,FALSE)*(X$87-$V$87+1)))*$U90 -> 255.9142112 | Y90: =(1-MIN(0,VLOOKUP($E90,OLTC_Taps!$D$147:$H$173,6-1,FALSE)+VLOOKUP($E90,OLTC_Taps!$D$147:$N$173,12-1,FALSE)*(Y$87-$V$87+1)))*$U90 -> 255.9142112 | Z90: =(1-MIN(0,VLOOKUP($E90,OLTC_Taps!$D$147:$H$173,6-1,FALSE)+VLOOKUP($E90,OLTC_Taps!$D$147:$O$173,13-1,FALSE)*(Z$87-$V$87+1)))*$U90 -> 255.9142112 | AA90: =(1-MIN(0,VLOOKUP($E90,OLTC_Taps!$D$147:$H$173,6-1,FALSE)+VLOOKUP($E90,OLTC_Taps!$D$147:$O$173,13-1,FALSE)*(AA$87-$V$87+1)))*$U90 -> 255.9142112 | AB90: =(1-MIN(0,VLOOKUP($E90,OLTC_Taps!$D$147:$H$173,6-1,FALSE)+VLOOKUP($E90,OLTC_Taps!$D$147:$O$173,13-1,FALSE)*(AB$87-$V$87+1)))*$U90 -> 256.2863032 | AC90: =(1-MIN(0,VLOOKUP($E90,OLTC_Taps!$D$147:$H$173,6-1,FALSE)+VLOOKUP($E90,OLTC_Taps!$D$147:$O$173,13-1,FALSE)*(AC$87-$V$87+1)))*$U90 -> 256.7964488 | AD90: =(1-MIN(0,VLOOKUP($E90,OLTC_Taps!$D$147:$H$173,6-1,FALSE)+VLOOKUP($E90,OLTC_Taps!$D$147:$O$173,13-1,FALSE)*(AD$87-$V$87+1)))*$U90 -> 257.3065945 | AE90: =(1-MIN(0,VLOOKUP($E90,OLTC_Taps!$D$147:$H$173,6-1,FALSE)+VLOOKUP($E90,OLTC_Taps!$D$147:$O$173,13-1,FALSE)*(AE$87-$V$87+1)))*$U90 -> 257.8167401 | AG90: =SUMIFS(PV_Uptake!F$50:F$80,PV_Uptake!$D$50:$D$80,$E90)/$I$15*1000000 -> 4334.000015 | AH90: =SUMIFS(PV_Uptake!G$50:G$80,PV_Uptake!$D$50:$D$80,$E90)/$I$15*1000000 -> 4965.315233 | AI90: =SUMIFS(PV_Uptake!H$50:H$80,PV_Uptake!$D$50:$D$80,$E90)/$I$15*1000000 -> 5594.958647 | AJ90: =SUMIFS(PV_Uptake!I$50:I$80,PV_Uptake!$D$50:$D$80,$E90)/$I$15*1000000 -> 6218.772463 | AK90: =SUMIFS(PV_Uptake!J$50:J$80,PV_Uptake!$D$50:$D$80,$E90)/$I$15*1000000 -> 6839.122892 | AL90: =SUMIFS(PV_Uptake!K$50:K$80,PV_Uptake!$D$50:$D$80,$E90)/$I$15*1000000 -> 7494.964344 | AM90: =SUMIFS(PV_Uptake!L$50:L$80,PV_Uptake!$D$50:$D$80,$E90)/$I$15*1000000 -> 8096.173651 | AN90: =SUMIFS(PV_Uptake!M$50:M$80,PV_Uptake!$D$50:$D$80,$E90)/$I$15*1000000 -> 8681.163845 | AO90: =SUMIFS(PV_Uptake!N$50:N$80,PV_Uptake!$D$50:$D$80,$E90)/$I$15*1000000 -> 9181.737858 | AP90: =SUMIFS(PV_Uptake!O$50:O$80,PV_Uptake!$D$50:$D$80,$E90)/$I$15*1000000 -> 9643.870658 | AQ90: =SUMIFS(PV_Uptake!P$50:P$80,PV_Uptake!$D$50:$D$80,$E90)/$I$15*1000000 -> 10126.39452
D91: PV0 | E91: PV | I91: 1128.360777 | J91: 1315.018845 | K91: 1515.363982 | L91: 1731.585097 | M91: 1968.877047 | N91: 2248.791645 | O91: 2538.188051 | P91: 2858.031212 | Q91: 3170.98018 | R91: 3507.007247 | S91: 3911.844326 | U91: =IF(OR(Do_Nothing!$Q$35=1,AND(Do_Nothing!$N$35=1,VLOOKUP($D91,Table!$A$4:$E$34,COLUMN(Table!$E:$E),FALSE)<37)),253,VLOOKUP($D91,Table!$A$4:$J$34,COLUMN(Table!J:J),FALSE)) -> 257 | V91: =(1-MIN(0,VLOOKUP($E91,OLTC_Taps!$D$147:$H$173,6-1,FALSE)+VLOOKUP($E91,OLTC_Taps!$D$147:$N$173,12-1,FALSE)*(V$87-$V$87+1)))*$U91 -> 257 | W91: =(1-MIN(0,VLOOKUP($E91,OLTC_Taps!$D$147:$H$173,6-1,FALSE)+VLOOKUP($E91,OLTC_Taps!$D$147:$N$173,12-1,FALSE)*(W$87-$V$87+1)))*$U91 -> 257 | X91: =(1-MIN(0,VLOOKUP($E91,OLTC_Taps!$D$147:$H$173,6-1,FALSE)+VLOOKUP($E91,OLTC_Taps!$D$147:$N$173,12-1,FALSE)*(X$87-$V$87+1)))*$U91 -> 257 | Y91: =(1-MIN(0,VLOOKUP($E91,OLTC_Taps!$D$147:$H$173,6-1,FALSE)+VLOOKUP($E91,OLTC_Taps!$D$147:$N$173,12-1,FALSE)*(Y$87-$V$87+1)))*$U91 -> 257 | Z91: =(1-MIN(0,VLOOKUP($E91,OLTC_Taps!$D$147:$H$173,6-1,FALSE)+VLOOKUP($E91,OLTC_Taps!$D$147:$O$173,13-1,FALSE)*(Z$87-$V$87+1)))*$U91 -> 257 | AA91: =(1-MIN(0,VLOOKUP($E91,OLTC_Taps!$D$147:$H$173,6-1,FALSE)+VLOOKUP($E91,OLTC_Taps!$D$147:$O$173,13-1,FALSE)*(AA$87-$V$87+1)))*$U91 -> 257 | AB91: =(1-MIN(0,VLOOKUP($E91,OLTC_Taps!$D$147:$H$173,6-1,FALSE)+VLOOKUP($E91,OLTC_Taps!$D$147:$O$173,13-1,FALSE)*(AB$87-$V$87+1)))*$U91 -> 257 | AC91: =(1-MIN(0,VLOOKUP($E91,OLTC_Taps!$D$147:$H$173,6-1,FALSE)+VLOOKUP($E91,OLTC_Taps!$D$147:$O$173,13-1,FALSE)*(AC$87-$V$87+1)))*$U91 -> 257 | AD91: =(1-MIN(0,VLOOKUP($E91,OLTC_Taps!$D$147:$H$173,6-1,FALSE)+VLOOKUP($E91,OLTC_Taps!$D$147:$O$173,13-1,FALSE)*(AD$87-$V$87+1)))*$U91 -> 257 | AE91: =(1-MIN(0,VLOOKUP($E91,OLTC_Taps!$D$147:$H$173,6-1,FALSE)+VLOOKUP($E91,OLTC_Taps!$D$147:$O$173,13-1,FALSE)*(AE$87-$V$87+1)))*$U91 -> 257 | AG91: =SUMIFS(PV_Uptake!F$50:F$80,PV_Uptake!$D$50:$D$80,$E91)/$I$15*1000000 -> 1965.999985 | AH91: =SUMIFS(PV_Uptake!G$50:G$80,PV_Uptake!$D$50:$D$80,$E91)/$I$15*1000000 -> 2291.223766 | AI91: =SUMIFS(PV_Uptake!H$50:H$80,PV_Uptake!$D$50:$D$80,$E91)/$I$15*1000000 -> 2640.29522 | AJ91: =SUMIFS(PV_Uptake!I$50:I$80,PV_Uptake!$D$50:$D$80,$E91)/$I$15*1000000 -> 3017.028193 | AK91: =SUMIFS(PV_Uptake!J$50:J$80,PV_Uptake!$D$50:$D$80,$E91)/$I$15*1000000 -> 3430.473945 | AL91: =SUMIFS(PV_Uptake!K$50:K$80,PV_Uptake!$D$50:$D$80,$E91)/$I$15*1000000 -> 3918.18329 | AM91: =SUMIFS(PV_Uptake!L$50:L$80,PV_Uptake!$D$50:$D$80,$E91)/$I$15*1000000 -> 4422.413267 | AN91: =SUMIFS(PV_Uptake!M$50:M$80,PV_Uptake!$D$50:$D$80,$E91)/$I$15*1000000 -> 4979.692164 | AO91: =SUMIFS(PV_Uptake!N$50:N$80,PV_Uptake!$D$50:$D$80,$E91)/$I$15*1000000 -> 5524.958962 | AP91: =SUMIFS(PV_Uptake!O$50:O$80,PV_Uptake!$D$50:$D$80,$E91)/$I$15*1000000 -> 6110.435895 | AQ91: =SUMIFS(PV_Uptake!P$50:P$80,PV_Uptake!$D$50:$D$80,$E91)/$I$15*1000000 -> 6815.80399
D92: COO | E92: COO | I92: 831.3007773 | J92: 1003.902529 | K92: 1189.237617 | L92: 1384.963094 | M92: 1589.33003 | N92: 1813.069413 | O92: 2024.224171 | P92: 3683.927358 | Q92: 6095.523091 | R92: 8915.308162 | S92: 15429.48544 | U92: =IF(OR(Do_Nothing!$Q$35=1,AND(Do_Nothing!$N$35=1,VLOOKUP($D92,Table!$A$4:$E$34,COLUMN(Table!$E:$E),FALSE)<37)),253,VLOOKUP($D92,Table!$A$4:$J$34,COLUMN(Table!J:J),FALSE)) -> 254.8026479 | V92: =(1-MIN(0,VLOOKUP($E92,OLTC_Taps!$D$147:$H$173,6-1,FALSE)+VLOOKUP($E92,OLTC_Taps!$D$147:$N$173,12-1,FALSE)*(V$87-$V$87+1)))*$U92 -> 254.8026479 | W92: =(1-MIN(0,VLOOKUP($E92,OLTC_Taps!$D$147:$H$173,6-1,FALSE)+VLOOKUP($E92,OLTC_Taps!$D$147:$N$173,12-1,FALSE)*(W$87-$V$87+1)))*$U92 -> 254.8026479 | X92: =(1-MIN(0,VLOOKUP($E92,OLTC_Taps!$D$147:$H$173,6-1,FALSE)+VLOOKUP($E92,OLTC_Taps!$D$147:$N$173,12-1,FALSE)*(X$87-$V$87+1)))*$U92 -> 254.8026479 | Y92: =(1-MIN(0,VLOOKUP($E92,OLTC_Taps!$D$147:$H$173,6-1,FALSE)+VLOOKUP($E92,OLTC_Taps!$D$147:$N$173,12-1,FALSE)*(Y$87-$V$87+1)))*$U92 -> 254.8026479 | Z92: =(1-MIN(0,VLOOKUP($E92,OLTC_Taps!$D$147:$H$173,6-1,FALSE)+VLOOKUP($E92,OLTC_Taps!$D$147:$O$173,13-1,FALSE)*(Z$87-$V$87+1)))*$U92 -> 254.8026479 | AA92: =(1-MIN(0,VLOOKUP($E92,OLTC_Taps!$D$147:$H$173,6-1,FALSE)+VLOOKUP($E92,OLTC_Taps!$D$147:$O$173,13-1,FALSE)*(AA$87-$V$87+1)))*$U92 -> 254.8026479 | AB92: =(1-MIN(0,VLOOKUP($E92,OLTC_Taps!$D$147:$H$173,6-1,FALSE)+VLOOKUP($E92,OLTC_Taps!$D$147:$O$173,13-1,FALSE)*(AB$87-$V$87+1)))*$U92 -> 255.5609023 | AC92: =(1-MIN(0,VLOOKUP($E92,OLTC_Taps!$D$147:$H$173,6-1,FALSE)+VLOOKUP($E92,OLTC_Taps!$D$147:$O$173,13-1,FALSE)*(AC$87-$V$87+1)))*$U92 -> 256.5792338 | AD92: =(1-MIN(0,VLOOKUP($E92,OLTC_Taps!$D$147:$H$173,6-1,FALSE)+VLOOKUP($E92,OLTC_Taps!$D$147:$O$173,13-1,FALSE)*(AD$87-$V$87+1)))*$U92 -> 257.5975653 | AE92: =(1-MIN(0,VLOOKUP($E92,OLTC_Taps!$D$147:$H$173,6-1,FALSE)+VLOOKUP($E92,OLTC_Taps!$D$147:$O$173,13-1,FALSE)*(AE$87-$V$87+1)))*$U92 -> 258.6158968 | AG92: =SUMIFS(PV_Uptake!F$50:F$80,PV_Uptake!$D$50:$D$80,$E92)/$I$15*1000000 -> 5000 | AH92: =SUMIFS(PV_Uptake!G$50:G$80,PV_Uptake!$D$50:$D$80,$E92)/$I$15*1000000 -> 6038.14261 | AI92: =SUMIFS(PV_Uptake!H$50:H$80,PV_Uptake!$D$50:$D$80,$E92)/$I$15*1000000 -> 7152.872035 | AJ92: =SUMIFS(PV_Uptake!I$50:I$80,PV_Uptake!$D$50:$D$80,$E92)/$I$15*1000000 -> 8330.096232 | AK92: =SUMIFS(PV_Uptake!J$50:J$80,PV_Uptake!$D$50:$D$80,$E92)/$I$15*1000000 -> 9559.295949 | AL92: =SUMIFS(PV_Uptake!K$50:K$80,PV_Uptake!$D$50:$D$80,$E92)/$I$15*1000000 -> 10905.01454 | AM92: =SUMIFS(PV_Uptake!L$50:L$80,PV_Uptake!$D$50:$D$80,$E92)/$I$15*1000000 -> 12175.04077 | AN92: =SUMIFS(PV_Uptake!M$50:M$80,PV_Uptake!$D$50:$D$80,$E92)/$I$15*1000000 -> 13430.25951 | AO92: =SUMIFS(PV_Uptake!N$50:N$80,PV_Uptake!$D$50:$D$80,$E92)/$I$15*1000000 -> 14515.70018 | AP92: =SUMIFS(PV_Uptake!O$50:O$80,PV_Uptake!$D$50:$D$80,$E92)/$I$15*1000000 -> 15533.5918 | AQ92: =SUMIFS(PV_Uptake!P$50:P$80,PV_Uptake!$D$50:$D$80,$E92)/$I$15*1000000 -> 16596.64168
